Workbook

Sheet Welcome (hidden)
D2: In Year Monitoring | I2: 2019/20 | W2: Inconsistencies? | X2: =Summary!H14 -> INCONSISTENCIES
W3: Vote No. | X3: Department | BP3: Month | BQ3: MonthNo. | BR3: Month Selection
W4: 1 | X4: The Presidency | BP4: April | BQ4: 1 | BR4: =+INDEX(($BQ$4:$BQ$15),MATCH(Welcome!$B$7,Welcome!BP4:BP15,0)) -> 
W5: 2 | X5: Parliament | BP5: May | BQ5: 2
W6: 3 | X6: Communications | BP6: June | BQ6: 3
B7: Projection | C7: 7 | E7: =VLOOKUP(C7,W4:X50,2) -> National Treasury | W7: 4 | X7: Cooperative Governance | BP7: July | BQ7: 4
W8: 5 | X8: Home Affairs | BP8: August | BQ8: 5
W9: 6 | X9: International Relations and Cooperation | BP9: September | BQ9: 6
B10: Enquiries | E10: Department Contact Details | H10: PLEASE CLICK THE BUTTON BELOW TO SUBMIT THE IYM DATABASE… | W10: 7 | X10: National Treasury | BP10: October | BQ10: 7
B11: =W60 -> Misaveni Ngobeni | C11: =Z60 -> Misaveni.Ngobeni@treasury.gov.za | E11: Name: | W11: 8 | X11: Planning, Monitoring and Evaluation | BP11: November | BQ11: 8
B12: =W61 -> Millicent Mulaudzi | C12: =Z61 -> Millicent.Mulaudzi@treasury.gov.za | E12: Email: | W12: 9 | X12: Public Enterprises | BP12: December | BQ12: 9
B13: =W62 -> Tlhologelo Thoka | C13: =Z62 -> Tlhologelo.Thoka@treasury.gov.za | E13: Telephone number: | W13: 10 | X13: Public Service and Administration | BP13: January | BQ13: 10
B14: =W63 -> Thobeka Mbonambi | C14: =Z63 -> Thobeka.Mbonambi@treasury.gov.za | E14: Mobile (optional): | W14: 11 | X14: Public Works | BP14: February | BQ14: 11
W15: 12 | X15: Statistics South Africa | BP15: March | BQ15: 12
W16: 13 | X16: Women
B17: Technical Enquires | W17: 14 | X17: Basic Education
B18: Name | C18: Mpho Leeu | W18: 15 | X18: Higher Education and Training
B19: Email | C19: Mpho.Leeu@treasury.gov.za | W19: 16 | X19: Health
B20: Telephone number | C20: 012 315 5794 | W20: 17 | X20: Social Development
W21: 18 | X21: Correctional Services
W22: 19 | X22: Defence
W23: 20 | X23: Independent Police Investigative Directorate
W24: 21 | X24: Justice and Constitutional Development
W25: 22 | X25: Office of the Chief Justice and Judicial Administration
W26: 23 | X26: Police
W27: 24 | X27: Agriculture, Forestry and Fisheries
W28: 25 | X28: Economic Development
W29: 26 | X29: Energy
W30: 27 | X30: Environmental Affairs
W31: 28 | X31: Labour
W32: 29 | X32: Mineral Resources
W33: 30 | X33: Science and Technology
W34: 31 | X34: Small Business Development
W35: 32 | X35: Telecommunications and Postal Services
W36: 33 | X36: Tourism
W37: 34 | X37: Trade and Industry
W38: 35 | X38: Transport
W39: 36 | X39: Water and Sanitation
W40: 37 | X40: Arts and Culture
W41: 38 | X41: Human Settlements
W42: 39 | X42: Rural Development and Land Reform
W43: 40 | X43: Sport and Recreation South Africa
W44: 41 | X44: Civilian Secretariat for Police
W45: 42 | X45: Military Veterans
W46: 43 | X46: Traditional Affairs
W47: 44 | X47: National School of Government
W48: 45 | X48: Public Service Commission
W49: 46 | X49: Government Communication and Information System
W50: 47 | X50: Centre for Public Service Innovation
W55: Misaveni.Ngobeni@treasury.gov.za;Millicent.Mulaudzi@treasury.gov.za;Tlhologelo.Thoka@treasury.gov.za;Thobeka.Mbonambi@treasury.gov.za
W57: Numbercontact | X57: =LEN(W58)-LEN(SUBSTITUTE(W58,";",""))+1 -> 4
W58: =Table_PTAVBSQLP01_BUDGET_FY201617_ContactDetails52[[#All],[Contact_emails]] -> Misaveni.Ngobeni@treasury.gov.za;Millicent.Mulaudzi@treasury.gov.za;Tlhologelo.Thoka@treasury.gov.za;Thobeka.Mbonambi@treasury.gov.za
U60: =IFERROR(LEFT(Z60,SEARCH(".",Z60)-1),"") -> Misaveni | V60: =IFERROR(MID(Z60,SEARCH(".",Z60)+1,SEARCH("@",Z60)-SEARCH(".",Z60)-1),"") -> Ngobeni | W60: =U60&" "&V60 -> Misaveni Ngobeni | X60: 1 | Y60: =SEARCH(";",W58,1) -> 33 | Z60: =IF(X60>$X$57,"",MID(W58,U59+1,Y60-U59-1)) -> Misaveni.Ngobeni@treasury.gov.za
U61: =IFERROR(LEFT(Z61,SEARCH(".",Z61)-1),"") -> Millicent | V61: Mulaudzi | W61: =U61&" "&V61 -> Millicent Mulaudzi | X61: 2 | Y61: =IFERROR(SEARCH(";",W58,Y60+1),LEN(W58)+1) -> 68 | Z61: =IF(X61>$X$57,"",MID(W58,Y60+1,Y61-Y60-1)) -> Millicent.Mulaudzi@treasury.gov.za
U62: Tlhologelo | V62: Thoka | W62: =U62&" "&V62 -> Tlhologelo Thoka | X62: 3 | Y62: =IFERROR(SEARCH(";",W58,Y61+1),LEN(W58)+1) -> 101 | Z62: =IF(X62>$X$57,"",MID(W58,Y61+1,Y62-Y61-1)) -> Tlhologelo.Thoka@treasury.gov.za
U63: Thobeka | V63: Mbonambi | W63: =U63&" "&V63 -> Thobeka Mbonambi | X63: 4 | Y63: =IFERROR(SEARCH(";",W58,Y62+1),LEN(W58)+1) -> 134 | Z63: =IF(X63>$X$57,"",MID(W58,Y62+1,Y63-Y62-1)) -> Thobeka.Mbonambi@treasury.gov.za
W64: =U64&" "&V64 ->  | X64: 5 | Y64: =IFERROR(SEARCH(";",W58,Y63+1),LEN(W58)+1) -> 134 | Z64: =IF(X64>$X$57,"",MID(W58,Y63+1,Y64-Y63-1)) -> 
X65: 6 | Y65: =IFERROR(SEARCH(";",W58,Y64+1),LEN(Z61)+1) -> 35 | Z65: =IF(X65>$X$57,"",MID(U61,Y64+1,Y65-Y64-1)) -> 
W66: =U66&" "&V66 -> 

Sheet Summary (hidden)
H2: MonthSelect (number of current month in financial year) | I2: =IFERROR(MATCH($J$2,$I$12:$T$12,0),0) -> 0 | J2: =Welcome!B7 -> Projection
B3: Dept | C3: =Welcome!C7 -> 7 | H3: Month number: | I3: 1 | J3: 2 | K3: 3 | L3: 4 | M3: 5 | N3: 6 | O3: 7 | P3: 8 | Q3: 9 | R3: 10 | S3: 11 | T3: 12
B5: Month | C5: =IFERROR(MATCH(Welcome!$B$7,$I$12:$T$12,0),0) -> 0
G6: ="Vote "&C3 -> Vote 7
G7: =Welcome!E7 -> National Treasury
AJ9: Adjustments
G10: PROJECTED AND ACTUAL EXPENDITURE (R'000) | Z10: Main Appropriation | AB10: Adjustments Appropriation | AD10: VIREMENTS, SHIFTS and ROLLOVERS | AJ10: Adjusted Estimates of National Expenditure (AENE) | AW10: Post AENE
I11: =IF($I$2>=I$3,"Actual","Projection") -> Projection | J11: =IF($I$2>=J$3,"Actual","Projection") -> Projection | K11: Projection | L11: Projection | M11: Projection | N11: Projection | O11: Projection | P11: Projection | Q11: Projection | R11: Projection | S11: Projection | T11: Projection | U11: Cumulative | V11: =IF(Summary!$C$5 = 12, "Actual","Projected") -> Projected | W11: =IF(Summary!$C$5 = 12, "Actual","Projected") -> Projected | Y11: Total Available | Z11: BAS | AA11: ENE | AB11: BAS | AC11: AENE | AD11: BAS | AG11: Total | AI11: Total | AJ11: Adjustments | AK11: Unforseeable | AL11: Expenditure | AM11: Money to be | AN11: Shifting of funds to follow | AP11: Utilisation of savings | AS11: Roll-overs | AT11: Declared | AU11: Self financing | AV11: Sub total | AW11: Utilisation of savings | AY11: Shifting of | AZ11: Sub total
H12: Projection | I12: April | J12: May | K12: June | L12: July | M12: August | N12: September | O12: October | P12: November | Q12: December | R12: January | S12: February | T12: March | U12: expenditure | V12: outcome | W12: (Over)/Under | Y12: funds | AD12: Virement | AE12: Fund Shift | AF12: Rollover | AG12: adjustments | AI12: adjustments | AJ12: due to | AK12: and | AL12: in terms of | AM12: appropriated | AN12: the transfer of functions | AP12: Approval | AQ12: Treasury | AR12: Approval | AT12: unspent | AU12: financing | AW12: Approval | AX12: Treasury | AY12: funds to
U13: to end of | V13: =Welcome!$I$2 -> 2019/20 | W13: Expenditure | AE13: Shifting of funds to follow the transfer of functions | AG13: BAS | AI13: IYM | AJ13: significant | AK13: unavoidable | AL13: Section 16 | AM13: for | AN13: Within | AO13: Between | AP13: by | AQ13: approval | AR13: through | AT13: funds | AW13: by | AX13: approval | AY13: follow the
H14: =IF(COUNTIF($I$137:$AZ$137,">=.5")+COUNTIF($I$137:$AZ$137,"<=-.5")>0,"INCONSISTENCIES","") -> INCONSISTENCIES | U14: =IFERROR(INDEX(I12:T12,1,I2),"year") -> year | AJ14: economic | AK14: expenditure | AM14: expenditure | AN14: votes | AO14: votes | AP14: Accounting | AR14: legislature | AW14: Accounting | AY14: transfer of
AJ15: and | AM15: already | AP15: officer | AW15: officer | AY15: functions
C16: Filter for hiding rows | AJ16: financial | AM16: announced | AP16: or delegate | AW16: or delegate | AY16: within votes
AJ17: events
AJ19: 23 | AK19: 24 | AL19: 25 | AM19: 26 | AN19: 27 | AO19: 28 | AP19: 29 | AQ19: 30 | AR19: 31 | AS19: 32 | AT19: 33 | AU19: 34 | AV19: 35 | AW19: 36 | AX19: 37 | AY19: 38 | AZ19: 39
C20: 1 | G20: Expenditure
C21: 1
C22: 1 | G22: Programme
C23: =IF(H23<>"",1,0) -> 1 | G23: 1 | H23: Administration | I23: ='1'!I$44 -> 30670 | J23: ='1'!J$44 -> 36175 | K23: ='1'!K$44 -> 39649 | L23: ='1'!L$44 -> 35988 | M23: ='1'!M$44 -> 34657 | N23: ='1'!N$44 -> 38808 | O23: ='1'!O$44 -> 49789 | P23: ='1'!P$44 -> 44328 | Q23: ='1'!Q$44 -> 48225 | R23: ='1'!R$44 -> 60417 | S23: ='1'!S$44 -> 55045 | T23: ='1'!T$44 -> 81969 | U23: =SUM(H23:OFFSET(H23,0,$I$2)) -> 0 | V23: =SUM(I23:T23) -> 555720 | W23: =Y23-V23 -> 0 | Y23: =AA23+AC23+AI23 -> 555720 | Z23: ='1'!Z$44 -> 0 | AA23: ='1'!AA$44 -> 555720 | AB23: ='1'!AB$44 -> 0 | AC23: ='1'!AC$44 -> 0 | AD23: ='1'!AD$44 -> 0 | AE23: ='1'!AE$44 -> 0 | AF23: ='1'!AF$44 -> 0 | AG23: =SUM(AD23:AF23) -> 0 | AI23: =AZ23 -> 0 | AJ23: ='1'!AJ$44 -> 0 | AK23: ='1'!AK$44 -> 0 | AL23: ='1'!AL$44 -> 0 | AM23: ='1'!AM$44 -> 0 | AN23: ='1'!AN$44 -> 0 | AO23: ='1'!AO$44 -> 0 | AP23: ='1'!AP$44 -> 0 | AQ23: ='1'!AQ$44 -> 0 | AR23: ='1'!AR$44 -> 0 | AS23: ='1'!AS$44 -> 0 | AT23: ='1'!AT$44 -> 0 | AU23: ='1'!AU$44 -> 0 | AV23: =SUM(AJ23:AU23) -> 0 | AW23: ='1'!AW$44 -> 0 | AX23: ='1'!AX$44 -> 0 | AY23: ='1'!AY$44 -> 0 | AZ23: =SUM(AW23:AY23) -> 0
C24: 1 | G24: 2 | H24: Economic Policy, Tax, Financial Regulation and Research | I24: ='2'!I$44 -> 0 | J24: ='2'!J$44 -> 0 | K24: ='2'!K$44 -> 0 | L24: ='2'!L$44 -> 0 | M24: ='2'!M$44 -> 0 | N24: ='2'!N$44 -> 0 | O24: ='2'!O$44 -> 0 | P24: ='2'!P$44 -> 0 | Q24: ='2'!Q$44 -> 0 | R24: ='2'!R$44 -> 0 | S24: ='2'!S$44 -> 0 | T24: ='2'!T$44 -> 0 | U24: =SUM(H24:OFFSET(H24,0,$I$2)) -> 0 | V24: =SUM(I24:T24) -> 0 | W24: =Y24-V24 -> 152770 | Y24: =AA24+AC24+AI24 -> 152770 | Z24: ='2'!Z$44 -> 141009 | AA24: ='2'!AA$44 -> 141009 | AB24: ='2'!AB$44 -> 11761 | AC24: ='2'!AC$44 -> 11761 | AD24: ='2'!AD$44 -> 0 | AE24: ='2'!AE$44 -> 0 | AF24: ='2'!AF$44 -> 0 | AG24: =SUM(AD24:AF24) -> 0 | AI24: =AZ24 -> 0 | AJ24: ='2'!AJ$44 -> 0 | AK24: ='2'!AK$44 -> 0 | AL24: ='2'!AL$44 -> 0 | AM24: ='2'!AM$44 -> 0 | AN24: ='2'!AN$44 -> 0 | AO24: ='2'!AO$44 -> 0 | AP24: ='2'!AP$44 -> 0 | AQ24: ='2'!AQ$44 -> 0 | AR24: ='2'!AR$44 -> 0 | AS24: ='2'!AS$44 -> 0 | AT24: ='2'!AT$44 -> 0 | AU24: ='2'!AU$44 -> 0 | AV24: =SUM(AJ24:AU24) -> 0 | AW24: ='2'!AW$44 -> 0 | AX24: ='2'!AX$44 -> 0 | AY24: ='2'!AY$44 -> 0 | AZ24: =SUM(AW24:AY24) -> 0
C25: 1 | G25: 3 | H25: Public Finance and Budget Management | I25: ='3'!I$44 -> 0 | J25: ='3'!J$44 -> 0 | K25: ='3'!K$44 -> 0 | L25: ='3'!L$44 -> 0 | M25: ='3'!M$44 -> 0 | N25: ='3'!N$44 -> 0 | O25: ='3'!O$44 -> 0 | P25: ='3'!P$44 -> 0 | Q25: ='3'!Q$44 -> 0 | R25: ='3'!R$44 -> 0 | S25: ='3'!S$44 -> 0 | T25: ='3'!T$44 -> 0 | U25: =SUM(H25:OFFSET(H25,0,$I$2)) -> 0 | V25: =SUM(I25:T25) -> 0 | W25: 298047 | Y25: 298047 | Z25: ='3'!Z$44 -> 290101 | AA25: ='3'!AA$44 -> 290101 | AB25: ='3'!AB$44 -> 7946 | AC25: ='3'!AC$44 -> 7946 | AD25: ='3'!AD$44 -> 0 | AE25: ='3'!AE$44 -> 0 | AF25: ='3'!AF$44 -> 0 | AG25: 0 | AI25: 0 | AJ25: ='3'!AJ$44 -> 0 | AK25: ='3'!AK$44 -> 0 | AL25: ='3'!AL$44 -> 0 | AM25: ='3'!AM$44 -> 0 | AN25: ='3'!AN$44 -> 0 | AO25: ='3'!AO$44 -> 0 | AP25: ='3'!AP$44 -> 0 | AQ25: ='3'!AQ$44 -> 0 | AR25: ='3'!AR$44 -> 0 | AS25: ='3'!AS$44 -> 0 | AT25: ='3'!AT$44 -> 0 | AU25: ='3'!AU$44 -> 0 | AV25: 0 | AW25: ='3'!AW$44 -> 0 | AX25: ='3'!AX$44 -> 0 | AY25: ='3'!AY$44 -> 0 | AZ25: 0
C26: 1 | G26: 4 | H26: Asset and Liability Management | I26: ='4'!I$44 -> 0 | J26: ='4'!J$44 -> 0 | K26: ='4'!K$44 -> 0 | L26: ='4'!L$44 -> 0 | M26: ='4'!M$44 -> 0 | N26: ='4'!N$44 -> 0 | O26: ='4'!O$44 -> 0 | P26: ='4'!P$44 -> 0 | Q26: ='4'!Q$44 -> 0 | R26: ='4'!R$44 -> 0 | S26: ='4'!S$44 -> 0 | T26: ='4'!T$44 -> 0 | U26: =SUM(H26:OFFSET(H26,0,$I$2)) -> 0 | V26: 0 | W26: 101585 | Y26: 101585 | Z26: ='4'!Z$44 -> 110418 | AA26: ='4'!AA$44 -> 110418 | AB26: ='4'!AB$44 -> -8833 | AC26: ='4'!AC$44 -> -8833 | AD26: ='4'!AD$44 -> 0 | AE26: ='4'!AE$44 -> 0 | AF26: ='4'!AF$44 -> 0 | AG26: 0 | AI26: 0 | AJ26: ='4'!AJ$44 -> 0 | AK26: ='4'!AK$44 -> 0 | AL26: ='4'!AL$44 -> 0 | AM26: ='4'!AM$44 -> 0 | AN26: ='4'!AN$44 -> 0 | AO26: ='4'!AO$44 -> 0 | AP26: ='4'!AP$44 -> 0 | AQ26: ='4'!AQ$44 -> 0 | AR26: ='4'!AR$44 -> 0 | AS26: ='4'!AS$44 -> 0 | AT26: ='4'!AT$44 -> 0 | AU26: ='4'!AU$44 -> 0 | AV26: 0 | AW26: ='4'!AW$44 -> 0 | AX26: ='4'!AX$44 -> 0 | AY26: ='4'!AY$44 -> 0 | AZ26: 0
C27: 1 | G27: 5 | H27: Financial Accounting and Supply Chain Management Systems | I27: ='5'!I$44 -> 0 | J27: ='5'!J$44 -> 0 | K27: ='5'!K$44 -> 0 | L27: ='5'!L$44 -> 0 | M27: ='5'!M$44 -> 0 | N27: ='5'!N$44 -> 0 | O27: ='5'!O$44 -> 0 | P27: ='5'!P$44 -> 0 | Q27: ='5'!Q$44 -> 0 | R27: ='5'!R$44 -> 0 | S27: ='5'!S$44 -> 0 | T27: ='5'!T$44 -> 0 | U27: =SUM(H27:OFFSET(H27,0,$I$2)) -> 0 | V27: 0 | W27: 1194148 | Y27: 1194148 | Z27: ='5'!Z$44 -> 1196622 | AA27: ='5'!AA$44 -> 1196622 | AB27: ='5'!AB$44 -> -2474 | AC27: ='5'!AC$44 -> -2474 | AD27: ='5'!AD$44 -> -93063 | AE27: ='5'!AE$44 -> 0 | AF27: ='5'!AF$44 -> 0 | AG27: -93063 | AI27: 0 | AJ27: ='5'!AJ$44 -> 0 | AK27: ='5'!AK$44 -> 0 | AL27: ='5'!AL$44 -> 0 | AM27: ='5'!AM$44 -> 0 | AN27: ='5'!AN$44 -> 0 | AO27: ='5'!AO$44 -> 0 | AP27: ='5'!AP$44 -> 0 | AQ27: ='5'!AQ$44 -> 0 | AR27: ='5'!AR$44 -> 0 | AS27: ='5'!AS$44 -> 0 | AT27: ='5'!AT$44 -> 0 | AU27: ='5'!AU$44 -> 0 | AV27: 0 | AW27: ='5'!AW$44 -> 0 | AX27: ='5'!AX$44 -> 0 | AY27: ='5'!AY$44 -> 0 | AZ27: 0
C28: 1 | G28: 6 | H28: International Financial Relations | I28: ='6'!I$44 -> 0 | J28: ='6'!J$44 -> 0 | K28: ='6'!K$44 -> 0 | L28: ='6'!L$44 -> 0 | M28: ='6'!M$44 -> 0 | N28: ='6'!N$44 -> 0 | O28: ='6'!O$44 -> 0 | P28: ='6'!P$44 -> 0 | Q28: ='6'!Q$44 -> 0 | R28: ='6'!R$44 -> 0 | S28: ='6'!S$44 -> 0 | T28: ='6'!T$44 -> 0 | U28: =SUM(H28:OFFSET(H28,0,$I$2)) -> 0 | V28: 0 | W28: 5542776 | Y28: 5542776 | Z28: ='6'!Z$44 -> 5402120 | AA28: ='6'!AA$44 -> 5402120 | AB28: ='6'!AB$44 -> 140656 | AC28: ='6'!AC$44 -> 140656 | AD28: ='6'!AD$44 -> 335345 | AE28: ='6'!AE$44 -> 0 | AF28: ='6'!AF$44 -> 0 | AG28: 335345 | AI28: 0 | AJ28: ='6'!AJ$44 -> 0 | AK28: ='6'!AK$44 -> 0 | AL28: ='6'!AL$44 -> 0 | AM28: ='6'!AM$44 -> 0 | AN28: ='6'!AN$44 -> 0 | AO28: ='6'!AO$44 -> 0 | AP28: ='6'!AP$44 -> 0 | AQ28: ='6'!AQ$44 -> 0 | AR28: ='6'!AR$44 -> 0 | AS28: ='6'!AS$44 -> 0 | AT28: ='6'!AT$44 -> 0 | AU28: ='6'!AU$44 -> 0 | AV28: 0 | AW28: ='6'!AW$44 -> 0 | AX28: ='6'!AX$44 -> 0 | AY28: ='6'!AY$44 -> 0 | AZ28: 0
C29: 1 | G29: 7 | H29: Civil and Military Pensions, Contributions to Funds and Other Benefits | I29: ='7'!I$44 -> 0 | J29: ='7'!J$44 -> 0 | K29: ='7'!K$44 -> 0 | L29: ='7'!L$44 -> 0 | M29: ='7'!M$44 -> 0 | N29: ='7'!N$44 -> 0 | O29: ='7'!O$44 -> 0 | P29: ='7'!P$44 -> 0 | Q29: ='7'!Q$44 -> 0 | R29: ='7'!R$44 -> 0 | S29: ='7'!S$44 -> 0 | T29: ='7'!T$44 -> 0 | U29: =SUM(H29:OFFSET(H29,0,$I$2)) -> 0 | V29: 0 | W29: 5163796 | Y29: 5163796 | Z29: ='7'!Z$44 -> 5163796 | AA29: ='7'!AA$44 -> 5163796 | AB29: ='7'!AB$44 -> 0 | AC29: ='7'!AC$44 -> 0 | AD29: ='7'!AD$44 -> -156519 | AE29: ='7'!AE$44 -> 0 | AF29: ='7'!AF$44 -> 0 | AG29: -156519 | AI29: 0 | AJ29: ='7'!AJ$44 -> 0 | AK29: ='7'!AK$44 -> 0 | AL29: ='7'!AL$44 -> 0 | AM29: ='7'!AM$44 -> 0 | AN29: ='7'!AN$44 -> 0 | AO29: ='7'!AO$44 -> 0 | AP29: ='7'!AP$44 -> 0 | AQ29: ='7'!AQ$44 -> 0 | AR29: ='7'!AR$44 -> 0 | AS29: ='7'!AS$44 -> 0 | AT29: ='7'!AT$44 -> 0 | AU29: ='7'!AU$44 -> 0 | AV29: 0 | AW29: ='7'!AW$44 -> 0 | AX29: ='7'!AX$44 -> 0 | AY29: ='7'!AY$44 -> 0 | AZ29: 0
C30: 1 | G30: 8 | H30: Technical Support and Development Finance | I30: ='8'!I$44 -> 0 | J30: ='8'!J$44 -> 0 | K30: ='8'!K$44 -> 0 | L30: ='8'!L$44 -> 0 | M30: ='8'!M$44 -> 0 | N30: ='8'!N$44 -> 0 | O30: ='8'!O$44 -> 0 | P30: ='8'!P$44 -> 0 | Q30: ='8'!Q$44 -> 0 | R30: ='8'!R$44 -> 0 | S30: ='8'!S$44 -> 0 | T30: ='8'!T$44 -> 0 | U30: =SUM(H30:OFFSET(H30,0,$I$2)) -> 0 | V30: 0 | W30: 3012542 | Y30: 3012542 | Z30: ='8'!Z$44 -> 2798841 | AA30: ='8'!AA$44 -> 2798841 | AB30: ='8'!AB$44 -> 213701 | AC30: ='8'!AC$44 -> 213701 | AD30: ='8'!AD$44 -> -85763 | AE30: ='8'!AE$44 -> 0 | AF30: ='8'!AF$44 -> 0 | AG30: -85763 | AI30: 0 | AJ30: ='8'!AJ$44 -> 0 | AK30: ='8'!AK$44 -> 0 | AL30: ='8'!AL$44 -> 0 | AM30: ='8'!AM$44 -> 0 | AN30: ='8'!AN$44 -> 0 | AO30: ='8'!AO$44 -> 0 | AP30: ='8'!AP$44 -> 0 | AQ30: ='8'!AQ$44 -> 0 | AR30: ='8'!AR$44 -> 0 | AS30: ='8'!AS$44 -> 0 | AT30: ='8'!AT$44 -> 0 | AU30: ='8'!AU$44 -> 0 | AV30: 0 | AW30: ='8'!AW$44 -> 0 | AX30: ='8'!AX$44 -> 0 | AY30: ='8'!AY$44 -> 0 | AZ30: 0
C31: 1 | G31: 9 | H31: Revenue Administration | I31: ='9'!I$44 -> 0 | J31: ='9'!J$44 -> 0 | K31: ='9'!K$44 -> 0 | L31: ='9'!L$44 -> 0 | M31: ='9'!M$44 -> 0 | N31: ='9'!N$44 -> 0 | O31: ='9'!O$44 -> 0 | P31: ='9'!P$44 -> 0 | Q31: ='9'!Q$44 -> 0 | R31: ='9'!R$44 -> 0 | S31: ='9'!S$44 -> 0 | T31: ='9'!T$44 -> 0 | U31: =SUM(H31:OFFSET(H31,0,$I$2)) -> 0 | V31: 0 | W31: 9007217 | Y31: 9007217 | Z31: ='9'!Z$44 -> 9007217 | AA31: ='9'!AA$44 -> 9007217 | AB31: ='9'!AB$44 -> 0 | AC31: ='9'!AC$44 -> 0 | AD31: ='9'!AD$44 -> 0 | AE31: ='9'!AE$44 -> 0 | AF31: ='9'!AF$44 -> 0 | AG31: 0 | AI31: 0 | AJ31: ='9'!AJ$44 -> 0 | AK31: ='9'!AK$44 -> 0 | AL31: ='9'!AL$44 -> 0 | AM31: ='9'!AM$44 -> 0 | AN31: ='9'!AN$44 -> 0 | AO31: ='9'!AO$44 -> 0 | AP31: ='9'!AP$44 -> 0 | AQ31: ='9'!AQ$44 -> 0 | AR31: ='9'!AR$44 -> 0 | AS31: ='9'!AS$44 -> 0 | AT31: ='9'!AT$44 -> 0 | AU31: ='9'!AU$44 -> 0 | AV31: 0 | AW31: ='9'!AW$44 -> 0 | AX31: ='9'!AX$44 -> 0 | AY31: ='9'!AY$44 -> 0 | AZ31: 0
C32: 1 | G32: 10 | H32: Financial Intelligence and State Security | I32: ='10'!I$44 -> 0 | J32: ='10'!J$44 -> 0 | K32: ='10'!K$44 -> 0 | L32: ='10'!L$44 -> 0 | M32: ='10'!M$44 -> 0 | N32: ='10'!N$44 -> 0 | O32: ='10'!O$44 -> 0 | P32: ='10'!P$44 -> 0 | Q32: ='10'!Q$44 -> 0 | R32: ='10'!R$44 -> 0 | S32: ='10'!S$44 -> 0 | T32: ='10'!T$44 -> 0 | U32: =SUM(H32:OFFSET(H32,0,$I$2)) -> 0 | V32: 0 | W32: 4763533 | Y32: 4763533 | Z32: ='10'!Z$44 -> 4763533 | AA32: ='10'!AA$44 -> 4763533 | AB32: ='10'!AB$44 -> 0 | AC32: ='10'!AC$44 -> 0 | AD32: ='10'!AD$44 -> 0 | AE32: ='10'!AE$44 -> 0 | AF32: ='10'!AF$44 -> 0 | AG32: 0 | AI32: 0 | AJ32: ='10'!AJ$44 -> 0 | AK32: ='10'!AK$44 -> 0 | AL32: ='10'!AL$44 -> 0 | AM32: ='10'!AM$44 -> 0 | AN32: ='10'!AN$44 -> 0 | AO32: ='10'!AO$44 -> 0 | AP32: ='10'!AP$44 -> 0 | AQ32: ='10'!AQ$44 -> 0 | AR32: ='10'!AR$44 -> 0 | AS32: ='10'!AS$44 -> 0 | AT32: ='10'!AT$44 -> 0 | AU32: ='10'!AU$44 -> 0 | AV32: 0 | AW32: ='10'!AW$44 -> 0 | AX32: ='10'!AX$44 -> 0 | AY32: ='10'!AY$44 -> 0 | AZ32: 0
C33: 1 | G33: 11 | H33: Direct charge against the National Revenue Fund | I33: ='11'!I$44 -> 0 | J33: ='11'!J$44 -> 0 | K33: ='11'!K$44 -> 0 | L33: ='11'!L$44 -> 0 | M33: ='11'!M$44 -> 0 | N33: ='11'!N$44 -> 0 | O33: ='11'!O$44 -> 0 | P33: ='11'!P$44 -> 0 | Q33: ='11'!Q$44 -> 0 | R33: ='11'!R$44 -> 0 | S33: ='11'!S$44 -> 0 | T33: ='11'!T$44 -> 0 | U33: =SUM(H33:OFFSET(H33,0,$I$2)) -> 0 | V33: 0 | W33: 664004032 | Y33: 664004032 | Z33: ='11'!Z$44 -> 482755064 | AA33: ='11'!AA$44 -> 663014110 | AB33: ='11'!AB$44 -> 0 | AC33: ='11'!AC$44 -> 989922 | AD33: ='11'!AD$44 -> 0 | AE33: ='11'!AE$44 -> 0 | AF33: ='11'!AF$44 -> 0 | AG33: 0 | AI33: 0 | AJ33: ='11'!AJ$44 -> 0 | AK33: ='11'!AK$44 -> 0 | AL33: ='11'!AL$44 -> 0 | AM33: ='11'!AM$44 -> 0 | AN33: ='11'!AN$44 -> 0 | AO33: ='11'!AO$44 -> 0 | AP33: ='11'!AP$44 -> 0 | AQ33: ='11'!AQ$44 -> 0 | AR33: ='11'!AR$44 -> 0 | AS33: ='11'!AS$44 -> 0 | AT33: ='11'!AT$44 -> 0 | AU33: ='11'!AU$44 -> 0 | AV33: 0 | AW33: ='11'!AW$44 -> 0 | AX33: ='11'!AX$44 -> 0 | AY33: ='11'!AY$44 -> 0 | AZ33: 0
C34: 0 | Y34: 0 | AG34: 0 | AI34: 0 | AV34: 0
C35: 0 | Y35: 0 | AG35: 0 | AI35: 0 | AV35: 0
C36: 0 | Y36: 0 | AG36: 0 | AI36: 0 | AV36: 0
C37: 0 | Y37: 0 | AG37: 0 | AI37: 0 | AV37: 0
C38: 0 | Y38: 0 | AG38: 0 | AI38: 0 | AV38: 0
C39: 0 | Y39: 0 | AG39: 0 | AI39: 0 | AV39: 0
C40: 0 | Y40: 0 | AG40: 0 | AI40: 0 | AV40: 0
C41: 0 | H41: =IF(COUNTIF($I$41:$T$41,"<>0")<1,"","Not yet classified in Objective segment") ->  | I41: =SUMIFS(I$156:I$264,$H$156:$H$264,"Current payments")+SUMIFS(I$156:I$264,$H$156:$H$264,"Transfers and Subsidies")+SUMIFS(I$156:I$264,$H$156:$H$264,"Payments for capital assets")+SUMIFS(I$156:I$264,$H$156:$H$264,"Payments for financial assets") -> 0 | J41: =SUMIFS(J$156:J$264,$H$156:$H$264,"Current payments")+SUMIFS(J$156:J$264,$H$156:$H$264,"Transfers and Subsidies")+SUMIFS(J$156:J$264,$H$156:$H$264,"Payments for capital assets")+SUMIFS(J$156:J$264,$H$156:$H$264,"Payments for financial assets") -> 0 | K41: 0 | L41: 0 | M41: 0 | N41: 0 | O41: 0 | P41: 0 | Q41: 0 | R41: 0 | S41: 0 | T41: 0 | U41: =SUM(H41:OFFSET(H41,0,$I$2)) -> 0 | V41: =SUM(I41:T41) -> 0 | W41: =Y41-V41 -> 0 | Y41: 0 | AG41: 0 | AI41: 0 | AV41: 0
C42: =C41 -> 0 | Y42: 0 | AG42: 0 | AI42: 0 | AV42: 0
C43: 1 | AV43: 0
C44: 1 | I44: =SUM(I23:I41) -> 30670 | J44: =SUM(J23:J41) -> 36175 | K44: 39649 | L44: 35988 | M44: 34657 | N44: 38808 | O44: 49789 | P44: 44328 | Q44: 48225 | R44: 60417 | S44: 55045 | T44: 81969 | U44: 0 | V44: 555720 | W44: 693240446 | Y44: =AA44+AC44+AI44 -> 693796166 | Z44: =SUM(Z23:Z41) -> 511628721 | AA44: 692443487 | AB44: 362757 | AC44: 1352679 | AD44: 0 | AE44: 0 | AF44: 0 | AG44: =SUM(AG23:AG41) -> 0 | AI44: =SUM(AI23:AI41) -> 0 | AJ44: =SUM(AJ23:AJ41) -> 0 | AK44: 0 | AL44: 0 | AM44: 0 | AN44: 0 | AO44: 0 | AP44: 0 | AQ44: 0 | AR44: 0 | AS44: 0 | AT44: ='1'!AT44+'2'!AT44+'3'!AT44+'4'!AT44+'5'!AT44+'6'!AT44+'7'!AT44+'8'!AT44+'9'!AT44+'10'!AT44+'11'!AT44 -> 0 | AU44: ='1'!AU44+'2'!AU44+'3'!AU44+'4'!AU44+'5'!AU44+'6'!AU44+'7'!AU44+'8'!AU44+'9'!AU44+'10'!AU44+'11'!AU44 -> 0 | AV44: =SUM(AV23:AV41) -> 0 | AW44: =SUM(AW23:AW41) -> 0 | AX44: =SUM(AX23:AX41) -> 0 | AY44: =SUM(AY23:AY41) -> 0 | AZ44: =SUM(AZ23:AZ41) -> 0
C45: 1 | AT45: ='1'!AT45+'2'!AT45+'3'!AT45+'4'!AT45+'5'!AT45+'6'!AT45+'7'!AT45+'8'!AT45+'9'!AT45+'10'!AT45+'11'!AT45 -> 0 | AU45: ='1'!AU45+'2'!AU45+'3'!AU45+'4'!AU45+'5'!AU45+'6'!AU45+'7'!AU45+'8'!AU45+'9'!AU45+'10'!AU45+'11'!AU45 -> 0
C46: 1 | G46: Economic Classification | AT46: ='1'!AT46+'2'!AT46+'3'!AT46+'4'!AT46+'5'!AT46+'6'!AT46+'7'!AT46+'8'!AT46+'9'!AT46+'10'!AT46+'11'!AT46 -> 0 | AU46: ='1'!AU46+'2'!AU46+'3'!AU46+'4'!AU46+'5'!AU46+'6'!AU46+'7'!AU46+'8'!AU46+'9'!AU46+'10'!AU46+'11'!AU46 -> 0
C47: 1 | AT47: ='1'!AT47+'2'!AT47+'3'!AT47+'4'!AT47+'5'!AT47+'6'!AT47+'7'!AT47+'8'!AT47+'9'!AT47+'10'!AT47+'11'!AT47 -> 0 | AU47: ='1'!AU47+'2'!AU47+'3'!AU47+'4'!AU47+'5'!AU47+'6'!AU47+'7'!AU47+'8'!AU47+'9'!AU47+'10'!AU47+'11'!AU47 -> 0
C48: 1 | H48: ='1'!H48 -> Current payments | I48: =SUM('1:11'!I48)+I171 -> 30420 | J48: =SUM('1:11'!J48)+J171 -> 35331 | K48: =SUM('1:11'!K48)+K171 -> 38567 | L48: =SUM('1:11'!L48)+L171 -> 34426 | M48: =SUM('1:11'!M48)+M171 -> 34056 | N48: =SUM('1:11'!N48)+N171 -> 38004 | O48: =SUM('1:11'!O48)+O171 -> 46024 | P48: =SUM('1:11'!P48)+P171 -> 41634 | Q48: =SUM('1:11'!Q48)+Q171 -> 47629 | R48: =SUM('1:11'!R48)+R171 -> 54449 | S48: =SUM('1:11'!S48)+S171 -> 54919 | T48: =SUM('1:11'!T48)+T171 -> 77969 | U48: =SUM(H48:OFFSET(H48,0,$I$2)) -> 0 | V48: =SUM(I48:T48) -> 533428 | W48: =Y48-V48 -> 183558031 | Y48: =AA48+AC48+AI48 -> 184091459 | Z48: ='1'!Z48+'2'!Z48+'3'!Z48+'4'!Z48+'5'!Z48+'6'!Z48+'7'!Z48+'8'!Z48+'9'!Z48+'10'!Z48+'11'!Z48 -> 2066971 | AA48: ='1'!AA48+'2'!AA48+'3'!AA48+'4'!AA48+'5'!AA48+'6'!AA48+'7'!AA48+'8'!AA48+'9'!AA48+'10'!AA48+'11'!AA48 -> 182724389 | AB48: ='1'!AB48+'2'!AB48+'3'!AB48+'4'!AB48+'5'!AB48+'6'!AB48+'7'!AB48+'8'!AB48+'9'!AB48+'10'!AB48+'11'!AB48 -> 392026 | AC48: ='1'!AC48+'2'!AC48+'3'!AC48+'4'!AC48+'5'!AC48+'6'!AC48+'7'!AC48+'8'!AC48+'9'!AC48+'10'!AC48+'11'!AC48 -> 1367070 | AD48: ='1'!AD48+'2'!AD48+'3'!AD48+'4'!AD48+'5'!AD48+'6'!AD48+'7'!AD48+'8'!AD48+'9'!AD48+'10'!AD48+'11'!AD48 -> -93063 | AE48: ='1'!AE48+'2'!AE48+'3'!AE48+'4'!AE48+'5'!AE48+'6'!AE48+'7'!AE48+'8'!AE48+'9'!AE48+'10'!AE48+'11'!AE48 -> 0 | AF48: ='1'!AF48+'2'!AF48+'3'!AF48+'4'!AF48+'5'!AF48+'6'!AF48+'7'!AF48+'8'!AF48+'9'!AF48+'10'!AF48+'11'!AF48 -> 0 | AG48: =SUM(AD48:AF48) -> -93063 | AI48: =AZ48 -> 0 | AJ48: ='1'!AJ48+'2'!AJ48+'3'!AJ48+'4'!AJ48+'5'!AJ48+'6'!AJ48+'7'!AJ48+'8'!AJ48+'9'!AJ48+'10'!AJ48+'11'!AJ48 -> 0 | AK48: ='1'!AK48+'2'!AK48+'3'!AK48+'4'!AK48+'5'!AK48+'6'!AK48+'7'!AK48+'8'!AK48+'9'!AK48+'10'!AK48+'11'!AK48 -> 0 | AL48: ='1'!AL48+'2'!AL48+'3'!AL48+'4'!AL48+'5'!AL48+'6'!AL48+'7'!AL48+'8'!AL48+'9'!AL48+'10'!AL48+'11'!AL48 -> 0 | AM48: ='1'!AM48+'2'!AM48+'3'!AM48+'4'!AM48+'5'!AM48+'6'!AM48+'7'!AM48+'8'!AM48+'9'!AM48+'10'!AM48+'11'!AM48 -> 0 | AN48: ='1'!AN48+'2'!AN48+'3'!AN48+'4'!AN48+'5'!AN48+'6'!AN48+'7'!AN48+'8'!AN48+'9'!AN48+'10'!AN48+'11'!AN48 -> 0 | AO48: ='1'!AO48+'2'!AO48+'3'!AO48+'4'!AO48+'5'!AO48+'6'!AO48+'7'!AO48+'8'!AO48+'9'!AO48+'10'!AO48+'11'!AO48 -> 0 | AP48: ='1'!AP48+'2'!AP48+'3'!AP48+'4'!AP48+'5'!AP48+'6'!AP48+'7'!AP48+'8'!AP48+'9'!AP48+'10'!AP48+'11'!AP48 -> 0 | AQ48: ='1'!AQ48+'2'!AQ48+'3'!AQ48+'4'!AQ48+'5'!AQ48+'6'!AQ48+'7'!AQ48+'8'!AQ48+'9'!AQ48+'10'!AQ48+'11'!AQ48 -> 0 | AR48: ='1'!AR48+'2'!AR48+'3'!AR48+'4'!AR48+'5'!AR48+'6'!AR48+'7'!AR48+'8'!AR48+'9'!AR48+'10'!AR48+'11'!AR48 -> 0 | AS48: ='1'!AS48+'2'!AS48+'3'!AS48+'4'!AS48+'5'!AS48+'6'!AS48+'7'!AS48+'8'!AS48+'9'!AS48+'10'!AS48+'11'!AS48 -> 0 | AT48: ='1'!AT48+'2'!AT48+'3'!AT48+'4'!AT48+'5'!AT48+'6'!AT48+'7'!AT48+'8'!AT48+'9'!AT48+'10'!AT48+'11'!AT48 -> 0 | AU48: ='1'!AU48+'2'!AU48+'3'!AU48+'4'!AU48+'5'!AU48+'6'!AU48+'7'!AU48+'8'!AU48+'9'!AU48+'10'!AU48+'11'!AU48 -> 0 | AV48: =SUM(AJ48:AU48) -> 0 | AW48: ='1'!AW48+'2'!AW48+'3'!AW48+'4'!AW48+'5'!AW48+'6'!AW48+'7'!AW48+'8'!AW48+'9'!AW48+'10'!AW48+'11'!AW48 -> 0 | AX48: ='1'!AX48+'2'!AX48+'3'!AX48+'4'!AX48+'5'!AX48+'6'!AX48+'7'!AX48+'8'!AX48+'9'!AX48+'10'!AX48+'11'!AX48 -> 0 | AY48: ='1'!AY48+'2'!AY48+'3'!AY48+'4'!AY48+'5'!AY48+'6'!AY48+'7'!AY48+'8'!AY48+'9'!AY48+'10'!AY48+'11'!AY48 -> 0 | AZ48: =SUM(AW48:AY48) -> 0
C49: 1 | H49: ='1'!H49 -> Compensation of employees | I49: =SUM('1:11'!I49)+I172 -> 17918 | J49: =SUM('1:11'!J49)+J172 -> 17918 | K49: =SUM('1:11'!K49)+K172 -> 17918 | L49: =SUM('1:11'!L49)+L172 -> 17918 | M49: =SUM('1:11'!M49)+M172 -> 17922 | N49: =SUM('1:11'!N49)+N172 -> 21197 | O49: =SUM('1:11'!O49)+O172 -> 18092 | P49: =SUM('1:11'!P49)+P172 -> 18092 | Q49: =SUM('1:11'!Q49)+Q172 -> 18092 | R49: =SUM('1:11'!R49)+R172 -> 18092 | S49: =SUM('1:11'!S49)+S172 -> 18092 | T49: =SUM('1:11'!T49)+T172 -> 18092 | U49: =SUM($H49:OFFSET($H49,0,$I$2)) -> 0 | V49: =SUM(I49:T49) -> 219343 | W49: =Y49-V49 -> 611857 | Y49: =AA49+AC49+AI49 -> 831200 | Z49: ='1'!Z49+'2'!Z49+'3'!Z49+'4'!Z49+'5'!Z49+'6'!Z49+'7'!Z49+'8'!Z49+'9'!Z49+'10'!Z49+'11'!Z49 -> 605859 | AA49: ='1'!AA49+'2'!AA49+'3'!AA49+'4'!AA49+'5'!AA49+'6'!AA49+'7'!AA49+'8'!AA49+'9'!AA49+'10'!AA49+'11'!AA49 -> 825202 | AB49: ='1'!AB49+'2'!AB49+'3'!AB49+'4'!AB49+'5'!AB49+'6'!AB49+'7'!AB49+'8'!AB49+'9'!AB49+'10'!AB49+'11'!AB49 -> 5998 | AC49: ='1'!AC49+'2'!AC49+'3'!AC49+'4'!AC49+'5'!AC49+'6'!AC49+'7'!AC49+'8'!AC49+'9'!AC49+'10'!AC49+'11'!AC49 -> 5998 | AD49: ='1'!AD49+'2'!AD49+'3'!AD49+'4'!AD49+'5'!AD49+'6'!AD49+'7'!AD49+'8'!AD49+'9'!AD49+'10'!AD49+'11'!AD49 -> 0 | AE49: ='1'!AE49+'2'!AE49+'3'!AE49+'4'!AE49+'5'!AE49+'6'!AE49+'7'!AE49+'8'!AE49+'9'!AE49+'10'!AE49+'11'!AE49 -> 0 | AF49: ='1'!AF49+'2'!AF49+'3'!AF49+'4'!AF49+'5'!AF49+'6'!AF49+'7'!AF49+'8'!AF49+'9'!AF49+'10'!AF49+'11'!AF49 -> 0 | AG49: =SUM(AD49:AF49) -> 0 | AI49: 0 | AJ49: ='1'!AJ49+'2'!AJ49+'3'!AJ49+'4'!AJ49+'5'!AJ49+'6'!AJ49+'7'!AJ49+'8'!AJ49+'9'!AJ49+'10'!AJ49+'11'!AJ49 -> 0 | AK49: ='1'!AK49+'2'!AK49+'3'!AK49+'4'!AK49+'5'!AK49+'6'!AK49+'7'!AK49+'8'!AK49+'9'!AK49+'10'!AK49+'11'!AK49 -> 0 | AL49: ='1'!AL49+'2'!AL49+'3'!AL49+'4'!AL49+'5'!AL49+'6'!AL49+'7'!AL49+'8'!AL49+'9'!AL49+'10'!AL49+'11'!AL49 -> 0 | AM49: ='1'!AM49+'2'!AM49+'3'!AM49+'4'!AM49+'5'!AM49+'6'!AM49+'7'!AM49+'8'!AM49+'9'!AM49+'10'!AM49+'11'!AM49 -> 0 | AN49: ='1'!AN49+'2'!AN49+'3'!AN49+'4'!AN49+'5'!AN49+'6'!AN49+'7'!AN49+'8'!AN49+'9'!AN49+'10'!AN49+'11'!AN49 -> 0 | AO49: ='1'!AO49+'2'!AO49+'3'!AO49+'4'!AO49+'5'!AO49+'6'!AO49+'7'!AO49+'8'!AO49+'9'!AO49+'10'!AO49+'11'!AO49 -> 0 | AP49: ='1'!AP49+'2'!AP49+'3'!AP49+'4'!AP49+'5'!AP49+'6'!AP49+'7'!AP49+'8'!AP49+'9'!AP49+'10'!AP49+'11'!AP49 -> 0 | AQ49: ='1'!AQ49+'2'!AQ49+'3'!AQ49+'4'!AQ49+'5'!AQ49+'6'!AQ49+'7'!AQ49+'8'!AQ49+'9'!AQ49+'10'!AQ49+'11'!AQ49 -> 0 | AR49: ='1'!AR49+'2'!AR49+'3'!AR49+'4'!AR49+'5'!AR49+'6'!AR49+'7'!AR49+'8'!AR49+'9'!AR49+'10'!AR49+'11'!AR49 -> 0 | AS49: ='1'!AS49+'2'!AS49+'3'!AS49+'4'!AS49+'5'!AS49+'6'!AS49+'7'!AS49+'8'!AS49+'9'!AS49+'10'!AS49+'11'!AS49 -> 0 | AT49: ='1'!AT49+'2'!AT49+'3'!AT49+'4'!AT49+'5'!AT49+'6'!AT49+'7'!AT49+'8'!AT49+'9'!AT49+'10'!AT49+'11'!AT49 -> 0 | AU49: ='1'!AU49+'2'!AU49+'3'!AU49+'4'!AU49+'5'!AU49+'6'!AU49+'7'!AU49+'8'!AU49+'9'!AU49+'10'!AU49+'11'!AU49 -> 0 | AV49: =SUM(AJ49:AU49) -> 0 | AW49: ='1'!AW49+'2'!AW49+'3'!AW49+'4'!AW49+'5'!AW49+'6'!AW49+'7'!AW49+'8'!AW49+'9'!AW49+'10'!AW49+'11'!AW49 -> 0 | AX49: ='1'!AX49+'2'!AX49+'3'!AX49+'4'!AX49+'5'!AX49+'6'!AX49+'7'!AX49+'8'!AX49+'9'!AX49+'10'!AX49+'11'!AX49 -> 0 | AY49: ='1'!AY49+'2'!AY49+'3'!AY49+'4'!AY49+'5'!AY49+'6'!AY49+'7'!AY49+'8'!AY49+'9'!AY49+'10'!AY49+'11'!AY49 -> 0 | AZ49: 0
C50: 1 | H50: ='1'!H50 -> Salaries and wages | I50: =SUM('1:11'!I50)+I173 -> 16146 | J50: =SUM('1:11'!J50)+J173 -> 16146 | K50: =SUM('1:11'!K50)+K173 -> 16146 | L50: =SUM('1:11'!L50)+L173 -> 16146 | M50: =SUM('1:11'!M50)+M173 -> 16150 | N50: =SUM('1:11'!N50)+N173 -> 19282 | O50: =SUM('1:11'!O50)+O173 -> 16303 | P50: =SUM('1:11'!P50)+P173 -> 16303 | Q50: =SUM('1:11'!Q50)+Q173 -> 16303 | R50: =SUM('1:11'!R50)+R173 -> 16303 | S50: =SUM('1:11'!S50)+S173 -> 16303 | T50: =SUM('1:11'!T50)+T173 -> 16408 | U50: =SUM($H50:OFFSET($H50,0,$I$2)) -> 0 | V50: 197939 | W50: 544167 | Y50: 742106 | Z50: ='1'!Z50+'2'!Z50+'3'!Z50+'4'!Z50+'5'!Z50+'6'!Z50+'7'!Z50+'8'!Z50+'9'!Z50+'10'!Z50+'11'!Z50 -> 545916 | AA50: ='1'!AA50+'2'!AA50+'3'!AA50+'4'!AA50+'5'!AA50+'6'!AA50+'7'!AA50+'8'!AA50+'9'!AA50+'10'!AA50+'11'!AA50 -> 743855 | AB50: ='1'!AB50+'2'!AB50+'3'!AB50+'4'!AB50+'5'!AB50+'6'!AB50+'7'!AB50+'8'!AB50+'9'!AB50+'10'!AB50+'11'!AB50 -> -1749 | AC50: ='1'!AC50+'2'!AC50+'3'!AC50+'4'!AC50+'5'!AC50+'6'!AC50+'7'!AC50+'8'!AC50+'9'!AC50+'10'!AC50+'11'!AC50 -> -1749 | AD50: ='1'!AD50+'2'!AD50+'3'!AD50+'4'!AD50+'5'!AD50+'6'!AD50+'7'!AD50+'8'!AD50+'9'!AD50+'10'!AD50+'11'!AD50 -> 0 | AE50: ='1'!AE50+'2'!AE50+'3'!AE50+'4'!AE50+'5'!AE50+'6'!AE50+'7'!AE50+'8'!AE50+'9'!AE50+'10'!AE50+'11'!AE50 -> 0 | AF50: ='1'!AF50+'2'!AF50+'3'!AF50+'4'!AF50+'5'!AF50+'6'!AF50+'7'!AF50+'8'!AF50+'9'!AF50+'10'!AF50+'11'!AF50 -> 0 | AG50: 0 | AI50: 0 | AJ50: ='1'!AJ50+'2'!AJ50+'3'!AJ50+'4'!AJ50+'5'!AJ50+'6'!AJ50+'7'!AJ50+'8'!AJ50+'9'!AJ50+'10'!AJ50+'11'!AJ50 -> 0 | AK50: ='1'!AK50+'2'!AK50+'3'!AK50+'4'!AK50+'5'!AK50+'6'!AK50+'7'!AK50+'8'!AK50+'9'!AK50+'10'!AK50+'11'!AK50 -> 0 | AL50: ='1'!AL50+'2'!AL50+'3'!AL50+'4'!AL50+'5'!AL50+'6'!AL50+'7'!AL50+'8'!AL50+'9'!AL50+'10'!AL50+'11'!AL50 -> 0 | AM50: ='1'!AM50+'2'!AM50+'3'!AM50+'4'!AM50+'5'!AM50+'6'!AM50+'7'!AM50+'8'!AM50+'9'!AM50+'10'!AM50+'11'!AM50 -> 0 | AN50: ='1'!AN50+'2'!AN50+'3'!AN50+'4'!AN50+'5'!AN50+'6'!AN50+'7'!AN50+'8'!AN50+'9'!AN50+'10'!AN50+'11'!AN50 -> 0 | AO50: ='1'!AO50+'2'!AO50+'3'!AO50+'4'!AO50+'5'!AO50+'6'!AO50+'7'!AO50+'8'!AO50+'9'!AO50+'10'!AO50+'11'!AO50 -> 0 | AP50: ='1'!AP50+'2'!AP50+'3'!AP50+'4'!AP50+'5'!AP50+'6'!AP50+'7'!AP50+'8'!AP50+'9'!AP50+'10'!AP50+'11'!AP50 -> 0 | AQ50: ='1'!AQ50+'2'!AQ50+'3'!AQ50+'4'!AQ50+'5'!AQ50+'6'!AQ50+'7'!AQ50+'8'!AQ50+'9'!AQ50+'10'!AQ50+'11'!AQ50 -> 0 | AR50: ='1'!AR50+'2'!AR50+'3'!AR50+'4'!AR50+'5'!AR50+'6'!AR50+'7'!AR50+'8'!AR50+'9'!AR50+'10'!AR50+'11'!AR50 -> 0 | AS50: ='1'!AS50+'2'!AS50+'3'!AS50+'4'!AS50+'5'!AS50+'6'!AS50+'7'!AS50+'8'!AS50+'9'!AS50+'10'!AS50+'11'!AS50 -> 0 | AT50: ='1'!AT50+'2'!AT50+'3'!AT50+'4'!AT50+'5'!AT50+'6'!AT50+'7'!AT50+'8'!AT50+'9'!AT50+'10'!AT50+'11'!AT50 -> 0 | AU50: ='1'!AU50+'2'!AU50+'3'!AU50+'4'!AU50+'5'!AU50+'6'!AU50+'7'!AU50+'8'!AU50+'9'!AU50+'10'!AU50+'11'!AU50 -> 0 | AV50: 0 | AW50: ='1'!AW50+'2'!AW50+'3'!AW50+'4'!AW50+'5'!AW50+'6'!AW50+'7'!AW50+'8'!AW50+'9'!AW50+'10'!AW50+'11'!AW50 -> 0 | AX50: ='1'!AX50+'2'!AX50+'3'!AX50+'4'!AX50+'5'!AX50+'6'!AX50+'7'!AX50+'8'!AX50+'9'!AX50+'10'!AX50+'11'!AX50 -> 0 | AY50: ='1'!AY50+'2'!AY50+'3'!AY50+'4'!AY50+'5'!AY50+'6'!AY50+'7'!AY50+'8'!AY50+'9'!AY50+'10'!AY50+'11'!AY50 -> 0 | AZ50: 0
C51: 1 | H51: ='1'!H51 -> Social contributions | I51: =SUM('1:11'!I51)+I174 -> 1772 | J51: =SUM('1:11'!J51)+J174 -> 1772 | K51: =SUM('1:11'!K51)+K174 -> 1772 | L51: =SUM('1:11'!L51)+L174 -> 1772 | M51: =SUM('1:11'!M51)+M174 -> 1772 | N51: =SUM('1:11'!N51)+N174 -> 1915 | O51: =SUM('1:11'!O51)+O174 -> 1789 | P51: =SUM('1:11'!P51)+P174 -> 1789 | Q51: =SUM('1:11'!Q51)+Q174 -> 1789 | R51: =SUM('1:11'!R51)+R174 -> 1789 | S51: =SUM('1:11'!S51)+S174 -> 1789 | T51: =SUM('1:11'!T51)+T174 -> 1684 | U51: =SUM($H51:OFFSET($H51,0,$I$2)) -> 0 | V51: 21404 | W51: 67690 | Y51: 89094 | Z51: ='1'!Z51+'2'!Z51+'3'!Z51+'4'!Z51+'5'!Z51+'6'!Z51+'7'!Z51+'8'!Z51+'9'!Z51+'10'!Z51+'11'!Z51 -> 59943 | AA51: ='1'!AA51+'2'!AA51+'3'!AA51+'4'!AA51+'5'!AA51+'6'!AA51+'7'!AA51+'8'!AA51+'9'!AA51+'10'!AA51+'11'!AA51 -> 81347 | AB51: ='1'!AB51+'2'!AB51+'3'!AB51+'4'!AB51+'5'!AB51+'6'!AB51+'7'!AB51+'8'!AB51+'9'!AB51+'10'!AB51+'11'!AB51 -> 7747 | AC51: ='1'!AC51+'2'!AC51+'3'!AC51+'4'!AC51+'5'!AC51+'6'!AC51+'7'!AC51+'8'!AC51+'9'!AC51+'10'!AC51+'11'!AC51 -> 7747 | AD51: ='1'!AD51+'2'!AD51+'3'!AD51+'4'!AD51+'5'!AD51+'6'!AD51+'7'!AD51+'8'!AD51+'9'!AD51+'10'!AD51+'11'!AD51 -> 0 | AE51: ='1'!AE51+'2'!AE51+'3'!AE51+'4'!AE51+'5'!AE51+'6'!AE51+'7'!AE51+'8'!AE51+'9'!AE51+'10'!AE51+'11'!AE51 -> 0 | AF51: ='1'!AF51+'2'!AF51+'3'!AF51+'4'!AF51+'5'!AF51+'6'!AF51+'7'!AF51+'8'!AF51+'9'!AF51+'10'!AF51+'11'!AF51 -> 0 | AG51: 0 | AI51: 0 | AJ51: ='1'!AJ51+'2'!AJ51+'3'!AJ51+'4'!AJ51+'5'!AJ51+'6'!AJ51+'7'!AJ51+'8'!AJ51+'9'!AJ51+'10'!AJ51+'11'!AJ51 -> 0 | AK51: ='1'!AK51+'2'!AK51+'3'!AK51+'4'!AK51+'5'!AK51+'6'!AK51+'7'!AK51+'8'!AK51+'9'!AK51+'10'!AK51+'11'!AK51 -> 0 | AL51: ='1'!AL51+'2'!AL51+'3'!AL51+'4'!AL51+'5'!AL51+'6'!AL51+'7'!AL51+'8'!AL51+'9'!AL51+'10'!AL51+'11'!AL51 -> 0 | AM51: ='1'!AM51+'2'!AM51+'3'!AM51+'4'!AM51+'5'!AM51+'6'!AM51+'7'!AM51+'8'!AM51+'9'!AM51+'10'!AM51+'11'!AM51 -> 0 | AN51: ='1'!AN51+'2'!AN51+'3'!AN51+'4'!AN51+'5'!AN51+'6'!AN51+'7'!AN51+'8'!AN51+'9'!AN51+'10'!AN51+'11'!AN51 -> 0 | AO51: ='1'!AO51+'2'!AO51+'3'!AO51+'4'!AO51+'5'!AO51+'6'!AO51+'7'!AO51+'8'!AO51+'9'!AO51+'10'!AO51+'11'!AO51 -> 0 | AP51: ='1'!AP51+'2'!AP51+'3'!AP51+'4'!AP51+'5'!AP51+'6'!AP51+'7'!AP51+'8'!AP51+'9'!AP51+'10'!AP51+'11'!AP51 -> 0 | AQ51: ='1'!AQ51+'2'!AQ51+'3'!AQ51+'4'!AQ51+'5'!AQ51+'6'!AQ51+'7'!AQ51+'8'!AQ51+'9'!AQ51+'10'!AQ51+'11'!AQ51 -> 0 | AR51: ='1'!AR51+'2'!AR51+'3'!AR51+'4'!AR51+'5'!AR51+'6'!AR51+'7'!AR51+'8'!AR51+'9'!AR51+'10'!AR51+'11'!AR51 -> 0 | AS51: ='1'!AS51+'2'!AS51+'3'!AS51+'4'!AS51+'5'!AS51+'6'!AS51+'7'!AS51+'8'!AS51+'9'!AS51+'10'!AS51+'11'!AS51 -> 0 | AT51: ='1'!AT51+'2'!AT51+'3'!AT51+'4'!AT51+'5'!AT51+'6'!AT51+'7'!AT51+'8'!AT51+'9'!AT51+'10'!AT51+'11'!AT51 -> 0 | AU51: ='1'!AU51+'2'!AU51+'3'!AU51+'4'!AU51+'5'!AU51+'6'!AU51+'7'!AU51+'8'!AU51+'9'!AU51+'10'!AU51+'11'!AU51 -> 0 | AV51: 0 | AW51: ='1'!AW51+'2'!AW51+'3'!AW51+'4'!AW51+'5'!AW51+'6'!AW51+'7'!AW51+'8'!AW51+'9'!AW51+'10'!AW51+'11'!AW51 -> 0 | AX51: ='1'!AX51+'2'!AX51+'3'!AX51+'4'!AX51+'5'!AX51+'6'!AX51+'7'!AX51+'8'!AX51+'9'!AX51+'10'!AX51+'11'!AX51 -> 0 | AY51: ='1'!AY51+'2'!AY51+'3'!AY51+'4'!AY51+'5'!AY51+'6'!AY51+'7'!AY51+'8'!AY51+'9'!AY51+'10'!AY51+'11'!AY51 -> 0 | AZ51: 0
C52: 1 | H52: ='1'!H52 -> Goods and Services | I52: =SUM('1:11'!I52)+I175 -> 12502 | J52: =SUM('1:11'!J52)+J175 -> 17413 | K52: =SUM('1:11'!K52)+K175 -> 20649 | L52: =SUM('1:11'!L52)+L175 -> 16508 | M52: =SUM('1:11'!M52)+M175 -> 16134 | N52: =SUM('1:11'!N52)+N175 -> 16807 | O52: =SUM('1:11'!O52)+O175 -> 27932 | P52: =SUM('1:11'!P52)+P175 -> 23542 | Q52: =SUM('1:11'!Q52)+Q175 -> 29537 | R52: =SUM('1:11'!R52)+R175 -> 36357 | S52: =SUM('1:11'!S52)+S175 -> 36827 | T52: =SUM('1:11'!T52)+T175 -> 59877 | U52: =SUM($H52:OFFSET($H52,0,$I$2)) -> 0 | V52: 314085 | W52: 1847140 | Y52: 2161225 | Z52: ='1'!Z52+'2'!Z52+'3'!Z52+'4'!Z52+'5'!Z52+'6'!Z52+'7'!Z52+'8'!Z52+'9'!Z52+'10'!Z52+'11'!Z52 -> 1461112 | AA52: ='1'!AA52+'2'!AA52+'3'!AA52+'4'!AA52+'5'!AA52+'6'!AA52+'7'!AA52+'8'!AA52+'9'!AA52+'10'!AA52+'11'!AA52 -> 1775197 | AB52: ='1'!AB52+'2'!AB52+'3'!AB52+'4'!AB52+'5'!AB52+'6'!AB52+'7'!AB52+'8'!AB52+'9'!AB52+'10'!AB52+'11'!AB52 -> 386028 | AC52: ='1'!AC52+'2'!AC52+'3'!AC52+'4'!AC52+'5'!AC52+'6'!AC52+'7'!AC52+'8'!AC52+'9'!AC52+'10'!AC52+'11'!AC52 -> 386028 | AD52: ='1'!AD52+'2'!AD52+'3'!AD52+'4'!AD52+'5'!AD52+'6'!AD52+'7'!AD52+'8'!AD52+'9'!AD52+'10'!AD52+'11'!AD52 -> -93063 | AE52: ='1'!AE52+'2'!AE52+'3'!AE52+'4'!AE52+'5'!AE52+'6'!AE52+'7'!AE52+'8'!AE52+'9'!AE52+'10'!AE52+'11'!AE52 -> 0 | AF52: ='1'!AF52+'2'!AF52+'3'!AF52+'4'!AF52+'5'!AF52+'6'!AF52+'7'!AF52+'8'!AF52+'9'!AF52+'10'!AF52+'11'!AF52 -> 0 | AG52: -93063 | AI52: 0 | AJ52: ='1'!AJ52+'2'!AJ52+'3'!AJ52+'4'!AJ52+'5'!AJ52+'6'!AJ52+'7'!AJ52+'8'!AJ52+'9'!AJ52+'10'!AJ52+'11'!AJ52 -> 0 | AK52: ='1'!AK52+'2'!AK52+'3'!AK52+'4'!AK52+'5'!AK52+'6'!AK52+'7'!AK52+'8'!AK52+'9'!AK52+'10'!AK52+'11'!AK52 -> 0 | AL52: ='1'!AL52+'2'!AL52+'3'!AL52+'4'!AL52+'5'!AL52+'6'!AL52+'7'!AL52+'8'!AL52+'9'!AL52+'10'!AL52+'11'!AL52 -> 0 | AM52: ='1'!AM52+'2'!AM52+'3'!AM52+'4'!AM52+'5'!AM52+'6'!AM52+'7'!AM52+'8'!AM52+'9'!AM52+'10'!AM52+'11'!AM52 -> 0 | AN52: ='1'!AN52+'2'!AN52+'3'!AN52+'4'!AN52+'5'!AN52+'6'!AN52+'7'!AN52+'8'!AN52+'9'!AN52+'10'!AN52+'11'!AN52 -> 0 | AO52: ='1'!AO52+'2'!AO52+'3'!AO52+'4'!AO52+'5'!AO52+'6'!AO52+'7'!AO52+'8'!AO52+'9'!AO52+'10'!AO52+'11'!AO52 -> 0 | AP52: ='1'!AP52+'2'!AP52+'3'!AP52+'4'!AP52+'5'!AP52+'6'!AP52+'7'!AP52+'8'!AP52+'9'!AP52+'10'!AP52+'11'!AP52 -> 0 | AQ52: ='1'!AQ52+'2'!AQ52+'3'!AQ52+'4'!AQ52+'5'!AQ52+'6'!AQ52+'7'!AQ52+'8'!AQ52+'9'!AQ52+'10'!AQ52+'11'!AQ52 -> 0 | AR52: ='1'!AR52+'2'!AR52+'3'!AR52+'4'!AR52+'5'!AR52+'6'!AR52+'7'!AR52+'8'!AR52+'9'!AR52+'10'!AR52+'11'!AR52 -> 0 | AS52: ='1'!AS52+'2'!AS52+'3'!AS52+'4'!AS52+'5'!AS52+'6'!AS52+'7'!AS52+'8'!AS52+'9'!AS52+'10'!AS52+'11'!AS52 -> 0 | AT52: ='1'!AT52+'2'!AT52+'3'!AT52+'4'!AT52+'5'!AT52+'6'!AT52+'7'!AT52+'8'!AT52+'9'!AT52+'10'!AT52+'11'!AT52 -> 0 | AU52: ='1'!AU52+'2'!AU52+'3'!AU52+'4'!AU52+'5'!AU52+'6'!AU52+'7'!AU52+'8'!AU52+'9'!AU52+'10'!AU52+'11'!AU52 -> 0 | AV52: 0 | AW52: ='1'!AW52+'2'!AW52+'3'!AW52+'4'!AW52+'5'!AW52+'6'!AW52+'7'!AW52+'8'!AW52+'9'!AW52+'10'!AW52+'11'!AW52 -> 0 | AX52: ='1'!AX52+'2'!AX52+'3'!AX52+'4'!AX52+'5'!AX52+'6'!AX52+'7'!AX52+'8'!AX52+'9'!AX52+'10'!AX52+'11'!AX52 -> 0 | AY52: ='1'!AY52+'2'!AY52+'3'!AY52+'4'!AY52+'5'!AY52+'6'!AY52+'7'!AY52+'8'!AY52+'9'!AY52+'10'!AY52+'11'!AY52 -> 0 | AZ52: 0
C53: 1 | H53: ='1'!H53 -> Administrative fees | I53: =SUM('1:11'!I53)+I176 -> 61 | J53: =SUM('1:11'!J53)+J176 -> 26 | K53: =SUM('1:11'!K53)+K176 -> 27 | L53: =SUM('1:11'!L53)+L176 -> 33 | M53: =SUM('1:11'!M53)+M176 -> 34 | N53: =SUM('1:11'!N53)+N176 -> 38 | O53: =SUM('1:11'!O53)+O176 -> 72 | P53: =SUM('1:11'!P53)+P176 -> 28 | Q53: =SUM('1:11'!Q53)+Q176 -> 34 | R53: =SUM('1:11'!R53)+R176 -> 24 | S53: =SUM('1:11'!S53)+S176 -> 58 | T53: =SUM('1:11'!T53)+T176 -> 673 | U53: =SUM($H53:OFFSET($H53,0,$I$2)) -> 0 | V53: 1108 | W53: 4182 | Y53: 5290 | Z53: ='1'!Z53+'2'!Z53+'3'!Z53+'4'!Z53+'5'!Z53+'6'!Z53+'7'!Z53+'8'!Z53+'9'!Z53+'10'!Z53+'11'!Z53 -> 1904 | AA53: ='1'!AA53+'2'!AA53+'3'!AA53+'4'!AA53+'5'!AA53+'6'!AA53+'7'!AA53+'8'!AA53+'9'!AA53+'10'!AA53+'11'!AA53 -> 3012 | AB53: ='1'!AB53+'2'!AB53+'3'!AB53+'4'!AB53+'5'!AB53+'6'!AB53+'7'!AB53+'8'!AB53+'9'!AB53+'10'!AB53+'11'!AB53 -> 643 | AC53: ='1'!AC53+'2'!AC53+'3'!AC53+'4'!AC53+'5'!AC53+'6'!AC53+'7'!AC53+'8'!AC53+'9'!AC53+'10'!AC53+'11'!AC53 -> 2278 | AD53: ='1'!AD53+'2'!AD53+'3'!AD53+'4'!AD53+'5'!AD53+'6'!AD53+'7'!AD53+'8'!AD53+'9'!AD53+'10'!AD53+'11'!AD53 -> 0 | AE53: ='1'!AE53+'2'!AE53+'3'!AE53+'4'!AE53+'5'!AE53+'6'!AE53+'7'!AE53+'8'!AE53+'9'!AE53+'10'!AE53+'11'!AE53 -> 1635 | AF53: ='1'!AF53+'2'!AF53+'3'!AF53+'4'!AF53+'5'!AF53+'6'!AF53+'7'!AF53+'8'!AF53+'9'!AF53+'10'!AF53+'11'!AF53 -> 0 | AG53: 1635 | AI53: 0 | AJ53: ='1'!AJ53+'2'!AJ53+'3'!AJ53+'4'!AJ53+'5'!AJ53+'6'!AJ53+'7'!AJ53+'8'!AJ53+'9'!AJ53+'10'!AJ53+'11'!AJ53 -> 0 | AK53: ='1'!AK53+'2'!AK53+'3'!AK53+'4'!AK53+'5'!AK53+'6'!AK53+'7'!AK53+'8'!AK53+'9'!AK53+'10'!AK53+'11'!AK53 -> 0 | AL53: ='1'!AL53+'2'!AL53+'3'!AL53+'4'!AL53+'5'!AL53+'6'!AL53+'7'!AL53+'8'!AL53+'9'!AL53+'10'!AL53+'11'!AL53 -> 0 | AM53: ='1'!AM53+'2'!AM53+'3'!AM53+'4'!AM53+'5'!AM53+'6'!AM53+'7'!AM53+'8'!AM53+'9'!AM53+'10'!AM53+'11'!AM53 -> 0 | AN53: ='1'!AN53+'2'!AN53+'3'!AN53+'4'!AN53+'5'!AN53+'6'!AN53+'7'!AN53+'8'!AN53+'9'!AN53+'10'!AN53+'11'!AN53 -> 0 | AO53: ='1'!AO53+'2'!AO53+'3'!AO53+'4'!AO53+'5'!AO53+'6'!AO53+'7'!AO53+'8'!AO53+'9'!AO53+'10'!AO53+'11'!AO53 -> 0 | AP53: ='1'!AP53+'2'!AP53+'3'!AP53+'4'!AP53+'5'!AP53+'6'!AP53+'7'!AP53+'8'!AP53+'9'!AP53+'10'!AP53+'11'!AP53 -> 0 | AQ53: ='1'!AQ53+'2'!AQ53+'3'!AQ53+'4'!AQ53+'5'!AQ53+'6'!AQ53+'7'!AQ53+'8'!AQ53+'9'!AQ53+'10'!AQ53+'11'!AQ53 -> 0 | AR53: ='1'!AR53+'2'!AR53+'3'!AR53+'4'!AR53+'5'!AR53+'6'!AR53+'7'!AR53+'8'!AR53+'9'!AR53+'10'!AR53+'11'!AR53 -> 0 | AS53: ='1'!AS53+'2'!AS53+'3'!AS53+'4'!AS53+'5'!AS53+'6'!AS53+'7'!AS53+'8'!AS53+'9'!AS53+'10'!AS53+'11'!AS53 -> 0 | AT53: ='1'!AT53+'2'!AT53+'3'!AT53+'4'!AT53+'5'!AT53+'6'!AT53+'7'!AT53+'8'!AT53+'9'!AT53+'10'!AT53+'11'!AT53 -> 0 | AU53: ='1'!AU53+'2'!AU53+'3'!AU53+'4'!AU53+'5'!AU53+'6'!AU53+'7'!AU53+'8'!AU53+'9'!AU53+'10'!AU53+'11'!AU53 -> 0 | AV53: 0 | AW53: ='1'!AW53+'2'!AW53+'3'!AW53+'4'!AW53+'5'!AW53+'6'!AW53+'7'!AW53+'8'!AW53+'9'!AW53+'10'!AW53+'11'!AW53 -> 0 | AX53: ='1'!AX53+'2'!AX53+'3'!AX53+'4'!AX53+'5'!AX53+'6'!AX53+'7'!AX53+'8'!AX53+'9'!AX53+'10'!AX53+'11'!AX53 -> 0 | AY53: ='1'!AY53+'2'!AY53+'3'!AY53+'4'!AY53+'5'!AY53+'6'!AY53+'7'!AY53+'8'!AY53+'9'!AY53+'10'!AY53+'11'!AY53 -> 0 | AZ53: 0
C54: 1 | H54: ='1'!H54 -> Advertising | I54: =SUM('1:11'!I54)+I177 -> 49 | J54: =SUM('1:11'!J54)+J177 -> 5 | K54: =SUM('1:11'!K54)+K177 -> 0 | L54: =SUM('1:11'!L54)+L177 -> 31 | M54: =SUM('1:11'!M54)+M177 -> 2 | N54: =SUM('1:11'!N54)+N177 -> 134 | O54: =SUM('1:11'!O54)+O177 -> 2 | P54: =SUM('1:11'!P54)+P177 -> 19 | Q54: =SUM('1:11'!Q54)+Q177 -> 4 | R54: =SUM('1:11'!R54)+R177 -> 30 | S54: =SUM('1:11'!S54)+S177 -> 0 | T54: =SUM('1:11'!T54)+T177 -> 338 | U54: =SUM($H54:OFFSET($H54,0,$I$2)) -> 0 | V54: 614 | W54: 1705 | Y54: 2319 | Z54: ='1'!Z54+'2'!Z54+'3'!Z54+'4'!Z54+'5'!Z54+'6'!Z54+'7'!Z54+'8'!Z54+'9'!Z54+'10'!Z54+'11'!Z54 -> 2266 | AA54: ='1'!AA54+'2'!AA54+'3'!AA54+'4'!AA54+'5'!AA54+'6'!AA54+'7'!AA54+'8'!AA54+'9'!AA54+'10'!AA54+'11'!AA54 -> 2880 | AB54: ='1'!AB54+'2'!AB54+'3'!AB54+'4'!AB54+'5'!AB54+'6'!AB54+'7'!AB54+'8'!AB54+'9'!AB54+'10'!AB54+'11'!AB54 -> -819 | AC54: ='1'!AC54+'2'!AC54+'3'!AC54+'4'!AC54+'5'!AC54+'6'!AC54+'7'!AC54+'8'!AC54+'9'!AC54+'10'!AC54+'11'!AC54 -> -561 | AD54: ='1'!AD54+'2'!AD54+'3'!AD54+'4'!AD54+'5'!AD54+'6'!AD54+'7'!AD54+'8'!AD54+'9'!AD54+'10'!AD54+'11'!AD54 -> 0 | AE54: ='1'!AE54+'2'!AE54+'3'!AE54+'4'!AE54+'5'!AE54+'6'!AE54+'7'!AE54+'8'!AE54+'9'!AE54+'10'!AE54+'11'!AE54 -> 258 | AF54: ='1'!AF54+'2'!AF54+'3'!AF54+'4'!AF54+'5'!AF54+'6'!AF54+'7'!AF54+'8'!AF54+'9'!AF54+'10'!AF54+'11'!AF54 -> 0 | AG54: 258 | AI54: 0 | AJ54: ='1'!AJ54+'2'!AJ54+'3'!AJ54+'4'!AJ54+'5'!AJ54+'6'!AJ54+'7'!AJ54+'8'!AJ54+'9'!AJ54+'10'!AJ54+'11'!AJ54 -> 0 | AK54: ='1'!AK54+'2'!AK54+'3'!AK54+'4'!AK54+'5'!AK54+'6'!AK54+'7'!AK54+'8'!AK54+'9'!AK54+'10'!AK54+'11'!AK54 -> 0 | AL54: ='1'!AL54+'2'!AL54+'3'!AL54+'4'!AL54+'5'!AL54+'6'!AL54+'7'!AL54+'8'!AL54+'9'!AL54+'10'!AL54+'11'!AL54 -> 0 | AM54: ='1'!AM54+'2'!AM54+'3'!AM54+'4'!AM54+'5'!AM54+'6'!AM54+'7'!AM54+'8'!AM54+'9'!AM54+'10'!AM54+'11'!AM54 -> 0 | AN54: ='1'!AN54+'2'!AN54+'3'!AN54+'4'!AN54+'5'!AN54+'6'!AN54+'7'!AN54+'8'!AN54+'9'!AN54+'10'!AN54+'11'!AN54 -> 0 | AO54: ='1'!AO54+'2'!AO54+'3'!AO54+'4'!AO54+'5'!AO54+'6'!AO54+'7'!AO54+'8'!AO54+'9'!AO54+'10'!AO54+'11'!AO54 -> 0 | AP54: ='1'!AP54+'2'!AP54+'3'!AP54+'4'!AP54+'5'!AP54+'6'!AP54+'7'!AP54+'8'!AP54+'9'!AP54+'10'!AP54+'11'!AP54 -> 0 | AQ54: ='1'!AQ54+'2'!AQ54+'3'!AQ54+'4'!AQ54+'5'!AQ54+'6'!AQ54+'7'!AQ54+'8'!AQ54+'9'!AQ54+'10'!AQ54+'11'!AQ54 -> 0 | AR54: ='1'!AR54+'2'!AR54+'3'!AR54+'4'!AR54+'5'!AR54+'6'!AR54+'7'!AR54+'8'!AR54+'9'!AR54+'10'!AR54+'11'!AR54 -> 0 | AS54: ='1'!AS54+'2'!AS54+'3'!AS54+'4'!AS54+'5'!AS54+'6'!AS54+'7'!AS54+'8'!AS54+'9'!AS54+'10'!AS54+'11'!AS54 -> 0 | AT54: ='1'!AT54+'2'!AT54+'3'!AT54+'4'!AT54+'5'!AT54+'6'!AT54+'7'!AT54+'8'!AT54+'9'!AT54+'10'!AT54+'11'!AT54 -> 0 | AU54: ='1'!AU54+'2'!AU54+'3'!AU54+'4'!AU54+'5'!AU54+'6'!AU54+'7'!AU54+'8'!AU54+'9'!AU54+'10'!AU54+'11'!AU54 -> 0 | AV54: 0 | AW54: ='1'!AW54+'2'!AW54+'3'!AW54+'4'!AW54+'5'!AW54+'6'!AW54+'7'!AW54+'8'!AW54+'9'!AW54+'10'!AW54+'11'!AW54 -> 0 | AX54: ='1'!AX54+'2'!AX54+'3'!AX54+'4'!AX54+'5'!AX54+'6'!AX54+'7'!AX54+'8'!AX54+'9'!AX54+'10'!AX54+'11'!AX54 -> 0 | AY54: ='1'!AY54+'2'!AY54+'3'!AY54+'4'!AY54+'5'!AY54+'6'!AY54+'7'!AY54+'8'!AY54+'9'!AY54+'10'!AY54+'11'!AY54 -> 0 | AZ54: 0
C55: 1 | H55: ='1'!H55 -> Minor Assets | I55: =SUM('1:11'!I55)+I178 -> 78 | J55: =SUM('1:11'!J55)+J178 -> 142 | K55: =SUM('1:11'!K55)+K178 -> 25 | L55: =SUM('1:11'!L55)+L178 -> 80 | M55: =SUM('1:11'!M55)+M178 -> 5 | N55: =SUM('1:11'!N55)+N178 -> 155 | O55: =SUM('1:11'!O55)+O178 -> 2716 | P55: =SUM('1:11'!P55)+P178 -> 118 | Q55: =SUM('1:11'!Q55)+Q178 -> 7 | R55: =SUM('1:11'!R55)+R178 -> 107 | S55: =SUM('1:11'!S55)+S178 -> 10 | T55: =SUM('1:11'!T55)+T178 -> 86 | U55: =SUM($H55:OFFSET($H55,0,$I$2)) -> 0 | V55: 3529 | W55: 244 | Y55: 3773 | Z55: ='1'!Z55+'2'!Z55+'3'!Z55+'4'!Z55+'5'!Z55+'6'!Z55+'7'!Z55+'8'!Z55+'9'!Z55+'10'!Z55+'11'!Z55 -> 346 | AA55: ='1'!AA55+'2'!AA55+'3'!AA55+'4'!AA55+'5'!AA55+'6'!AA55+'7'!AA55+'8'!AA55+'9'!AA55+'10'!AA55+'11'!AA55 -> 3875 | AB55: ='1'!AB55+'2'!AB55+'3'!AB55+'4'!AB55+'5'!AB55+'6'!AB55+'7'!AB55+'8'!AB55+'9'!AB55+'10'!AB55+'11'!AB55 -> -170 | AC55: ='1'!AC55+'2'!AC55+'3'!AC55+'4'!AC55+'5'!AC55+'6'!AC55+'7'!AC55+'8'!AC55+'9'!AC55+'10'!AC55+'11'!AC55 -> -102 | AD55: ='1'!AD55+'2'!AD55+'3'!AD55+'4'!AD55+'5'!AD55+'6'!AD55+'7'!AD55+'8'!AD55+'9'!AD55+'10'!AD55+'11'!AD55 -> 0 | AE55: ='1'!AE55+'2'!AE55+'3'!AE55+'4'!AE55+'5'!AE55+'6'!AE55+'7'!AE55+'8'!AE55+'9'!AE55+'10'!AE55+'11'!AE55 -> 68 | AF55: ='1'!AF55+'2'!AF55+'3'!AF55+'4'!AF55+'5'!AF55+'6'!AF55+'7'!AF55+'8'!AF55+'9'!AF55+'10'!AF55+'11'!AF55 -> 0 | AG55: 68 | AI55: 0 | AJ55: ='1'!AJ55+'2'!AJ55+'3'!AJ55+'4'!AJ55+'5'!AJ55+'6'!AJ55+'7'!AJ55+'8'!AJ55+'9'!AJ55+'10'!AJ55+'11'!AJ55 -> 0 | AK55: ='1'!AK55+'2'!AK55+'3'!AK55+'4'!AK55+'5'!AK55+'6'!AK55+'7'!AK55+'8'!AK55+'9'!AK55+'10'!AK55+'11'!AK55 -> 0 | AL55: ='1'!AL55+'2'!AL55+'3'!AL55+'4'!AL55+'5'!AL55+'6'!AL55+'7'!AL55+'8'!AL55+'9'!AL55+'10'!AL55+'11'!AL55 -> 0 | AM55: ='1'!AM55+'2'!AM55+'3'!AM55+'4'!AM55+'5'!AM55+'6'!AM55+'7'!AM55+'8'!AM55+'9'!AM55+'10'!AM55+'11'!AM55 -> 0 | AN55: ='1'!AN55+'2'!AN55+'3'!AN55+'4'!AN55+'5'!AN55+'6'!AN55+'7'!AN55+'8'!AN55+'9'!AN55+'10'!AN55+'11'!AN55 -> 0 | AO55: ='1'!AO55+'2'!AO55+'3'!AO55+'4'!AO55+'5'!AO55+'6'!AO55+'7'!AO55+'8'!AO55+'9'!AO55+'10'!AO55+'11'!AO55 -> 0 | AP55: ='1'!AP55+'2'!AP55+'3'!AP55+'4'!AP55+'5'!AP55+'6'!AP55+'7'!AP55+'8'!AP55+'9'!AP55+'10'!AP55+'11'!AP55 -> 0 | AQ55: ='1'!AQ55+'2'!AQ55+'3'!AQ55+'4'!AQ55+'5'!AQ55+'6'!AQ55+'7'!AQ55+'8'!AQ55+'9'!AQ55+'10'!AQ55+'11'!AQ55 -> 0 | AR55: ='1'!AR55+'2'!AR55+'3'!AR55+'4'!AR55+'5'!AR55+'6'!AR55+'7'!AR55+'8'!AR55+'9'!AR55+'10'!AR55+'11'!AR55 -> 0 | AS55: ='1'!AS55+'2'!AS55+'3'!AS55+'4'!AS55+'5'!AS55+'6'!AS55+'7'!AS55+'8'!AS55+'9'!AS55+'10'!AS55+'11'!AS55 -> 0 | AT55: ='1'!AT55+'2'!AT55+'3'!AT55+'4'!AT55+'5'!AT55+'6'!AT55+'7'!AT55+'8'!AT55+'9'!AT55+'10'!AT55+'11'!AT55 -> 0 | AU55: ='1'!AU55+'2'!AU55+'3'!AU55+'4'!AU55+'5'!AU55+'6'!AU55+'7'!AU55+'8'!AU55+'9'!AU55+'10'!AU55+'11'!AU55 -> 0 | AV55: 0 | AW55: ='1'!AW55+'2'!AW55+'3'!AW55+'4'!AW55+'5'!AW55+'6'!AW55+'7'!AW55+'8'!AW55+'9'!AW55+'10'!AW55+'11'!AW55 -> 0 | AX55: ='1'!AX55+'2'!AX55+'3'!AX55+'4'!AX55+'5'!AX55+'6'!AX55+'7'!AX55+'8'!AX55+'9'!AX55+'10'!AX55+'11'!AX55 -> 0 | AY55: ='1'!AY55+'2'!AY55+'3'!AY55+'4'!AY55+'5'!AY55+'6'!AY55+'7'!AY55+'8'!AY55+'9'!AY55+'10'!AY55+'11'!AY55 -> 0 | AZ55: 0
C56: 1 | H56: ='1'!H56 -> Audit costs: External | I56: =SUM('1:11'!I56)+I179 -> 737 | J56: =SUM('1:11'!J56)+J179 -> 738 | K56: =SUM('1:11'!K56)+K179 -> 737 | L56: =SUM('1:11'!L56)+L179 -> 735 | M56: =SUM('1:11'!M56)+M179 -> 737 | N56: =SUM('1:11'!N56)+N179 -> 737 | O56: =SUM('1:11'!O56)+O179 -> 737 | P56: =SUM('1:11'!P56)+P179 -> 738 | Q56: =SUM('1:11'!Q56)+Q179 -> 738 | R56: =SUM('1:11'!R56)+R179 -> 738 | S56: =SUM('1:11'!S56)+S179 -> 738 | T56: =SUM('1:11'!T56)+T179 -> 738 | U56: =SUM($H56:OFFSET($H56,0,$I$2)) -> 0 | V56: 8848 | W56: 6758 | Y56: 15606 | Z56: ='1'!Z56+'2'!Z56+'3'!Z56+'4'!Z56+'5'!Z56+'6'!Z56+'7'!Z56+'8'!Z56+'9'!Z56+'10'!Z56+'11'!Z56 -> 6105 | AA56: ='1'!AA56+'2'!AA56+'3'!AA56+'4'!AA56+'5'!AA56+'6'!AA56+'7'!AA56+'8'!AA56+'9'!AA56+'10'!AA56+'11'!AA56 -> 14953 | AB56: ='1'!AB56+'2'!AB56+'3'!AB56+'4'!AB56+'5'!AB56+'6'!AB56+'7'!AB56+'8'!AB56+'9'!AB56+'10'!AB56+'11'!AB56 -> 653 | AC56: ='1'!AC56+'2'!AC56+'3'!AC56+'4'!AC56+'5'!AC56+'6'!AC56+'7'!AC56+'8'!AC56+'9'!AC56+'10'!AC56+'11'!AC56 -> 653 | AD56: ='1'!AD56+'2'!AD56+'3'!AD56+'4'!AD56+'5'!AD56+'6'!AD56+'7'!AD56+'8'!AD56+'9'!AD56+'10'!AD56+'11'!AD56 -> 0 | AE56: ='1'!AE56+'2'!AE56+'3'!AE56+'4'!AE56+'5'!AE56+'6'!AE56+'7'!AE56+'8'!AE56+'9'!AE56+'10'!AE56+'11'!AE56 -> 0 | AF56: ='1'!AF56+'2'!AF56+'3'!AF56+'4'!AF56+'5'!AF56+'6'!AF56+'7'!AF56+'8'!AF56+'9'!AF56+'10'!AF56+'11'!AF56 -> 0 | AG56: 0 | AI56: 0 | AJ56: ='1'!AJ56+'2'!AJ56+'3'!AJ56+'4'!AJ56+'5'!AJ56+'6'!AJ56+'7'!AJ56+'8'!AJ56+'9'!AJ56+'10'!AJ56+'11'!AJ56 -> 0 | AK56: ='1'!AK56+'2'!AK56+'3'!AK56+'4'!AK56+'5'!AK56+'6'!AK56+'7'!AK56+'8'!AK56+'9'!AK56+'10'!AK56+'11'!AK56 -> 0 | AL56: ='1'!AL56+'2'!AL56+'3'!AL56+'4'!AL56+'5'!AL56+'6'!AL56+'7'!AL56+'8'!AL56+'9'!AL56+'10'!AL56+'11'!AL56 -> 0 | AM56: ='1'!AM56+'2'!AM56+'3'!AM56+'4'!AM56+'5'!AM56+'6'!AM56+'7'!AM56+'8'!AM56+'9'!AM56+'10'!AM56+'11'!AM56 -> 0 | AN56: ='1'!AN56+'2'!AN56+'3'!AN56+'4'!AN56+'5'!AN56+'6'!AN56+'7'!AN56+'8'!AN56+'9'!AN56+'10'!AN56+'11'!AN56 -> 0 | AO56: ='1'!AO56+'2'!AO56+'3'!AO56+'4'!AO56+'5'!AO56+'6'!AO56+'7'!AO56+'8'!AO56+'9'!AO56+'10'!AO56+'11'!AO56 -> 0 | AP56: ='1'!AP56+'2'!AP56+'3'!AP56+'4'!AP56+'5'!AP56+'6'!AP56+'7'!AP56+'8'!AP56+'9'!AP56+'10'!AP56+'11'!AP56 -> 0 | AQ56: ='1'!AQ56+'2'!AQ56+'3'!AQ56+'4'!AQ56+'5'!AQ56+'6'!AQ56+'7'!AQ56+'8'!AQ56+'9'!AQ56+'10'!AQ56+'11'!AQ56 -> 0 | AR56: ='1'!AR56+'2'!AR56+'3'!AR56+'4'!AR56+'5'!AR56+'6'!AR56+'7'!AR56+'8'!AR56+'9'!AR56+'10'!AR56+'11'!AR56 -> 0 | AS56: ='1'!AS56+'2'!AS56+'3'!AS56+'4'!AS56+'5'!AS56+'6'!AS56+'7'!AS56+'8'!AS56+'9'!AS56+'10'!AS56+'11'!AS56 -> 0 | AT56: ='1'!AT56+'2'!AT56+'3'!AT56+'4'!AT56+'5'!AT56+'6'!AT56+'7'!AT56+'8'!AT56+'9'!AT56+'10'!AT56+'11'!AT56 -> 0 | AU56: ='1'!AU56+'2'!AU56+'3'!AU56+'4'!AU56+'5'!AU56+'6'!AU56+'7'!AU56+'8'!AU56+'9'!AU56+'10'!AU56+'11'!AU56 -> 0 | AV56: 0 | AW56: ='1'!AW56+'2'!AW56+'3'!AW56+'4'!AW56+'5'!AW56+'6'!AW56+'7'!AW56+'8'!AW56+'9'!AW56+'10'!AW56+'11'!AW56 -> 0 | AX56: ='1'!AX56+'2'!AX56+'3'!AX56+'4'!AX56+'5'!AX56+'6'!AX56+'7'!AX56+'8'!AX56+'9'!AX56+'10'!AX56+'11'!AX56 -> 0 | AY56: ='1'!AY56+'2'!AY56+'3'!AY56+'4'!AY56+'5'!AY56+'6'!AY56+'7'!AY56+'8'!AY56+'9'!AY56+'10'!AY56+'11'!AY56 -> 0 | AZ56: 0
C57: 1 | H57: ='1'!H57 -> Bursaries: Employees | I57: =SUM('1:11'!I57)+I180 -> 308 | J57: =SUM('1:11'!J57)+J180 -> 188 | K57: =SUM('1:11'!K57)+K180 -> 653 | L57: =SUM('1:11'!L57)+L180 -> 527 | M57: =SUM('1:11'!M57)+M180 -> 47 | N57: =SUM('1:11'!N57)+N180 -> 5 | O57: =SUM('1:11'!O57)+O180 -> 110 | P57: =SUM('1:11'!P57)+P180 -> 5 | Q57: =SUM('1:11'!Q57)+Q180 -> 5 | R57: =SUM('1:11'!R57)+R180 -> 300 | S57: =SUM('1:11'!S57)+S180 -> 570 | T57: =SUM('1:11'!T57)+T180 -> 574 | U57: =SUM($H57:OFFSET($H57,0,$I$2)) -> 0 | V57: 3292 | W57: 4665 | Y57: 7957 | Z57: ='1'!Z57+'2'!Z57+'3'!Z57+'4'!Z57+'5'!Z57+'6'!Z57+'7'!Z57+'8'!Z57+'9'!Z57+'10'!Z57+'11'!Z57 -> 6054 | AA57: ='1'!AA57+'2'!AA57+'3'!AA57+'4'!AA57+'5'!AA57+'6'!AA57+'7'!AA57+'8'!AA57+'9'!AA57+'10'!AA57+'11'!AA57 -> 9346 | AB57: ='1'!AB57+'2'!AB57+'3'!AB57+'4'!AB57+'5'!AB57+'6'!AB57+'7'!AB57+'8'!AB57+'9'!AB57+'10'!AB57+'11'!AB57 -> -984 | AC57: ='1'!AC57+'2'!AC57+'3'!AC57+'4'!AC57+'5'!AC57+'6'!AC57+'7'!AC57+'8'!AC57+'9'!AC57+'10'!AC57+'11'!AC57 -> -1389 | AD57: ='1'!AD57+'2'!AD57+'3'!AD57+'4'!AD57+'5'!AD57+'6'!AD57+'7'!AD57+'8'!AD57+'9'!AD57+'10'!AD57+'11'!AD57 -> 0 | AE57: ='1'!AE57+'2'!AE57+'3'!AE57+'4'!AE57+'5'!AE57+'6'!AE57+'7'!AE57+'8'!AE57+'9'!AE57+'10'!AE57+'11'!AE57 -> -405 | AF57: ='1'!AF57+'2'!AF57+'3'!AF57+'4'!AF57+'5'!AF57+'6'!AF57+'7'!AF57+'8'!AF57+'9'!AF57+'10'!AF57+'11'!AF57 -> 0 | AG57: -405 | AI57: 0 | AJ57: ='1'!AJ57+'2'!AJ57+'3'!AJ57+'4'!AJ57+'5'!AJ57+'6'!AJ57+'7'!AJ57+'8'!AJ57+'9'!AJ57+'10'!AJ57+'11'!AJ57 -> 0 | AK57: ='1'!AK57+'2'!AK57+'3'!AK57+'4'!AK57+'5'!AK57+'6'!AK57+'7'!AK57+'8'!AK57+'9'!AK57+'10'!AK57+'11'!AK57 -> 0 | AL57: ='1'!AL57+'2'!AL57+'3'!AL57+'4'!AL57+'5'!AL57+'6'!AL57+'7'!AL57+'8'!AL57+'9'!AL57+'10'!AL57+'11'!AL57 -> 0 | AM57: ='1'!AM57+'2'!AM57+'3'!AM57+'4'!AM57+'5'!AM57+'6'!AM57+'7'!AM57+'8'!AM57+'9'!AM57+'10'!AM57+'11'!AM57 -> 0 | AN57: ='1'!AN57+'2'!AN57+'3'!AN57+'4'!AN57+'5'!AN57+'6'!AN57+'7'!AN57+'8'!AN57+'9'!AN57+'10'!AN57+'11'!AN57 -> 0 | AO57: ='1'!AO57+'2'!AO57+'3'!AO57+'4'!AO57+'5'!AO57+'6'!AO57+'7'!AO57+'8'!AO57+'9'!AO57+'10'!AO57+'11'!AO57 -> 0 | AP57: ='1'!AP57+'2'!AP57+'3'!AP57+'4'!AP57+'5'!AP57+'6'!AP57+'7'!AP57+'8'!AP57+'9'!AP57+'10'!AP57+'11'!AP57 -> 0 | AQ57: ='1'!AQ57+'2'!AQ57+'3'!AQ57+'4'!AQ57+'5'!AQ57+'6'!AQ57+'7'!AQ57+'8'!AQ57+'9'!AQ57+'10'!AQ57+'11'!AQ57 -> 0 | AR57: ='1'!AR57+'2'!AR57+'3'!AR57+'4'!AR57+'5'!AR57+'6'!AR57+'7'!AR57+'8'!AR57+'9'!AR57+'10'!AR57+'11'!AR57 -> 0 | AS57: ='1'!AS57+'2'!AS57+'3'!AS57+'4'!AS57+'5'!AS57+'6'!AS57+'7'!AS57+'8'!AS57+'9'!AS57+'10'!AS57+'11'!AS57 -> 0 | AT57: ='1'!AT57+'2'!AT57+'3'!AT57+'4'!AT57+'5'!AT57+'6'!AT57+'7'!AT57+'8'!AT57+'9'!AT57+'10'!AT57+'11'!AT57 -> 0 | AU57: ='1'!AU57+'2'!AU57+'3'!AU57+'4'!AU57+'5'!AU57+'6'!AU57+'7'!AU57+'8'!AU57+'9'!AU57+'10'!AU57+'11'!AU57 -> 0 | AV57: 0 | AW57: ='1'!AW57+'2'!AW57+'3'!AW57+'4'!AW57+'5'!AW57+'6'!AW57+'7'!AW57+'8'!AW57+'9'!AW57+'10'!AW57+'11'!AW57 -> 0 | AX57: ='1'!AX57+'2'!AX57+'3'!AX57+'4'!AX57+'5'!AX57+'6'!AX57+'7'!AX57+'8'!AX57+'9'!AX57+'10'!AX57+'11'!AX57 -> 0 | AY57: ='1'!AY57+'2'!AY57+'3'!AY57+'4'!AY57+'5'!AY57+'6'!AY57+'7'!AY57+'8'!AY57+'9'!AY57+'10'!AY57+'11'!AY57 -> 0 | AZ57: 0
C58: 1 | H58: ='1'!H58 -> Catering: Departmental activities | I58: =SUM('1:11'!I58)+I181 -> 45 | J58: =SUM('1:11'!J58)+J181 -> 90 | K58: =SUM('1:11'!K58)+K181 -> 47 | L58: =SUM('1:11'!L58)+L181 -> 7 | M58: =SUM('1:11'!M58)+M181 -> 43 | N58: =SUM('1:11'!N58)+N181 -> 31 | O58: =SUM('1:11'!O58)+O181 -> 20 | P58: =SUM('1:11'!P58)+P181 -> 7 | Q58: =SUM('1:11'!Q58)+Q181 -> 19 | R58: =SUM('1:11'!R58)+R181 -> 0 | S58: =SUM('1:11'!S58)+S181 -> 144 | T58: =SUM('1:11'!T58)+T181 -> 175 | U58: =SUM($H58:OFFSET($H58,0,$I$2)) -> 0 | V58: 628 | W58: 1557 | Y58: 2185 | Z58: ='1'!Z58+'2'!Z58+'3'!Z58+'4'!Z58+'5'!Z58+'6'!Z58+'7'!Z58+'8'!Z58+'9'!Z58+'10'!Z58+'11'!Z58 -> 1386 | AA58: ='1'!AA58+'2'!AA58+'3'!AA58+'4'!AA58+'5'!AA58+'6'!AA58+'7'!AA58+'8'!AA58+'9'!AA58+'10'!AA58+'11'!AA58 -> 2014 | AB58: ='1'!AB58+'2'!AB58+'3'!AB58+'4'!AB58+'5'!AB58+'6'!AB58+'7'!AB58+'8'!AB58+'9'!AB58+'10'!AB58+'11'!AB58 -> 171 | AC58: ='1'!AC58+'2'!AC58+'3'!AC58+'4'!AC58+'5'!AC58+'6'!AC58+'7'!AC58+'8'!AC58+'9'!AC58+'10'!AC58+'11'!AC58 -> 171 | AD58: ='1'!AD58+'2'!AD58+'3'!AD58+'4'!AD58+'5'!AD58+'6'!AD58+'7'!AD58+'8'!AD58+'9'!AD58+'10'!AD58+'11'!AD58 -> 0 | AE58: ='1'!AE58+'2'!AE58+'3'!AE58+'4'!AE58+'5'!AE58+'6'!AE58+'7'!AE58+'8'!AE58+'9'!AE58+'10'!AE58+'11'!AE58 -> 0 | AF58: ='1'!AF58+'2'!AF58+'3'!AF58+'4'!AF58+'5'!AF58+'6'!AF58+'7'!AF58+'8'!AF58+'9'!AF58+'10'!AF58+'11'!AF58 -> 0 | AG58: 0 | AI58: 0 | AJ58: ='1'!AJ58+'2'!AJ58+'3'!AJ58+'4'!AJ58+'5'!AJ58+'6'!AJ58+'7'!AJ58+'8'!AJ58+'9'!AJ58+'10'!AJ58+'11'!AJ58 -> 0 | AK58: ='1'!AK58+'2'!AK58+'3'!AK58+'4'!AK58+'5'!AK58+'6'!AK58+'7'!AK58+'8'!AK58+'9'!AK58+'10'!AK58+'11'!AK58 -> 0 | AL58: ='1'!AL58+'2'!AL58+'3'!AL58+'4'!AL58+'5'!AL58+'6'!AL58+'7'!AL58+'8'!AL58+'9'!AL58+'10'!AL58+'11'!AL58 -> 0 | AM58: ='1'!AM58+'2'!AM58+'3'!AM58+'4'!AM58+'5'!AM58+'6'!AM58+'7'!AM58+'8'!AM58+'9'!AM58+'10'!AM58+'11'!AM58 -> 0 | AN58: ='1'!AN58+'2'!AN58+'3'!AN58+'4'!AN58+'5'!AN58+'6'!AN58+'7'!AN58+'8'!AN58+'9'!AN58+'10'!AN58+'11'!AN58 -> 0 | AO58: ='1'!AO58+'2'!AO58+'3'!AO58+'4'!AO58+'5'!AO58+'6'!AO58+'7'!AO58+'8'!AO58+'9'!AO58+'10'!AO58+'11'!AO58 -> 0 | AP58: ='1'!AP58+'2'!AP58+'3'!AP58+'4'!AP58+'5'!AP58+'6'!AP58+'7'!AP58+'8'!AP58+'9'!AP58+'10'!AP58+'11'!AP58 -> 0 | AQ58: ='1'!AQ58+'2'!AQ58+'3'!AQ58+'4'!AQ58+'5'!AQ58+'6'!AQ58+'7'!AQ58+'8'!AQ58+'9'!AQ58+'10'!AQ58+'11'!AQ58 -> 0 | AR58: ='1'!AR58+'2'!AR58+'3'!AR58+'4'!AR58+'5'!AR58+'6'!AR58+'7'!AR58+'8'!AR58+'9'!AR58+'10'!AR58+'11'!AR58 -> 0 | AS58: ='1'!AS58+'2'!AS58+'3'!AS58+'4'!AS58+'5'!AS58+'6'!AS58+'7'!AS58+'8'!AS58+'9'!AS58+'10'!AS58+'11'!AS58 -> 0 | AT58: ='1'!AT58+'2'!AT58+'3'!AT58+'4'!AT58+'5'!AT58+'6'!AT58+'7'!AT58+'8'!AT58+'9'!AT58+'10'!AT58+'11'!AT58 -> 0 | AU58: ='1'!AU58+'2'!AU58+'3'!AU58+'4'!AU58+'5'!AU58+'6'!AU58+'7'!AU58+'8'!AU58+'9'!AU58+'10'!AU58+'11'!AU58 -> 0 | AV58: 0 | AW58: ='1'!AW58+'2'!AW58+'3'!AW58+'4'!AW58+'5'!AW58+'6'!AW58+'7'!AW58+'8'!AW58+'9'!AW58+'10'!AW58+'11'!AW58 -> 0 | AX58: ='1'!AX58+'2'!AX58+'3'!AX58+'4'!AX58+'5'!AX58+'6'!AX58+'7'!AX58+'8'!AX58+'9'!AX58+'10'!AX58+'11'!AX58 -> 0 | AY58: ='1'!AY58+'2'!AY58+'3'!AY58+'4'!AY58+'5'!AY58+'6'!AY58+'7'!AY58+'8'!AY58+'9'!AY58+'10'!AY58+'11'!AY58 -> 0 | AZ58: 0
C59: 1 | H59: ='1'!H59 -> Communication (G&S) | I59: =SUM('1:11'!I59)+I182 -> 736 | J59: =SUM('1:11'!J59)+J182 -> 722 | K59: =SUM('1:11'!K59)+K182 -> 936 | L59: =SUM('1:11'!L59)+L182 -> 724 | M59: =SUM('1:11'!M59)+M182 -> 733 | N59: =SUM('1:11'!N59)+N182 -> 924 | O59: =SUM('1:11'!O59)+O182 -> 733 | P59: =SUM('1:11'!P59)+P182 -> 724 | Q59: =SUM('1:11'!Q59)+Q182 -> 796 | R59: =SUM('1:11'!R59)+R182 -> 735 | S59: =SUM('1:11'!S59)+S182 -> 732 | T59: =SUM('1:11'!T59)+T182 -> 876 | U59: =SUM($H59:OFFSET($H59,0,$I$2)) -> 0 | V59: 9371 | W59: 652 | Y59: 10023 | Z59: ='1'!Z59+'2'!Z59+'3'!Z59+'4'!Z59+'5'!Z59+'6'!Z59+'7'!Z59+'8'!Z59+'9'!Z59+'10'!Z59+'11'!Z59 -> 2848 | AA59: ='1'!AA59+'2'!AA59+'3'!AA59+'4'!AA59+'5'!AA59+'6'!AA59+'7'!AA59+'8'!AA59+'9'!AA59+'10'!AA59+'11'!AA59 -> 12219 | AB59: ='1'!AB59+'2'!AB59+'3'!AB59+'4'!AB59+'5'!AB59+'6'!AB59+'7'!AB59+'8'!AB59+'9'!AB59+'10'!AB59+'11'!AB59 -> -2196 | AC59: ='1'!AC59+'2'!AC59+'3'!AC59+'4'!AC59+'5'!AC59+'6'!AC59+'7'!AC59+'8'!AC59+'9'!AC59+'10'!AC59+'11'!AC59 -> -2196 | AD59: ='1'!AD59+'2'!AD59+'3'!AD59+'4'!AD59+'5'!AD59+'6'!AD59+'7'!AD59+'8'!AD59+'9'!AD59+'10'!AD59+'11'!AD59 -> 0 | AE59: ='1'!AE59+'2'!AE59+'3'!AE59+'4'!AE59+'5'!AE59+'6'!AE59+'7'!AE59+'8'!AE59+'9'!AE59+'10'!AE59+'11'!AE59 -> 0 | AF59: ='1'!AF59+'2'!AF59+'3'!AF59+'4'!AF59+'5'!AF59+'6'!AF59+'7'!AF59+'8'!AF59+'9'!AF59+'10'!AF59+'11'!AF59 -> 0 | AG59: 0 | AI59: 0 | AJ59: ='1'!AJ59+'2'!AJ59+'3'!AJ59+'4'!AJ59+'5'!AJ59+'6'!AJ59+'7'!AJ59+'8'!AJ59+'9'!AJ59+'10'!AJ59+'11'!AJ59 -> 0 | AK59: ='1'!AK59+'2'!AK59+'3'!AK59+'4'!AK59+'5'!AK59+'6'!AK59+'7'!AK59+'8'!AK59+'9'!AK59+'10'!AK59+'11'!AK59 -> 0 | AL59: ='1'!AL59+'2'!AL59+'3'!AL59+'4'!AL59+'5'!AL59+'6'!AL59+'7'!AL59+'8'!AL59+'9'!AL59+'10'!AL59+'11'!AL59 -> 0 | AM59: ='1'!AM59+'2'!AM59+'3'!AM59+'4'!AM59+'5'!AM59+'6'!AM59+'7'!AM59+'8'!AM59+'9'!AM59+'10'!AM59+'11'!AM59 -> 0 | AN59: ='1'!AN59+'2'!AN59+'3'!AN59+'4'!AN59+'5'!AN59+'6'!AN59+'7'!AN59+'8'!AN59+'9'!AN59+'10'!AN59+'11'!AN59 -> 0 | AO59: ='1'!AO59+'2'!AO59+'3'!AO59+'4'!AO59+'5'!AO59+'6'!AO59+'7'!AO59+'8'!AO59+'9'!AO59+'10'!AO59+'11'!AO59 -> 0 | AP59: ='1'!AP59+'2'!AP59+'3'!AP59+'4'!AP59+'5'!AP59+'6'!AP59+'7'!AP59+'8'!AP59+'9'!AP59+'10'!AP59+'11'!AP59 -> 0 | AQ59: ='1'!AQ59+'2'!AQ59+'3'!AQ59+'4'!AQ59+'5'!AQ59+'6'!AQ59+'7'!AQ59+'8'!AQ59+'9'!AQ59+'10'!AQ59+'11'!AQ59 -> 0 | AR59: ='1'!AR59+'2'!AR59+'3'!AR59+'4'!AR59+'5'!AR59+'6'!AR59+'7'!AR59+'8'!AR59+'9'!AR59+'10'!AR59+'11'!AR59 -> 0 | AS59: ='1'!AS59+'2'!AS59+'3'!AS59+'4'!AS59+'5'!AS59+'6'!AS59+'7'!AS59+'8'!AS59+'9'!AS59+'10'!AS59+'11'!AS59 -> 0 | AT59: ='1'!AT59+'2'!AT59+'3'!AT59+'4'!AT59+'5'!AT59+'6'!AT59+'7'!AT59+'8'!AT59+'9'!AT59+'10'!AT59+'11'!AT59 -> 0 | AU59: ='1'!AU59+'2'!AU59+'3'!AU59+'4'!AU59+'5'!AU59+'6'!AU59+'7'!AU59+'8'!AU59+'9'!AU59+'10'!AU59+'11'!AU59 -> 0 | AV59: 0 | AW59: ='1'!AW59+'2'!AW59+'3'!AW59+'4'!AW59+'5'!AW59+'6'!AW59+'7'!AW59+'8'!AW59+'9'!AW59+'10'!AW59+'11'!AW59 -> 0 | AX59: ='1'!AX59+'2'!AX59+'3'!AX59+'4'!AX59+'5'!AX59+'6'!AX59+'7'!AX59+'8'!AX59+'9'!AX59+'10'!AX59+'11'!AX59 -> 0 | AY59: ='1'!AY59+'2'!AY59+'3'!AY59+'4'!AY59+'5'!AY59+'6'!AY59+'7'!AY59+'8'!AY59+'9'!AY59+'10'!AY59+'11'!AY59 -> 0 | AZ59: 0
C60: 1 | H60: ='1'!H60 -> Computer services | I60: =SUM('1:11'!I60)+I183 -> 1767 | J60: =SUM('1:11'!J60)+J183 -> 1660 | K60: =SUM('1:11'!K60)+K183 -> 4254 | L60: =SUM('1:11'!L60)+L183 -> 3488 | M60: =SUM('1:11'!M60)+M183 -> 3099 | N60: =SUM('1:11'!N60)+N183 -> 3219 | O60: =SUM('1:11'!O60)+O183 -> 1908 | P60: =SUM('1:11'!P60)+P183 -> 2458 | Q60: =SUM('1:11'!Q60)+Q183 -> 10388 | R60: =SUM('1:11'!R60)+R183 -> 3158 | S60: =SUM('1:11'!S60)+S183 -> 2096 | T60: =SUM('1:11'!T60)+T183 -> 5841 | U60: =SUM($H60:OFFSET($H60,0,$I$2)) -> 0 | V60: 43336 | W60: 577900 | Y60: 621236 | Z60: ='1'!Z60+'2'!Z60+'3'!Z60+'4'!Z60+'5'!Z60+'6'!Z60+'7'!Z60+'8'!Z60+'9'!Z60+'10'!Z60+'11'!Z60 -> 583630 | AA60: ='1'!AA60+'2'!AA60+'3'!AA60+'4'!AA60+'5'!AA60+'6'!AA60+'7'!AA60+'8'!AA60+'9'!AA60+'10'!AA60+'11'!AA60 -> 626966 | AB60: ='1'!AB60+'2'!AB60+'3'!AB60+'4'!AB60+'5'!AB60+'6'!AB60+'7'!AB60+'8'!AB60+'9'!AB60+'10'!AB60+'11'!AB60 -> -5556 | AC60: ='1'!AC60+'2'!AC60+'3'!AC60+'4'!AC60+'5'!AC60+'6'!AC60+'7'!AC60+'8'!AC60+'9'!AC60+'10'!AC60+'11'!AC60 -> -5730 | AD60: ='1'!AD60+'2'!AD60+'3'!AD60+'4'!AD60+'5'!AD60+'6'!AD60+'7'!AD60+'8'!AD60+'9'!AD60+'10'!AD60+'11'!AD60 -> 0 | AE60: ='1'!AE60+'2'!AE60+'3'!AE60+'4'!AE60+'5'!AE60+'6'!AE60+'7'!AE60+'8'!AE60+'9'!AE60+'10'!AE60+'11'!AE60 -> -174 | AF60: ='1'!AF60+'2'!AF60+'3'!AF60+'4'!AF60+'5'!AF60+'6'!AF60+'7'!AF60+'8'!AF60+'9'!AF60+'10'!AF60+'11'!AF60 -> 0 | AG60: -174 | AI60: 0 | AJ60: ='1'!AJ60+'2'!AJ60+'3'!AJ60+'4'!AJ60+'5'!AJ60+'6'!AJ60+'7'!AJ60+'8'!AJ60+'9'!AJ60+'10'!AJ60+'11'!AJ60 -> 0 | AK60: ='1'!AK60+'2'!AK60+'3'!AK60+'4'!AK60+'5'!AK60+'6'!AK60+'7'!AK60+'8'!AK60+'9'!AK60+'10'!AK60+'11'!AK60 -> 0 | AL60: ='1'!AL60+'2'!AL60+'3'!AL60+'4'!AL60+'5'!AL60+'6'!AL60+'7'!AL60+'8'!AL60+'9'!AL60+'10'!AL60+'11'!AL60 -> 0 | AM60: ='1'!AM60+'2'!AM60+'3'!AM60+'4'!AM60+'5'!AM60+'6'!AM60+'7'!AM60+'8'!AM60+'9'!AM60+'10'!AM60+'11'!AM60 -> 0 | AN60: ='1'!AN60+'2'!AN60+'3'!AN60+'4'!AN60+'5'!AN60+'6'!AN60+'7'!AN60+'8'!AN60+'9'!AN60+'10'!AN60+'11'!AN60 -> 0 | AO60: ='1'!AO60+'2'!AO60+'3'!AO60+'4'!AO60+'5'!AO60+'6'!AO60+'7'!AO60+'8'!AO60+'9'!AO60+'10'!AO60+'11'!AO60 -> 0 | AP60: ='1'!AP60+'2'!AP60+'3'!AP60+'4'!AP60+'5'!AP60+'6'!AP60+'7'!AP60+'8'!AP60+'9'!AP60+'10'!AP60+'11'!AP60 -> 0 | AQ60: ='1'!AQ60+'2'!AQ60+'3'!AQ60+'4'!AQ60+'5'!AQ60+'6'!AQ60+'7'!AQ60+'8'!AQ60+'9'!AQ60+'10'!AQ60+'11'!AQ60 -> 0 | AR60: ='1'!AR60+'2'!AR60+'3'!AR60+'4'!AR60+'5'!AR60+'6'!AR60+'7'!AR60+'8'!AR60+'9'!AR60+'10'!AR60+'11'!AR60 -> 0 | AS60: ='1'!AS60+'2'!AS60+'3'!AS60+'4'!AS60+'5'!AS60+'6'!AS60+'7'!AS60+'8'!AS60+'9'!AS60+'10'!AS60+'11'!AS60 -> 0 | AT60: ='1'!AT60+'2'!AT60+'3'!AT60+'4'!AT60+'5'!AT60+'6'!AT60+'7'!AT60+'8'!AT60+'9'!AT60+'10'!AT60+'11'!AT60 -> 0 | AU60: ='1'!AU60+'2'!AU60+'3'!AU60+'4'!AU60+'5'!AU60+'6'!AU60+'7'!AU60+'8'!AU60+'9'!AU60+'10'!AU60+'11'!AU60 -> 0 | AV60: 0 | AW60: ='1'!AW60+'2'!AW60+'3'!AW60+'4'!AW60+'5'!AW60+'6'!AW60+'7'!AW60+'8'!AW60+'9'!AW60+'10'!AW60+'11'!AW60 -> 0 | AX60: ='1'!AX60+'2'!AX60+'3'!AX60+'4'!AX60+'5'!AX60+'6'!AX60+'7'!AX60+'8'!AX60+'9'!AX60+'10'!AX60+'11'!AX60 -> 0 | AY60: ='1'!AY60+'2'!AY60+'3'!AY60+'4'!AY60+'5'!AY60+'6'!AY60+'7'!AY60+'8'!AY60+'9'!AY60+'10'!AY60+'11'!AY60 -> 0 | AZ60: 0
C61: 1 | H61: ='1'!H61 -> Consultants: Business and advisory services | I61: =SUM('1:11'!I61)+I184 -> 394 | J61: =SUM('1:11'!J61)+J184 -> 3198 | K61: =SUM('1:11'!K61)+K184 -> 3268 | L61: =SUM('1:11'!L61)+L184 -> 415 | M61: =SUM('1:11'!M61)+M184 -> 1021 | N61: =SUM('1:11'!N61)+N184 -> 1094 | O61: =SUM('1:11'!O61)+O184 -> 423 | P61: =SUM('1:11'!P61)+P184 -> 596 | Q61: =SUM('1:11'!Q61)+Q184 -> 1205 | R61: =SUM('1:11'!R61)+R184 -> 13035 | S61: =SUM('1:11'!S61)+S184 -> 12995 | T61: =SUM('1:11'!T61)+T184 -> 14148 | U61: =SUM($H61:OFFSET($H61,0,$I$2)) -> 0 | V61: 51792 | W61: 768636 | Y61: 820428 | Z61: ='1'!Z61+'2'!Z61+'3'!Z61+'4'!Z61+'5'!Z61+'6'!Z61+'7'!Z61+'8'!Z61+'9'!Z61+'10'!Z61+'11'!Z61 -> 777720 | AA61: ='1'!AA61+'2'!AA61+'3'!AA61+'4'!AA61+'5'!AA61+'6'!AA61+'7'!AA61+'8'!AA61+'9'!AA61+'10'!AA61+'11'!AA61 -> 829512 | AB61: ='1'!AB61+'2'!AB61+'3'!AB61+'4'!AB61+'5'!AB61+'6'!AB61+'7'!AB61+'8'!AB61+'9'!AB61+'10'!AB61+'11'!AB61 -> -8101 | AC61: ='1'!AC61+'2'!AC61+'3'!AC61+'4'!AC61+'5'!AC61+'6'!AC61+'7'!AC61+'8'!AC61+'9'!AC61+'10'!AC61+'11'!AC61 -> -9084 | AD61: ='1'!AD61+'2'!AD61+'3'!AD61+'4'!AD61+'5'!AD61+'6'!AD61+'7'!AD61+'8'!AD61+'9'!AD61+'10'!AD61+'11'!AD61 -> -93063 | AE61: ='1'!AE61+'2'!AE61+'3'!AE61+'4'!AE61+'5'!AE61+'6'!AE61+'7'!AE61+'8'!AE61+'9'!AE61+'10'!AE61+'11'!AE61 -> -983 | AF61: ='1'!AF61+'2'!AF61+'3'!AF61+'4'!AF61+'5'!AF61+'6'!AF61+'7'!AF61+'8'!AF61+'9'!AF61+'10'!AF61+'11'!AF61 -> 0 | AG61: -94046 | AI61: 0 | AJ61: ='1'!AJ61+'2'!AJ61+'3'!AJ61+'4'!AJ61+'5'!AJ61+'6'!AJ61+'7'!AJ61+'8'!AJ61+'9'!AJ61+'10'!AJ61+'11'!AJ61 -> 0 | AK61: ='1'!AK61+'2'!AK61+'3'!AK61+'4'!AK61+'5'!AK61+'6'!AK61+'7'!AK61+'8'!AK61+'9'!AK61+'10'!AK61+'11'!AK61 -> 0 | AL61: ='1'!AL61+'2'!AL61+'3'!AL61+'4'!AL61+'5'!AL61+'6'!AL61+'7'!AL61+'8'!AL61+'9'!AL61+'10'!AL61+'11'!AL61 -> 0 | AM61: ='1'!AM61+'2'!AM61+'3'!AM61+'4'!AM61+'5'!AM61+'6'!AM61+'7'!AM61+'8'!AM61+'9'!AM61+'10'!AM61+'11'!AM61 -> 0 | AN61: ='1'!AN61+'2'!AN61+'3'!AN61+'4'!AN61+'5'!AN61+'6'!AN61+'7'!AN61+'8'!AN61+'9'!AN61+'10'!AN61+'11'!AN61 -> 0 | AO61: ='1'!AO61+'2'!AO61+'3'!AO61+'4'!AO61+'5'!AO61+'6'!AO61+'7'!AO61+'8'!AO61+'9'!AO61+'10'!AO61+'11'!AO61 -> 0 | AP61: ='1'!AP61+'2'!AP61+'3'!AP61+'4'!AP61+'5'!AP61+'6'!AP61+'7'!AP61+'8'!AP61+'9'!AP61+'10'!AP61+'11'!AP61 -> 0 | AQ61: ='1'!AQ61+'2'!AQ61+'3'!AQ61+'4'!AQ61+'5'!AQ61+'6'!AQ61+'7'!AQ61+'8'!AQ61+'9'!AQ61+'10'!AQ61+'11'!AQ61 -> 0 | AR61: ='1'!AR61+'2'!AR61+'3'!AR61+'4'!AR61+'5'!AR61+'6'!AR61+'7'!AR61+'8'!AR61+'9'!AR61+'10'!AR61+'11'!AR61 -> 0 | AS61: ='1'!AS61+'2'!AS61+'3'!AS61+'4'!AS61+'5'!AS61+'6'!AS61+'7'!AS61+'8'!AS61+'9'!AS61+'10'!AS61+'11'!AS61 -> 0 | AT61: ='1'!AT61+'2'!AT61+'3'!AT61+'4'!AT61+'5'!AT61+'6'!AT61+'7'!AT61+'8'!AT61+'9'!AT61+'10'!AT61+'11'!AT61 -> 0 | AU61: ='1'!AU61+'2'!AU61+'3'!AU61+'4'!AU61+'5'!AU61+'6'!AU61+'7'!AU61+'8'!AU61+'9'!AU61+'10'!AU61+'11'!AU61 -> 0 | AV61: 0 | AW61: ='1'!AW61+'2'!AW61+'3'!AW61+'4'!AW61+'5'!AW61+'6'!AW61+'7'!AW61+'8'!AW61+'9'!AW61+'10'!AW61+'11'!AW61 -> 0 | AX61: ='1'!AX61+'2'!AX61+'3'!AX61+'4'!AX61+'5'!AX61+'6'!AX61+'7'!AX61+'8'!AX61+'9'!AX61+'10'!AX61+'11'!AX61 -> 0 | AY61: ='1'!AY61+'2'!AY61+'3'!AY61+'4'!AY61+'5'!AY61+'6'!AY61+'7'!AY61+'8'!AY61+'9'!AY61+'10'!AY61+'11'!AY61 -> 0 | AZ61: 0
C62: 1 | H62: ='1'!H62 -> Infrastructure and planning services | I62: =SUM('1:11'!I62)+I185 -> 0 | J62: =SUM('1:11'!J62)+J185 -> 0 | K62: =SUM('1:11'!K62)+K185 -> 0 | L62: =SUM('1:11'!L62)+L185 -> 0 | M62: =SUM('1:11'!M62)+M185 -> 0 | N62: =SUM('1:11'!N62)+N185 -> 0 | O62: =SUM('1:11'!O62)+O185 -> 0 | P62: =SUM('1:11'!P62)+P185 -> 0 | Q62: =SUM('1:11'!Q62)+Q185 -> 0 | R62: =SUM('1:11'!R62)+R185 -> 0 | S62: =SUM('1:11'!S62)+S185 -> 0 | T62: =SUM('1:11'!T62)+T185 -> 0 | U62: =SUM($H62:OFFSET($H62,0,$I$2)) -> 0 | V62: 0 | W62: 400000 | Y62: 400000 | Z62: ='1'!Z62+'2'!Z62+'3'!Z62+'4'!Z62+'5'!Z62+'6'!Z62+'7'!Z62+'8'!Z62+'9'!Z62+'10'!Z62+'11'!Z62 -> 0 | AA62: ='1'!AA62+'2'!AA62+'3'!AA62+'4'!AA62+'5'!AA62+'6'!AA62+'7'!AA62+'8'!AA62+'9'!AA62+'10'!AA62+'11'!AA62 -> 0 | AB62: ='1'!AB62+'2'!AB62+'3'!AB62+'4'!AB62+'5'!AB62+'6'!AB62+'7'!AB62+'8'!AB62+'9'!AB62+'10'!AB62+'11'!AB62 -> 400000 | AC62: ='1'!AC62+'2'!AC62+'3'!AC62+'4'!AC62+'5'!AC62+'6'!AC62+'7'!AC62+'8'!AC62+'9'!AC62+'10'!AC62+'11'!AC62 -> 400000 | AD62: ='1'!AD62+'2'!AD62+'3'!AD62+'4'!AD62+'5'!AD62+'6'!AD62+'7'!AD62+'8'!AD62+'9'!AD62+'10'!AD62+'11'!AD62 -> 0 | AE62: ='1'!AE62+'2'!AE62+'3'!AE62+'4'!AE62+'5'!AE62+'6'!AE62+'7'!AE62+'8'!AE62+'9'!AE62+'10'!AE62+'11'!AE62 -> 0 | AF62: ='1'!AF62+'2'!AF62+'3'!AF62+'4'!AF62+'5'!AF62+'6'!AF62+'7'!AF62+'8'!AF62+'9'!AF62+'10'!AF62+'11'!AF62 -> 0 | AG62: 0 | AI62: 0 | AJ62: ='1'!AJ62+'2'!AJ62+'3'!AJ62+'4'!AJ62+'5'!AJ62+'6'!AJ62+'7'!AJ62+'8'!AJ62+'9'!AJ62+'10'!AJ62+'11'!AJ62 -> 0 | AK62: ='1'!AK62+'2'!AK62+'3'!AK62+'4'!AK62+'5'!AK62+'6'!AK62+'7'!AK62+'8'!AK62+'9'!AK62+'10'!AK62+'11'!AK62 -> 0 | AL62: ='1'!AL62+'2'!AL62+'3'!AL62+'4'!AL62+'5'!AL62+'6'!AL62+'7'!AL62+'8'!AL62+'9'!AL62+'10'!AL62+'11'!AL62 -> 0 | AM62: ='1'!AM62+'2'!AM62+'3'!AM62+'4'!AM62+'5'!AM62+'6'!AM62+'7'!AM62+'8'!AM62+'9'!AM62+'10'!AM62+'11'!AM62 -> 0 | AN62: ='1'!AN62+'2'!AN62+'3'!AN62+'4'!AN62+'5'!AN62+'6'!AN62+'7'!AN62+'8'!AN62+'9'!AN62+'10'!AN62+'11'!AN62 -> 0 | AO62: ='1'!AO62+'2'!AO62+'3'!AO62+'4'!AO62+'5'!AO62+'6'!AO62+'7'!AO62+'8'!AO62+'9'!AO62+'10'!AO62+'11'!AO62 -> 0 | AP62: ='1'!AP62+'2'!AP62+'3'!AP62+'4'!AP62+'5'!AP62+'6'!AP62+'7'!AP62+'8'!AP62+'9'!AP62+'10'!AP62+'11'!AP62 -> 0 | AQ62: ='1'!AQ62+'2'!AQ62+'3'!AQ62+'4'!AQ62+'5'!AQ62+'6'!AQ62+'7'!AQ62+'8'!AQ62+'9'!AQ62+'10'!AQ62+'11'!AQ62 -> 0 | AR62: ='1'!AR62+'2'!AR62+'3'!AR62+'4'!AR62+'5'!AR62+'6'!AR62+'7'!AR62+'8'!AR62+'9'!AR62+'10'!AR62+'11'!AR62 -> 0 | AS62: ='1'!AS62+'2'!AS62+'3'!AS62+'4'!AS62+'5'!AS62+'6'!AS62+'7'!AS62+'8'!AS62+'9'!AS62+'10'!AS62+'11'!AS62 -> 0 | AT62: ='1'!AT62+'2'!AT62+'3'!AT62+'4'!AT62+'5'!AT62+'6'!AT62+'7'!AT62+'8'!AT62+'9'!AT62+'10'!AT62+'11'!AT62 -> 0 | AU62: ='1'!AU62+'2'!AU62+'3'!AU62+'4'!AU62+'5'!AU62+'6'!AU62+'7'!AU62+'8'!AU62+'9'!AU62+'10'!AU62+'11'!AU62 -> 0 | AV62: 0 | AW62: ='1'!AW62+'2'!AW62+'3'!AW62+'4'!AW62+'5'!AW62+'6'!AW62+'7'!AW62+'8'!AW62+'9'!AW62+'10'!AW62+'11'!AW62 -> 0 | AX62: ='1'!AX62+'2'!AX62+'3'!AX62+'4'!AX62+'5'!AX62+'6'!AX62+'7'!AX62+'8'!AX62+'9'!AX62+'10'!AX62+'11'!AX62 -> 0 | AY62: ='1'!AY62+'2'!AY62+'3'!AY62+'4'!AY62+'5'!AY62+'6'!AY62+'7'!AY62+'8'!AY62+'9'!AY62+'10'!AY62+'11'!AY62 -> 0 | AZ62: 0
C63: 1 | H63: ='1'!H63 -> Laboratory services | I63: =SUM('1:11'!I63)+I186 -> 0 | J63: =SUM('1:11'!J63)+J186 -> 0 | K63: =SUM('1:11'!K63)+K186 -> 0 | L63: =SUM('1:11'!L63)+L186 -> 0 | M63: =SUM('1:11'!M63)+M186 -> 0 | N63: =SUM('1:11'!N63)+N186 -> 0 | O63: =SUM('1:11'!O63)+O186 -> 0 | P63: =SUM('1:11'!P63)+P186 -> 0 | Q63: =SUM('1:11'!Q63)+Q186 -> 0 | R63: =SUM('1:11'!R63)+R186 -> 0 | S63: =SUM('1:11'!S63)+S186 -> 0 | T63: =SUM('1:11'!T63)+T186 -> 0 | U63: =SUM($H63:OFFSET($H63,0,$I$2)) -> 0 | V63: 0 | W63: 0 | Y63: 0 | Z63: ='1'!Z63+'2'!Z63+'3'!Z63+'4'!Z63+'5'!Z63+'6'!Z63+'7'!Z63+'8'!Z63+'9'!Z63+'10'!Z63+'11'!Z63 -> 0 | AA63: ='1'!AA63+'2'!AA63+'3'!AA63+'4'!AA63+'5'!AA63+'6'!AA63+'7'!AA63+'8'!AA63+'9'!AA63+'10'!AA63+'11'!AA63 -> 0 | AB63: ='1'!AB63+'2'!AB63+'3'!AB63+'4'!AB63+'5'!AB63+'6'!AB63+'7'!AB63+'8'!AB63+'9'!AB63+'10'!AB63+'11'!AB63 -> 0 | AC63: ='1'!AC63+'2'!AC63+'3'!AC63+'4'!AC63+'5'!AC63+'6'!AC63+'7'!AC63+'8'!AC63+'9'!AC63+'10'!AC63+'11'!AC63 -> 0 | AD63: ='1'!AD63+'2'!AD63+'3'!AD63+'4'!AD63+'5'!AD63+'6'!AD63+'7'!AD63+'8'!AD63+'9'!AD63+'10'!AD63+'11'!AD63 -> 0 | AE63: ='1'!AE63+'2'!AE63+'3'!AE63+'4'!AE63+'5'!AE63+'6'!AE63+'7'!AE63+'8'!AE63+'9'!AE63+'10'!AE63+'11'!AE63 -> 0 | AF63: ='1'!AF63+'2'!AF63+'3'!AF63+'4'!AF63+'5'!AF63+'6'!AF63+'7'!AF63+'8'!AF63+'9'!AF63+'10'!AF63+'11'!AF63 -> 0 | AG63: 0 | AI63: 0 | AJ63: ='1'!AJ63+'2'!AJ63+'3'!AJ63+'4'!AJ63+'5'!AJ63+'6'!AJ63+'7'!AJ63+'8'!AJ63+'9'!AJ63+'10'!AJ63+'11'!AJ63 -> 0 | AK63: ='1'!AK63+'2'!AK63+'3'!AK63+'4'!AK63+'5'!AK63+'6'!AK63+'7'!AK63+'8'!AK63+'9'!AK63+'10'!AK63+'11'!AK63 -> 0 | AL63: ='1'!AL63+'2'!AL63+'3'!AL63+'4'!AL63+'5'!AL63+'6'!AL63+'7'!AL63+'8'!AL63+'9'!AL63+'10'!AL63+'11'!AL63 -> 0 | AM63: ='1'!AM63+'2'!AM63+'3'!AM63+'4'!AM63+'5'!AM63+'6'!AM63+'7'!AM63+'8'!AM63+'9'!AM63+'10'!AM63+'11'!AM63 -> 0 | AN63: ='1'!AN63+'2'!AN63+'3'!AN63+'4'!AN63+'5'!AN63+'6'!AN63+'7'!AN63+'8'!AN63+'9'!AN63+'10'!AN63+'11'!AN63 -> 0 | AO63: ='1'!AO63+'2'!AO63+'3'!AO63+'4'!AO63+'5'!AO63+'6'!AO63+'7'!AO63+'8'!AO63+'9'!AO63+'10'!AO63+'11'!AO63 -> 0 | AP63: ='1'!AP63+'2'!AP63+'3'!AP63+'4'!AP63+'5'!AP63+'6'!AP63+'7'!AP63+'8'!AP63+'9'!AP63+'10'!AP63+'11'!AP63 -> 0 | AQ63: ='1'!AQ63+'2'!AQ63+'3'!AQ63+'4'!AQ63+'5'!AQ63+'6'!AQ63+'7'!AQ63+'8'!AQ63+'9'!AQ63+'10'!AQ63+'11'!AQ63 -> 0 | AR63: ='1'!AR63+'2'!AR63+'3'!AR63+'4'!AR63+'5'!AR63+'6'!AR63+'7'!AR63+'8'!AR63+'9'!AR63+'10'!AR63+'11'!AR63 -> 0 | AS63: ='1'!AS63+'2'!AS63+'3'!AS63+'4'!AS63+'5'!AS63+'6'!AS63+'7'!AS63+'8'!AS63+'9'!AS63+'10'!AS63+'11'!AS63 -> 0 | AT63: ='1'!AT63+'2'!AT63+'3'!AT63+'4'!AT63+'5'!AT63+'6'!AT63+'7'!AT63+'8'!AT63+'9'!AT63+'10'!AT63+'11'!AT63 -> 0 | AU63: ='1'!AU63+'2'!AU63+'3'!AU63+'4'!AU63+'5'!AU63+'6'!AU63+'7'!AU63+'8'!AU63+'9'!AU63+'10'!AU63+'11'!AU63 -> 0 | AV63: 0 | AW63: ='1'!AW63+'2'!AW63+'3'!AW63+'4'!AW63+'5'!AW63+'6'!AW63+'7'!AW63+'8'!AW63+'9'!AW63+'10'!AW63+'11'!AW63 -> 0 | AX63: ='1'!AX63+'2'!AX63+'3'!AX63+'4'!AX63+'5'!AX63+'6'!AX63+'7'!AX63+'8'!AX63+'9'!AX63+'10'!AX63+'11'!AX63 -> 0 | AY63: ='1'!AY63+'2'!AY63+'3'!AY63+'4'!AY63+'5'!AY63+'6'!AY63+'7'!AY63+'8'!AY63+'9'!AY63+'10'!AY63+'11'!AY63 -> 0 | AZ63: 0
C64: 1 | H64: ='1'!H64 -> Legal services (G&S) | I64: =SUM('1:11'!I64)+I187 -> 110 | J64: =SUM('1:11'!J64)+J187 -> 120 | K64: =SUM('1:11'!K64)+K187 -> 100 | L64: =SUM('1:11'!L64)+L187 -> 140 | M64: =SUM('1:11'!M64)+M187 -> 100 | N64: =SUM('1:11'!N64)+N187 -> 130 | O64: =SUM('1:11'!O64)+O187 -> 4152 | P64: =SUM('1:11'!P64)+P187 -> 2100 | Q64: =SUM('1:11'!Q64)+Q187 -> 1390 | R64: =SUM('1:11'!R64)+R187 -> 2110 | S64: =SUM('1:11'!S64)+S187 -> 2110 | T64: =SUM('1:11'!T64)+T187 -> 2506 | U64: =SUM($H64:OFFSET($H64,0,$I$2)) -> 0 | V64: 15068 | W64: 5000 | Y64: 20068 | Z64: ='1'!Z64+'2'!Z64+'3'!Z64+'4'!Z64+'5'!Z64+'6'!Z64+'7'!Z64+'8'!Z64+'9'!Z64+'10'!Z64+'11'!Z64 -> 5000 | AA64: ='1'!AA64+'2'!AA64+'3'!AA64+'4'!AA64+'5'!AA64+'6'!AA64+'7'!AA64+'8'!AA64+'9'!AA64+'10'!AA64+'11'!AA64 -> 20068 | AB64: ='1'!AB64+'2'!AB64+'3'!AB64+'4'!AB64+'5'!AB64+'6'!AB64+'7'!AB64+'8'!AB64+'9'!AB64+'10'!AB64+'11'!AB64 -> 0 | AC64: ='1'!AC64+'2'!AC64+'3'!AC64+'4'!AC64+'5'!AC64+'6'!AC64+'7'!AC64+'8'!AC64+'9'!AC64+'10'!AC64+'11'!AC64 -> 0 | AD64: ='1'!AD64+'2'!AD64+'3'!AD64+'4'!AD64+'5'!AD64+'6'!AD64+'7'!AD64+'8'!AD64+'9'!AD64+'10'!AD64+'11'!AD64 -> 0 | AE64: ='1'!AE64+'2'!AE64+'3'!AE64+'4'!AE64+'5'!AE64+'6'!AE64+'7'!AE64+'8'!AE64+'9'!AE64+'10'!AE64+'11'!AE64 -> 0 | AF64: ='1'!AF64+'2'!AF64+'3'!AF64+'4'!AF64+'5'!AF64+'6'!AF64+'7'!AF64+'8'!AF64+'9'!AF64+'10'!AF64+'11'!AF64 -> 0 | AG64: 0 | AI64: 0 | AJ64: ='1'!AJ64+'2'!AJ64+'3'!AJ64+'4'!AJ64+'5'!AJ64+'6'!AJ64+'7'!AJ64+'8'!AJ64+'9'!AJ64+'10'!AJ64+'11'!AJ64 -> 0 | AK64: ='1'!AK64+'2'!AK64+'3'!AK64+'4'!AK64+'5'!AK64+'6'!AK64+'7'!AK64+'8'!AK64+'9'!AK64+'10'!AK64+'11'!AK64 -> 0 | AL64: ='1'!AL64+'2'!AL64+'3'!AL64+'4'!AL64+'5'!AL64+'6'!AL64+'7'!AL64+'8'!AL64+'9'!AL64+'10'!AL64+'11'!AL64 -> 0 | AM64: ='1'!AM64+'2'!AM64+'3'!AM64+'4'!AM64+'5'!AM64+'6'!AM64+'7'!AM64+'8'!AM64+'9'!AM64+'10'!AM64+'11'!AM64 -> 0 | AN64: ='1'!AN64+'2'!AN64+'3'!AN64+'4'!AN64+'5'!AN64+'6'!AN64+'7'!AN64+'8'!AN64+'9'!AN64+'10'!AN64+'11'!AN64 -> 0 | AO64: ='1'!AO64+'2'!AO64+'3'!AO64+'4'!AO64+'5'!AO64+'6'!AO64+'7'!AO64+'8'!AO64+'9'!AO64+'10'!AO64+'11'!AO64 -> 0 | AP64: ='1'!AP64+'2'!AP64+'3'!AP64+'4'!AP64+'5'!AP64+'6'!AP64+'7'!AP64+'8'!AP64+'9'!AP64+'10'!AP64+'11'!AP64 -> 0 | AQ64: ='1'!AQ64+'2'!AQ64+'3'!AQ64+'4'!AQ64+'5'!AQ64+'6'!AQ64+'7'!AQ64+'8'!AQ64+'9'!AQ64+'10'!AQ64+'11'!AQ64 -> 0 | AR64: ='1'!AR64+'2'!AR64+'3'!AR64+'4'!AR64+'5'!AR64+'6'!AR64+'7'!AR64+'8'!AR64+'9'!AR64+'10'!AR64+'11'!AR64 -> 0 | AS64: ='1'!AS64+'2'!AS64+'3'!AS64+'4'!AS64+'5'!AS64+'6'!AS64+'7'!AS64+'8'!AS64+'9'!AS64+'10'!AS64+'11'!AS64 -> 0 | AT64: ='1'!AT64+'2'!AT64+'3'!AT64+'4'!AT64+'5'!AT64+'6'!AT64+'7'!AT64+'8'!AT64+'9'!AT64+'10'!AT64+'11'!AT64 -> 0 | AU64: ='1'!AU64+'2'!AU64+'3'!AU64+'4'!AU64+'5'!AU64+'6'!AU64+'7'!AU64+'8'!AU64+'9'!AU64+'10'!AU64+'11'!AU64 -> 0 | AV64: 0 | AW64: ='1'!AW64+'2'!AW64+'3'!AW64+'4'!AW64+'5'!AW64+'6'!AW64+'7'!AW64+'8'!AW64+'9'!AW64+'10'!AW64+'11'!AW64 -> 0 | AX64: ='1'!AX64+'2'!AX64+'3'!AX64+'4'!AX64+'5'!AX64+'6'!AX64+'7'!AX64+'8'!AX64+'9'!AX64+'10'!AX64+'11'!AX64 -> 0 | AY64: ='1'!AY64+'2'!AY64+'3'!AY64+'4'!AY64+'5'!AY64+'6'!AY64+'7'!AY64+'8'!AY64+'9'!AY64+'10'!AY64+'11'!AY64 -> 0 | AZ64: 0
C65: 1 | H65: ='1'!H65 -> Science and technological services | I65: =SUM('1:11'!I65)+I188 -> 0 | J65: =SUM('1:11'!J65)+J188 -> 0 | K65: =SUM('1:11'!K65)+K188 -> 0 | L65: =SUM('1:11'!L65)+L188 -> 0 | M65: =SUM('1:11'!M65)+M188 -> 0 | N65: =SUM('1:11'!N65)+N188 -> 0 | O65: =SUM('1:11'!O65)+O188 -> 0 | P65: =SUM('1:11'!P65)+P188 -> 0 | Q65: =SUM('1:11'!Q65)+Q188 -> 0 | R65: =SUM('1:11'!R65)+R188 -> 0 | S65: =SUM('1:11'!S65)+S188 -> 0 | T65: =SUM('1:11'!T65)+T188 -> 0 | U65: =SUM($H65:OFFSET($H65,0,$I$2)) -> 0 | V65: 0 | W65: 0 | Y65: 0 | Z65: ='1'!Z65+'2'!Z65+'3'!Z65+'4'!Z65+'5'!Z65+'6'!Z65+'7'!Z65+'8'!Z65+'9'!Z65+'10'!Z65+'11'!Z65 -> 0 | AA65: ='1'!AA65+'2'!AA65+'3'!AA65+'4'!AA65+'5'!AA65+'6'!AA65+'7'!AA65+'8'!AA65+'9'!AA65+'10'!AA65+'11'!AA65 -> 0 | AB65: ='1'!AB65+'2'!AB65+'3'!AB65+'4'!AB65+'5'!AB65+'6'!AB65+'7'!AB65+'8'!AB65+'9'!AB65+'10'!AB65+'11'!AB65 -> 0 | AC65: ='1'!AC65+'2'!AC65+'3'!AC65+'4'!AC65+'5'!AC65+'6'!AC65+'7'!AC65+'8'!AC65+'9'!AC65+'10'!AC65+'11'!AC65 -> 0 | AD65: ='1'!AD65+'2'!AD65+'3'!AD65+'4'!AD65+'5'!AD65+'6'!AD65+'7'!AD65+'8'!AD65+'9'!AD65+'10'!AD65+'11'!AD65 -> 0 | AE65: ='1'!AE65+'2'!AE65+'3'!AE65+'4'!AE65+'5'!AE65+'6'!AE65+'7'!AE65+'8'!AE65+'9'!AE65+'10'!AE65+'11'!AE65 -> 0 | AF65: ='1'!AF65+'2'!AF65+'3'!AF65+'4'!AF65+'5'!AF65+'6'!AF65+'7'!AF65+'8'!AF65+'9'!AF65+'10'!AF65+'11'!AF65 -> 0 | AG65: 0 | AI65: 0 | AJ65: ='1'!AJ65+'2'!AJ65+'3'!AJ65+'4'!AJ65+'5'!AJ65+'6'!AJ65+'7'!AJ65+'8'!AJ65+'9'!AJ65+'10'!AJ65+'11'!AJ65 -> 0 | AK65: ='1'!AK65+'2'!AK65+'3'!AK65+'4'!AK65+'5'!AK65+'6'!AK65+'7'!AK65+'8'!AK65+'9'!AK65+'10'!AK65+'11'!AK65 -> 0 | AL65: ='1'!AL65+'2'!AL65+'3'!AL65+'4'!AL65+'5'!AL65+'6'!AL65+'7'!AL65+'8'!AL65+'9'!AL65+'10'!AL65+'11'!AL65 -> 0 | AM65: ='1'!AM65+'2'!AM65+'3'!AM65+'4'!AM65+'5'!AM65+'6'!AM65+'7'!AM65+'8'!AM65+'9'!AM65+'10'!AM65+'11'!AM65 -> 0 | AN65: ='1'!AN65+'2'!AN65+'3'!AN65+'4'!AN65+'5'!AN65+'6'!AN65+'7'!AN65+'8'!AN65+'9'!AN65+'10'!AN65+'11'!AN65 -> 0 | AO65: ='1'!AO65+'2'!AO65+'3'!AO65+'4'!AO65+'5'!AO65+'6'!AO65+'7'!AO65+'8'!AO65+'9'!AO65+'10'!AO65+'11'!AO65 -> 0 | AP65: ='1'!AP65+'2'!AP65+'3'!AP65+'4'!AP65+'5'!AP65+'6'!AP65+'7'!AP65+'8'!AP65+'9'!AP65+'10'!AP65+'11'!AP65 -> 0 | AQ65: ='1'!AQ65+'2'!AQ65+'3'!AQ65+'4'!AQ65+'5'!AQ65+'6'!AQ65+'7'!AQ65+'8'!AQ65+'9'!AQ65+'10'!AQ65+'11'!AQ65 -> 0 | AR65: ='1'!AR65+'2'!AR65+'3'!AR65+'4'!AR65+'5'!AR65+'6'!AR65+'7'!AR65+'8'!AR65+'9'!AR65+'10'!AR65+'11'!AR65 -> 0 | AS65: ='1'!AS65+'2'!AS65+'3'!AS65+'4'!AS65+'5'!AS65+'6'!AS65+'7'!AS65+'8'!AS65+'9'!AS65+'10'!AS65+'11'!AS65 -> 0 | AT65: ='1'!AT65+'2'!AT65+'3'!AT65+'4'!AT65+'5'!AT65+'6'!AT65+'7'!AT65+'8'!AT65+'9'!AT65+'10'!AT65+'11'!AT65 -> 0 | AU65: ='1'!AU65+'2'!AU65+'3'!AU65+'4'!AU65+'5'!AU65+'6'!AU65+'7'!AU65+'8'!AU65+'9'!AU65+'10'!AU65+'11'!AU65 -> 0 | AV65: 0 | AW65: ='1'!AW65+'2'!AW65+'3'!AW65+'4'!AW65+'5'!AW65+'6'!AW65+'7'!AW65+'8'!AW65+'9'!AW65+'10'!AW65+'11'!AW65 -> 0 | AX65: ='1'!AX65+'2'!AX65+'3'!AX65+'4'!AX65+'5'!AX65+'6'!AX65+'7'!AX65+'8'!AX65+'9'!AX65+'10'!AX65+'11'!AX65 -> 0 | AY65: ='1'!AY65+'2'!AY65+'3'!AY65+'4'!AY65+'5'!AY65+'6'!AY65+'7'!AY65+'8'!AY65+'9'!AY65+'10'!AY65+'11'!AY65 -> 0 | AZ65: 0
C66: 1 | H66: ='1'!H66 -> Contractors | I66: =SUM('1:11'!I66)+I189 -> 1218 | J66: =SUM('1:11'!J66)+J189 -> 1212 | K66: =SUM('1:11'!K66)+K189 -> 1206 | L66: =SUM('1:11'!L66)+L189 -> 1031 | M66: =SUM('1:11'!M66)+M189 -> 1107 | N66: =SUM('1:11'!N66)+N189 -> 1043 | O66: =SUM('1:11'!O66)+O189 -> 1029 | P66: =SUM('1:11'!P66)+P189 -> 992 | Q66: =SUM('1:11'!Q66)+Q189 -> 948 | R66: =SUM('1:11'!R66)+R189 -> 1160 | S66: =SUM('1:11'!S66)+S189 -> 892 | T66: =SUM('1:11'!T66)+T189 -> 461 | U66: =SUM($H66:OFFSET($H66,0,$I$2)) -> 0 | V66: 12299 | W66: 165 | Y66: 12464 | Z66: ='1'!Z66+'2'!Z66+'3'!Z66+'4'!Z66+'5'!Z66+'6'!Z66+'7'!Z66+'8'!Z66+'9'!Z66+'10'!Z66+'11'!Z66 -> 88 | AA66: ='1'!AA66+'2'!AA66+'3'!AA66+'4'!AA66+'5'!AA66+'6'!AA66+'7'!AA66+'8'!AA66+'9'!AA66+'10'!AA66+'11'!AA66 -> 12387 | AB66: ='1'!AB66+'2'!AB66+'3'!AB66+'4'!AB66+'5'!AB66+'6'!AB66+'7'!AB66+'8'!AB66+'9'!AB66+'10'!AB66+'11'!AB66 -> 77 | AC66: ='1'!AC66+'2'!AC66+'3'!AC66+'4'!AC66+'5'!AC66+'6'!AC66+'7'!AC66+'8'!AC66+'9'!AC66+'10'!AC66+'11'!AC66 -> 77 | AD66: ='1'!AD66+'2'!AD66+'3'!AD66+'4'!AD66+'5'!AD66+'6'!AD66+'7'!AD66+'8'!AD66+'9'!AD66+'10'!AD66+'11'!AD66 -> 0 | AE66: ='1'!AE66+'2'!AE66+'3'!AE66+'4'!AE66+'5'!AE66+'6'!AE66+'7'!AE66+'8'!AE66+'9'!AE66+'10'!AE66+'11'!AE66 -> 0 | AF66: ='1'!AF66+'2'!AF66+'3'!AF66+'4'!AF66+'5'!AF66+'6'!AF66+'7'!AF66+'8'!AF66+'9'!AF66+'10'!AF66+'11'!AF66 -> 0 | AG66: 0 | AI66: 0 | AJ66: ='1'!AJ66+'2'!AJ66+'3'!AJ66+'4'!AJ66+'5'!AJ66+'6'!AJ66+'7'!AJ66+'8'!AJ66+'9'!AJ66+'10'!AJ66+'11'!AJ66 -> 0 | AK66: ='1'!AK66+'2'!AK66+'3'!AK66+'4'!AK66+'5'!AK66+'6'!AK66+'7'!AK66+'8'!AK66+'9'!AK66+'10'!AK66+'11'!AK66 -> 0 | AL66: ='1'!AL66+'2'!AL66+'3'!AL66+'4'!AL66+'5'!AL66+'6'!AL66+'7'!AL66+'8'!AL66+'9'!AL66+'10'!AL66+'11'!AL66 -> 0 | AM66: ='1'!AM66+'2'!AM66+'3'!AM66+'4'!AM66+'5'!AM66+'6'!AM66+'7'!AM66+'8'!AM66+'9'!AM66+'10'!AM66+'11'!AM66 -> 0 | AN66: ='1'!AN66+'2'!AN66+'3'!AN66+'4'!AN66+'5'!AN66+'6'!AN66+'7'!AN66+'8'!AN66+'9'!AN66+'10'!AN66+'11'!AN66 -> 0 | AO66: ='1'!AO66+'2'!AO66+'3'!AO66+'4'!AO66+'5'!AO66+'6'!AO66+'7'!AO66+'8'!AO66+'9'!AO66+'10'!AO66+'11'!AO66 -> 0 | AP66: ='1'!AP66+'2'!AP66+'3'!AP66+'4'!AP66+'5'!AP66+'6'!AP66+'7'!AP66+'8'!AP66+'9'!AP66+'10'!AP66+'11'!AP66 -> 0 | AQ66: ='1'!AQ66+'2'!AQ66+'3'!AQ66+'4'!AQ66+'5'!AQ66+'6'!AQ66+'7'!AQ66+'8'!AQ66+'9'!AQ66+'10'!AQ66+'11'!AQ66 -> 0 | AR66: ='1'!AR66+'2'!AR66+'3'!AR66+'4'!AR66+'5'!AR66+'6'!AR66+'7'!AR66+'8'!AR66+'9'!AR66+'10'!AR66+'11'!AR66 -> 0 | AS66: ='1'!AS66+'2'!AS66+'3'!AS66+'4'!AS66+'5'!AS66+'6'!AS66+'7'!AS66+'8'!AS66+'9'!AS66+'10'!AS66+'11'!AS66 -> 0 | AT66: ='1'!AT66+'2'!AT66+'3'!AT66+'4'!AT66+'5'!AT66+'6'!AT66+'7'!AT66+'8'!AT66+'9'!AT66+'10'!AT66+'11'!AT66 -> 0 | AU66: ='1'!AU66+'2'!AU66+'3'!AU66+'4'!AU66+'5'!AU66+'6'!AU66+'7'!AU66+'8'!AU66+'9'!AU66+'10'!AU66+'11'!AU66 -> 0 | AV66: 0 | AW66: ='1'!AW66+'2'!AW66+'3'!AW66+'4'!AW66+'5'!AW66+'6'!AW66+'7'!AW66+'8'!AW66+'9'!AW66+'10'!AW66+'11'!AW66 -> 0 | AX66: ='1'!AX66+'2'!AX66+'3'!AX66+'4'!AX66+'5'!AX66+'6'!AX66+'7'!AX66+'8'!AX66+'9'!AX66+'10'!AX66+'11'!AX66 -> 0 | AY66: ='1'!AY66+'2'!AY66+'3'!AY66+'4'!AY66+'5'!AY66+'6'!AY66+'7'!AY66+'8'!AY66+'9'!AY66+'10'!AY66+'11'!AY66 -> 0 | AZ66: 0
C67: 1 | H67: ='1'!H67 -> Agency and support/outsourced services | I67: =SUM('1:11'!I67)+I190 -> 549 | J67: =SUM('1:11'!J67)+J190 -> 548 | K67: =SUM('1:11'!K67)+K190 -> 548 | L67: =SUM('1:11'!L67)+L190 -> 549 | M67: =SUM('1:11'!M67)+M190 -> 548 | N67: =SUM('1:11'!N67)+N190 -> 548 | O67: =SUM('1:11'!O67)+O190 -> 549 | P67: =SUM('1:11'!P67)+P190 -> 548 | Q67: =SUM('1:11'!Q67)+Q190 -> 548 | R67: =SUM('1:11'!R67)+R190 -> 661 | S67: =SUM('1:11'!S67)+S190 -> 672 | T67: =SUM('1:11'!T67)+T190 -> 662 | U67: =SUM($H67:OFFSET($H67,0,$I$2)) -> 0 | V67: 6930 | W67: 98 | Y67: 7028 | Z67: ='1'!Z67+'2'!Z67+'3'!Z67+'4'!Z67+'5'!Z67+'6'!Z67+'7'!Z67+'8'!Z67+'9'!Z67+'10'!Z67+'11'!Z67 -> 60 | AA67: ='1'!AA67+'2'!AA67+'3'!AA67+'4'!AA67+'5'!AA67+'6'!AA67+'7'!AA67+'8'!AA67+'9'!AA67+'10'!AA67+'11'!AA67 -> 6990 | AB67: ='1'!AB67+'2'!AB67+'3'!AB67+'4'!AB67+'5'!AB67+'6'!AB67+'7'!AB67+'8'!AB67+'9'!AB67+'10'!AB67+'11'!AB67 -> 38 | AC67: ='1'!AC67+'2'!AC67+'3'!AC67+'4'!AC67+'5'!AC67+'6'!AC67+'7'!AC67+'8'!AC67+'9'!AC67+'10'!AC67+'11'!AC67 -> 38 | AD67: ='1'!AD67+'2'!AD67+'3'!AD67+'4'!AD67+'5'!AD67+'6'!AD67+'7'!AD67+'8'!AD67+'9'!AD67+'10'!AD67+'11'!AD67 -> 0 | AE67: ='1'!AE67+'2'!AE67+'3'!AE67+'4'!AE67+'5'!AE67+'6'!AE67+'7'!AE67+'8'!AE67+'9'!AE67+'10'!AE67+'11'!AE67 -> 0 | AF67: ='1'!AF67+'2'!AF67+'3'!AF67+'4'!AF67+'5'!AF67+'6'!AF67+'7'!AF67+'8'!AF67+'9'!AF67+'10'!AF67+'11'!AF67 -> 0 | AG67: 0 | AI67: 0 | AJ67: ='1'!AJ67+'2'!AJ67+'3'!AJ67+'4'!AJ67+'5'!AJ67+'6'!AJ67+'7'!AJ67+'8'!AJ67+'9'!AJ67+'10'!AJ67+'11'!AJ67 -> 0 | AK67: ='1'!AK67+'2'!AK67+'3'!AK67+'4'!AK67+'5'!AK67+'6'!AK67+'7'!AK67+'8'!AK67+'9'!AK67+'10'!AK67+'11'!AK67 -> 0 | AL67: ='1'!AL67+'2'!AL67+'3'!AL67+'4'!AL67+'5'!AL67+'6'!AL67+'7'!AL67+'8'!AL67+'9'!AL67+'10'!AL67+'11'!AL67 -> 0 | AM67: ='1'!AM67+'2'!AM67+'3'!AM67+'4'!AM67+'5'!AM67+'6'!AM67+'7'!AM67+'8'!AM67+'9'!AM67+'10'!AM67+'11'!AM67 -> 0 | AN67: ='1'!AN67+'2'!AN67+'3'!AN67+'4'!AN67+'5'!AN67+'6'!AN67+'7'!AN67+'8'!AN67+'9'!AN67+'10'!AN67+'11'!AN67 -> 0 | AO67: ='1'!AO67+'2'!AO67+'3'!AO67+'4'!AO67+'5'!AO67+'6'!AO67+'7'!AO67+'8'!AO67+'9'!AO67+'10'!AO67+'11'!AO67 -> 0 | AP67: ='1'!AP67+'2'!AP67+'3'!AP67+'4'!AP67+'5'!AP67+'6'!AP67+'7'!AP67+'8'!AP67+'9'!AP67+'10'!AP67+'11'!AP67 -> 0 | AQ67: ='1'!AQ67+'2'!AQ67+'3'!AQ67+'4'!AQ67+'5'!AQ67+'6'!AQ67+'7'!AQ67+'8'!AQ67+'9'!AQ67+'10'!AQ67+'11'!AQ67 -> 0 | AR67: ='1'!AR67+'2'!AR67+'3'!AR67+'4'!AR67+'5'!AR67+'6'!AR67+'7'!AR67+'8'!AR67+'9'!AR67+'10'!AR67+'11'!AR67 -> 0 | AS67: ='1'!AS67+'2'!AS67+'3'!AS67+'4'!AS67+'5'!AS67+'6'!AS67+'7'!AS67+'8'!AS67+'9'!AS67+'10'!AS67+'11'!AS67 -> 0 | AT67: ='1'!AT67+'2'!AT67+'3'!AT67+'4'!AT67+'5'!AT67+'6'!AT67+'7'!AT67+'8'!AT67+'9'!AT67+'10'!AT67+'11'!AT67 -> 0 | AU67: ='1'!AU67+'2'!AU67+'3'!AU67+'4'!AU67+'5'!AU67+'6'!AU67+'7'!AU67+'8'!AU67+'9'!AU67+'10'!AU67+'11'!AU67 -> 0 | AV67: 0 | AW67: ='1'!AW67+'2'!AW67+'3'!AW67+'4'!AW67+'5'!AW67+'6'!AW67+'7'!AW67+'8'!AW67+'9'!AW67+'10'!AW67+'11'!AW67 -> 0 | AX67: ='1'!AX67+'2'!AX67+'3'!AX67+'4'!AX67+'5'!AX67+'6'!AX67+'7'!AX67+'8'!AX67+'9'!AX67+'10'!AX67+'11'!AX67 -> 0 | AY67: ='1'!AY67+'2'!AY67+'3'!AY67+'4'!AY67+'5'!AY67+'6'!AY67+'7'!AY67+'8'!AY67+'9'!AY67+'10'!AY67+'11'!AY67 -> 0 | AZ67: 0
C68: 1 | H68: ='1'!H68 -> Entertainment | I68: =SUM('1:11'!I68)+I191 -> 34 | J68: =SUM('1:11'!J68)+J191 -> 2 | K68: =SUM('1:11'!K68)+K191 -> 0 | L68: =SUM('1:11'!L68)+L191 -> 7 | M68: =SUM('1:11'!M68)+M191 -> 0 | N68: =SUM('1:11'!N68)+N191 -> 0 | O68: =SUM('1:11'!O68)+O191 -> 11 | P68: =SUM('1:11'!P68)+P191 -> 4 | Q68: =SUM('1:11'!Q68)+Q191 -> 6 | R68: =SUM('1:11'!R68)+R191 -> 31 | S68: =SUM('1:11'!S68)+S191 -> 0 | T68: =SUM('1:11'!T68)+T191 -> 74 | U68: =SUM($H68:OFFSET($H68,0,$I$2)) -> 0 | V68: 169 | W68: 366 | Y68: 535 | Z68: ='1'!Z68+'2'!Z68+'3'!Z68+'4'!Z68+'5'!Z68+'6'!Z68+'7'!Z68+'8'!Z68+'9'!Z68+'10'!Z68+'11'!Z68 -> 369 | AA68: ='1'!AA68+'2'!AA68+'3'!AA68+'4'!AA68+'5'!AA68+'6'!AA68+'7'!AA68+'8'!AA68+'9'!AA68+'10'!AA68+'11'!AA68 -> 538 | AB68: ='1'!AB68+'2'!AB68+'3'!AB68+'4'!AB68+'5'!AB68+'6'!AB68+'7'!AB68+'8'!AB68+'9'!AB68+'10'!AB68+'11'!AB68 -> -3 | AC68: ='1'!AC68+'2'!AC68+'3'!AC68+'4'!AC68+'5'!AC68+'6'!AC68+'7'!AC68+'8'!AC68+'9'!AC68+'10'!AC68+'11'!AC68 -> -3 | AD68: ='1'!AD68+'2'!AD68+'3'!AD68+'4'!AD68+'5'!AD68+'6'!AD68+'7'!AD68+'8'!AD68+'9'!AD68+'10'!AD68+'11'!AD68 -> 0 | AE68: ='1'!AE68+'2'!AE68+'3'!AE68+'4'!AE68+'5'!AE68+'6'!AE68+'7'!AE68+'8'!AE68+'9'!AE68+'10'!AE68+'11'!AE68 -> 0 | AF68: ='1'!AF68+'2'!AF68+'3'!AF68+'4'!AF68+'5'!AF68+'6'!AF68+'7'!AF68+'8'!AF68+'9'!AF68+'10'!AF68+'11'!AF68 -> 0 | AG68: 0 | AI68: 0 | AJ68: ='1'!AJ68+'2'!AJ68+'3'!AJ68+'4'!AJ68+'5'!AJ68+'6'!AJ68+'7'!AJ68+'8'!AJ68+'9'!AJ68+'10'!AJ68+'11'!AJ68 -> 0 | AK68: ='1'!AK68+'2'!AK68+'3'!AK68+'4'!AK68+'5'!AK68+'6'!AK68+'7'!AK68+'8'!AK68+'9'!AK68+'10'!AK68+'11'!AK68 -> 0 | AL68: ='1'!AL68+'2'!AL68+'3'!AL68+'4'!AL68+'5'!AL68+'6'!AL68+'7'!AL68+'8'!AL68+'9'!AL68+'10'!AL68+'11'!AL68 -> 0 | AM68: ='1'!AM68+'2'!AM68+'3'!AM68+'4'!AM68+'5'!AM68+'6'!AM68+'7'!AM68+'8'!AM68+'9'!AM68+'10'!AM68+'11'!AM68 -> 0 | AN68: ='1'!AN68+'2'!AN68+'3'!AN68+'4'!AN68+'5'!AN68+'6'!AN68+'7'!AN68+'8'!AN68+'9'!AN68+'10'!AN68+'11'!AN68 -> 0 | AO68: ='1'!AO68+'2'!AO68+'3'!AO68+'4'!AO68+'5'!AO68+'6'!AO68+'7'!AO68+'8'!AO68+'9'!AO68+'10'!AO68+'11'!AO68 -> 0 | AP68: ='1'!AP68+'2'!AP68+'3'!AP68+'4'!AP68+'5'!AP68+'6'!AP68+'7'!AP68+'8'!AP68+'9'!AP68+'10'!AP68+'11'!AP68 -> 0 | AQ68: ='1'!AQ68+'2'!AQ68+'3'!AQ68+'4'!AQ68+'5'!AQ68+'6'!AQ68+'7'!AQ68+'8'!AQ68+'9'!AQ68+'10'!AQ68+'11'!AQ68 -> 0 | AR68: ='1'!AR68+'2'!AR68+'3'!AR68+'4'!AR68+'5'!AR68+'6'!AR68+'7'!AR68+'8'!AR68+'9'!AR68+'10'!AR68+'11'!AR68 -> 0 | AS68: ='1'!AS68+'2'!AS68+'3'!AS68+'4'!AS68+'5'!AS68+'6'!AS68+'7'!AS68+'8'!AS68+'9'!AS68+'10'!AS68+'11'!AS68 -> 0 | AT68: ='1'!AT68+'2'!AT68+'3'!AT68+'4'!AT68+'5'!AT68+'6'!AT68+'7'!AT68+'8'!AT68+'9'!AT68+'10'!AT68+'11'!AT68 -> 0 | AU68: ='1'!AU68+'2'!AU68+'3'!AU68+'4'!AU68+'5'!AU68+'6'!AU68+'7'!AU68+'8'!AU68+'9'!AU68+'10'!AU68+'11'!AU68 -> 0 | AV68: 0 | AW68: ='1'!AW68+'2'!AW68+'3'!AW68+'4'!AW68+'5'!AW68+'6'!AW68+'7'!AW68+'8'!AW68+'9'!AW68+'10'!AW68+'11'!AW68 -> 0 | AX68: ='1'!AX68+'2'!AX68+'3'!AX68+'4'!AX68+'5'!AX68+'6'!AX68+'7'!AX68+'8'!AX68+'9'!AX68+'10'!AX68+'11'!AX68 -> 0 | AY68: ='1'!AY68+'2'!AY68+'3'!AY68+'4'!AY68+'5'!AY68+'6'!AY68+'7'!AY68+'8'!AY68+'9'!AY68+'10'!AY68+'11'!AY68 -> 0 | AZ68: 0
C69: 1 | H69: ='1'!H69 -> Fleet services (including government motor transport) | I69: =SUM('1:11'!I69)+I192 -> 298 | J69: =SUM('1:11'!J69)+J192 -> 282 | K69: =SUM('1:11'!K69)+K192 -> 202 | L69: =SUM('1:11'!L69)+L192 -> 226 | M69: =SUM('1:11'!M69)+M192 -> 273 | N69: =SUM('1:11'!N69)+N192 -> 177 | O69: =SUM('1:11'!O69)+O192 -> 200 | P69: =SUM('1:11'!P69)+P192 -> 222 | Q69: =SUM('1:11'!Q69)+Q192 -> 203 | R69: =SUM('1:11'!R69)+R192 -> 306 | S69: =SUM('1:11'!S69)+S192 -> 268 | T69: =SUM('1:11'!T69)+T192 -> 198 | U69: =SUM($H69:OFFSET($H69,0,$I$2)) -> 0 | V69: 2855 | W69: 39 | Y69: 2894 | Z69: ='1'!Z69+'2'!Z69+'3'!Z69+'4'!Z69+'5'!Z69+'6'!Z69+'7'!Z69+'8'!Z69+'9'!Z69+'10'!Z69+'11'!Z69 -> 57 | AA69: ='1'!AA69+'2'!AA69+'3'!AA69+'4'!AA69+'5'!AA69+'6'!AA69+'7'!AA69+'8'!AA69+'9'!AA69+'10'!AA69+'11'!AA69 -> 2912 | AB69: ='1'!AB69+'2'!AB69+'3'!AB69+'4'!AB69+'5'!AB69+'6'!AB69+'7'!AB69+'8'!AB69+'9'!AB69+'10'!AB69+'11'!AB69 -> -18 | AC69: ='1'!AC69+'2'!AC69+'3'!AC69+'4'!AC69+'5'!AC69+'6'!AC69+'7'!AC69+'8'!AC69+'9'!AC69+'10'!AC69+'11'!AC69 -> -18 | AD69: ='1'!AD69+'2'!AD69+'3'!AD69+'4'!AD69+'5'!AD69+'6'!AD69+'7'!AD69+'8'!AD69+'9'!AD69+'10'!AD69+'11'!AD69 -> 0 | AE69: ='1'!AE69+'2'!AE69+'3'!AE69+'4'!AE69+'5'!AE69+'6'!AE69+'7'!AE69+'8'!AE69+'9'!AE69+'10'!AE69+'11'!AE69 -> 0 | AF69: ='1'!AF69+'2'!AF69+'3'!AF69+'4'!AF69+'5'!AF69+'6'!AF69+'7'!AF69+'8'!AF69+'9'!AF69+'10'!AF69+'11'!AF69 -> 0 | AG69: 0 | AI69: 0 | AJ69: ='1'!AJ69+'2'!AJ69+'3'!AJ69+'4'!AJ69+'5'!AJ69+'6'!AJ69+'7'!AJ69+'8'!AJ69+'9'!AJ69+'10'!AJ69+'11'!AJ69 -> 0 | AK69: ='1'!AK69+'2'!AK69+'3'!AK69+'4'!AK69+'5'!AK69+'6'!AK69+'7'!AK69+'8'!AK69+'9'!AK69+'10'!AK69+'11'!AK69 -> 0 | AL69: ='1'!AL69+'2'!AL69+'3'!AL69+'4'!AL69+'5'!AL69+'6'!AL69+'7'!AL69+'8'!AL69+'9'!AL69+'10'!AL69+'11'!AL69 -> 0 | AM69: ='1'!AM69+'2'!AM69+'3'!AM69+'4'!AM69+'5'!AM69+'6'!AM69+'7'!AM69+'8'!AM69+'9'!AM69+'10'!AM69+'11'!AM69 -> 0 | AN69: ='1'!AN69+'2'!AN69+'3'!AN69+'4'!AN69+'5'!AN69+'6'!AN69+'7'!AN69+'8'!AN69+'9'!AN69+'10'!AN69+'11'!AN69 -> 0 | AO69: ='1'!AO69+'2'!AO69+'3'!AO69+'4'!AO69+'5'!AO69+'6'!AO69+'7'!AO69+'8'!AO69+'9'!AO69+'10'!AO69+'11'!AO69 -> 0 | AP69: ='1'!AP69+'2'!AP69+'3'!AP69+'4'!AP69+'5'!AP69+'6'!AP69+'7'!AP69+'8'!AP69+'9'!AP69+'10'!AP69+'11'!AP69 -> 0 | AQ69: ='1'!AQ69+'2'!AQ69+'3'!AQ69+'4'!AQ69+'5'!AQ69+'6'!AQ69+'7'!AQ69+'8'!AQ69+'9'!AQ69+'10'!AQ69+'11'!AQ69 -> 0 | AR69: ='1'!AR69+'2'!AR69+'3'!AR69+'4'!AR69+'5'!AR69+'6'!AR69+'7'!AR69+'8'!AR69+'9'!AR69+'10'!AR69+'11'!AR69 -> 0 | AS69: ='1'!AS69+'2'!AS69+'3'!AS69+'4'!AS69+'5'!AS69+'6'!AS69+'7'!AS69+'8'!AS69+'9'!AS69+'10'!AS69+'11'!AS69 -> 0 | AT69: ='1'!AT69+'2'!AT69+'3'!AT69+'4'!AT69+'5'!AT69+'6'!AT69+'7'!AT69+'8'!AT69+'9'!AT69+'10'!AT69+'11'!AT69 -> 0 | AU69: ='1'!AU69+'2'!AU69+'3'!AU69+'4'!AU69+'5'!AU69+'6'!AU69+'7'!AU69+'8'!AU69+'9'!AU69+'10'!AU69+'11'!AU69 -> 0 | AV69: 0 | AW69: ='1'!AW69+'2'!AW69+'3'!AW69+'4'!AW69+'5'!AW69+'6'!AW69+'7'!AW69+'8'!AW69+'9'!AW69+'10'!AW69+'11'!AW69 -> 0 | AX69: ='1'!AX69+'2'!AX69+'3'!AX69+'4'!AX69+'5'!AX69+'6'!AX69+'7'!AX69+'8'!AX69+'9'!AX69+'10'!AX69+'11'!AX69 -> 0 | AY69: ='1'!AY69+'2'!AY69+'3'!AY69+'4'!AY69+'5'!AY69+'6'!AY69+'7'!AY69+'8'!AY69+'9'!AY69+'10'!AY69+'11'!AY69 -> 0 | AZ69: 0
C70: 1 | H70: ='1'!H70 -> Housing | I70: =SUM('1:11'!I70)+I193 -> 0 | J70: =SUM('1:11'!J70)+J193 -> 0 | K70: =SUM('1:11'!K70)+K193 -> 0 | L70: =SUM('1:11'!L70)+L193 -> 0 | M70: =SUM('1:11'!M70)+M193 -> 0 | N70: =SUM('1:11'!N70)+N193 -> 0 | O70: =SUM('1:11'!O70)+O193 -> 0 | P70: =SUM('1:11'!P70)+P193 -> 0 | Q70: =SUM('1:11'!Q70)+Q193 -> 0 | R70: =SUM('1:11'!R70)+R193 -> 0 | S70: =SUM('1:11'!S70)+S193 -> 0 | T70: =SUM('1:11'!T70)+T193 -> 0 | U70: =SUM($H70:OFFSET($H70,0,$I$2)) -> 0 | V70: 0 | W70: 0 | Y70: 0 | Z70: ='1'!Z70+'2'!Z70+'3'!Z70+'4'!Z70+'5'!Z70+'6'!Z70+'7'!Z70+'8'!Z70+'9'!Z70+'10'!Z70+'11'!Z70 -> 0 | AA70: ='1'!AA70+'2'!AA70+'3'!AA70+'4'!AA70+'5'!AA70+'6'!AA70+'7'!AA70+'8'!AA70+'9'!AA70+'10'!AA70+'11'!AA70 -> 0 | AB70: ='1'!AB70+'2'!AB70+'3'!AB70+'4'!AB70+'5'!AB70+'6'!AB70+'7'!AB70+'8'!AB70+'9'!AB70+'10'!AB70+'11'!AB70 -> 0 | AC70: ='1'!AC70+'2'!AC70+'3'!AC70+'4'!AC70+'5'!AC70+'6'!AC70+'7'!AC70+'8'!AC70+'9'!AC70+'10'!AC70+'11'!AC70 -> 0 | AD70: ='1'!AD70+'2'!AD70+'3'!AD70+'4'!AD70+'5'!AD70+'6'!AD70+'7'!AD70+'8'!AD70+'9'!AD70+'10'!AD70+'11'!AD70 -> 0 | AE70: ='1'!AE70+'2'!AE70+'3'!AE70+'4'!AE70+'5'!AE70+'6'!AE70+'7'!AE70+'8'!AE70+'9'!AE70+'10'!AE70+'11'!AE70 -> 0 | AF70: ='1'!AF70+'2'!AF70+'3'!AF70+'4'!AF70+'5'!AF70+'6'!AF70+'7'!AF70+'8'!AF70+'9'!AF70+'10'!AF70+'11'!AF70 -> 0 | AG70: 0 | AI70: 0 | AJ70: ='1'!AJ70+'2'!AJ70+'3'!AJ70+'4'!AJ70+'5'!AJ70+'6'!AJ70+'7'!AJ70+'8'!AJ70+'9'!AJ70+'10'!AJ70+'11'!AJ70 -> 0 | AK70: ='1'!AK70+'2'!AK70+'3'!AK70+'4'!AK70+'5'!AK70+'6'!AK70+'7'!AK70+'8'!AK70+'9'!AK70+'10'!AK70+'11'!AK70 -> 0 | AL70: ='1'!AL70+'2'!AL70+'3'!AL70+'4'!AL70+'5'!AL70+'6'!AL70+'7'!AL70+'8'!AL70+'9'!AL70+'10'!AL70+'11'!AL70 -> 0 | AM70: ='1'!AM70+'2'!AM70+'3'!AM70+'4'!AM70+'5'!AM70+'6'!AM70+'7'!AM70+'8'!AM70+'9'!AM70+'10'!AM70+'11'!AM70 -> 0 | AN70: ='1'!AN70+'2'!AN70+'3'!AN70+'4'!AN70+'5'!AN70+'6'!AN70+'7'!AN70+'8'!AN70+'9'!AN70+'10'!AN70+'11'!AN70 -> 0 | AO70: ='1'!AO70+'2'!AO70+'3'!AO70+'4'!AO70+'5'!AO70+'6'!AO70+'7'!AO70+'8'!AO70+'9'!AO70+'10'!AO70+'11'!AO70 -> 0 | AP70: ='1'!AP70+'2'!AP70+'3'!AP70+'4'!AP70+'5'!AP70+'6'!AP70+'7'!AP70+'8'!AP70+'9'!AP70+'10'!AP70+'11'!AP70 -> 0 | AQ70: ='1'!AQ70+'2'!AQ70+'3'!AQ70+'4'!AQ70+'5'!AQ70+'6'!AQ70+'7'!AQ70+'8'!AQ70+'9'!AQ70+'10'!AQ70+'11'!AQ70 -> 0 | AR70: ='1'!AR70+'2'!AR70+'3'!AR70+'4'!AR70+'5'!AR70+'6'!AR70+'7'!AR70+'8'!AR70+'9'!AR70+'10'!AR70+'11'!AR70 -> 0 | AS70: ='1'!AS70+'2'!AS70+'3'!AS70+'4'!AS70+'5'!AS70+'6'!AS70+'7'!AS70+'8'!AS70+'9'!AS70+'10'!AS70+'11'!AS70 -> 0 | AT70: ='1'!AT70+'2'!AT70+'3'!AT70+'4'!AT70+'5'!AT70+'6'!AT70+'7'!AT70+'8'!AT70+'9'!AT70+'10'!AT70+'11'!AT70 -> 0 | AU70: ='1'!AU70+'2'!AU70+'3'!AU70+'4'!AU70+'5'!AU70+'6'!AU70+'7'!AU70+'8'!AU70+'9'!AU70+'10'!AU70+'11'!AU70 -> 0 | AV70: 0 | AW70: ='1'!AW70+'2'!AW70+'3'!AW70+'4'!AW70+'5'!AW70+'6'!AW70+'7'!AW70+'8'!AW70+'9'!AW70+'10'!AW70+'11'!AW70 -> 0 | AX70: ='1'!AX70+'2'!AX70+'3'!AX70+'4'!AX70+'5'!AX70+'6'!AX70+'7'!AX70+'8'!AX70+'9'!AX70+'10'!AX70+'11'!AX70 -> 0 | AY70: ='1'!AY70+'2'!AY70+'3'!AY70+'4'!AY70+'5'!AY70+'6'!AY70+'7'!AY70+'8'!AY70+'9'!AY70+'10'!AY70+'11'!AY70 -> 0 | AZ70: 0
C71: 1 | H71: ='1'!H71 -> Inventory: Clothing material and accessories | I71: =SUM('1:11'!I71)+I194 -> 0 | J71: =SUM('1:11'!J71)+J194 -> 0 | K71: =SUM('1:11'!K71)+K194 -> 0 | L71: =SUM('1:11'!L71)+L194 -> 0 | M71: =SUM('1:11'!M71)+M194 -> 0 | N71: =SUM('1:11'!N71)+N194 -> 0 | O71: =SUM('1:11'!O71)+O194 -> 0 | P71: =SUM('1:11'!P71)+P194 -> 0 | Q71: =SUM('1:11'!Q71)+Q194 -> 0 | R71: =SUM('1:11'!R71)+R194 -> 0 | S71: =SUM('1:11'!S71)+S194 -> 0 | T71: =SUM('1:11'!T71)+T194 -> 0 | U71: =SUM($H71:OFFSET($H71,0,$I$2)) -> 0 | V71: 0 | W71: 0 | Y71: 0 | Z71: ='1'!Z71+'2'!Z71+'3'!Z71+'4'!Z71+'5'!Z71+'6'!Z71+'7'!Z71+'8'!Z71+'9'!Z71+'10'!Z71+'11'!Z71 -> 0 | AA71: ='1'!AA71+'2'!AA71+'3'!AA71+'4'!AA71+'5'!AA71+'6'!AA71+'7'!AA71+'8'!AA71+'9'!AA71+'10'!AA71+'11'!AA71 -> 0 | AB71: ='1'!AB71+'2'!AB71+'3'!AB71+'4'!AB71+'5'!AB71+'6'!AB71+'7'!AB71+'8'!AB71+'9'!AB71+'10'!AB71+'11'!AB71 -> 0 | AC71: ='1'!AC71+'2'!AC71+'3'!AC71+'4'!AC71+'5'!AC71+'6'!AC71+'7'!AC71+'8'!AC71+'9'!AC71+'10'!AC71+'11'!AC71 -> 0 | AD71: ='1'!AD71+'2'!AD71+'3'!AD71+'4'!AD71+'5'!AD71+'6'!AD71+'7'!AD71+'8'!AD71+'9'!AD71+'10'!AD71+'11'!AD71 -> 0 | AE71: ='1'!AE71+'2'!AE71+'3'!AE71+'4'!AE71+'5'!AE71+'6'!AE71+'7'!AE71+'8'!AE71+'9'!AE71+'10'!AE71+'11'!AE71 -> 0 | AF71: ='1'!AF71+'2'!AF71+'3'!AF71+'4'!AF71+'5'!AF71+'6'!AF71+'7'!AF71+'8'!AF71+'9'!AF71+'10'!AF71+'11'!AF71 -> 0 | AG71: 0 | AI71: 0 | AJ71: ='1'!AJ71+'2'!AJ71+'3'!AJ71+'4'!AJ71+'5'!AJ71+'6'!AJ71+'7'!AJ71+'8'!AJ71+'9'!AJ71+'10'!AJ71+'11'!AJ71 -> 0 | AK71: ='1'!AK71+'2'!AK71+'3'!AK71+'4'!AK71+'5'!AK71+'6'!AK71+'7'!AK71+'8'!AK71+'9'!AK71+'10'!AK71+'11'!AK71 -> 0 | AL71: ='1'!AL71+'2'!AL71+'3'!AL71+'4'!AL71+'5'!AL71+'6'!AL71+'7'!AL71+'8'!AL71+'9'!AL71+'10'!AL71+'11'!AL71 -> 0 | AM71: ='1'!AM71+'2'!AM71+'3'!AM71+'4'!AM71+'5'!AM71+'6'!AM71+'7'!AM71+'8'!AM71+'9'!AM71+'10'!AM71+'11'!AM71 -> 0 | AN71: ='1'!AN71+'2'!AN71+'3'!AN71+'4'!AN71+'5'!AN71+'6'!AN71+'7'!AN71+'8'!AN71+'9'!AN71+'10'!AN71+'11'!AN71 -> 0 | AO71: ='1'!AO71+'2'!AO71+'3'!AO71+'4'!AO71+'5'!AO71+'6'!AO71+'7'!AO71+'8'!AO71+'9'!AO71+'10'!AO71+'11'!AO71 -> 0 | AP71: ='1'!AP71+'2'!AP71+'3'!AP71+'4'!AP71+'5'!AP71+'6'!AP71+'7'!AP71+'8'!AP71+'9'!AP71+'10'!AP71+'11'!AP71 -> 0 | AQ71: ='1'!AQ71+'2'!AQ71+'3'!AQ71+'4'!AQ71+'5'!AQ71+'6'!AQ71+'7'!AQ71+'8'!AQ71+'9'!AQ71+'10'!AQ71+'11'!AQ71 -> 0 | AR71: ='1'!AR71+'2'!AR71+'3'!AR71+'4'!AR71+'5'!AR71+'6'!AR71+'7'!AR71+'8'!AR71+'9'!AR71+'10'!AR71+'11'!AR71 -> 0 | AS71: ='1'!AS71+'2'!AS71+'3'!AS71+'4'!AS71+'5'!AS71+'6'!AS71+'7'!AS71+'8'!AS71+'9'!AS71+'10'!AS71+'11'!AS71 -> 0 | AT71: ='1'!AT71+'2'!AT71+'3'!AT71+'4'!AT71+'5'!AT71+'6'!AT71+'7'!AT71+'8'!AT71+'9'!AT71+'10'!AT71+'11'!AT71 -> 0 | AU71: ='1'!AU71+'2'!AU71+'3'!AU71+'4'!AU71+'5'!AU71+'6'!AU71+'7'!AU71+'8'!AU71+'9'!AU71+'10'!AU71+'11'!AU71 -> 0 | AV71: 0 | AW71: ='1'!AW71+'2'!AW71+'3'!AW71+'4'!AW71+'5'!AW71+'6'!AW71+'7'!AW71+'8'!AW71+'9'!AW71+'10'!AW71+'11'!AW71 -> 0 | AX71: ='1'!AX71+'2'!AX71+'3'!AX71+'4'!AX71+'5'!AX71+'6'!AX71+'7'!AX71+'8'!AX71+'9'!AX71+'10'!AX71+'11'!AX71 -> 0 | AY71: ='1'!AY71+'2'!AY71+'3'!AY71+'4'!AY71+'5'!AY71+'6'!AY71+'7'!AY71+'8'!AY71+'9'!AY71+'10'!AY71+'11'!AY71 -> 0 | AZ71: 0
C72: 1 | H72: ='1'!H72 -> Inventory: Farming supplies | I72: =SUM('1:11'!I72)+I195 -> 0 | J72: =SUM('1:11'!J72)+J195 -> 0 | K72: =SUM('1:11'!K72)+K195 -> 0 | L72: =SUM('1:11'!L72)+L195 -> 0 | M72: =SUM('1:11'!M72)+M195 -> 0 | N72: =SUM('1:11'!N72)+N195 -> 0 | O72: =SUM('1:11'!O72)+O195 -> 0 | P72: =SUM('1:11'!P72)+P195 -> 0 | Q72: =SUM('1:11'!Q72)+Q195 -> 0 | R72: =SUM('1:11'!R72)+R195 -> 0 | S72: =SUM('1:11'!S72)+S195 -> 0 | T72: =SUM('1:11'!T72)+T195 -> 0 | U72: =SUM($H72:OFFSET($H72,0,$I$2)) -> 0 | V72: 0 | W72: 0 | Y72: 0 | Z72: ='1'!Z72+'2'!Z72+'3'!Z72+'4'!Z72+'5'!Z72+'6'!Z72+'7'!Z72+'8'!Z72+'9'!Z72+'10'!Z72+'11'!Z72 -> 0 | AA72: ='1'!AA72+'2'!AA72+'3'!AA72+'4'!AA72+'5'!AA72+'6'!AA72+'7'!AA72+'8'!AA72+'9'!AA72+'10'!AA72+'11'!AA72 -> 0 | AB72: ='1'!AB72+'2'!AB72+'3'!AB72+'4'!AB72+'5'!AB72+'6'!AB72+'7'!AB72+'8'!AB72+'9'!AB72+'10'!AB72+'11'!AB72 -> 0 | AC72: ='1'!AC72+'2'!AC72+'3'!AC72+'4'!AC72+'5'!AC72+'6'!AC72+'7'!AC72+'8'!AC72+'9'!AC72+'10'!AC72+'11'!AC72 -> 0 | AD72: ='1'!AD72+'2'!AD72+'3'!AD72+'4'!AD72+'5'!AD72+'6'!AD72+'7'!AD72+'8'!AD72+'9'!AD72+'10'!AD72+'11'!AD72 -> 0 | AE72: ='1'!AE72+'2'!AE72+'3'!AE72+'4'!AE72+'5'!AE72+'6'!AE72+'7'!AE72+'8'!AE72+'9'!AE72+'10'!AE72+'11'!AE72 -> 0 | AF72: ='1'!AF72+'2'!AF72+'3'!AF72+'4'!AF72+'5'!AF72+'6'!AF72+'7'!AF72+'8'!AF72+'9'!AF72+'10'!AF72+'11'!AF72 -> 0 | AG72: 0 | AI72: 0 | AJ72: ='1'!AJ72+'2'!AJ72+'3'!AJ72+'4'!AJ72+'5'!AJ72+'6'!AJ72+'7'!AJ72+'8'!AJ72+'9'!AJ72+'10'!AJ72+'11'!AJ72 -> 0 | AK72: ='1'!AK72+'2'!AK72+'3'!AK72+'4'!AK72+'5'!AK72+'6'!AK72+'7'!AK72+'8'!AK72+'9'!AK72+'10'!AK72+'11'!AK72 -> 0 | AL72: ='1'!AL72+'2'!AL72+'3'!AL72+'4'!AL72+'5'!AL72+'6'!AL72+'7'!AL72+'8'!AL72+'9'!AL72+'10'!AL72+'11'!AL72 -> 0 | AM72: ='1'!AM72+'2'!AM72+'3'!AM72+'4'!AM72+'5'!AM72+'6'!AM72+'7'!AM72+'8'!AM72+'9'!AM72+'10'!AM72+'11'!AM72 -> 0 | AN72: ='1'!AN72+'2'!AN72+'3'!AN72+'4'!AN72+'5'!AN72+'6'!AN72+'7'!AN72+'8'!AN72+'9'!AN72+'10'!AN72+'11'!AN72 -> 0 | AO72: ='1'!AO72+'2'!AO72+'3'!AO72+'4'!AO72+'5'!AO72+'6'!AO72+'7'!AO72+'8'!AO72+'9'!AO72+'10'!AO72+'11'!AO72 -> 0 | AP72: ='1'!AP72+'2'!AP72+'3'!AP72+'4'!AP72+'5'!AP72+'6'!AP72+'7'!AP72+'8'!AP72+'9'!AP72+'10'!AP72+'11'!AP72 -> 0 | AQ72: ='1'!AQ72+'2'!AQ72+'3'!AQ72+'4'!AQ72+'5'!AQ72+'6'!AQ72+'7'!AQ72+'8'!AQ72+'9'!AQ72+'10'!AQ72+'11'!AQ72 -> 0 | AR72: ='1'!AR72+'2'!AR72+'3'!AR72+'4'!AR72+'5'!AR72+'6'!AR72+'7'!AR72+'8'!AR72+'9'!AR72+'10'!AR72+'11'!AR72 -> 0 | AS72: ='1'!AS72+'2'!AS72+'3'!AS72+'4'!AS72+'5'!AS72+'6'!AS72+'7'!AS72+'8'!AS72+'9'!AS72+'10'!AS72+'11'!AS72 -> 0 | AT72: ='1'!AT72+'2'!AT72+'3'!AT72+'4'!AT72+'5'!AT72+'6'!AT72+'7'!AT72+'8'!AT72+'9'!AT72+'10'!AT72+'11'!AT72 -> 0 | AU72: ='1'!AU72+'2'!AU72+'3'!AU72+'4'!AU72+'5'!AU72+'6'!AU72+'7'!AU72+'8'!AU72+'9'!AU72+'10'!AU72+'11'!AU72 -> 0 | AV72: 0 | AW72: ='1'!AW72+'2'!AW72+'3'!AW72+'4'!AW72+'5'!AW72+'6'!AW72+'7'!AW72+'8'!AW72+'9'!AW72+'10'!AW72+'11'!AW72 -> 0 | AX72: ='1'!AX72+'2'!AX72+'3'!AX72+'4'!AX72+'5'!AX72+'6'!AX72+'7'!AX72+'8'!AX72+'9'!AX72+'10'!AX72+'11'!AX72 -> 0 | AY72: ='1'!AY72+'2'!AY72+'3'!AY72+'4'!AY72+'5'!AY72+'6'!AY72+'7'!AY72+'8'!AY72+'9'!AY72+'10'!AY72+'11'!AY72 -> 0 | AZ72: 0
C73: 1 | H73: ='1'!H73 -> Inventory: Food and food supplies | I73: =SUM('1:11'!I73)+I196 -> 0 | J73: =SUM('1:11'!J73)+J196 -> 0 | K73: =SUM('1:11'!K73)+K196 -> 0 | L73: =SUM('1:11'!L73)+L196 -> 0 | M73: =SUM('1:11'!M73)+M196 -> 0 | N73: =SUM('1:11'!N73)+N196 -> 0 | O73: =SUM('1:11'!O73)+O196 -> 0 | P73: =SUM('1:11'!P73)+P196 -> 0 | Q73: =SUM('1:11'!Q73)+Q196 -> 0 | R73: =SUM('1:11'!R73)+R196 -> 0 | S73: =SUM('1:11'!S73)+S196 -> 0 | T73: =SUM('1:11'!T73)+T196 -> 0 | U73: =SUM($H73:OFFSET($H73,0,$I$2)) -> 0 | V73: 0 | W73: 0 | Y73: 0 | Z73: ='1'!Z73+'2'!Z73+'3'!Z73+'4'!Z73+'5'!Z73+'6'!Z73+'7'!Z73+'8'!Z73+'9'!Z73+'10'!Z73+'11'!Z73 -> 0 | AA73: ='1'!AA73+'2'!AA73+'3'!AA73+'4'!AA73+'5'!AA73+'6'!AA73+'7'!AA73+'8'!AA73+'9'!AA73+'10'!AA73+'11'!AA73 -> 0 | AB73: ='1'!AB73+'2'!AB73+'3'!AB73+'4'!AB73+'5'!AB73+'6'!AB73+'7'!AB73+'8'!AB73+'9'!AB73+'10'!AB73+'11'!AB73 -> 0 | AC73: ='1'!AC73+'2'!AC73+'3'!AC73+'4'!AC73+'5'!AC73+'6'!AC73+'7'!AC73+'8'!AC73+'9'!AC73+'10'!AC73+'11'!AC73 -> 0 | AD73: ='1'!AD73+'2'!AD73+'3'!AD73+'4'!AD73+'5'!AD73+'6'!AD73+'7'!AD73+'8'!AD73+'9'!AD73+'10'!AD73+'11'!AD73 -> 0 | AE73: ='1'!AE73+'2'!AE73+'3'!AE73+'4'!AE73+'5'!AE73+'6'!AE73+'7'!AE73+'8'!AE73+'9'!AE73+'10'!AE73+'11'!AE73 -> 0 | AF73: ='1'!AF73+'2'!AF73+'3'!AF73+'4'!AF73+'5'!AF73+'6'!AF73+'7'!AF73+'8'!AF73+'9'!AF73+'10'!AF73+'11'!AF73 -> 0 | AG73: 0 | AI73: 0 | AJ73: ='1'!AJ73+'2'!AJ73+'3'!AJ73+'4'!AJ73+'5'!AJ73+'6'!AJ73+'7'!AJ73+'8'!AJ73+'9'!AJ73+'10'!AJ73+'11'!AJ73 -> 0 | AK73: ='1'!AK73+'2'!AK73+'3'!AK73+'4'!AK73+'5'!AK73+'6'!AK73+'7'!AK73+'8'!AK73+'9'!AK73+'10'!AK73+'11'!AK73 -> 0 | AL73: ='1'!AL73+'2'!AL73+'3'!AL73+'4'!AL73+'5'!AL73+'6'!AL73+'7'!AL73+'8'!AL73+'9'!AL73+'10'!AL73+'11'!AL73 -> 0 | AM73: ='1'!AM73+'2'!AM73+'3'!AM73+'4'!AM73+'5'!AM73+'6'!AM73+'7'!AM73+'8'!AM73+'9'!AM73+'10'!AM73+'11'!AM73 -> 0 | AN73: ='1'!AN73+'2'!AN73+'3'!AN73+'4'!AN73+'5'!AN73+'6'!AN73+'7'!AN73+'8'!AN73+'9'!AN73+'10'!AN73+'11'!AN73 -> 0 | AO73: ='1'!AO73+'2'!AO73+'3'!AO73+'4'!AO73+'5'!AO73+'6'!AO73+'7'!AO73+'8'!AO73+'9'!AO73+'10'!AO73+'11'!AO73 -> 0 | AP73: ='1'!AP73+'2'!AP73+'3'!AP73+'4'!AP73+'5'!AP73+'6'!AP73+'7'!AP73+'8'!AP73+'9'!AP73+'10'!AP73+'11'!AP73 -> 0 | AQ73: ='1'!AQ73+'2'!AQ73+'3'!AQ73+'4'!AQ73+'5'!AQ73+'6'!AQ73+'7'!AQ73+'8'!AQ73+'9'!AQ73+'10'!AQ73+'11'!AQ73 -> 0 | AR73: ='1'!AR73+'2'!AR73+'3'!AR73+'4'!AR73+'5'!AR73+'6'!AR73+'7'!AR73+'8'!AR73+'9'!AR73+'10'!AR73+'11'!AR73 -> 0 | AS73: ='1'!AS73+'2'!AS73+'3'!AS73+'4'!AS73+'5'!AS73+'6'!AS73+'7'!AS73+'8'!AS73+'9'!AS73+'10'!AS73+'11'!AS73 -> 0 | AT73: ='1'!AT73+'2'!AT73+'3'!AT73+'4'!AT73+'5'!AT73+'6'!AT73+'7'!AT73+'8'!AT73+'9'!AT73+'10'!AT73+'11'!AT73 -> 0 | AU73: ='1'!AU73+'2'!AU73+'3'!AU73+'4'!AU73+'5'!AU73+'6'!AU73+'7'!AU73+'8'!AU73+'9'!AU73+'10'!AU73+'11'!AU73 -> 0 | AV73: 0 | AW73: ='1'!AW73+'2'!AW73+'3'!AW73+'4'!AW73+'5'!AW73+'6'!AW73+'7'!AW73+'8'!AW73+'9'!AW73+'10'!AW73+'11'!AW73 -> 0 | AX73: ='1'!AX73+'2'!AX73+'3'!AX73+'4'!AX73+'5'!AX73+'6'!AX73+'7'!AX73+'8'!AX73+'9'!AX73+'10'!AX73+'11'!AX73 -> 0 | AY73: ='1'!AY73+'2'!AY73+'3'!AY73+'4'!AY73+'5'!AY73+'6'!AY73+'7'!AY73+'8'!AY73+'9'!AY73+'10'!AY73+'11'!AY73 -> 0 | AZ73: 0
C74: 1 | H74: ='1'!H74 -> Inventory: Fuel, oil and gas | I74: =SUM('1:11'!I74)+I197 -> 0 | J74: =SUM('1:11'!J74)+J197 -> 0 | K74: =SUM('1:11'!K74)+K197 -> 0 | L74: =SUM('1:11'!L74)+L197 -> 0 | M74: =SUM('1:11'!M74)+M197 -> 0 | N74: =SUM('1:11'!N74)+N197 -> 0 | O74: =SUM('1:11'!O74)+O197 -> 0 | P74: =SUM('1:11'!P74)+P197 -> 0 | Q74: =SUM('1:11'!Q74)+Q197 -> 0 | R74: =SUM('1:11'!R74)+R197 -> 0 | S74: =SUM('1:11'!S74)+S197 -> 0 | T74: =SUM('1:11'!T74)+T197 -> 0 | U74: =SUM($H74:OFFSET($H74,0,$I$2)) -> 0 | V74: 0 | W74: 0 | Y74: 0 | Z74: ='1'!Z74+'2'!Z74+'3'!Z74+'4'!Z74+'5'!Z74+'6'!Z74+'7'!Z74+'8'!Z74+'9'!Z74+'10'!Z74+'11'!Z74 -> 0 | AA74: ='1'!AA74+'2'!AA74+'3'!AA74+'4'!AA74+'5'!AA74+'6'!AA74+'7'!AA74+'8'!AA74+'9'!AA74+'10'!AA74+'11'!AA74 -> 0 | AB74: ='1'!AB74+'2'!AB74+'3'!AB74+'4'!AB74+'5'!AB74+'6'!AB74+'7'!AB74+'8'!AB74+'9'!AB74+'10'!AB74+'11'!AB74 -> 0 | AC74: ='1'!AC74+'2'!AC74+'3'!AC74+'4'!AC74+'5'!AC74+'6'!AC74+'7'!AC74+'8'!AC74+'9'!AC74+'10'!AC74+'11'!AC74 -> 0 | AD74: ='1'!AD74+'2'!AD74+'3'!AD74+'4'!AD74+'5'!AD74+'6'!AD74+'7'!AD74+'8'!AD74+'9'!AD74+'10'!AD74+'11'!AD74 -> 0 | AE74: ='1'!AE74+'2'!AE74+'3'!AE74+'4'!AE74+'5'!AE74+'6'!AE74+'7'!AE74+'8'!AE74+'9'!AE74+'10'!AE74+'11'!AE74 -> 0 | AF74: ='1'!AF74+'2'!AF74+'3'!AF74+'4'!AF74+'5'!AF74+'6'!AF74+'7'!AF74+'8'!AF74+'9'!AF74+'10'!AF74+'11'!AF74 -> 0 | AG74: 0 | AI74: 0 | AJ74: ='1'!AJ74+'2'!AJ74+'3'!AJ74+'4'!AJ74+'5'!AJ74+'6'!AJ74+'7'!AJ74+'8'!AJ74+'9'!AJ74+'10'!AJ74+'11'!AJ74 -> 0 | AK74: ='1'!AK74+'2'!AK74+'3'!AK74+'4'!AK74+'5'!AK74+'6'!AK74+'7'!AK74+'8'!AK74+'9'!AK74+'10'!AK74+'11'!AK74 -> 0 | AL74: ='1'!AL74+'2'!AL74+'3'!AL74+'4'!AL74+'5'!AL74+'6'!AL74+'7'!AL74+'8'!AL74+'9'!AL74+'10'!AL74+'11'!AL74 -> 0 | AM74: ='1'!AM74+'2'!AM74+'3'!AM74+'4'!AM74+'5'!AM74+'6'!AM74+'7'!AM74+'8'!AM74+'9'!AM74+'10'!AM74+'11'!AM74 -> 0 | AN74: ='1'!AN74+'2'!AN74+'3'!AN74+'4'!AN74+'5'!AN74+'6'!AN74+'7'!AN74+'8'!AN74+'9'!AN74+'10'!AN74+'11'!AN74 -> 0 | AO74: ='1'!AO74+'2'!AO74+'3'!AO74+'4'!AO74+'5'!AO74+'6'!AO74+'7'!AO74+'8'!AO74+'9'!AO74+'10'!AO74+'11'!AO74 -> 0 | AP74: ='1'!AP74+'2'!AP74+'3'!AP74+'4'!AP74+'5'!AP74+'6'!AP74+'7'!AP74+'8'!AP74+'9'!AP74+'10'!AP74+'11'!AP74 -> 0 | AQ74: ='1'!AQ74+'2'!AQ74+'3'!AQ74+'4'!AQ74+'5'!AQ74+'6'!AQ74+'7'!AQ74+'8'!AQ74+'9'!AQ74+'10'!AQ74+'11'!AQ74 -> 0 | AR74: ='1'!AR74+'2'!AR74+'3'!AR74+'4'!AR74+'5'!AR74+'6'!AR74+'7'!AR74+'8'!AR74+'9'!AR74+'10'!AR74+'11'!AR74 -> 0 | AS74: ='1'!AS74+'2'!AS74+'3'!AS74+'4'!AS74+'5'!AS74+'6'!AS74+'7'!AS74+'8'!AS74+'9'!AS74+'10'!AS74+'11'!AS74 -> 0 | AT74: ='1'!AT74+'2'!AT74+'3'!AT74+'4'!AT74+'5'!AT74+'6'!AT74+'7'!AT74+'8'!AT74+'9'!AT74+'10'!AT74+'11'!AT74 -> 0 | AU74: ='1'!AU74+'2'!AU74+'3'!AU74+'4'!AU74+'5'!AU74+'6'!AU74+'7'!AU74+'8'!AU74+'9'!AU74+'10'!AU74+'11'!AU74 -> 0 | AV74: 0 | AW74: ='1'!AW74+'2'!AW74+'3'!AW74+'4'!AW74+'5'!AW74+'6'!AW74+'7'!AW74+'8'!AW74+'9'!AW74+'10'!AW74+'11'!AW74 -> 0 | AX74: ='1'!AX74+'2'!AX74+'3'!AX74+'4'!AX74+'5'!AX74+'6'!AX74+'7'!AX74+'8'!AX74+'9'!AX74+'10'!AX74+'11'!AX74 -> 0 | AY74: ='1'!AY74+'2'!AY74+'3'!AY74+'4'!AY74+'5'!AY74+'6'!AY74+'7'!AY74+'8'!AY74+'9'!AY74+'10'!AY74+'11'!AY74 -> 0 | AZ74: 0
C75: 1 | H75: ='1'!H75 -> Inventory: Learner and teacher support material | I75: =SUM('1:11'!I75)+I198 -> 0 | J75: =SUM('1:11'!J75)+J198 -> 0 | K75: =SUM('1:11'!K75)+K198 -> 0 | L75: =SUM('1:11'!L75)+L198 -> 0 | M75: =SUM('1:11'!M75)+M198 -> 0 | N75: =SUM('1:11'!N75)+N198 -> 0 | O75: =SUM('1:11'!O75)+O198 -> 0 | P75: =SUM('1:11'!P75)+P198 -> 0 | Q75: =SUM('1:11'!Q75)+Q198 -> 0 | R75: =SUM('1:11'!R75)+R198 -> 0 | S75: =SUM('1:11'!S75)+S198 -> 0 | T75: =SUM('1:11'!T75)+T198 -> 0 | U75: =SUM($H75:OFFSET($H75,0,$I$2)) -> 0 | V75: 0 | W75: 0 | Y75: 0 | Z75: ='1'!Z75+'2'!Z75+'3'!Z75+'4'!Z75+'5'!Z75+'6'!Z75+'7'!Z75+'8'!Z75+'9'!Z75+'10'!Z75+'11'!Z75 -> 0 | AA75: ='1'!AA75+'2'!AA75+'3'!AA75+'4'!AA75+'5'!AA75+'6'!AA75+'7'!AA75+'8'!AA75+'9'!AA75+'10'!AA75+'11'!AA75 -> 0 | AB75: ='1'!AB75+'2'!AB75+'3'!AB75+'4'!AB75+'5'!AB75+'6'!AB75+'7'!AB75+'8'!AB75+'9'!AB75+'10'!AB75+'11'!AB75 -> 0 | AC75: ='1'!AC75+'2'!AC75+'3'!AC75+'4'!AC75+'5'!AC75+'6'!AC75+'7'!AC75+'8'!AC75+'9'!AC75+'10'!AC75+'11'!AC75 -> 0 | AD75: ='1'!AD75+'2'!AD75+'3'!AD75+'4'!AD75+'5'!AD75+'6'!AD75+'7'!AD75+'8'!AD75+'9'!AD75+'10'!AD75+'11'!AD75 -> 0 | AE75: ='1'!AE75+'2'!AE75+'3'!AE75+'4'!AE75+'5'!AE75+'6'!AE75+'7'!AE75+'8'!AE75+'9'!AE75+'10'!AE75+'11'!AE75 -> 0 | AF75: ='1'!AF75+'2'!AF75+'3'!AF75+'4'!AF75+'5'!AF75+'6'!AF75+'7'!AF75+'8'!AF75+'9'!AF75+'10'!AF75+'11'!AF75 -> 0 | AG75: 0 | AI75: 0 | AJ75: ='1'!AJ75+'2'!AJ75+'3'!AJ75+'4'!AJ75+'5'!AJ75+'6'!AJ75+'7'!AJ75+'8'!AJ75+'9'!AJ75+'10'!AJ75+'11'!AJ75 -> 0 | AK75: ='1'!AK75+'2'!AK75+'3'!AK75+'4'!AK75+'5'!AK75+'6'!AK75+'7'!AK75+'8'!AK75+'9'!AK75+'10'!AK75+'11'!AK75 -> 0 | AL75: ='1'!AL75+'2'!AL75+'3'!AL75+'4'!AL75+'5'!AL75+'6'!AL75+'7'!AL75+'8'!AL75+'9'!AL75+'10'!AL75+'11'!AL75 -> 0 | AM75: ='1'!AM75+'2'!AM75+'3'!AM75+'4'!AM75+'5'!AM75+'6'!AM75+'7'!AM75+'8'!AM75+'9'!AM75+'10'!AM75+'11'!AM75 -> 0 | AN75: ='1'!AN75+'2'!AN75+'3'!AN75+'4'!AN75+'5'!AN75+'6'!AN75+'7'!AN75+'8'!AN75+'9'!AN75+'10'!AN75+'11'!AN75 -> 0 | AO75: ='1'!AO75+'2'!AO75+'3'!AO75+'4'!AO75+'5'!AO75+'6'!AO75+'7'!AO75+'8'!AO75+'9'!AO75+'10'!AO75+'11'!AO75 -> 0 | AP75: ='1'!AP75+'2'!AP75+'3'!AP75+'4'!AP75+'5'!AP75+'6'!AP75+'7'!AP75+'8'!AP75+'9'!AP75+'10'!AP75+'11'!AP75 -> 0 | AQ75: ='1'!AQ75+'2'!AQ75+'3'!AQ75+'4'!AQ75+'5'!AQ75+'6'!AQ75+'7'!AQ75+'8'!AQ75+'9'!AQ75+'10'!AQ75+'11'!AQ75 -> 0 | AR75: ='1'!AR75+'2'!AR75+'3'!AR75+'4'!AR75+'5'!AR75+'6'!AR75+'7'!AR75+'8'!AR75+'9'!AR75+'10'!AR75+'11'!AR75 -> 0 | AS75: ='1'!AS75+'2'!AS75+'3'!AS75+'4'!AS75+'5'!AS75+'6'!AS75+'7'!AS75+'8'!AS75+'9'!AS75+'10'!AS75+'11'!AS75 -> 0 | AT75: ='1'!AT75+'2'!AT75+'3'!AT75+'4'!AT75+'5'!AT75+'6'!AT75+'7'!AT75+'8'!AT75+'9'!AT75+'10'!AT75+'11'!AT75 -> 0 | AU75: ='1'!AU75+'2'!AU75+'3'!AU75+'4'!AU75+'5'!AU75+'6'!AU75+'7'!AU75+'8'!AU75+'9'!AU75+'10'!AU75+'11'!AU75 -> 0 | AV75: 0 | AW75: ='1'!AW75+'2'!AW75+'3'!AW75+'4'!AW75+'5'!AW75+'6'!AW75+'7'!AW75+'8'!AW75+'9'!AW75+'10'!AW75+'11'!AW75 -> 0 | AX75: ='1'!AX75+'2'!AX75+'3'!AX75+'4'!AX75+'5'!AX75+'6'!AX75+'7'!AX75+'8'!AX75+'9'!AX75+'10'!AX75+'11'!AX75 -> 0 | AY75: ='1'!AY75+'2'!AY75+'3'!AY75+'4'!AY75+'5'!AY75+'6'!AY75+'7'!AY75+'8'!AY75+'9'!AY75+'10'!AY75+'11'!AY75 -> 0 | AZ75: 0
C76: 1 | H76: ='1'!H76 -> Inventory: Materials and supplies | I76: =SUM('1:11'!I76)+I199 -> 0 | J76: =SUM('1:11'!J76)+J199 -> 0 | K76: =SUM('1:11'!K76)+K199 -> 0 | L76: =SUM('1:11'!L76)+L199 -> 0 | M76: =SUM('1:11'!M76)+M199 -> 0 | N76: =SUM('1:11'!N76)+N199 -> 0 | O76: =SUM('1:11'!O76)+O199 -> 0 | P76: =SUM('1:11'!P76)+P199 -> 0 | Q76: =SUM('1:11'!Q76)+Q199 -> 0 | R76: =SUM('1:11'!R76)+R199 -> 0 | S76: =SUM('1:11'!S76)+S199 -> 0 | T76: =SUM('1:11'!T76)+T199 -> 0 | U76: =SUM($H76:OFFSET($H76,0,$I$2)) -> 0 | V76: 0 | W76: 0 | Y76: 0 | Z76: ='1'!Z76+'2'!Z76+'3'!Z76+'4'!Z76+'5'!Z76+'6'!Z76+'7'!Z76+'8'!Z76+'9'!Z76+'10'!Z76+'11'!Z76 -> 0 | AA76: ='1'!AA76+'2'!AA76+'3'!AA76+'4'!AA76+'5'!AA76+'6'!AA76+'7'!AA76+'8'!AA76+'9'!AA76+'10'!AA76+'11'!AA76 -> 0 | AB76: ='1'!AB76+'2'!AB76+'3'!AB76+'4'!AB76+'5'!AB76+'6'!AB76+'7'!AB76+'8'!AB76+'9'!AB76+'10'!AB76+'11'!AB76 -> 0 | AC76: ='1'!AC76+'2'!AC76+'3'!AC76+'4'!AC76+'5'!AC76+'6'!AC76+'7'!AC76+'8'!AC76+'9'!AC76+'10'!AC76+'11'!AC76 -> 0 | AD76: ='1'!AD76+'2'!AD76+'3'!AD76+'4'!AD76+'5'!AD76+'6'!AD76+'7'!AD76+'8'!AD76+'9'!AD76+'10'!AD76+'11'!AD76 -> 0 | AE76: ='1'!AE76+'2'!AE76+'3'!AE76+'4'!AE76+'5'!AE76+'6'!AE76+'7'!AE76+'8'!AE76+'9'!AE76+'10'!AE76+'11'!AE76 -> 0 | AF76: ='1'!AF76+'2'!AF76+'3'!AF76+'4'!AF76+'5'!AF76+'6'!AF76+'7'!AF76+'8'!AF76+'9'!AF76+'10'!AF76+'11'!AF76 -> 0 | AG76: 0 | AI76: 0 | AJ76: ='1'!AJ76+'2'!AJ76+'3'!AJ76+'4'!AJ76+'5'!AJ76+'6'!AJ76+'7'!AJ76+'8'!AJ76+'9'!AJ76+'10'!AJ76+'11'!AJ76 -> 0 | AK76: ='1'!AK76+'2'!AK76+'3'!AK76+'4'!AK76+'5'!AK76+'6'!AK76+'7'!AK76+'8'!AK76+'9'!AK76+'10'!AK76+'11'!AK76 -> 0 | AL76: ='1'!AL76+'2'!AL76+'3'!AL76+'4'!AL76+'5'!AL76+'6'!AL76+'7'!AL76+'8'!AL76+'9'!AL76+'10'!AL76+'11'!AL76 -> 0 | AM76: ='1'!AM76+'2'!AM76+'3'!AM76+'4'!AM76+'5'!AM76+'6'!AM76+'7'!AM76+'8'!AM76+'9'!AM76+'10'!AM76+'11'!AM76 -> 0 | AN76: ='1'!AN76+'2'!AN76+'3'!AN76+'4'!AN76+'5'!AN76+'6'!AN76+'7'!AN76+'8'!AN76+'9'!AN76+'10'!AN76+'11'!AN76 -> 0 | AO76: ='1'!AO76+'2'!AO76+'3'!AO76+'4'!AO76+'5'!AO76+'6'!AO76+'7'!AO76+'8'!AO76+'9'!AO76+'10'!AO76+'11'!AO76 -> 0 | AP76: ='1'!AP76+'2'!AP76+'3'!AP76+'4'!AP76+'5'!AP76+'6'!AP76+'7'!AP76+'8'!AP76+'9'!AP76+'10'!AP76+'11'!AP76 -> 0 | AQ76: ='1'!AQ76+'2'!AQ76+'3'!AQ76+'4'!AQ76+'5'!AQ76+'6'!AQ76+'7'!AQ76+'8'!AQ76+'9'!AQ76+'10'!AQ76+'11'!AQ76 -> 0 | AR76: ='1'!AR76+'2'!AR76+'3'!AR76+'4'!AR76+'5'!AR76+'6'!AR76+'7'!AR76+'8'!AR76+'9'!AR76+'10'!AR76+'11'!AR76 -> 0 | AS76: ='1'!AS76+'2'!AS76+'3'!AS76+'4'!AS76+'5'!AS76+'6'!AS76+'7'!AS76+'8'!AS76+'9'!AS76+'10'!AS76+'11'!AS76 -> 0 | AT76: ='1'!AT76+'2'!AT76+'3'!AT76+'4'!AT76+'5'!AT76+'6'!AT76+'7'!AT76+'8'!AT76+'9'!AT76+'10'!AT76+'11'!AT76 -> 0 | AU76: ='1'!AU76+'2'!AU76+'3'!AU76+'4'!AU76+'5'!AU76+'6'!AU76+'7'!AU76+'8'!AU76+'9'!AU76+'10'!AU76+'11'!AU76 -> 0 | AV76: 0 | AW76: ='1'!AW76+'2'!AW76+'3'!AW76+'4'!AW76+'5'!AW76+'6'!AW76+'7'!AW76+'8'!AW76+'9'!AW76+'10'!AW76+'11'!AW76 -> 0 | AX76: ='1'!AX76+'2'!AX76+'3'!AX76+'4'!AX76+'5'!AX76+'6'!AX76+'7'!AX76+'8'!AX76+'9'!AX76+'10'!AX76+'11'!AX76 -> 0 | AY76: ='1'!AY76+'2'!AY76+'3'!AY76+'4'!AY76+'5'!AY76+'6'!AY76+'7'!AY76+'8'!AY76+'9'!AY76+'10'!AY76+'11'!AY76 -> 0 | AZ76: 0
C77: 1 | H77: ='1'!H77 -> Inventory: Medical supplies | I77: =SUM('1:11'!I77)+I200 -> 0 | J77: =SUM('1:11'!J77)+J200 -> 0 | K77: =SUM('1:11'!K77)+K200 -> 0 | L77: =SUM('1:11'!L77)+L200 -> 0 | M77: =SUM('1:11'!M77)+M200 -> 0 | N77: =SUM('1:11'!N77)+N200 -> 0 | O77: =SUM('1:11'!O77)+O200 -> 0 | P77: =SUM('1:11'!P77)+P200 -> 0 | Q77: =SUM('1:11'!Q77)+Q200 -> 0 | R77: =SUM('1:11'!R77)+R200 -> 0 | S77: =SUM('1:11'!S77)+S200 -> 0 | T77: =SUM('1:11'!T77)+T200 -> 0 | U77: =SUM($H77:OFFSET($H77,0,$I$2)) -> 0 | V77: 0 | W77: 0 | Y77: 0 | Z77: ='1'!Z77+'2'!Z77+'3'!Z77+'4'!Z77+'5'!Z77+'6'!Z77+'7'!Z77+'8'!Z77+'9'!Z77+'10'!Z77+'11'!Z77 -> 0 | AA77: ='1'!AA77+'2'!AA77+'3'!AA77+'4'!AA77+'5'!AA77+'6'!AA77+'7'!AA77+'8'!AA77+'9'!AA77+'10'!AA77+'11'!AA77 -> 0 | AB77: ='1'!AB77+'2'!AB77+'3'!AB77+'4'!AB77+'5'!AB77+'6'!AB77+'7'!AB77+'8'!AB77+'9'!AB77+'10'!AB77+'11'!AB77 -> 0 | AC77: ='1'!AC77+'2'!AC77+'3'!AC77+'4'!AC77+'5'!AC77+'6'!AC77+'7'!AC77+'8'!AC77+'9'!AC77+'10'!AC77+'11'!AC77 -> 0 | AD77: ='1'!AD77+'2'!AD77+'3'!AD77+'4'!AD77+'5'!AD77+'6'!AD77+'7'!AD77+'8'!AD77+'9'!AD77+'10'!AD77+'11'!AD77 -> 0 | AE77: ='1'!AE77+'2'!AE77+'3'!AE77+'4'!AE77+'5'!AE77+'6'!AE77+'7'!AE77+'8'!AE77+'9'!AE77+'10'!AE77+'11'!AE77 -> 0 | AF77: ='1'!AF77+'2'!AF77+'3'!AF77+'4'!AF77+'5'!AF77+'6'!AF77+'7'!AF77+'8'!AF77+'9'!AF77+'10'!AF77+'11'!AF77 -> 0 | AG77: 0 | AI77: 0 | AJ77: ='1'!AJ77+'2'!AJ77+'3'!AJ77+'4'!AJ77+'5'!AJ77+'6'!AJ77+'7'!AJ77+'8'!AJ77+'9'!AJ77+'10'!AJ77+'11'!AJ77 -> 0 | AK77: ='1'!AK77+'2'!AK77+'3'!AK77+'4'!AK77+'5'!AK77+'6'!AK77+'7'!AK77+'8'!AK77+'9'!AK77+'10'!AK77+'11'!AK77 -> 0 | AL77: ='1'!AL77+'2'!AL77+'3'!AL77+'4'!AL77+'5'!AL77+'6'!AL77+'7'!AL77+'8'!AL77+'9'!AL77+'10'!AL77+'11'!AL77 -> 0 | AM77: ='1'!AM77+'2'!AM77+'3'!AM77+'4'!AM77+'5'!AM77+'6'!AM77+'7'!AM77+'8'!AM77+'9'!AM77+'10'!AM77+'11'!AM77 -> 0 | AN77: ='1'!AN77+'2'!AN77+'3'!AN77+'4'!AN77+'5'!AN77+'6'!AN77+'7'!AN77+'8'!AN77+'9'!AN77+'10'!AN77+'11'!AN77 -> 0 | AO77: ='1'!AO77+'2'!AO77+'3'!AO77+'4'!AO77+'5'!AO77+'6'!AO77+'7'!AO77+'8'!AO77+'9'!AO77+'10'!AO77+'11'!AO77 -> 0 | AP77: ='1'!AP77+'2'!AP77+'3'!AP77+'4'!AP77+'5'!AP77+'6'!AP77+'7'!AP77+'8'!AP77+'9'!AP77+'10'!AP77+'11'!AP77 -> 0 | AQ77: ='1'!AQ77+'2'!AQ77+'3'!AQ77+'4'!AQ77+'5'!AQ77+'6'!AQ77+'7'!AQ77+'8'!AQ77+'9'!AQ77+'10'!AQ77+'11'!AQ77 -> 0 | AR77: ='1'!AR77+'2'!AR77+'3'!AR77+'4'!AR77+'5'!AR77+'6'!AR77+'7'!AR77+'8'!AR77+'9'!AR77+'10'!AR77+'11'!AR77 -> 0 | AS77: ='1'!AS77+'2'!AS77+'3'!AS77+'4'!AS77+'5'!AS77+'6'!AS77+'7'!AS77+'8'!AS77+'9'!AS77+'10'!AS77+'11'!AS77 -> 0 | AT77: ='1'!AT77+'2'!AT77+'3'!AT77+'4'!AT77+'5'!AT77+'6'!AT77+'7'!AT77+'8'!AT77+'9'!AT77+'10'!AT77+'11'!AT77 -> 0 | AU77: ='1'!AU77+'2'!AU77+'3'!AU77+'4'!AU77+'5'!AU77+'6'!AU77+'7'!AU77+'8'!AU77+'9'!AU77+'10'!AU77+'11'!AU77 -> 0 | AV77: 0 | AW77: ='1'!AW77+'2'!AW77+'3'!AW77+'4'!AW77+'5'!AW77+'6'!AW77+'7'!AW77+'8'!AW77+'9'!AW77+'10'!AW77+'11'!AW77 -> 0 | AX77: ='1'!AX77+'2'!AX77+'3'!AX77+'4'!AX77+'5'!AX77+'6'!AX77+'7'!AX77+'8'!AX77+'9'!AX77+'10'!AX77+'11'!AX77 -> 0 | AY77: ='1'!AY77+'2'!AY77+'3'!AY77+'4'!AY77+'5'!AY77+'6'!AY77+'7'!AY77+'8'!AY77+'9'!AY77+'10'!AY77+'11'!AY77 -> 0 | AZ77: 0
C78: 1 | H78: ='1'!H78 -> Inventory: Medicine | I78: =SUM('1:11'!I78)+I201 -> 0 | J78: =SUM('1:11'!J78)+J201 -> 0 | K78: =SUM('1:11'!K78)+K201 -> 0 | L78: =SUM('1:11'!L78)+L201 -> 0 | M78: =SUM('1:11'!M78)+M201 -> 0 | N78: =SUM('1:11'!N78)+N201 -> 0 | O78: =SUM('1:11'!O78)+O201 -> 0 | P78: =SUM('1:11'!P78)+P201 -> 0 | Q78: =SUM('1:11'!Q78)+Q201 -> 0 | R78: =SUM('1:11'!R78)+R201 -> 0 | S78: =SUM('1:11'!S78)+S201 -> 0 | T78: =SUM('1:11'!T78)+T201 -> 0 | U78: =SUM($H78:OFFSET($H78,0,$I$2)) -> 0 | V78: 0 | W78: 0 | Y78: 0 | Z78: ='1'!Z78+'2'!Z78+'3'!Z78+'4'!Z78+'5'!Z78+'6'!Z78+'7'!Z78+'8'!Z78+'9'!Z78+'10'!Z78+'11'!Z78 -> 0 | AA78: ='1'!AA78+'2'!AA78+'3'!AA78+'4'!AA78+'5'!AA78+'6'!AA78+'7'!AA78+'8'!AA78+'9'!AA78+'10'!AA78+'11'!AA78 -> 0 | AB78: ='1'!AB78+'2'!AB78+'3'!AB78+'4'!AB78+'5'!AB78+'6'!AB78+'7'!AB78+'8'!AB78+'9'!AB78+'10'!AB78+'11'!AB78 -> 0 | AC78: ='1'!AC78+'2'!AC78+'3'!AC78+'4'!AC78+'5'!AC78+'6'!AC78+'7'!AC78+'8'!AC78+'9'!AC78+'10'!AC78+'11'!AC78 -> 0 | AD78: ='1'!AD78+'2'!AD78+'3'!AD78+'4'!AD78+'5'!AD78+'6'!AD78+'7'!AD78+'8'!AD78+'9'!AD78+'10'!AD78+'11'!AD78 -> 0 | AE78: ='1'!AE78+'2'!AE78+'3'!AE78+'4'!AE78+'5'!AE78+'6'!AE78+'7'!AE78+'8'!AE78+'9'!AE78+'10'!AE78+'11'!AE78 -> 0 | AF78: ='1'!AF78+'2'!AF78+'3'!AF78+'4'!AF78+'5'!AF78+'6'!AF78+'7'!AF78+'8'!AF78+'9'!AF78+'10'!AF78+'11'!AF78 -> 0 | AG78: 0 | AI78: 0 | AJ78: ='1'!AJ78+'2'!AJ78+'3'!AJ78+'4'!AJ78+'5'!AJ78+'6'!AJ78+'7'!AJ78+'8'!AJ78+'9'!AJ78+'10'!AJ78+'11'!AJ78 -> 0 | AK78: ='1'!AK78+'2'!AK78+'3'!AK78+'4'!AK78+'5'!AK78+'6'!AK78+'7'!AK78+'8'!AK78+'9'!AK78+'10'!AK78+'11'!AK78 -> 0 | AL78: ='1'!AL78+'2'!AL78+'3'!AL78+'4'!AL78+'5'!AL78+'6'!AL78+'7'!AL78+'8'!AL78+'9'!AL78+'10'!AL78+'11'!AL78 -> 0 | AM78: ='1'!AM78+'2'!AM78+'3'!AM78+'4'!AM78+'5'!AM78+'6'!AM78+'7'!AM78+'8'!AM78+'9'!AM78+'10'!AM78+'11'!AM78 -> 0 | AN78: ='1'!AN78+'2'!AN78+'3'!AN78+'4'!AN78+'5'!AN78+'6'!AN78+'7'!AN78+'8'!AN78+'9'!AN78+'10'!AN78+'11'!AN78 -> 0 | AO78: ='1'!AO78+'2'!AO78+'3'!AO78+'4'!AO78+'5'!AO78+'6'!AO78+'7'!AO78+'8'!AO78+'9'!AO78+'10'!AO78+'11'!AO78 -> 0 | AP78: ='1'!AP78+'2'!AP78+'3'!AP78+'4'!AP78+'5'!AP78+'6'!AP78+'7'!AP78+'8'!AP78+'9'!AP78+'10'!AP78+'11'!AP78 -> 0 | AQ78: ='1'!AQ78+'2'!AQ78+'3'!AQ78+'4'!AQ78+'5'!AQ78+'6'!AQ78+'7'!AQ78+'8'!AQ78+'9'!AQ78+'10'!AQ78+'11'!AQ78 -> 0 | AR78: ='1'!AR78+'2'!AR78+'3'!AR78+'4'!AR78+'5'!AR78+'6'!AR78+'7'!AR78+'8'!AR78+'9'!AR78+'10'!AR78+'11'!AR78 -> 0 | AS78: ='1'!AS78+'2'!AS78+'3'!AS78+'4'!AS78+'5'!AS78+'6'!AS78+'7'!AS78+'8'!AS78+'9'!AS78+'10'!AS78+'11'!AS78 -> 0 | AT78: ='1'!AT78+'2'!AT78+'3'!AT78+'4'!AT78+'5'!AT78+'6'!AT78+'7'!AT78+'8'!AT78+'9'!AT78+'10'!AT78+'11'!AT78 -> 0 | AU78: ='1'!AU78+'2'!AU78+'3'!AU78+'4'!AU78+'5'!AU78+'6'!AU78+'7'!AU78+'8'!AU78+'9'!AU78+'10'!AU78+'11'!AU78 -> 0 | AV78: 0 | AW78: ='1'!AW78+'2'!AW78+'3'!AW78+'4'!AW78+'5'!AW78+'6'!AW78+'7'!AW78+'8'!AW78+'9'!AW78+'10'!AW78+'11'!AW78 -> 0 | AX78: ='1'!AX78+'2'!AX78+'3'!AX78+'4'!AX78+'5'!AX78+'6'!AX78+'7'!AX78+'8'!AX78+'9'!AX78+'10'!AX78+'11'!AX78 -> 0 | AY78: ='1'!AY78+'2'!AY78+'3'!AY78+'4'!AY78+'5'!AY78+'6'!AY78+'7'!AY78+'8'!AY78+'9'!AY78+'10'!AY78+'11'!AY78 -> 0 | AZ78: 0
C79: 1 | H79: ='1'!H79 -> Medsas inventory interface | I79: =SUM('1:11'!I79)+I202 -> 0 | J79: =SUM('1:11'!J79)+J202 -> 0 | K79: =SUM('1:11'!K79)+K202 -> 0 | L79: =SUM('1:11'!L79)+L202 -> 0 | M79: =SUM('1:11'!M79)+M202 -> 0 | N79: =SUM('1:11'!N79)+N202 -> 0 | O79: =SUM('1:11'!O79)+O202 -> 0 | P79: =SUM('1:11'!P79)+P202 -> 0 | Q79: =SUM('1:11'!Q79)+Q202 -> 0 | R79: =SUM('1:11'!R79)+R202 -> 0 | S79: =SUM('1:11'!S79)+S202 -> 0 | T79: =SUM('1:11'!T79)+T202 -> 0 | U79: =SUM($H79:OFFSET($H79,0,$I$2)) -> 0 | V79: 0 | W79: 0 | Y79: 0 | Z79: ='1'!Z79+'2'!Z79+'3'!Z79+'4'!Z79+'5'!Z79+'6'!Z79+'7'!Z79+'8'!Z79+'9'!Z79+'10'!Z79+'11'!Z79 -> 0 | AA79: ='1'!AA79+'2'!AA79+'3'!AA79+'4'!AA79+'5'!AA79+'6'!AA79+'7'!AA79+'8'!AA79+'9'!AA79+'10'!AA79+'11'!AA79 -> 0 | AB79: ='1'!AB79+'2'!AB79+'3'!AB79+'4'!AB79+'5'!AB79+'6'!AB79+'7'!AB79+'8'!AB79+'9'!AB79+'10'!AB79+'11'!AB79 -> 0 | AC79: ='1'!AC79+'2'!AC79+'3'!AC79+'4'!AC79+'5'!AC79+'6'!AC79+'7'!AC79+'8'!AC79+'9'!AC79+'10'!AC79+'11'!AC79 -> 0 | AD79: ='1'!AD79+'2'!AD79+'3'!AD79+'4'!AD79+'5'!AD79+'6'!AD79+'7'!AD79+'8'!AD79+'9'!AD79+'10'!AD79+'11'!AD79 -> 0 | AE79: ='1'!AE79+'2'!AE79+'3'!AE79+'4'!AE79+'5'!AE79+'6'!AE79+'7'!AE79+'8'!AE79+'9'!AE79+'10'!AE79+'11'!AE79 -> 0 | AF79: ='1'!AF79+'2'!AF79+'3'!AF79+'4'!AF79+'5'!AF79+'6'!AF79+'7'!AF79+'8'!AF79+'9'!AF79+'10'!AF79+'11'!AF79 -> 0 | AG79: 0 | AI79: 0 | AJ79: ='1'!AJ79+'2'!AJ79+'3'!AJ79+'4'!AJ79+'5'!AJ79+'6'!AJ79+'7'!AJ79+'8'!AJ79+'9'!AJ79+'10'!AJ79+'11'!AJ79 -> 0 | AK79: ='1'!AK79+'2'!AK79+'3'!AK79+'4'!AK79+'5'!AK79+'6'!AK79+'7'!AK79+'8'!AK79+'9'!AK79+'10'!AK79+'11'!AK79 -> 0 | AL79: ='1'!AL79+'2'!AL79+'3'!AL79+'4'!AL79+'5'!AL79+'6'!AL79+'7'!AL79+'8'!AL79+'9'!AL79+'10'!AL79+'11'!AL79 -> 0 | AM79: ='1'!AM79+'2'!AM79+'3'!AM79+'4'!AM79+'5'!AM79+'6'!AM79+'7'!AM79+'8'!AM79+'9'!AM79+'10'!AM79+'11'!AM79 -> 0 | AN79: ='1'!AN79+'2'!AN79+'3'!AN79+'4'!AN79+'5'!AN79+'6'!AN79+'7'!AN79+'8'!AN79+'9'!AN79+'10'!AN79+'11'!AN79 -> 0 | AO79: ='1'!AO79+'2'!AO79+'3'!AO79+'4'!AO79+'5'!AO79+'6'!AO79+'7'!AO79+'8'!AO79+'9'!AO79+'10'!AO79+'11'!AO79 -> 0 | AP79: ='1'!AP79+'2'!AP79+'3'!AP79+'4'!AP79+'5'!AP79+'6'!AP79+'7'!AP79+'8'!AP79+'9'!AP79+'10'!AP79+'11'!AP79 -> 0 | AQ79: ='1'!AQ79+'2'!AQ79+'3'!AQ79+'4'!AQ79+'5'!AQ79+'6'!AQ79+'7'!AQ79+'8'!AQ79+'9'!AQ79+'10'!AQ79+'11'!AQ79 -> 0 | AR79: ='1'!AR79+'2'!AR79+'3'!AR79+'4'!AR79+'5'!AR79+'6'!AR79+'7'!AR79+'8'!AR79+'9'!AR79+'10'!AR79+'11'!AR79 -> 0 | AS79: ='1'!AS79+'2'!AS79+'3'!AS79+'4'!AS79+'5'!AS79+'6'!AS79+'7'!AS79+'8'!AS79+'9'!AS79+'10'!AS79+'11'!AS79 -> 0 | AT79: ='1'!AT79+'2'!AT79+'3'!AT79+'4'!AT79+'5'!AT79+'6'!AT79+'7'!AT79+'8'!AT79+'9'!AT79+'10'!AT79+'11'!AT79 -> 0 | AU79: ='1'!AU79+'2'!AU79+'3'!AU79+'4'!AU79+'5'!AU79+'6'!AU79+'7'!AU79+'8'!AU79+'9'!AU79+'10'!AU79+'11'!AU79 -> 0 | AV79: 0 | AW79: ='1'!AW79+'2'!AW79+'3'!AW79+'4'!AW79+'5'!AW79+'6'!AW79+'7'!AW79+'8'!AW79+'9'!AW79+'10'!AW79+'11'!AW79 -> 0 | AX79: ='1'!AX79+'2'!AX79+'3'!AX79+'4'!AX79+'5'!AX79+'6'!AX79+'7'!AX79+'8'!AX79+'9'!AX79+'10'!AX79+'11'!AX79 -> 0 | AY79: ='1'!AY79+'2'!AY79+'3'!AY79+'4'!AY79+'5'!AY79+'6'!AY79+'7'!AY79+'8'!AY79+'9'!AY79+'10'!AY79+'11'!AY79 -> 0 | AZ79: 0
C80: 1 | H80: ='1'!H80 -> Inventory: Other supplies | I80: =SUM('1:11'!I80)+I203 -> 0 | J80: =SUM('1:11'!J80)+J203 -> 0 | K80: =SUM('1:11'!K80)+K203 -> 0 | L80: =SUM('1:11'!L80)+L203 -> 0 | M80: =SUM('1:11'!M80)+M203 -> 0 | N80: =SUM('1:11'!N80)+N203 -> 0 | O80: =SUM('1:11'!O80)+O203 -> 0 | P80: =SUM('1:11'!P80)+P203 -> 0 | Q80: =SUM('1:11'!Q80)+Q203 -> 0 | R80: =SUM('1:11'!R80)+R203 -> 0 | S80: =SUM('1:11'!S80)+S203 -> 0 | T80: =SUM('1:11'!T80)+T203 -> 0 | U80: =SUM($H80:OFFSET($H80,0,$I$2)) -> 0 | V80: 0 | W80: 0 | Y80: 0 | Z80: ='1'!Z80+'2'!Z80+'3'!Z80+'4'!Z80+'5'!Z80+'6'!Z80+'7'!Z80+'8'!Z80+'9'!Z80+'10'!Z80+'11'!Z80 -> 0 | AA80: ='1'!AA80+'2'!AA80+'3'!AA80+'4'!AA80+'5'!AA80+'6'!AA80+'7'!AA80+'8'!AA80+'9'!AA80+'10'!AA80+'11'!AA80 -> 0 | AB80: ='1'!AB80+'2'!AB80+'3'!AB80+'4'!AB80+'5'!AB80+'6'!AB80+'7'!AB80+'8'!AB80+'9'!AB80+'10'!AB80+'11'!AB80 -> 0 | AC80: ='1'!AC80+'2'!AC80+'3'!AC80+'4'!AC80+'5'!AC80+'6'!AC80+'7'!AC80+'8'!AC80+'9'!AC80+'10'!AC80+'11'!AC80 -> 0 | AD80: ='1'!AD80+'2'!AD80+'3'!AD80+'4'!AD80+'5'!AD80+'6'!AD80+'7'!AD80+'8'!AD80+'9'!AD80+'10'!AD80+'11'!AD80 -> 0 | AE80: ='1'!AE80+'2'!AE80+'3'!AE80+'4'!AE80+'5'!AE80+'6'!AE80+'7'!AE80+'8'!AE80+'9'!AE80+'10'!AE80+'11'!AE80 -> 0 | AF80: ='1'!AF80+'2'!AF80+'3'!AF80+'4'!AF80+'5'!AF80+'6'!AF80+'7'!AF80+'8'!AF80+'9'!AF80+'10'!AF80+'11'!AF80 -> 0 | AG80: 0 | AI80: 0 | AJ80: ='1'!AJ80+'2'!AJ80+'3'!AJ80+'4'!AJ80+'5'!AJ80+'6'!AJ80+'7'!AJ80+'8'!AJ80+'9'!AJ80+'10'!AJ80+'11'!AJ80 -> 0 | AK80: ='1'!AK80+'2'!AK80+'3'!AK80+'4'!AK80+'5'!AK80+'6'!AK80+'7'!AK80+'8'!AK80+'9'!AK80+'10'!AK80+'11'!AK80 -> 0 | AL80: ='1'!AL80+'2'!AL80+'3'!AL80+'4'!AL80+'5'!AL80+'6'!AL80+'7'!AL80+'8'!AL80+'9'!AL80+'10'!AL80+'11'!AL80 -> 0 | AM80: ='1'!AM80+'2'!AM80+'3'!AM80+'4'!AM80+'5'!AM80+'6'!AM80+'7'!AM80+'8'!AM80+'9'!AM80+'10'!AM80+'11'!AM80 -> 0 | AN80: ='1'!AN80+'2'!AN80+'3'!AN80+'4'!AN80+'5'!AN80+'6'!AN80+'7'!AN80+'8'!AN80+'9'!AN80+'10'!AN80+'11'!AN80 -> 0 | AO80: ='1'!AO80+'2'!AO80+'3'!AO80+'4'!AO80+'5'!AO80+'6'!AO80+'7'!AO80+'8'!AO80+'9'!AO80+'10'!AO80+'11'!AO80 -> 0 | AP80: ='1'!AP80+'2'!AP80+'3'!AP80+'4'!AP80+'5'!AP80+'6'!AP80+'7'!AP80+'8'!AP80+'9'!AP80+'10'!AP80+'11'!AP80 -> 0 | AQ80: ='1'!AQ80+'2'!AQ80+'3'!AQ80+'4'!AQ80+'5'!AQ80+'6'!AQ80+'7'!AQ80+'8'!AQ80+'9'!AQ80+'10'!AQ80+'11'!AQ80 -> 0 | AR80: ='1'!AR80+'2'!AR80+'3'!AR80+'4'!AR80+'5'!AR80+'6'!AR80+'7'!AR80+'8'!AR80+'9'!AR80+'10'!AR80+'11'!AR80 -> 0 | AS80: ='1'!AS80+'2'!AS80+'3'!AS80+'4'!AS80+'5'!AS80+'6'!AS80+'7'!AS80+'8'!AS80+'9'!AS80+'10'!AS80+'11'!AS80 -> 0 | AT80: ='1'!AT80+'2'!AT80+'3'!AT80+'4'!AT80+'5'!AT80+'6'!AT80+'7'!AT80+'8'!AT80+'9'!AT80+'10'!AT80+'11'!AT80 -> 0 | AU80: ='1'!AU80+'2'!AU80+'3'!AU80+'4'!AU80+'5'!AU80+'6'!AU80+'7'!AU80+'8'!AU80+'9'!AU80+'10'!AU80+'11'!AU80 -> 0 | AV80: 0 | AW80: ='1'!AW80+'2'!AW80+'3'!AW80+'4'!AW80+'5'!AW80+'6'!AW80+'7'!AW80+'8'!AW80+'9'!AW80+'10'!AW80+'11'!AW80 -> 0 | AX80: ='1'!AX80+'2'!AX80+'3'!AX80+'4'!AX80+'5'!AX80+'6'!AX80+'7'!AX80+'8'!AX80+'9'!AX80+'10'!AX80+'11'!AX80 -> 0 | AY80: ='1'!AY80+'2'!AY80+'3'!AY80+'4'!AY80+'5'!AY80+'6'!AY80+'7'!AY80+'8'!AY80+'9'!AY80+'10'!AY80+'11'!AY80 -> 0 | AZ80: 0
C81: 1 | H81: ='1'!H81 -> Consumable supplies | I81: =SUM('1:11'!I81)+I204 -> 204 | J81: =SUM('1:11'!J81)+J204 -> 229 | K81: =SUM('1:11'!K81)+K204 -> 282 | L81: =SUM('1:11'!L81)+L204 -> 467 | M81: =SUM('1:11'!M81)+M204 -> 282 | N81: =SUM('1:11'!N81)+N204 -> 174 | O81: =SUM('1:11'!O81)+O204 -> 195 | P81: =SUM('1:11'!P81)+P204 -> 190 | Q81: =SUM('1:11'!Q81)+Q204 -> 182 | R81: =SUM('1:11'!R81)+R204 -> 206 | S81: =SUM('1:11'!S81)+S204 -> 284 | T81: =SUM('1:11'!T81)+T204 -> 293 | U81: =SUM($H81:OFFSET($H81,0,$I$2)) -> 0 | V81: 2988 | W81: 687 | Y81: 3675 | Z81: ='1'!Z81+'2'!Z81+'3'!Z81+'4'!Z81+'5'!Z81+'6'!Z81+'7'!Z81+'8'!Z81+'9'!Z81+'10'!Z81+'11'!Z81 -> 638.5 | AA81: ='1'!AA81+'2'!AA81+'3'!AA81+'4'!AA81+'5'!AA81+'6'!AA81+'7'!AA81+'8'!AA81+'9'!AA81+'10'!AA81+'11'!AA81 -> 3627 | AB81: ='1'!AB81+'2'!AB81+'3'!AB81+'4'!AB81+'5'!AB81+'6'!AB81+'7'!AB81+'8'!AB81+'9'!AB81+'10'!AB81+'11'!AB81 -> 35 | AC81: ='1'!AC81+'2'!AC81+'3'!AC81+'4'!AC81+'5'!AC81+'6'!AC81+'7'!AC81+'8'!AC81+'9'!AC81+'10'!AC81+'11'!AC81 -> 48 | AD81: ='1'!AD81+'2'!AD81+'3'!AD81+'4'!AD81+'5'!AD81+'6'!AD81+'7'!AD81+'8'!AD81+'9'!AD81+'10'!AD81+'11'!AD81 -> 0 | AE81: ='1'!AE81+'2'!AE81+'3'!AE81+'4'!AE81+'5'!AE81+'6'!AE81+'7'!AE81+'8'!AE81+'9'!AE81+'10'!AE81+'11'!AE81 -> -16.5 | AF81: ='1'!AF81+'2'!AF81+'3'!AF81+'4'!AF81+'5'!AF81+'6'!AF81+'7'!AF81+'8'!AF81+'9'!AF81+'10'!AF81+'11'!AF81 -> 0 | AG81: -16.5 | AI81: 0 | AJ81: ='1'!AJ81+'2'!AJ81+'3'!AJ81+'4'!AJ81+'5'!AJ81+'6'!AJ81+'7'!AJ81+'8'!AJ81+'9'!AJ81+'10'!AJ81+'11'!AJ81 -> 0 | AK81: ='1'!AK81+'2'!AK81+'3'!AK81+'4'!AK81+'5'!AK81+'6'!AK81+'7'!AK81+'8'!AK81+'9'!AK81+'10'!AK81+'11'!AK81 -> 0 | AL81: ='1'!AL81+'2'!AL81+'3'!AL81+'4'!AL81+'5'!AL81+'6'!AL81+'7'!AL81+'8'!AL81+'9'!AL81+'10'!AL81+'11'!AL81 -> 0 | AM81: ='1'!AM81+'2'!AM81+'3'!AM81+'4'!AM81+'5'!AM81+'6'!AM81+'7'!AM81+'8'!AM81+'9'!AM81+'10'!AM81+'11'!AM81 -> 0 | AN81: ='1'!AN81+'2'!AN81+'3'!AN81+'4'!AN81+'5'!AN81+'6'!AN81+'7'!AN81+'8'!AN81+'9'!AN81+'10'!AN81+'11'!AN81 -> 0 | AO81: ='1'!AO81+'2'!AO81+'3'!AO81+'4'!AO81+'5'!AO81+'6'!AO81+'7'!AO81+'8'!AO81+'9'!AO81+'10'!AO81+'11'!AO81 -> 0 | AP81: ='1'!AP81+'2'!AP81+'3'!AP81+'4'!AP81+'5'!AP81+'6'!AP81+'7'!AP81+'8'!AP81+'9'!AP81+'10'!AP81+'11'!AP81 -> 0 | AQ81: ='1'!AQ81+'2'!AQ81+'3'!AQ81+'4'!AQ81+'5'!AQ81+'6'!AQ81+'7'!AQ81+'8'!AQ81+'9'!AQ81+'10'!AQ81+'11'!AQ81 -> 0 | AR81: ='1'!AR81+'2'!AR81+'3'!AR81+'4'!AR81+'5'!AR81+'6'!AR81+'7'!AR81+'8'!AR81+'9'!AR81+'10'!AR81+'11'!AR81 -> 0 | AS81: ='1'!AS81+'2'!AS81+'3'!AS81+'4'!AS81+'5'!AS81+'6'!AS81+'7'!AS81+'8'!AS81+'9'!AS81+'10'!AS81+'11'!AS81 -> 0 | AT81: ='1'!AT81+'2'!AT81+'3'!AT81+'4'!AT81+'5'!AT81+'6'!AT81+'7'!AT81+'8'!AT81+'9'!AT81+'10'!AT81+'11'!AT81 -> 0 | AU81: ='1'!AU81+'2'!AU81+'3'!AU81+'4'!AU81+'5'!AU81+'6'!AU81+'7'!AU81+'8'!AU81+'9'!AU81+'10'!AU81+'11'!AU81 -> 0 | AV81: 0 | AW81: ='1'!AW81+'2'!AW81+'3'!AW81+'4'!AW81+'5'!AW81+'6'!AW81+'7'!AW81+'8'!AW81+'9'!AW81+'10'!AW81+'11'!AW81 -> 0 | AX81: ='1'!AX81+'2'!AX81+'3'!AX81+'4'!AX81+'5'!AX81+'6'!AX81+'7'!AX81+'8'!AX81+'9'!AX81+'10'!AX81+'11'!AX81 -> 0 | AY81: ='1'!AY81+'2'!AY81+'3'!AY81+'4'!AY81+'5'!AY81+'6'!AY81+'7'!AY81+'8'!AY81+'9'!AY81+'10'!AY81+'11'!AY81 -> 0 | AZ81: 0
C82: 1 | H82: ='1'!H82 -> Consumables: Stationery, printing and office supplies | I82: =SUM('1:11'!I82)+I205 -> 466 | J82: =SUM('1:11'!J82)+J205 -> 157 | K82: =SUM('1:11'!K82)+K205 -> 337 | L82: =SUM('1:11'!L82)+L205 -> 180 | M82: =SUM('1:11'!M82)+M205 -> 147 | N82: =SUM('1:11'!N82)+N205 -> 431 | O82: =SUM('1:11'!O82)+O205 -> 111 | P82: =SUM('1:11'!P82)+P205 -> 325 | Q82: =SUM('1:11'!Q82)+Q205 -> 69 | R82: =SUM('1:11'!R82)+R205 -> 115 | S82: =SUM('1:11'!S82)+S205 -> 350 | T82: =SUM('1:11'!T82)+T205 -> 825 | U82: =SUM($H82:OFFSET($H82,0,$I$2)) -> 0 | V82: 3513 | W82: 10947 | Y82: 14460 | Z82: ='1'!Z82+'2'!Z82+'3'!Z82+'4'!Z82+'5'!Z82+'6'!Z82+'7'!Z82+'8'!Z82+'9'!Z82+'10'!Z82+'11'!Z82 -> 10953 | AA82: ='1'!AA82+'2'!AA82+'3'!AA82+'4'!AA82+'5'!AA82+'6'!AA82+'7'!AA82+'8'!AA82+'9'!AA82+'10'!AA82+'11'!AA82 -> 14466 | AB82: ='1'!AB82+'2'!AB82+'3'!AB82+'4'!AB82+'5'!AB82+'6'!AB82+'7'!AB82+'8'!AB82+'9'!AB82+'10'!AB82+'11'!AB82 -> 9 | AC82: ='1'!AC82+'2'!AC82+'3'!AC82+'4'!AC82+'5'!AC82+'6'!AC82+'7'!AC82+'8'!AC82+'9'!AC82+'10'!AC82+'11'!AC82 -> -6 | AD82: ='1'!AD82+'2'!AD82+'3'!AD82+'4'!AD82+'5'!AD82+'6'!AD82+'7'!AD82+'8'!AD82+'9'!AD82+'10'!AD82+'11'!AD82 -> 0 | AE82: ='1'!AE82+'2'!AE82+'3'!AE82+'4'!AE82+'5'!AE82+'6'!AE82+'7'!AE82+'8'!AE82+'9'!AE82+'10'!AE82+'11'!AE82 -> -30 | AF82: ='1'!AF82+'2'!AF82+'3'!AF82+'4'!AF82+'5'!AF82+'6'!AF82+'7'!AF82+'8'!AF82+'9'!AF82+'10'!AF82+'11'!AF82 -> 0 | AG82: -30 | AI82: 0 | AJ82: ='1'!AJ82+'2'!AJ82+'3'!AJ82+'4'!AJ82+'5'!AJ82+'6'!AJ82+'7'!AJ82+'8'!AJ82+'9'!AJ82+'10'!AJ82+'11'!AJ82 -> 0 | AK82: ='1'!AK82+'2'!AK82+'3'!AK82+'4'!AK82+'5'!AK82+'6'!AK82+'7'!AK82+'8'!AK82+'9'!AK82+'10'!AK82+'11'!AK82 -> 0 | AL82: ='1'!AL82+'2'!AL82+'3'!AL82+'4'!AL82+'5'!AL82+'6'!AL82+'7'!AL82+'8'!AL82+'9'!AL82+'10'!AL82+'11'!AL82 -> 0 | AM82: ='1'!AM82+'2'!AM82+'3'!AM82+'4'!AM82+'5'!AM82+'6'!AM82+'7'!AM82+'8'!AM82+'9'!AM82+'10'!AM82+'11'!AM82 -> 0 | AN82: ='1'!AN82+'2'!AN82+'3'!AN82+'4'!AN82+'5'!AN82+'6'!AN82+'7'!AN82+'8'!AN82+'9'!AN82+'10'!AN82+'11'!AN82 -> 0 | AO82: ='1'!AO82+'2'!AO82+'3'!AO82+'4'!AO82+'5'!AO82+'6'!AO82+'7'!AO82+'8'!AO82+'9'!AO82+'10'!AO82+'11'!AO82 -> 0 | AP82: ='1'!AP82+'2'!AP82+'3'!AP82+'4'!AP82+'5'!AP82+'6'!AP82+'7'!AP82+'8'!AP82+'9'!AP82+'10'!AP82+'11'!AP82 -> 0 | AQ82: ='1'!AQ82+'2'!AQ82+'3'!AQ82+'4'!AQ82+'5'!AQ82+'6'!AQ82+'7'!AQ82+'8'!AQ82+'9'!AQ82+'10'!AQ82+'11'!AQ82 -> 0 | AR82: ='1'!AR82+'2'!AR82+'3'!AR82+'4'!AR82+'5'!AR82+'6'!AR82+'7'!AR82+'8'!AR82+'9'!AR82+'10'!AR82+'11'!AR82 -> 0 | AS82: ='1'!AS82+'2'!AS82+'3'!AS82+'4'!AS82+'5'!AS82+'6'!AS82+'7'!AS82+'8'!AS82+'9'!AS82+'10'!AS82+'11'!AS82 -> 0 | AT82: ='1'!AT82+'2'!AT82+'3'!AT82+'4'!AT82+'5'!AT82+'6'!AT82+'7'!AT82+'8'!AT82+'9'!AT82+'10'!AT82+'11'!AT82 -> 0 | AU82: ='1'!AU82+'2'!AU82+'3'!AU82+'4'!AU82+'5'!AU82+'6'!AU82+'7'!AU82+'8'!AU82+'9'!AU82+'10'!AU82+'11'!AU82 -> 0 | AV82: 0 | AW82: ='1'!AW82+'2'!AW82+'3'!AW82+'4'!AW82+'5'!AW82+'6'!AW82+'7'!AW82+'8'!AW82+'9'!AW82+'10'!AW82+'11'!AW82 -> 0 | AX82: ='1'!AX82+'2'!AX82+'3'!AX82+'4'!AX82+'5'!AX82+'6'!AX82+'7'!AX82+'8'!AX82+'9'!AX82+'10'!AX82+'11'!AX82 -> 0 | AY82: ='1'!AY82+'2'!AY82+'3'!AY82+'4'!AY82+'5'!AY82+'6'!AY82+'7'!AY82+'8'!AY82+'9'!AY82+'10'!AY82+'11'!AY82 -> 0 | AZ82: 0
C83: 1 | H83: ='1'!H83 -> Operating leases | I83: =SUM('1:11'!I83)+I206 -> 819 | J83: =SUM('1:11'!J83)+J206 -> 4268 | K83: =SUM('1:11'!K83)+K206 -> 4273 | L83: =SUM('1:11'!L83)+L206 -> 4277 | M83: =SUM('1:11'!M83)+M206 -> 4291 | N83: =SUM('1:11'!N83)+N206 -> 4285 | O83: =SUM('1:11'!O83)+O206 -> 10285 | P83: =SUM('1:11'!P83)+P206 -> 10288 | Q83: =SUM('1:11'!Q83)+Q206 -> 9263 | R83: =SUM('1:11'!R83)+R206 -> 9287 | S83: =SUM('1:11'!S83)+S206 -> 9277 | T83: =SUM('1:11'!T83)+T206 -> 17993 | U83: =SUM($H83:OFFSET($H83,0,$I$2)) -> 0 | V83: 88606 | W83: 2463 | Y83: 91069 | Z83: ='1'!Z83+'2'!Z83+'3'!Z83+'4'!Z83+'5'!Z83+'6'!Z83+'7'!Z83+'8'!Z83+'9'!Z83+'10'!Z83+'11'!Z83 -> 2718 | AA83: ='1'!AA83+'2'!AA83+'3'!AA83+'4'!AA83+'5'!AA83+'6'!AA83+'7'!AA83+'8'!AA83+'9'!AA83+'10'!AA83+'11'!AA83 -> 91324 | AB83: ='1'!AB83+'2'!AB83+'3'!AB83+'4'!AB83+'5'!AB83+'6'!AB83+'7'!AB83+'8'!AB83+'9'!AB83+'10'!AB83+'11'!AB83 -> -253 | AC83: ='1'!AC83+'2'!AC83+'3'!AC83+'4'!AC83+'5'!AC83+'6'!AC83+'7'!AC83+'8'!AC83+'9'!AC83+'10'!AC83+'11'!AC83 -> -255 | AD83: ='1'!AD83+'2'!AD83+'3'!AD83+'4'!AD83+'5'!AD83+'6'!AD83+'7'!AD83+'8'!AD83+'9'!AD83+'10'!AD83+'11'!AD83 -> 0 | AE83: ='1'!AE83+'2'!AE83+'3'!AE83+'4'!AE83+'5'!AE83+'6'!AE83+'7'!AE83+'8'!AE83+'9'!AE83+'10'!AE83+'11'!AE83 -> 98 | AF83: ='1'!AF83+'2'!AF83+'3'!AF83+'4'!AF83+'5'!AF83+'6'!AF83+'7'!AF83+'8'!AF83+'9'!AF83+'10'!AF83+'11'!AF83 -> 0 | AG83: 98 | AI83: 0 | AJ83: ='1'!AJ83+'2'!AJ83+'3'!AJ83+'4'!AJ83+'5'!AJ83+'6'!AJ83+'7'!AJ83+'8'!AJ83+'9'!AJ83+'10'!AJ83+'11'!AJ83 -> 0 | AK83: ='1'!AK83+'2'!AK83+'3'!AK83+'4'!AK83+'5'!AK83+'6'!AK83+'7'!AK83+'8'!AK83+'9'!AK83+'10'!AK83+'11'!AK83 -> 0 | AL83: ='1'!AL83+'2'!AL83+'3'!AL83+'4'!AL83+'5'!AL83+'6'!AL83+'7'!AL83+'8'!AL83+'9'!AL83+'10'!AL83+'11'!AL83 -> 0 | AM83: ='1'!AM83+'2'!AM83+'3'!AM83+'4'!AM83+'5'!AM83+'6'!AM83+'7'!AM83+'8'!AM83+'9'!AM83+'10'!AM83+'11'!AM83 -> 0 | AN83: ='1'!AN83+'2'!AN83+'3'!AN83+'4'!AN83+'5'!AN83+'6'!AN83+'7'!AN83+'8'!AN83+'9'!AN83+'10'!AN83+'11'!AN83 -> 0 | AO83: ='1'!AO83+'2'!AO83+'3'!AO83+'4'!AO83+'5'!AO83+'6'!AO83+'7'!AO83+'8'!AO83+'9'!AO83+'10'!AO83+'11'!AO83 -> 0 | AP83: ='1'!AP83+'2'!AP83+'3'!AP83+'4'!AP83+'5'!AP83+'6'!AP83+'7'!AP83+'8'!AP83+'9'!AP83+'10'!AP83+'11'!AP83 -> 0 | AQ83: ='1'!AQ83+'2'!AQ83+'3'!AQ83+'4'!AQ83+'5'!AQ83+'6'!AQ83+'7'!AQ83+'8'!AQ83+'9'!AQ83+'10'!AQ83+'11'!AQ83 -> 0 | AR83: ='1'!AR83+'2'!AR83+'3'!AR83+'4'!AR83+'5'!AR83+'6'!AR83+'7'!AR83+'8'!AR83+'9'!AR83+'10'!AR83+'11'!AR83 -> 0 | AS83: ='1'!AS83+'2'!AS83+'3'!AS83+'4'!AS83+'5'!AS83+'6'!AS83+'7'!AS83+'8'!AS83+'9'!AS83+'10'!AS83+'11'!AS83 -> 0 | AT83: ='1'!AT83+'2'!AT83+'3'!AT83+'4'!AT83+'5'!AT83+'6'!AT83+'7'!AT83+'8'!AT83+'9'!AT83+'10'!AT83+'11'!AT83 -> 0 | AU83: ='1'!AU83+'2'!AU83+'3'!AU83+'4'!AU83+'5'!AU83+'6'!AU83+'7'!AU83+'8'!AU83+'9'!AU83+'10'!AU83+'11'!AU83 -> 0 | AV83: 0 | AW83: ='1'!AW83+'2'!AW83+'3'!AW83+'4'!AW83+'5'!AW83+'6'!AW83+'7'!AW83+'8'!AW83+'9'!AW83+'10'!AW83+'11'!AW83 -> 0 | AX83: ='1'!AX83+'2'!AX83+'3'!AX83+'4'!AX83+'5'!AX83+'6'!AX83+'7'!AX83+'8'!AX83+'9'!AX83+'10'!AX83+'11'!AX83 -> 0 | AY83: ='1'!AY83+'2'!AY83+'3'!AY83+'4'!AY83+'5'!AY83+'6'!AY83+'7'!AY83+'8'!AY83+'9'!AY83+'10'!AY83+'11'!AY83 -> 0 | AZ83: 0
C84: 1 | H84: ='1'!H84 -> Rental and hiring | I84: =SUM('1:11'!I84)+I207 -> 0 | J84: =SUM('1:11'!J84)+J207 -> 0 | K84: =SUM('1:11'!K84)+K207 -> 0 | L84: =SUM('1:11'!L84)+L207 -> 0 | M84: =SUM('1:11'!M84)+M207 -> 0 | N84: =SUM('1:11'!N84)+N207 -> 0 | O84: =SUM('1:11'!O84)+O207 -> 0 | P84: =SUM('1:11'!P84)+P207 -> 0 | Q84: =SUM('1:11'!Q84)+Q207 -> 0 | R84: =SUM('1:11'!R84)+R207 -> 0 | S84: =SUM('1:11'!S84)+S207 -> 0 | T84: =SUM('1:11'!T84)+T207 -> 0 | U84: =SUM($H84:OFFSET($H84,0,$I$2)) -> 0 | V84: 0 | W84: 0 | Y84: 0 | Z84: ='1'!Z84+'2'!Z84+'3'!Z84+'4'!Z84+'5'!Z84+'6'!Z84+'7'!Z84+'8'!Z84+'9'!Z84+'10'!Z84+'11'!Z84 -> 0 | AA84: ='1'!AA84+'2'!AA84+'3'!AA84+'4'!AA84+'5'!AA84+'6'!AA84+'7'!AA84+'8'!AA84+'9'!AA84+'10'!AA84+'11'!AA84 -> 0 | AB84: ='1'!AB84+'2'!AB84+'3'!AB84+'4'!AB84+'5'!AB84+'6'!AB84+'7'!AB84+'8'!AB84+'9'!AB84+'10'!AB84+'11'!AB84 -> 0 | AC84: ='1'!AC84+'2'!AC84+'3'!AC84+'4'!AC84+'5'!AC84+'6'!AC84+'7'!AC84+'8'!AC84+'9'!AC84+'10'!AC84+'11'!AC84 -> 0 | AD84: ='1'!AD84+'2'!AD84+'3'!AD84+'4'!AD84+'5'!AD84+'6'!AD84+'7'!AD84+'8'!AD84+'9'!AD84+'10'!AD84+'11'!AD84 -> 0 | AE84: ='1'!AE84+'2'!AE84+'3'!AE84+'4'!AE84+'5'!AE84+'6'!AE84+'7'!AE84+'8'!AE84+'9'!AE84+'10'!AE84+'11'!AE84 -> 0 | AF84: ='1'!AF84+'2'!AF84+'3'!AF84+'4'!AF84+'5'!AF84+'6'!AF84+'7'!AF84+'8'!AF84+'9'!AF84+'10'!AF84+'11'!AF84 -> 0 | AG84: 0 | AI84: 0 | AJ84: ='1'!AJ84+'2'!AJ84+'3'!AJ84+'4'!AJ84+'5'!AJ84+'6'!AJ84+'7'!AJ84+'8'!AJ84+'9'!AJ84+'10'!AJ84+'11'!AJ84 -> 0 | AK84: ='1'!AK84+'2'!AK84+'3'!AK84+'4'!AK84+'5'!AK84+'6'!AK84+'7'!AK84+'8'!AK84+'9'!AK84+'10'!AK84+'11'!AK84 -> 0 | AL84: ='1'!AL84+'2'!AL84+'3'!AL84+'4'!AL84+'5'!AL84+'6'!AL84+'7'!AL84+'8'!AL84+'9'!AL84+'10'!AL84+'11'!AL84 -> 0 | AM84: ='1'!AM84+'2'!AM84+'3'!AM84+'4'!AM84+'5'!AM84+'6'!AM84+'7'!AM84+'8'!AM84+'9'!AM84+'10'!AM84+'11'!AM84 -> 0 | AN84: ='1'!AN84+'2'!AN84+'3'!AN84+'4'!AN84+'5'!AN84+'6'!AN84+'7'!AN84+'8'!AN84+'9'!AN84+'10'!AN84+'11'!AN84 -> 0 | AO84: ='1'!AO84+'2'!AO84+'3'!AO84+'4'!AO84+'5'!AO84+'6'!AO84+'7'!AO84+'8'!AO84+'9'!AO84+'10'!AO84+'11'!AO84 -> 0 | AP84: ='1'!AP84+'2'!AP84+'3'!AP84+'4'!AP84+'5'!AP84+'6'!AP84+'7'!AP84+'8'!AP84+'9'!AP84+'10'!AP84+'11'!AP84 -> 0 | AQ84: ='1'!AQ84+'2'!AQ84+'3'!AQ84+'4'!AQ84+'5'!AQ84+'6'!AQ84+'7'!AQ84+'8'!AQ84+'9'!AQ84+'10'!AQ84+'11'!AQ84 -> 0 | AR84: ='1'!AR84+'2'!AR84+'3'!AR84+'4'!AR84+'5'!AR84+'6'!AR84+'7'!AR84+'8'!AR84+'9'!AR84+'10'!AR84+'11'!AR84 -> 0 | AS84: ='1'!AS84+'2'!AS84+'3'!AS84+'4'!AS84+'5'!AS84+'6'!AS84+'7'!AS84+'8'!AS84+'9'!AS84+'10'!AS84+'11'!AS84 -> 0 | AT84: ='1'!AT84+'2'!AT84+'3'!AT84+'4'!AT84+'5'!AT84+'6'!AT84+'7'!AT84+'8'!AT84+'9'!AT84+'10'!AT84+'11'!AT84 -> 0 | AU84: ='1'!AU84+'2'!AU84+'3'!AU84+'4'!AU84+'5'!AU84+'6'!AU84+'7'!AU84+'8'!AU84+'9'!AU84+'10'!AU84+'11'!AU84 -> 0 | AV84: 0 | AW84: ='1'!AW84+'2'!AW84+'3'!AW84+'4'!AW84+'5'!AW84+'6'!AW84+'7'!AW84+'8'!AW84+'9'!AW84+'10'!AW84+'11'!AW84 -> 0 | AX84: ='1'!AX84+'2'!AX84+'3'!AX84+'4'!AX84+'5'!AX84+'6'!AX84+'7'!AX84+'8'!AX84+'9'!AX84+'10'!AX84+'11'!AX84 -> 0 | AY84: ='1'!AY84+'2'!AY84+'3'!AY84+'4'!AY84+'5'!AY84+'6'!AY84+'7'!AY84+'8'!AY84+'9'!AY84+'10'!AY84+'11'!AY84 -> 0 | AZ84: 0
C85: 1 | H85: ='1'!H85 -> Property payments | I85: =SUM('1:11'!I85)+I208 -> 1763 | J85: =SUM('1:11'!J85)+J208 -> 1967 | K85: =SUM('1:11'!K85)+K208 -> 1963 | L85: =SUM('1:11'!L85)+L208 -> 1846 | M85: =SUM('1:11'!M85)+M208 -> 1963 | N85: =SUM('1:11'!N85)+N208 -> 1820 | O85: =SUM('1:11'!O85)+O208 -> 2063 | P85: =SUM('1:11'!P85)+P208 -> 2272 | Q85: =SUM('1:11'!Q85)+Q208 -> 2283 | R85: =SUM('1:11'!R85)+R208 -> 3201 | S85: =SUM('1:11'!S85)+S208 -> 3343 | T85: =SUM('1:11'!T85)+T208 -> 10364 | U85: =SUM($H85:OFFSET($H85,0,$I$2)) -> 0 | V85: 34848 | W85: 0 | Y85: 34848 | Z85: ='1'!Z85+'2'!Z85+'3'!Z85+'4'!Z85+'5'!Z85+'6'!Z85+'7'!Z85+'8'!Z85+'9'!Z85+'10'!Z85+'11'!Z85 -> 0 | AA85: ='1'!AA85+'2'!AA85+'3'!AA85+'4'!AA85+'5'!AA85+'6'!AA85+'7'!AA85+'8'!AA85+'9'!AA85+'10'!AA85+'11'!AA85 -> 34848 | AB85: ='1'!AB85+'2'!AB85+'3'!AB85+'4'!AB85+'5'!AB85+'6'!AB85+'7'!AB85+'8'!AB85+'9'!AB85+'10'!AB85+'11'!AB85 -> 0 | AC85: ='1'!AC85+'2'!AC85+'3'!AC85+'4'!AC85+'5'!AC85+'6'!AC85+'7'!AC85+'8'!AC85+'9'!AC85+'10'!AC85+'11'!AC85 -> 0 | AD85: ='1'!AD85+'2'!AD85+'3'!AD85+'4'!AD85+'5'!AD85+'6'!AD85+'7'!AD85+'8'!AD85+'9'!AD85+'10'!AD85+'11'!AD85 -> 0 | AE85: ='1'!AE85+'2'!AE85+'3'!AE85+'4'!AE85+'5'!AE85+'6'!AE85+'7'!AE85+'8'!AE85+'9'!AE85+'10'!AE85+'11'!AE85 -> 0 | AF85: ='1'!AF85+'2'!AF85+'3'!AF85+'4'!AF85+'5'!AF85+'6'!AF85+'7'!AF85+'8'!AF85+'9'!AF85+'10'!AF85+'11'!AF85 -> 0 | AG85: 0 | AI85: 0 | AJ85: ='1'!AJ85+'2'!AJ85+'3'!AJ85+'4'!AJ85+'5'!AJ85+'6'!AJ85+'7'!AJ85+'8'!AJ85+'9'!AJ85+'10'!AJ85+'11'!AJ85 -> 0 | AK85: ='1'!AK85+'2'!AK85+'3'!AK85+'4'!AK85+'5'!AK85+'6'!AK85+'7'!AK85+'8'!AK85+'9'!AK85+'10'!AK85+'11'!AK85 -> 0 | AL85: ='1'!AL85+'2'!AL85+'3'!AL85+'4'!AL85+'5'!AL85+'6'!AL85+'7'!AL85+'8'!AL85+'9'!AL85+'10'!AL85+'11'!AL85 -> 0 | AM85: ='1'!AM85+'2'!AM85+'3'!AM85+'4'!AM85+'5'!AM85+'6'!AM85+'7'!AM85+'8'!AM85+'9'!AM85+'10'!AM85+'11'!AM85 -> 0 | AN85: ='1'!AN85+'2'!AN85+'3'!AN85+'4'!AN85+'5'!AN85+'6'!AN85+'7'!AN85+'8'!AN85+'9'!AN85+'10'!AN85+'11'!AN85 -> 0 | AO85: ='1'!AO85+'2'!AO85+'3'!AO85+'4'!AO85+'5'!AO85+'6'!AO85+'7'!AO85+'8'!AO85+'9'!AO85+'10'!AO85+'11'!AO85 -> 0 | AP85: ='1'!AP85+'2'!AP85+'3'!AP85+'4'!AP85+'5'!AP85+'6'!AP85+'7'!AP85+'8'!AP85+'9'!AP85+'10'!AP85+'11'!AP85 -> 0 | AQ85: ='1'!AQ85+'2'!AQ85+'3'!AQ85+'4'!AQ85+'5'!AQ85+'6'!AQ85+'7'!AQ85+'8'!AQ85+'9'!AQ85+'10'!AQ85+'11'!AQ85 -> 0 | AR85: ='1'!AR85+'2'!AR85+'3'!AR85+'4'!AR85+'5'!AR85+'6'!AR85+'7'!AR85+'8'!AR85+'9'!AR85+'10'!AR85+'11'!AR85 -> 0 | AS85: ='1'!AS85+'2'!AS85+'3'!AS85+'4'!AS85+'5'!AS85+'6'!AS85+'7'!AS85+'8'!AS85+'9'!AS85+'10'!AS85+'11'!AS85 -> 0 | AT85: ='1'!AT85+'2'!AT85+'3'!AT85+'4'!AT85+'5'!AT85+'6'!AT85+'7'!AT85+'8'!AT85+'9'!AT85+'10'!AT85+'11'!AT85 -> 0 | AU85: ='1'!AU85+'2'!AU85+'3'!AU85+'4'!AU85+'5'!AU85+'6'!AU85+'7'!AU85+'8'!AU85+'9'!AU85+'10'!AU85+'11'!AU85 -> 0 | AV85: 0 | AW85: ='1'!AW85+'2'!AW85+'3'!AW85+'4'!AW85+'5'!AW85+'6'!AW85+'7'!AW85+'8'!AW85+'9'!AW85+'10'!AW85+'11'!AW85 -> 0 | AX85: ='1'!AX85+'2'!AX85+'3'!AX85+'4'!AX85+'5'!AX85+'6'!AX85+'7'!AX85+'8'!AX85+'9'!AX85+'10'!AX85+'11'!AX85 -> 0 | AY85: ='1'!AY85+'2'!AY85+'3'!AY85+'4'!AY85+'5'!AY85+'6'!AY85+'7'!AY85+'8'!AY85+'9'!AY85+'10'!AY85+'11'!AY85 -> 0 | AZ85: 0
C86: 1 | H86: ='1'!H86 -> Transport provided: Departmental activity | I86: =SUM('1:11'!I86)+I209 -> 0 | J86: =SUM('1:11'!J86)+J209 -> 0 | K86: =SUM('1:11'!K86)+K209 -> 0 | L86: =SUM('1:11'!L86)+L209 -> 0 | M86: =SUM('1:11'!M86)+M209 -> 0 | N86: =SUM('1:11'!N86)+N209 -> 0 | O86: =SUM('1:11'!O86)+O209 -> 0 | P86: =SUM('1:11'!P86)+P209 -> 0 | Q86: =SUM('1:11'!Q86)+Q209 -> 0 | R86: =SUM('1:11'!R86)+R209 -> 0 | S86: =SUM('1:11'!S86)+S209 -> 0 | T86: =SUM('1:11'!T86)+T209 -> 0 | U86: =SUM($H86:OFFSET($H86,0,$I$2)) -> 0 | V86: 0 | W86: 0 | Y86: 0 | Z86: ='1'!Z86+'2'!Z86+'3'!Z86+'4'!Z86+'5'!Z86+'6'!Z86+'7'!Z86+'8'!Z86+'9'!Z86+'10'!Z86+'11'!Z86 -> 0 | AA86: ='1'!AA86+'2'!AA86+'3'!AA86+'4'!AA86+'5'!AA86+'6'!AA86+'7'!AA86+'8'!AA86+'9'!AA86+'10'!AA86+'11'!AA86 -> 0 | AB86: ='1'!AB86+'2'!AB86+'3'!AB86+'4'!AB86+'5'!AB86+'6'!AB86+'7'!AB86+'8'!AB86+'9'!AB86+'10'!AB86+'11'!AB86 -> 0 | AC86: ='1'!AC86+'2'!AC86+'3'!AC86+'4'!AC86+'5'!AC86+'6'!AC86+'7'!AC86+'8'!AC86+'9'!AC86+'10'!AC86+'11'!AC86 -> 0 | AD86: ='1'!AD86+'2'!AD86+'3'!AD86+'4'!AD86+'5'!AD86+'6'!AD86+'7'!AD86+'8'!AD86+'9'!AD86+'10'!AD86+'11'!AD86 -> 0 | AE86: ='1'!AE86+'2'!AE86+'3'!AE86+'4'!AE86+'5'!AE86+'6'!AE86+'7'!AE86+'8'!AE86+'9'!AE86+'10'!AE86+'11'!AE86 -> 0 | AF86: ='1'!AF86+'2'!AF86+'3'!AF86+'4'!AF86+'5'!AF86+'6'!AF86+'7'!AF86+'8'!AF86+'9'!AF86+'10'!AF86+'11'!AF86 -> 0 | AG86: 0 | AI86: 0 | AJ86: ='1'!AJ86+'2'!AJ86+'3'!AJ86+'4'!AJ86+'5'!AJ86+'6'!AJ86+'7'!AJ86+'8'!AJ86+'9'!AJ86+'10'!AJ86+'11'!AJ86 -> 0 | AK86: ='1'!AK86+'2'!AK86+'3'!AK86+'4'!AK86+'5'!AK86+'6'!AK86+'7'!AK86+'8'!AK86+'9'!AK86+'10'!AK86+'11'!AK86 -> 0 | AL86: ='1'!AL86+'2'!AL86+'3'!AL86+'4'!AL86+'5'!AL86+'6'!AL86+'7'!AL86+'8'!AL86+'9'!AL86+'10'!AL86+'11'!AL86 -> 0 | AM86: ='1'!AM86+'2'!AM86+'3'!AM86+'4'!AM86+'5'!AM86+'6'!AM86+'7'!AM86+'8'!AM86+'9'!AM86+'10'!AM86+'11'!AM86 -> 0 | AN86: ='1'!AN86+'2'!AN86+'3'!AN86+'4'!AN86+'5'!AN86+'6'!AN86+'7'!AN86+'8'!AN86+'9'!AN86+'10'!AN86+'11'!AN86 -> 0 | AO86: ='1'!AO86+'2'!AO86+'3'!AO86+'4'!AO86+'5'!AO86+'6'!AO86+'7'!AO86+'8'!AO86+'9'!AO86+'10'!AO86+'11'!AO86 -> 0 | AP86: ='1'!AP86+'2'!AP86+'3'!AP86+'4'!AP86+'5'!AP86+'6'!AP86+'7'!AP86+'8'!AP86+'9'!AP86+'10'!AP86+'11'!AP86 -> 0 | AQ86: ='1'!AQ86+'2'!AQ86+'3'!AQ86+'4'!AQ86+'5'!AQ86+'6'!AQ86+'7'!AQ86+'8'!AQ86+'9'!AQ86+'10'!AQ86+'11'!AQ86 -> 0 | AR86: ='1'!AR86+'2'!AR86+'3'!AR86+'4'!AR86+'5'!AR86+'6'!AR86+'7'!AR86+'8'!AR86+'9'!AR86+'10'!AR86+'11'!AR86 -> 0 | AS86: ='1'!AS86+'2'!AS86+'3'!AS86+'4'!AS86+'5'!AS86+'6'!AS86+'7'!AS86+'8'!AS86+'9'!AS86+'10'!AS86+'11'!AS86 -> 0 | AT86: ='1'!AT86+'2'!AT86+'3'!AT86+'4'!AT86+'5'!AT86+'6'!AT86+'7'!AT86+'8'!AT86+'9'!AT86+'10'!AT86+'11'!AT86 -> 0 | AU86: ='1'!AU86+'2'!AU86+'3'!AU86+'4'!AU86+'5'!AU86+'6'!AU86+'7'!AU86+'8'!AU86+'9'!AU86+'10'!AU86+'11'!AU86 -> 0 | AV86: 0 | AW86: ='1'!AW86+'2'!AW86+'3'!AW86+'4'!AW86+'5'!AW86+'6'!AW86+'7'!AW86+'8'!AW86+'9'!AW86+'10'!AW86+'11'!AW86 -> 0 | AX86: ='1'!AX86+'2'!AX86+'3'!AX86+'4'!AX86+'5'!AX86+'6'!AX86+'7'!AX86+'8'!AX86+'9'!AX86+'10'!AX86+'11'!AX86 -> 0 | AY86: ='1'!AY86+'2'!AY86+'3'!AY86+'4'!AY86+'5'!AY86+'6'!AY86+'7'!AY86+'8'!AY86+'9'!AY86+'10'!AY86+'11'!AY86 -> 0 | AZ86: 0
C87: 1 | H87: ='1'!H87 -> Travel and subsistence | I87: =SUM('1:11'!I87)+I210 -> 2782 | J87: =SUM('1:11'!J87)+J210 -> 1629 | K87: =SUM('1:11'!K87)+K210 -> 1290 | L87: =SUM('1:11'!L87)+L210 -> 1424 | M87: =SUM('1:11'!M87)+M210 -> 1536 | N87: =SUM('1:11'!N87)+N210 -> 1327 | O87: =SUM('1:11'!O87)+O210 -> 2298 | P87: =SUM('1:11'!P87)+P210 -> 1689 | Q87: =SUM('1:11'!Q87)+Q210 -> 989 | R87: =SUM('1:11'!R87)+R210 -> 1044 | S87: =SUM('1:11'!S87)+S210 -> 1987 | T87: =SUM('1:11'!T87)+T210 -> 1817 | U87: =SUM($H87:OFFSET($H87,0,$I$2)) -> 0 | V87: 19812 | W87: 42874 | Y87: 62686 | Z87: ='1'!Z87+'2'!Z87+'3'!Z87+'4'!Z87+'5'!Z87+'6'!Z87+'7'!Z87+'8'!Z87+'9'!Z87+'10'!Z87+'11'!Z87 -> 40733.5 | AA87: ='1'!AA87+'2'!AA87+'3'!AA87+'4'!AA87+'5'!AA87+'6'!AA87+'7'!AA87+'8'!AA87+'9'!AA87+'10'!AA87+'11'!AA87 -> 60545 | AB87: ='1'!AB87+'2'!AB87+'3'!AB87+'4'!AB87+'5'!AB87+'6'!AB87+'7'!AB87+'8'!AB87+'9'!AB87+'10'!AB87+'11'!AB87 -> 2990 | AC87: ='1'!AC87+'2'!AC87+'3'!AC87+'4'!AC87+'5'!AC87+'6'!AC87+'7'!AC87+'8'!AC87+'9'!AC87+'10'!AC87+'11'!AC87 -> 2141 | AD87: ='1'!AD87+'2'!AD87+'3'!AD87+'4'!AD87+'5'!AD87+'6'!AD87+'7'!AD87+'8'!AD87+'9'!AD87+'10'!AD87+'11'!AD87 -> 0 | AE87: ='1'!AE87+'2'!AE87+'3'!AE87+'4'!AE87+'5'!AE87+'6'!AE87+'7'!AE87+'8'!AE87+'9'!AE87+'10'!AE87+'11'!AE87 -> -936.5 | AF87: ='1'!AF87+'2'!AF87+'3'!AF87+'4'!AF87+'5'!AF87+'6'!AF87+'7'!AF87+'8'!AF87+'9'!AF87+'10'!AF87+'11'!AF87 -> 0 | AG87: -936.5 | AI87: 0 | AJ87: ='1'!AJ87+'2'!AJ87+'3'!AJ87+'4'!AJ87+'5'!AJ87+'6'!AJ87+'7'!AJ87+'8'!AJ87+'9'!AJ87+'10'!AJ87+'11'!AJ87 -> 0 | AK87: ='1'!AK87+'2'!AK87+'3'!AK87+'4'!AK87+'5'!AK87+'6'!AK87+'7'!AK87+'8'!AK87+'9'!AK87+'10'!AK87+'11'!AK87 -> 0 | AL87: ='1'!AL87+'2'!AL87+'3'!AL87+'4'!AL87+'5'!AL87+'6'!AL87+'7'!AL87+'8'!AL87+'9'!AL87+'10'!AL87+'11'!AL87 -> 0 | AM87: ='1'!AM87+'2'!AM87+'3'!AM87+'4'!AM87+'5'!AM87+'6'!AM87+'7'!AM87+'8'!AM87+'9'!AM87+'10'!AM87+'11'!AM87 -> 0 | AN87: ='1'!AN87+'2'!AN87+'3'!AN87+'4'!AN87+'5'!AN87+'6'!AN87+'7'!AN87+'8'!AN87+'9'!AN87+'10'!AN87+'11'!AN87 -> 0 | AO87: ='1'!AO87+'2'!AO87+'3'!AO87+'4'!AO87+'5'!AO87+'6'!AO87+'7'!AO87+'8'!AO87+'9'!AO87+'10'!AO87+'11'!AO87 -> 0 | AP87: ='1'!AP87+'2'!AP87+'3'!AP87+'4'!AP87+'5'!AP87+'6'!AP87+'7'!AP87+'8'!AP87+'9'!AP87+'10'!AP87+'11'!AP87 -> 0 | AQ87: ='1'!AQ87+'2'!AQ87+'3'!AQ87+'4'!AQ87+'5'!AQ87+'6'!AQ87+'7'!AQ87+'8'!AQ87+'9'!AQ87+'10'!AQ87+'11'!AQ87 -> 0 | AR87: ='1'!AR87+'2'!AR87+'3'!AR87+'4'!AR87+'5'!AR87+'6'!AR87+'7'!AR87+'8'!AR87+'9'!AR87+'10'!AR87+'11'!AR87 -> 0 | AS87: ='1'!AS87+'2'!AS87+'3'!AS87+'4'!AS87+'5'!AS87+'6'!AS87+'7'!AS87+'8'!AS87+'9'!AS87+'10'!AS87+'11'!AS87 -> 0 | AT87: ='1'!AT87+'2'!AT87+'3'!AT87+'4'!AT87+'5'!AT87+'6'!AT87+'7'!AT87+'8'!AT87+'9'!AT87+'10'!AT87+'11'!AT87 -> 0 | AU87: ='1'!AU87+'2'!AU87+'3'!AU87+'4'!AU87+'5'!AU87+'6'!AU87+'7'!AU87+'8'!AU87+'9'!AU87+'10'!AU87+'11'!AU87 -> 0 | AV87: 0 | AW87: ='1'!AW87+'2'!AW87+'3'!AW87+'4'!AW87+'5'!AW87+'6'!AW87+'7'!AW87+'8'!AW87+'9'!AW87+'10'!AW87+'11'!AW87 -> 0 | AX87: ='1'!AX87+'2'!AX87+'3'!AX87+'4'!AX87+'5'!AX87+'6'!AX87+'7'!AX87+'8'!AX87+'9'!AX87+'10'!AX87+'11'!AX87 -> 0 | AY87: ='1'!AY87+'2'!AY87+'3'!AY87+'4'!AY87+'5'!AY87+'6'!AY87+'7'!AY87+'8'!AY87+'9'!AY87+'10'!AY87+'11'!AY87 -> 0 | AZ87: 0
C88: 1 | H88: ='1'!H88 -> Training and development | I88: =SUM('1:11'!I88)+I211 -> 54 | J88: =SUM('1:11'!J88)+J211 -> 124 | K88: =SUM('1:11'!K88)+K211 -> 411 | L88: =SUM('1:11'!L88)+L211 -> 259 | M88: =SUM('1:11'!M88)+M211 -> 124 | N88: =SUM('1:11'!N88)+N211 -> 452 | O88: =SUM('1:11'!O88)+O211 -> 123 | P88: =SUM('1:11'!P88)+P211 -> 173 | Q88: =SUM('1:11'!Q88)+Q211 -> 326 | R88: =SUM('1:11'!R88)+R211 -> 24 | S88: =SUM('1:11'!S88)+S211 -> 183 | T88: =SUM('1:11'!T88)+T211 -> 962 | U88: =SUM($H88:OFFSET($H88,0,$I$2)) -> 0 | V88: 3215 | W88: 4295 | Y88: 7510 | Z88: ='1'!Z88+'2'!Z88+'3'!Z88+'4'!Z88+'5'!Z88+'6'!Z88+'7'!Z88+'8'!Z88+'9'!Z88+'10'!Z88+'11'!Z88 -> 4151 | AA88: ='1'!AA88+'2'!AA88+'3'!AA88+'4'!AA88+'5'!AA88+'6'!AA88+'7'!AA88+'8'!AA88+'9'!AA88+'10'!AA88+'11'!AA88 -> 7366 | AB88: ='1'!AB88+'2'!AB88+'3'!AB88+'4'!AB88+'5'!AB88+'6'!AB88+'7'!AB88+'8'!AB88+'9'!AB88+'10'!AB88+'11'!AB88 -> -208 | AC88: ='1'!AC88+'2'!AC88+'3'!AC88+'4'!AC88+'5'!AC88+'6'!AC88+'7'!AC88+'8'!AC88+'9'!AC88+'10'!AC88+'11'!AC88 -> 144 | AD88: ='1'!AD88+'2'!AD88+'3'!AD88+'4'!AD88+'5'!AD88+'6'!AD88+'7'!AD88+'8'!AD88+'9'!AD88+'10'!AD88+'11'!AD88 -> 0 | AE88: ='1'!AE88+'2'!AE88+'3'!AE88+'4'!AE88+'5'!AE88+'6'!AE88+'7'!AE88+'8'!AE88+'9'!AE88+'10'!AE88+'11'!AE88 -> 369 | AF88: ='1'!AF88+'2'!AF88+'3'!AF88+'4'!AF88+'5'!AF88+'6'!AF88+'7'!AF88+'8'!AF88+'9'!AF88+'10'!AF88+'11'!AF88 -> 0 | AG88: 369 | AI88: 0 | AJ88: ='1'!AJ88+'2'!AJ88+'3'!AJ88+'4'!AJ88+'5'!AJ88+'6'!AJ88+'7'!AJ88+'8'!AJ88+'9'!AJ88+'10'!AJ88+'11'!AJ88 -> 0 | AK88: ='1'!AK88+'2'!AK88+'3'!AK88+'4'!AK88+'5'!AK88+'6'!AK88+'7'!AK88+'8'!AK88+'9'!AK88+'10'!AK88+'11'!AK88 -> 0 | AL88: ='1'!AL88+'2'!AL88+'3'!AL88+'4'!AL88+'5'!AL88+'6'!AL88+'7'!AL88+'8'!AL88+'9'!AL88+'10'!AL88+'11'!AL88 -> 0 | AM88: ='1'!AM88+'2'!AM88+'3'!AM88+'4'!AM88+'5'!AM88+'6'!AM88+'7'!AM88+'8'!AM88+'9'!AM88+'10'!AM88+'11'!AM88 -> 0 | AN88: ='1'!AN88+'2'!AN88+'3'!AN88+'4'!AN88+'5'!AN88+'6'!AN88+'7'!AN88+'8'!AN88+'9'!AN88+'10'!AN88+'11'!AN88 -> 0 | AO88: ='1'!AO88+'2'!AO88+'3'!AO88+'4'!AO88+'5'!AO88+'6'!AO88+'7'!AO88+'8'!AO88+'9'!AO88+'10'!AO88+'11'!AO88 -> 0 | AP88: ='1'!AP88+'2'!AP88+'3'!AP88+'4'!AP88+'5'!AP88+'6'!AP88+'7'!AP88+'8'!AP88+'9'!AP88+'10'!AP88+'11'!AP88 -> 0 | AQ88: ='1'!AQ88+'2'!AQ88+'3'!AQ88+'4'!AQ88+'5'!AQ88+'6'!AQ88+'7'!AQ88+'8'!AQ88+'9'!AQ88+'10'!AQ88+'11'!AQ88 -> 0 | AR88: ='1'!AR88+'2'!AR88+'3'!AR88+'4'!AR88+'5'!AR88+'6'!AR88+'7'!AR88+'8'!AR88+'9'!AR88+'10'!AR88+'11'!AR88 -> 0 | AS88: ='1'!AS88+'2'!AS88+'3'!AS88+'4'!AS88+'5'!AS88+'6'!AS88+'7'!AS88+'8'!AS88+'9'!AS88+'10'!AS88+'11'!AS88 -> 0 | AT88: ='1'!AT88+'2'!AT88+'3'!AT88+'4'!AT88+'5'!AT88+'6'!AT88+'7'!AT88+'8'!AT88+'9'!AT88+'10'!AT88+'11'!AT88 -> 0 | AU88: ='1'!AU88+'2'!AU88+'3'!AU88+'4'!AU88+'5'!AU88+'6'!AU88+'7'!AU88+'8'!AU88+'9'!AU88+'10'!AU88+'11'!AU88 -> 0 | AV88: 0 | AW88: ='1'!AW88+'2'!AW88+'3'!AW88+'4'!AW88+'5'!AW88+'6'!AW88+'7'!AW88+'8'!AW88+'9'!AW88+'10'!AW88+'11'!AW88 -> 0 | AX88: ='1'!AX88+'2'!AX88+'3'!AX88+'4'!AX88+'5'!AX88+'6'!AX88+'7'!AX88+'8'!AX88+'9'!AX88+'10'!AX88+'11'!AX88 -> 0 | AY88: ='1'!AY88+'2'!AY88+'3'!AY88+'4'!AY88+'5'!AY88+'6'!AY88+'7'!AY88+'8'!AY88+'9'!AY88+'10'!AY88+'11'!AY88 -> 0 | AZ88: 0
C89: 1 | H89: ='1'!H89 -> Operating payments | I89: =SUM('1:11'!I89)+I212 -> 30 | J89: =SUM('1:11'!J89)+J212 -> 76 | K89: =SUM('1:11'!K89)+K212 -> 90 | L89: =SUM('1:11'!L89)+L212 -> 62 | M89: =SUM('1:11'!M89)+M212 -> 42 | N89: =SUM('1:11'!N89)+N212 -> 83 | O89: =SUM('1:11'!O89)+O212 -> 195 | P89: =SUM('1:11'!P89)+P212 -> 46 | Q89: =SUM('1:11'!Q89)+Q212 -> 134 | R89: =SUM('1:11'!R89)+R212 -> 85 | S89: =SUM('1:11'!S89)+S212 -> 104 | T89: =SUM('1:11'!T89)+T212 -> 42 | U89: =SUM($H89:OFFSET($H89,0,$I$2)) -> 0 | V89: 989 | W89: 4811 | Y89: 5800 | Z89: ='1'!Z89+'2'!Z89+'3'!Z89+'4'!Z89+'5'!Z89+'6'!Z89+'7'!Z89+'8'!Z89+'9'!Z89+'10'!Z89+'11'!Z89 -> 6860 | AA89: ='1'!AA89+'2'!AA89+'3'!AA89+'4'!AA89+'5'!AA89+'6'!AA89+'7'!AA89+'8'!AA89+'9'!AA89+'10'!AA89+'11'!AA89 -> 7849 | AB89: ='1'!AB89+'2'!AB89+'3'!AB89+'4'!AB89+'5'!AB89+'6'!AB89+'7'!AB89+'8'!AB89+'9'!AB89+'10'!AB89+'11'!AB89 -> -2210 | AC89: ='1'!AC89+'2'!AC89+'3'!AC89+'4'!AC89+'5'!AC89+'6'!AC89+'7'!AC89+'8'!AC89+'9'!AC89+'10'!AC89+'11'!AC89 -> -2049 | AD89: ='1'!AD89+'2'!AD89+'3'!AD89+'4'!AD89+'5'!AD89+'6'!AD89+'7'!AD89+'8'!AD89+'9'!AD89+'10'!AD89+'11'!AD89 -> 0 | AE89: ='1'!AE89+'2'!AE89+'3'!AE89+'4'!AE89+'5'!AE89+'6'!AE89+'7'!AE89+'8'!AE89+'9'!AE89+'10'!AE89+'11'!AE89 -> 176 | AF89: ='1'!AF89+'2'!AF89+'3'!AF89+'4'!AF89+'5'!AF89+'6'!AF89+'7'!AF89+'8'!AF89+'9'!AF89+'10'!AF89+'11'!AF89 -> 0 | AG89: 176 | AI89: 0 | AJ89: ='1'!AJ89+'2'!AJ89+'3'!AJ89+'4'!AJ89+'5'!AJ89+'6'!AJ89+'7'!AJ89+'8'!AJ89+'9'!AJ89+'10'!AJ89+'11'!AJ89 -> 0 | AK89: ='1'!AK89+'2'!AK89+'3'!AK89+'4'!AK89+'5'!AK89+'6'!AK89+'7'!AK89+'8'!AK89+'9'!AK89+'10'!AK89+'11'!AK89 -> 0 | AL89: ='1'!AL89+'2'!AL89+'3'!AL89+'4'!AL89+'5'!AL89+'6'!AL89+'7'!AL89+'8'!AL89+'9'!AL89+'10'!AL89+'11'!AL89 -> 0 | AM89: ='1'!AM89+'2'!AM89+'3'!AM89+'4'!AM89+'5'!AM89+'6'!AM89+'7'!AM89+'8'!AM89+'9'!AM89+'10'!AM89+'11'!AM89 -> 0 | AN89: ='1'!AN89+'2'!AN89+'3'!AN89+'4'!AN89+'5'!AN89+'6'!AN89+'7'!AN89+'8'!AN89+'9'!AN89+'10'!AN89+'11'!AN89 -> 0 | AO89: ='1'!AO89+'2'!AO89+'3'!AO89+'4'!AO89+'5'!AO89+'6'!AO89+'7'!AO89+'8'!AO89+'9'!AO89+'10'!AO89+'11'!AO89 -> 0 | AP89: ='1'!AP89+'2'!AP89+'3'!AP89+'4'!AP89+'5'!AP89+'6'!AP89+'7'!AP89+'8'!AP89+'9'!AP89+'10'!AP89+'11'!AP89 -> 0 | AQ89: ='1'!AQ89+'2'!AQ89+'3'!AQ89+'4'!AQ89+'5'!AQ89+'6'!AQ89+'7'!AQ89+'8'!AQ89+'9'!AQ89+'10'!AQ89+'11'!AQ89 -> 0 | AR89: ='1'!AR89+'2'!AR89+'3'!AR89+'4'!AR89+'5'!AR89+'6'!AR89+'7'!AR89+'8'!AR89+'9'!AR89+'10'!AR89+'11'!AR89 -> 0 | AS89: ='1'!AS89+'2'!AS89+'3'!AS89+'4'!AS89+'5'!AS89+'6'!AS89+'7'!AS89+'8'!AS89+'9'!AS89+'10'!AS89+'11'!AS89 -> 0 | AT89: ='1'!AT89+'2'!AT89+'3'!AT89+'4'!AT89+'5'!AT89+'6'!AT89+'7'!AT89+'8'!AT89+'9'!AT89+'10'!AT89+'11'!AT89 -> 0 | AU89: ='1'!AU89+'2'!AU89+'3'!AU89+'4'!AU89+'5'!AU89+'6'!AU89+'7'!AU89+'8'!AU89+'9'!AU89+'10'!AU89+'11'!AU89 -> 0 | AV89: 0 | AW89: ='1'!AW89+'2'!AW89+'3'!AW89+'4'!AW89+'5'!AW89+'6'!AW89+'7'!AW89+'8'!AW89+'9'!AW89+'10'!AW89+'11'!AW89 -> 0 | AX89: ='1'!AX89+'2'!AX89+'3'!AX89+'4'!AX89+'5'!AX89+'6'!AX89+'7'!AX89+'8'!AX89+'9'!AX89+'10'!AX89+'11'!AX89 -> 0 | AY89: ='1'!AY89+'2'!AY89+'3'!AY89+'4'!AY89+'5'!AY89+'6'!AY89+'7'!AY89+'8'!AY89+'9'!AY89+'10'!AY89+'11'!AY89 -> 0 | AZ89: 0
C90: 1 | H90: ='1'!H90 -> Venues and facilities | I90: =SUM('1:11'!I90)+I213 -> 0 | J90: =SUM('1:11'!J90)+J213 -> 30 | K90: =SUM('1:11'!K90)+K213 -> 0 | L90: =SUM('1:11'!L90)+L213 -> 0 | M90: =SUM('1:11'!M90)+M213 -> 0 | N90: =SUM('1:11'!N90)+N213 -> 0 | O90: =SUM('1:11'!O90)+O213 -> 0 | P90: =SUM('1:11'!P90)+P213 -> 0 | Q90: =SUM('1:11'!Q90)+Q213 -> 0 | R90: =SUM('1:11'!R90)+R213 -> 0 | S90: =SUM('1:11'!S90)+S213 -> 14 | T90: =SUM('1:11'!T90)+T213 -> 231 | U90: =SUM($H90:OFFSET($H90,0,$I$2)) -> 0 | V90: 275 | W90: 9096 | Y90: 9371 | Z90: ='1'!Z90+'2'!Z90+'3'!Z90+'4'!Z90+'5'!Z90+'6'!Z90+'7'!Z90+'8'!Z90+'9'!Z90+'10'!Z90+'11'!Z90 -> 7225 | AA90: ='1'!AA90+'2'!AA90+'3'!AA90+'4'!AA90+'5'!AA90+'6'!AA90+'7'!AA90+'8'!AA90+'9'!AA90+'10'!AA90+'11'!AA90 -> 7500 | AB90: ='1'!AB90+'2'!AB90+'3'!AB90+'4'!AB90+'5'!AB90+'6'!AB90+'7'!AB90+'8'!AB90+'9'!AB90+'10'!AB90+'11'!AB90 -> 1930 | AC90: ='1'!AC90+'2'!AC90+'3'!AC90+'4'!AC90+'5'!AC90+'6'!AC90+'7'!AC90+'8'!AC90+'9'!AC90+'10'!AC90+'11'!AC90 -> 1871 | AD90: ='1'!AD90+'2'!AD90+'3'!AD90+'4'!AD90+'5'!AD90+'6'!AD90+'7'!AD90+'8'!AD90+'9'!AD90+'10'!AD90+'11'!AD90 -> 0 | AE90: ='1'!AE90+'2'!AE90+'3'!AE90+'4'!AE90+'5'!AE90+'6'!AE90+'7'!AE90+'8'!AE90+'9'!AE90+'10'!AE90+'11'!AE90 -> -59 | AF90: ='1'!AF90+'2'!AF90+'3'!AF90+'4'!AF90+'5'!AF90+'6'!AF90+'7'!AF90+'8'!AF90+'9'!AF90+'10'!AF90+'11'!AF90 -> 0 | AG90: -59 | AI90: 0 | AJ90: ='1'!AJ90+'2'!AJ90+'3'!AJ90+'4'!AJ90+'5'!AJ90+'6'!AJ90+'7'!AJ90+'8'!AJ90+'9'!AJ90+'10'!AJ90+'11'!AJ90 -> 0 | AK90: ='1'!AK90+'2'!AK90+'3'!AK90+'4'!AK90+'5'!AK90+'6'!AK90+'7'!AK90+'8'!AK90+'9'!AK90+'10'!AK90+'11'!AK90 -> 0 | AL90: ='1'!AL90+'2'!AL90+'3'!AL90+'4'!AL90+'5'!AL90+'6'!AL90+'7'!AL90+'8'!AL90+'9'!AL90+'10'!AL90+'11'!AL90 -> 0 | AM90: ='1'!AM90+'2'!AM90+'3'!AM90+'4'!AM90+'5'!AM90+'6'!AM90+'7'!AM90+'8'!AM90+'9'!AM90+'10'!AM90+'11'!AM90 -> 0 | AN90: ='1'!AN90+'2'!AN90+'3'!AN90+'4'!AN90+'5'!AN90+'6'!AN90+'7'!AN90+'8'!AN90+'9'!AN90+'10'!AN90+'11'!AN90 -> 0 | AO90: ='1'!AO90+'2'!AO90+'3'!AO90+'4'!AO90+'5'!AO90+'6'!AO90+'7'!AO90+'8'!AO90+'9'!AO90+'10'!AO90+'11'!AO90 -> 0 | AP90: ='1'!AP90+'2'!AP90+'3'!AP90+'4'!AP90+'5'!AP90+'6'!AP90+'7'!AP90+'8'!AP90+'9'!AP90+'10'!AP90+'11'!AP90 -> 0 | AQ90: ='1'!AQ90+'2'!AQ90+'3'!AQ90+'4'!AQ90+'5'!AQ90+'6'!AQ90+'7'!AQ90+'8'!AQ90+'9'!AQ90+'10'!AQ90+'11'!AQ90 -> 0 | AR90: ='1'!AR90+'2'!AR90+'3'!AR90+'4'!AR90+'5'!AR90+'6'!AR90+'7'!AR90+'8'!AR90+'9'!AR90+'10'!AR90+'11'!AR90 -> 0 | AS90: ='1'!AS90+'2'!AS90+'3'!AS90+'4'!AS90+'5'!AS90+'6'!AS90+'7'!AS90+'8'!AS90+'9'!AS90+'10'!AS90+'11'!AS90 -> 0 | AT90: ='1'!AT90+'2'!AT90+'3'!AT90+'4'!AT90+'5'!AT90+'6'!AT90+'7'!AT90+'8'!AT90+'9'!AT90+'10'!AT90+'11'!AT90 -> 0 | AU90: ='1'!AU90+'2'!AU90+'3'!AU90+'4'!AU90+'5'!AU90+'6'!AU90+'7'!AU90+'8'!AU90+'9'!AU90+'10'!AU90+'11'!AU90 -> 0 | AV90: 0 | AW90: ='1'!AW90+'2'!AW90+'3'!AW90+'4'!AW90+'5'!AW90+'6'!AW90+'7'!AW90+'8'!AW90+'9'!AW90+'10'!AW90+'11'!AW90 -> 0 | AX90: ='1'!AX90+'2'!AX90+'3'!AX90+'4'!AX90+'5'!AX90+'6'!AX90+'7'!AX90+'8'!AX90+'9'!AX90+'10'!AX90+'11'!AX90 -> 0 | AY90: ='1'!AY90+'2'!AY90+'3'!AY90+'4'!AY90+'5'!AY90+'6'!AY90+'7'!AY90+'8'!AY90+'9'!AY90+'10'!AY90+'11'!AY90 -> 0 | AZ90: 0
C91: 1 | H91: ='1'!H91 -> Interest and rent on land | I91: =SUM('1:11'!I91)+I214 -> 0 | J91: =SUM('1:11'!J91)+J214 -> 0 | K91: =SUM('1:11'!K91)+K214 -> 0 | L91: =SUM('1:11'!L91)+L214 -> 0 | M91: =SUM('1:11'!M91)+M214 -> 0 | N91: =SUM('1:11'!N91)+N214 -> 0 | O91: =SUM('1:11'!O91)+O214 -> 0 | P91: =SUM('1:11'!P91)+P214 -> 0 | Q91: =SUM('1:11'!Q91)+Q214 -> 0 | R91: =SUM('1:11'!R91)+R214 -> 0 | S91: =SUM('1:11'!S91)+S214 -> 0 | T91: =SUM('1:11'!T91)+T214 -> 0 | U91: =SUM($H91:OFFSET($H91,0,$I$2)) -> 0 | V91: 0 | W91: 181099034 | Y91: 181099034 | Z91: ='1'!Z91+'2'!Z91+'3'!Z91+'4'!Z91+'5'!Z91+'6'!Z91+'7'!Z91+'8'!Z91+'9'!Z91+'10'!Z91+'11'!Z91 -> 0 | AA91: ='1'!AA91+'2'!AA91+'3'!AA91+'4'!AA91+'5'!AA91+'6'!AA91+'7'!AA91+'8'!AA91+'9'!AA91+'10'!AA91+'11'!AA91 -> 180123990 | AB91: ='1'!AB91+'2'!AB91+'3'!AB91+'4'!AB91+'5'!AB91+'6'!AB91+'7'!AB91+'8'!AB91+'9'!AB91+'10'!AB91+'11'!AB91 -> 0 | AC91: ='1'!AC91+'2'!AC91+'3'!AC91+'4'!AC91+'5'!AC91+'6'!AC91+'7'!AC91+'8'!AC91+'9'!AC91+'10'!AC91+'11'!AC91 -> 975044 | AD91: ='1'!AD91+'2'!AD91+'3'!AD91+'4'!AD91+'5'!AD91+'6'!AD91+'7'!AD91+'8'!AD91+'9'!AD91+'10'!AD91+'11'!AD91 -> 0 | AE91: ='1'!AE91+'2'!AE91+'3'!AE91+'4'!AE91+'5'!AE91+'6'!AE91+'7'!AE91+'8'!AE91+'9'!AE91+'10'!AE91+'11'!AE91 -> 0 | AF91: ='1'!AF91+'2'!AF91+'3'!AF91+'4'!AF91+'5'!AF91+'6'!AF91+'7'!AF91+'8'!AF91+'9'!AF91+'10'!AF91+'11'!AF91 -> 0 | AG91: 0 | AI91: 0 | AJ91: ='1'!AJ91+'2'!AJ91+'3'!AJ91+'4'!AJ91+'5'!AJ91+'6'!AJ91+'7'!AJ91+'8'!AJ91+'9'!AJ91+'10'!AJ91+'11'!AJ91 -> 0 | AK91: ='1'!AK91+'2'!AK91+'3'!AK91+'4'!AK91+'5'!AK91+'6'!AK91+'7'!AK91+'8'!AK91+'9'!AK91+'10'!AK91+'11'!AK91 -> 0 | AL91: ='1'!AL91+'2'!AL91+'3'!AL91+'4'!AL91+'5'!AL91+'6'!AL91+'7'!AL91+'8'!AL91+'9'!AL91+'10'!AL91+'11'!AL91 -> 0 | AM91: ='1'!AM91+'2'!AM91+'3'!AM91+'4'!AM91+'5'!AM91+'6'!AM91+'7'!AM91+'8'!AM91+'9'!AM91+'10'!AM91+'11'!AM91 -> 0 | AN91: ='1'!AN91+'2'!AN91+'3'!AN91+'4'!AN91+'5'!AN91+'6'!AN91+'7'!AN91+'8'!AN91+'9'!AN91+'10'!AN91+'11'!AN91 -> 0 | AO91: ='1'!AO91+'2'!AO91+'3'!AO91+'4'!AO91+'5'!AO91+'6'!AO91+'7'!AO91+'8'!AO91+'9'!AO91+'10'!AO91+'11'!AO91 -> 0 | AP91: ='1'!AP91+'2'!AP91+'3'!AP91+'4'!AP91+'5'!AP91+'6'!AP91+'7'!AP91+'8'!AP91+'9'!AP91+'10'!AP91+'11'!AP91 -> 0 | AQ91: ='1'!AQ91+'2'!AQ91+'3'!AQ91+'4'!AQ91+'5'!AQ91+'6'!AQ91+'7'!AQ91+'8'!AQ91+'9'!AQ91+'10'!AQ91+'11'!AQ91 -> 0 | AR91: ='1'!AR91+'2'!AR91+'3'!AR91+'4'!AR91+'5'!AR91+'6'!AR91+'7'!AR91+'8'!AR91+'9'!AR91+'10'!AR91+'11'!AR91 -> 0 | AS91: ='1'!AS91+'2'!AS91+'3'!AS91+'4'!AS91+'5'!AS91+'6'!AS91+'7'!AS91+'8'!AS91+'9'!AS91+'10'!AS91+'11'!AS91 -> 0 | AT91: ='1'!AT91+'2'!AT91+'3'!AT91+'4'!AT91+'5'!AT91+'6'!AT91+'7'!AT91+'8'!AT91+'9'!AT91+'10'!AT91+'11'!AT91 -> 0 | AU91: ='1'!AU91+'2'!AU91+'3'!AU91+'4'!AU91+'5'!AU91+'6'!AU91+'7'!AU91+'8'!AU91+'9'!AU91+'10'!AU91+'11'!AU91 -> 0 | AV91: 0 | AW91: ='1'!AW91+'2'!AW91+'3'!AW91+'4'!AW91+'5'!AW91+'6'!AW91+'7'!AW91+'8'!AW91+'9'!AW91+'10'!AW91+'11'!AW91 -> 0 | AX91: ='1'!AX91+'2'!AX91+'3'!AX91+'4'!AX91+'5'!AX91+'6'!AX91+'7'!AX91+'8'!AX91+'9'!AX91+'10'!AX91+'11'!AX91 -> 0 | AY91: ='1'!AY91+'2'!AY91+'3'!AY91+'4'!AY91+'5'!AY91+'6'!AY91+'7'!AY91+'8'!AY91+'9'!AY91+'10'!AY91+'11'!AY91 -> 0 | AZ91: 0
C92: 1 | H92: ='1'!H92 -> Interest (Incl. interest on unitary payments (PPP)) | I92: =SUM('1:11'!I92)+I215 -> 0 | J92: =SUM('1:11'!J92)+J215 -> 0 | K92: =SUM('1:11'!K92)+K215 -> 0 | L92: =SUM('1:11'!L92)+L215 -> 0 | M92: =SUM('1:11'!M92)+M215 -> 0 | N92: =SUM('1:11'!N92)+N215 -> 0 | O92: =SUM('1:11'!O92)+O215 -> 0 | P92: =SUM('1:11'!P92)+P215 -> 0 | Q92: =SUM('1:11'!Q92)+Q215 -> 0 | R92: =SUM('1:11'!R92)+R215 -> 0 | S92: =SUM('1:11'!S92)+S215 -> 0 | T92: =SUM('1:11'!T92)+T215 -> 0 | U92: =SUM($H92:OFFSET($H92,0,$I$2)) -> 0 | V92: 0 | W92: 181099034 | Y92: 181099034 | Z92: ='1'!Z92+'2'!Z92+'3'!Z92+'4'!Z92+'5'!Z92+'6'!Z92+'7'!Z92+'8'!Z92+'9'!Z92+'10'!Z92+'11'!Z92 -> 0 | AA92: ='1'!AA92+'2'!AA92+'3'!AA92+'4'!AA92+'5'!AA92+'6'!AA92+'7'!AA92+'8'!AA92+'9'!AA92+'10'!AA92+'11'!AA92 -> 180123990 | AB92: ='1'!AB92+'2'!AB92+'3'!AB92+'4'!AB92+'5'!AB92+'6'!AB92+'7'!AB92+'8'!AB92+'9'!AB92+'10'!AB92+'11'!AB92 -> 0 | AC92: ='1'!AC92+'2'!AC92+'3'!AC92+'4'!AC92+'5'!AC92+'6'!AC92+'7'!AC92+'8'!AC92+'9'!AC92+'10'!AC92+'11'!AC92 -> 975044 | AD92: ='1'!AD92+'2'!AD92+'3'!AD92+'4'!AD92+'5'!AD92+'6'!AD92+'7'!AD92+'8'!AD92+'9'!AD92+'10'!AD92+'11'!AD92 -> 0 | AE92: ='1'!AE92+'2'!AE92+'3'!AE92+'4'!AE92+'5'!AE92+'6'!AE92+'7'!AE92+'8'!AE92+'9'!AE92+'10'!AE92+'11'!AE92 -> 0 | AF92: ='1'!AF92+'2'!AF92+'3'!AF92+'4'!AF92+'5'!AF92+'6'!AF92+'7'!AF92+'8'!AF92+'9'!AF92+'10'!AF92+'11'!AF92 -> 0 | AG92: 0 | AI92: 0 | AJ92: ='1'!AJ92+'2'!AJ92+'3'!AJ92+'4'!AJ92+'5'!AJ92+'6'!AJ92+'7'!AJ92+'8'!AJ92+'9'!AJ92+'10'!AJ92+'11'!AJ92 -> 0 | AK92: ='1'!AK92+'2'!AK92+'3'!AK92+'4'!AK92+'5'!AK92+'6'!AK92+'7'!AK92+'8'!AK92+'9'!AK92+'10'!AK92+'11'!AK92 -> 0 | AL92: ='1'!AL92+'2'!AL92+'3'!AL92+'4'!AL92+'5'!AL92+'6'!AL92+'7'!AL92+'8'!AL92+'9'!AL92+'10'!AL92+'11'!AL92 -> 0 | AM92: ='1'!AM92+'2'!AM92+'3'!AM92+'4'!AM92+'5'!AM92+'6'!AM92+'7'!AM92+'8'!AM92+'9'!AM92+'10'!AM92+'11'!AM92 -> 0 | AN92: ='1'!AN92+'2'!AN92+'3'!AN92+'4'!AN92+'5'!AN92+'6'!AN92+'7'!AN92+'8'!AN92+'9'!AN92+'10'!AN92+'11'!AN92 -> 0 | AO92: ='1'!AO92+'2'!AO92+'3'!AO92+'4'!AO92+'5'!AO92+'6'!AO92+'7'!AO92+'8'!AO92+'9'!AO92+'10'!AO92+'11'!AO92 -> 0 | AP92: ='1'!AP92+'2'!AP92+'3'!AP92+'4'!AP92+'5'!AP92+'6'!AP92+'7'!AP92+'8'!AP92+'9'!AP92+'10'!AP92+'11'!AP92 -> 0 | AQ92: ='1'!AQ92+'2'!AQ92+'3'!AQ92+'4'!AQ92+'5'!AQ92+'6'!AQ92+'7'!AQ92+'8'!AQ92+'9'!AQ92+'10'!AQ92+'11'!AQ92 -> 0 | AR92: ='1'!AR92+'2'!AR92+'3'!AR92+'4'!AR92+'5'!AR92+'6'!AR92+'7'!AR92+'8'!AR92+'9'!AR92+'10'!AR92+'11'!AR92 -> 0 | AS92: ='1'!AS92+'2'!AS92+'3'!AS92+'4'!AS92+'5'!AS92+'6'!AS92+'7'!AS92+'8'!AS92+'9'!AS92+'10'!AS92+'11'!AS92 -> 0 | AT92: ='1'!AT92+'2'!AT92+'3'!AT92+'4'!AT92+'5'!AT92+'6'!AT92+'7'!AT92+'8'!AT92+'9'!AT92+'10'!AT92+'11'!AT92 -> 0 | AU92: ='1'!AU92+'2'!AU92+'3'!AU92+'4'!AU92+'5'!AU92+'6'!AU92+'7'!AU92+'8'!AU92+'9'!AU92+'10'!AU92+'11'!AU92 -> 0 | AV92: 0 | AW92: ='1'!AW92+'2'!AW92+'3'!AW92+'4'!AW92+'5'!AW92+'6'!AW92+'7'!AW92+'8'!AW92+'9'!AW92+'10'!AW92+'11'!AW92 -> 0 | AX92: ='1'!AX92+'2'!AX92+'3'!AX92+'4'!AX92+'5'!AX92+'6'!AX92+'7'!AX92+'8'!AX92+'9'!AX92+'10'!AX92+'11'!AX92 -> 0 | AY92: ='1'!AY92+'2'!AY92+'3'!AY92+'4'!AY92+'5'!AY92+'6'!AY92+'7'!AY92+'8'!AY92+'9'!AY92+'10'!AY92+'11'!AY92 -> 0 | AZ92: 0
C93: 1 | H93: ='1'!H93 -> Rent on land | I93: =SUM('1:11'!I93)+I216 -> 0 | J93: =SUM('1:11'!J93)+J216 -> 0 | K93: =SUM('1:11'!K93)+K216 -> 0 | L93: =SUM('1:11'!L93)+L216 -> 0 | M93: =SUM('1:11'!M93)+M216 -> 0 | N93: =SUM('1:11'!N93)+N216 -> 0 | O93: =SUM('1:11'!O93)+O216 -> 0 | P93: =SUM('1:11'!P93)+P216 -> 0 | Q93: =SUM('1:11'!Q93)+Q216 -> 0 | R93: =SUM('1:11'!R93)+R216 -> 0 | S93: =SUM('1:11'!S93)+S216 -> 0 | T93: =SUM('1:11'!T93)+T216 -> 0 | U93: =SUM($H93:OFFSET($H93,0,$I$2)) -> 0 | V93: 0 | W93: 0 | Y93: 0 | Z93: ='1'!Z93+'2'!Z93+'3'!Z93+'4'!Z93+'5'!Z93+'6'!Z93+'7'!Z93+'8'!Z93+'9'!Z93+'10'!Z93+'11'!Z93 -> 0 | AA93: ='1'!AA93+'2'!AA93+'3'!AA93+'4'!AA93+'5'!AA93+'6'!AA93+'7'!AA93+'8'!AA93+'9'!AA93+'10'!AA93+'11'!AA93 -> 0 | AB93: ='1'!AB93+'2'!AB93+'3'!AB93+'4'!AB93+'5'!AB93+'6'!AB93+'7'!AB93+'8'!AB93+'9'!AB93+'10'!AB93+'11'!AB93 -> 0 | AC93: ='1'!AC93+'2'!AC93+'3'!AC93+'4'!AC93+'5'!AC93+'6'!AC93+'7'!AC93+'8'!AC93+'9'!AC93+'10'!AC93+'11'!AC93 -> 0 | AD93: ='1'!AD93+'2'!AD93+'3'!AD93+'4'!AD93+'5'!AD93+'6'!AD93+'7'!AD93+'8'!AD93+'9'!AD93+'10'!AD93+'11'!AD93 -> 0 | AE93: ='1'!AE93+'2'!AE93+'3'!AE93+'4'!AE93+'5'!AE93+'6'!AE93+'7'!AE93+'8'!AE93+'9'!AE93+'10'!AE93+'11'!AE93 -> 0 | AF93: ='1'!AF93+'2'!AF93+'3'!AF93+'4'!AF93+'5'!AF93+'6'!AF93+'7'!AF93+'8'!AF93+'9'!AF93+'10'!AF93+'11'!AF93 -> 0 | AG93: 0 | AI93: 0 | AJ93: ='1'!AJ93+'2'!AJ93+'3'!AJ93+'4'!AJ93+'5'!AJ93+'6'!AJ93+'7'!AJ93+'8'!AJ93+'9'!AJ93+'10'!AJ93+'11'!AJ93 -> 0 | AK93: ='1'!AK93+'2'!AK93+'3'!AK93+'4'!AK93+'5'!AK93+'6'!AK93+'7'!AK93+'8'!AK93+'9'!AK93+'10'!AK93+'11'!AK93 -> 0 | AL93: ='1'!AL93+'2'!AL93+'3'!AL93+'4'!AL93+'5'!AL93+'6'!AL93+'7'!AL93+'8'!AL93+'9'!AL93+'10'!AL93+'11'!AL93 -> 0 | AM93: ='1'!AM93+'2'!AM93+'3'!AM93+'4'!AM93+'5'!AM93+'6'!AM93+'7'!AM93+'8'!AM93+'9'!AM93+'10'!AM93+'11'!AM93 -> 0 | AN93: ='1'!AN93+'2'!AN93+'3'!AN93+'4'!AN93+'5'!AN93+'6'!AN93+'7'!AN93+'8'!AN93+'9'!AN93+'10'!AN93+'11'!AN93 -> 0 | AO93: ='1'!AO93+'2'!AO93+'3'!AO93+'4'!AO93+'5'!AO93+'6'!AO93+'7'!AO93+'8'!AO93+'9'!AO93+'10'!AO93+'11'!AO93 -> 0 | AP93: ='1'!AP93+'2'!AP93+'3'!AP93+'4'!AP93+'5'!AP93+'6'!AP93+'7'!AP93+'8'!AP93+'9'!AP93+'10'!AP93+'11'!AP93 -> 0 | AQ93: ='1'!AQ93+'2'!AQ93+'3'!AQ93+'4'!AQ93+'5'!AQ93+'6'!AQ93+'7'!AQ93+'8'!AQ93+'9'!AQ93+'10'!AQ93+'11'!AQ93 -> 0 | AR93: ='1'!AR93+'2'!AR93+'3'!AR93+'4'!AR93+'5'!AR93+'6'!AR93+'7'!AR93+'8'!AR93+'9'!AR93+'10'!AR93+'11'!AR93 -> 0 | AS93: ='1'!AS93+'2'!AS93+'3'!AS93+'4'!AS93+'5'!AS93+'6'!AS93+'7'!AS93+'8'!AS93+'9'!AS93+'10'!AS93+'11'!AS93 -> 0 | AT93: ='1'!AT93+'2'!AT93+'3'!AT93+'4'!AT93+'5'!AT93+'6'!AT93+'7'!AT93+'8'!AT93+'9'!AT93+'10'!AT93+'11'!AT93 -> 0 | AU93: ='1'!AU93+'2'!AU93+'3'!AU93+'4'!AU93+'5'!AU93+'6'!AU93+'7'!AU93+'8'!AU93+'9'!AU93+'10'!AU93+'11'!AU93 -> 0 | AV93: 0 | AW93: ='1'!AW93+'2'!AW93+'3'!AW93+'4'!AW93+'5'!AW93+'6'!AW93+'7'!AW93+'8'!AW93+'9'!AW93+'10'!AW93+'11'!AW93 -> 0 | AX93: ='1'!AX93+'2'!AX93+'3'!AX93+'4'!AX93+'5'!AX93+'6'!AX93+'7'!AX93+'8'!AX93+'9'!AX93+'10'!AX93+'11'!AX93 -> 0 | AY93: ='1'!AY93+'2'!AY93+'3'!AY93+'4'!AY93+'5'!AY93+'6'!AY93+'7'!AY93+'8'!AY93+'9'!AY93+'10'!AY93+'11'!AY93 -> 0 | AZ93: 0
C94: 1 | H94: ='1'!H94 -> Transfers and Subsidies | I94: =SUM('1:11'!I94)+I217 -> 0 | J94: =SUM('1:11'!J94)+J217 -> 0 | K94: =SUM('1:11'!K94)+K217 -> 0 | L94: =SUM('1:11'!L94)+L217 -> 0 | M94: =SUM('1:11'!M94)+M217 -> 0 | N94: =SUM('1:11'!N94)+N217 -> 0 | O94: =SUM('1:11'!O94)+O217 -> 0 | P94: =SUM('1:11'!P94)+P217 -> 0 | Q94: =SUM('1:11'!Q94)+Q217 -> 0 | R94: =SUM('1:11'!R94)+R217 -> 0 | S94: =SUM('1:11'!S94)+S217 -> 0 | T94: =SUM('1:11'!T94)+T217 -> 0 | U94: =SUM($H94:OFFSET($H94,0,$I$2)) -> 0 | V94: 0 | W94: 505168185 | Y94: 505168185 | Z94: ='1'!Z94+'2'!Z94+'3'!Z94+'4'!Z94+'5'!Z94+'6'!Z94+'7'!Z94+'8'!Z94+'9'!Z94+'10'!Z94+'11'!Z94 -> 505173943 | AA94: ='1'!AA94+'2'!AA94+'3'!AA94+'4'!AA94+'5'!AA94+'6'!AA94+'7'!AA94+'8'!AA94+'9'!AA94+'10'!AA94+'11'!AA94 -> 505178047 | AB94: ='1'!AB94+'2'!AB94+'3'!AB94+'4'!AB94+'5'!AB94+'6'!AB94+'7'!AB94+'8'!AB94+'9'!AB94+'10'!AB94+'11'!AB94 -> -9862 | AC94: ='1'!AC94+'2'!AC94+'3'!AC94+'4'!AC94+'5'!AC94+'6'!AC94+'7'!AC94+'8'!AC94+'9'!AC94+'10'!AC94+'11'!AC94 -> -9862 | AD94: ='1'!AD94+'2'!AD94+'3'!AD94+'4'!AD94+'5'!AD94+'6'!AD94+'7'!AD94+'8'!AD94+'9'!AD94+'10'!AD94+'11'!AD94 -> -66937 | AE94: ='1'!AE94+'2'!AE94+'3'!AE94+'4'!AE94+'5'!AE94+'6'!AE94+'7'!AE94+'8'!AE94+'9'!AE94+'10'!AE94+'11'!AE94 -> 0 | AF94: ='1'!AF94+'2'!AF94+'3'!AF94+'4'!AF94+'5'!AF94+'6'!AF94+'7'!AF94+'8'!AF94+'9'!AF94+'10'!AF94+'11'!AF94 -> 0 | AG94: -66937 | AI94: 0 | AJ94: ='1'!AJ94+'2'!AJ94+'3'!AJ94+'4'!AJ94+'5'!AJ94+'6'!AJ94+'7'!AJ94+'8'!AJ94+'9'!AJ94+'10'!AJ94+'11'!AJ94 -> 0 | AK94: ='1'!AK94+'2'!AK94+'3'!AK94+'4'!AK94+'5'!AK94+'6'!AK94+'7'!AK94+'8'!AK94+'9'!AK94+'10'!AK94+'11'!AK94 -> 0 | AL94: ='1'!AL94+'2'!AL94+'3'!AL94+'4'!AL94+'5'!AL94+'6'!AL94+'7'!AL94+'8'!AL94+'9'!AL94+'10'!AL94+'11'!AL94 -> 0 | AM94: ='1'!AM94+'2'!AM94+'3'!AM94+'4'!AM94+'5'!AM94+'6'!AM94+'7'!AM94+'8'!AM94+'9'!AM94+'10'!AM94+'11'!AM94 -> 0 | AN94: ='1'!AN94+'2'!AN94+'3'!AN94+'4'!AN94+'5'!AN94+'6'!AN94+'7'!AN94+'8'!AN94+'9'!AN94+'10'!AN94+'11'!AN94 -> 0 | AO94: ='1'!AO94+'2'!AO94+'3'!AO94+'4'!AO94+'5'!AO94+'6'!AO94+'7'!AO94+'8'!AO94+'9'!AO94+'10'!AO94+'11'!AO94 -> 0 | AP94: ='1'!AP94+'2'!AP94+'3'!AP94+'4'!AP94+'5'!AP94+'6'!AP94+'7'!AP94+'8'!AP94+'9'!AP94+'10'!AP94+'11'!AP94 -> 0 | AQ94: ='1'!AQ94+'2'!AQ94+'3'!AQ94+'4'!AQ94+'5'!AQ94+'6'!AQ94+'7'!AQ94+'8'!AQ94+'9'!AQ94+'10'!AQ94+'11'!AQ94 -> 0 | AR94: ='1'!AR94+'2'!AR94+'3'!AR94+'4'!AR94+'5'!AR94+'6'!AR94+'7'!AR94+'8'!AR94+'9'!AR94+'10'!AR94+'11'!AR94 -> 0 | AS94: ='1'!AS94+'2'!AS94+'3'!AS94+'4'!AS94+'5'!AS94+'6'!AS94+'7'!AS94+'8'!AS94+'9'!AS94+'10'!AS94+'11'!AS94 -> 0 | AT94: ='1'!AT94+'2'!AT94+'3'!AT94+'4'!AT94+'5'!AT94+'6'!AT94+'7'!AT94+'8'!AT94+'9'!AT94+'10'!AT94+'11'!AT94 -> 0 | AU94: ='1'!AU94+'2'!AU94+'3'!AU94+'4'!AU94+'5'!AU94+'6'!AU94+'7'!AU94+'8'!AU94+'9'!AU94+'10'!AU94+'11'!AU94 -> 0 | AV94: 0 | AW94: ='1'!AW94+'2'!AW94+'3'!AW94+'4'!AW94+'5'!AW94+'6'!AW94+'7'!AW94+'8'!AW94+'9'!AW94+'10'!AW94+'11'!AW94 -> 0 | AX94: ='1'!AX94+'2'!AX94+'3'!AX94+'4'!AX94+'5'!AX94+'6'!AX94+'7'!AX94+'8'!AX94+'9'!AX94+'10'!AX94+'11'!AX94 -> 0 | AY94: ='1'!AY94+'2'!AY94+'3'!AY94+'4'!AY94+'5'!AY94+'6'!AY94+'7'!AY94+'8'!AY94+'9'!AY94+'10'!AY94+'11'!AY94 -> 0 | AZ94: 0
C95: 1 | H95: ='1'!H95 -> Provinces and Municipalities | I95: =SUM('1:11'!I95)+I218 -> 0 | J95: =SUM('1:11'!J95)+J218 -> 0 | K95: =SUM('1:11'!K95)+K218 -> 0 | L95: =SUM('1:11'!L95)+L218 -> 0 | M95: =SUM('1:11'!M95)+M218 -> 0 | N95: =SUM('1:11'!N95)+N218 -> 0 | O95: =SUM('1:11'!O95)+O218 -> 0 | P95: =SUM('1:11'!P95)+P218 -> 0 | Q95: =SUM('1:11'!Q95)+Q218 -> 0 | R95: =SUM('1:11'!R95)+R218 -> 0 | S95: =SUM('1:11'!S95)+S218 -> 0 | T95: =SUM('1:11'!T95)+T218 -> 0 | U95: =SUM($H95:OFFSET($H95,0,$I$2)) -> 0 | V95: 0 | W95: 484296598 | Y95: 484296598 | Z95: ='1'!Z95+'2'!Z95+'3'!Z95+'4'!Z95+'5'!Z95+'6'!Z95+'7'!Z95+'8'!Z95+'9'!Z95+'10'!Z95+'11'!Z95 -> 484296598 | AA95: ='1'!AA95+'2'!AA95+'3'!AA95+'4'!AA95+'5'!AA95+'6'!AA95+'7'!AA95+'8'!AA95+'9'!AA95+'10'!AA95+'11'!AA95 -> 484296598 | AB95: ='1'!AB95+'2'!AB95+'3'!AB95+'4'!AB95+'5'!AB95+'6'!AB95+'7'!AB95+'8'!AB95+'9'!AB95+'10'!AB95+'11'!AB95 -> 0 | AC95: ='1'!AC95+'2'!AC95+'3'!AC95+'4'!AC95+'5'!AC95+'6'!AC95+'7'!AC95+'8'!AC95+'9'!AC95+'10'!AC95+'11'!AC95 -> 0 | AD95: ='1'!AD95+'2'!AD95+'3'!AD95+'4'!AD95+'5'!AD95+'6'!AD95+'7'!AD95+'8'!AD95+'9'!AD95+'10'!AD95+'11'!AD95 -> 0 | AE95: ='1'!AE95+'2'!AE95+'3'!AE95+'4'!AE95+'5'!AE95+'6'!AE95+'7'!AE95+'8'!AE95+'9'!AE95+'10'!AE95+'11'!AE95 -> 0 | AF95: ='1'!AF95+'2'!AF95+'3'!AF95+'4'!AF95+'5'!AF95+'6'!AF95+'7'!AF95+'8'!AF95+'9'!AF95+'10'!AF95+'11'!AF95 -> 0 | AG95: 0 | AI95: 0 | AJ95: ='1'!AJ95+'2'!AJ95+'3'!AJ95+'4'!AJ95+'5'!AJ95+'6'!AJ95+'7'!AJ95+'8'!AJ95+'9'!AJ95+'10'!AJ95+'11'!AJ95 -> 0 | AK95: ='1'!AK95+'2'!AK95+'3'!AK95+'4'!AK95+'5'!AK95+'6'!AK95+'7'!AK95+'8'!AK95+'9'!AK95+'10'!AK95+'11'!AK95 -> 0 | AL95: ='1'!AL95+'2'!AL95+'3'!AL95+'4'!AL95+'5'!AL95+'6'!AL95+'7'!AL95+'8'!AL95+'9'!AL95+'10'!AL95+'11'!AL95 -> 0 | AM95: ='1'!AM95+'2'!AM95+'3'!AM95+'4'!AM95+'5'!AM95+'6'!AM95+'7'!AM95+'8'!AM95+'9'!AM95+'10'!AM95+'11'!AM95 -> 0 | AN95: ='1'!AN95+'2'!AN95+'3'!AN95+'4'!AN95+'5'!AN95+'6'!AN95+'7'!AN95+'8'!AN95+'9'!AN95+'10'!AN95+'11'!AN95 -> 0 | AO95: ='1'!AO95+'2'!AO95+'3'!AO95+'4'!AO95+'5'!AO95+'6'!AO95+'7'!AO95+'8'!AO95+'9'!AO95+'10'!AO95+'11'!AO95 -> 0 | AP95: ='1'!AP95+'2'!AP95+'3'!AP95+'4'!AP95+'5'!AP95+'6'!AP95+'7'!AP95+'8'!AP95+'9'!AP95+'10'!AP95+'11'!AP95 -> 0 | AQ95: ='1'!AQ95+'2'!AQ95+'3'!AQ95+'4'!AQ95+'5'!AQ95+'6'!AQ95+'7'!AQ95+'8'!AQ95+'9'!AQ95+'10'!AQ95+'11'!AQ95 -> 0 | AR95: ='1'!AR95+'2'!AR95+'3'!AR95+'4'!AR95+'5'!AR95+'6'!AR95+'7'!AR95+'8'!AR95+'9'!AR95+'10'!AR95+'11'!AR95 -> 0 | AS95: ='1'!AS95+'2'!AS95+'3'!AS95+'4'!AS95+'5'!AS95+'6'!AS95+'7'!AS95+'8'!AS95+'9'!AS95+'10'!AS95+'11'!AS95 -> 0 | AT95: ='1'!AT95+'2'!AT95+'3'!AT95+'4'!AT95+'5'!AT95+'6'!AT95+'7'!AT95+'8'!AT95+'9'!AT95+'10'!AT95+'11'!AT95 -> 0 | AU95: ='1'!AU95+'2'!AU95+'3'!AU95+'4'!AU95+'5'!AU95+'6'!AU95+'7'!AU95+'8'!AU95+'9'!AU95+'10'!AU95+'11'!AU95 -> 0 | AV95: 0 | AW95: ='1'!AW95+'2'!AW95+'3'!AW95+'4'!AW95+'5'!AW95+'6'!AW95+'7'!AW95+'8'!AW95+'9'!AW95+'10'!AW95+'11'!AW95 -> 0 | AX95: ='1'!AX95+'2'!AX95+'3'!AX95+'4'!AX95+'5'!AX95+'6'!AX95+'7'!AX95+'8'!AX95+'9'!AX95+'10'!AX95+'11'!AX95 -> 0 | AY95: ='1'!AY95+'2'!AY95+'3'!AY95+'4'!AY95+'5'!AY95+'6'!AY95+'7'!AY95+'8'!AY95+'9'!AY95+'10'!AY95+'11'!AY95 -> 0 | AZ95: 0
C96: 1 | H96: ='1'!H96 -> Provinces | I96: =SUM('1:11'!I96)+I219 -> 0 | J96: =SUM('1:11'!J96)+J219 -> 0 | K96: =SUM('1:11'!K96)+K219 -> 0 | L96: =SUM('1:11'!L96)+L219 -> 0 | M96: =SUM('1:11'!M96)+M219 -> 0 | N96: =SUM('1:11'!N96)+N219 -> 0 | O96: =SUM('1:11'!O96)+O219 -> 0 | P96: =SUM('1:11'!P96)+P219 -> 0 | Q96: =SUM('1:11'!Q96)+Q219 -> 0 | R96: =SUM('1:11'!R96)+R219 -> 0 | S96: =SUM('1:11'!S96)+S219 -> 0 | T96: =SUM('1:11'!T96)+T219 -> 0 | U96: =SUM($H96:OFFSET($H96,0,$I$2)) -> 0 | V96: 0 | W96: 470286510 | Y96: 470286510 | Z96: ='1'!Z96+'2'!Z96+'3'!Z96+'4'!Z96+'5'!Z96+'6'!Z96+'7'!Z96+'8'!Z96+'9'!Z96+'10'!Z96+'11'!Z96 -> 470286510 | AA96: ='1'!AA96+'2'!AA96+'3'!AA96+'4'!AA96+'5'!AA96+'6'!AA96+'7'!AA96+'8'!AA96+'9'!AA96+'10'!AA96+'11'!AA96 -> 470286510 | AB96: ='1'!AB96+'2'!AB96+'3'!AB96+'4'!AB96+'5'!AB96+'6'!AB96+'7'!AB96+'8'!AB96+'9'!AB96+'10'!AB96+'11'!AB96 -> 0 | AC96: ='1'!AC96+'2'!AC96+'3'!AC96+'4'!AC96+'5'!AC96+'6'!AC96+'7'!AC96+'8'!AC96+'9'!AC96+'10'!AC96+'11'!AC96 -> 0 | AD96: ='1'!AD96+'2'!AD96+'3'!AD96+'4'!AD96+'5'!AD96+'6'!AD96+'7'!AD96+'8'!AD96+'9'!AD96+'10'!AD96+'11'!AD96 -> 0 | AE96: ='1'!AE96+'2'!AE96+'3'!AE96+'4'!AE96+'5'!AE96+'6'!AE96+'7'!AE96+'8'!AE96+'9'!AE96+'10'!AE96+'11'!AE96 -> 0 | AF96: ='1'!AF96+'2'!AF96+'3'!AF96+'4'!AF96+'5'!AF96+'6'!AF96+'7'!AF96+'8'!AF96+'9'!AF96+'10'!AF96+'11'!AF96 -> 0 | AG96: 0 | AI96: 0 | AJ96: ='1'!AJ96+'2'!AJ96+'3'!AJ96+'4'!AJ96+'5'!AJ96+'6'!AJ96+'7'!AJ96+'8'!AJ96+'9'!AJ96+'10'!AJ96+'11'!AJ96 -> 0 | AK96: ='1'!AK96+'2'!AK96+'3'!AK96+'4'!AK96+'5'!AK96+'6'!AK96+'7'!AK96+'8'!AK96+'9'!AK96+'10'!AK96+'11'!AK96 -> 0 | AL96: ='1'!AL96+'2'!AL96+'3'!AL96+'4'!AL96+'5'!AL96+'6'!AL96+'7'!AL96+'8'!AL96+'9'!AL96+'10'!AL96+'11'!AL96 -> 0 | AM96: ='1'!AM96+'2'!AM96+'3'!AM96+'4'!AM96+'5'!AM96+'6'!AM96+'7'!AM96+'8'!AM96+'9'!AM96+'10'!AM96+'11'!AM96 -> 0 | AN96: ='1'!AN96+'2'!AN96+'3'!AN96+'4'!AN96+'5'!AN96+'6'!AN96+'7'!AN96+'8'!AN96+'9'!AN96+'10'!AN96+'11'!AN96 -> 0 | AO96: ='1'!AO96+'2'!AO96+'3'!AO96+'4'!AO96+'5'!AO96+'6'!AO96+'7'!AO96+'8'!AO96+'9'!AO96+'10'!AO96+'11'!AO96 -> 0 | AP96: ='1'!AP96+'2'!AP96+'3'!AP96+'4'!AP96+'5'!AP96+'6'!AP96+'7'!AP96+'8'!AP96+'9'!AP96+'10'!AP96+'11'!AP96 -> 0 | AQ96: ='1'!AQ96+'2'!AQ96+'3'!AQ96+'4'!AQ96+'5'!AQ96+'6'!AQ96+'7'!AQ96+'8'!AQ96+'9'!AQ96+'10'!AQ96+'11'!AQ96 -> 0 | AR96: ='1'!AR96+'2'!AR96+'3'!AR96+'4'!AR96+'5'!AR96+'6'!AR96+'7'!AR96+'8'!AR96+'9'!AR96+'10'!AR96+'11'!AR96 -> 0 | AS96: ='1'!AS96+'2'!AS96+'3'!AS96+'4'!AS96+'5'!AS96+'6'!AS96+'7'!AS96+'8'!AS96+'9'!AS96+'10'!AS96+'11'!AS96 -> 0 | AT96: ='1'!AT96+'2'!AT96+'3'!AT96+'4'!AT96+'5'!AT96+'6'!AT96+'7'!AT96+'8'!AT96+'9'!AT96+'10'!AT96+'11'!AT96 -> 0 | AU96: ='1'!AU96+'2'!AU96+'3'!AU96+'4'!AU96+'5'!AU96+'6'!AU96+'7'!AU96+'8'!AU96+'9'!AU96+'10'!AU96+'11'!AU96 -> 0 | AV96: 0 | AW96: ='1'!AW96+'2'!AW96+'3'!AW96+'4'!AW96+'5'!AW96+'6'!AW96+'7'!AW96+'8'!AW96+'9'!AW96+'10'!AW96+'11'!AW96 -> 0 | AX96: ='1'!AX96+'2'!AX96+'3'!AX96+'4'!AX96+'5'!AX96+'6'!AX96+'7'!AX96+'8'!AX96+'9'!AX96+'10'!AX96+'11'!AX96 -> 0 | AY96: ='1'!AY96+'2'!AY96+'3'!AY96+'4'!AY96+'5'!AY96+'6'!AY96+'7'!AY96+'8'!AY96+'9'!AY96+'10'!AY96+'11'!AY96 -> 0 | AZ96: 0
C97: 1 | H97: ='1'!H97 -> Provincial Revenue Funds | I97: =SUM('1:11'!I97)+I220 -> 0 | J97: =SUM('1:11'!J97)+J220 -> 0 | K97: =SUM('1:11'!K97)+K220 -> 0 | L97: =SUM('1:11'!L97)+L220 -> 0 | M97: =SUM('1:11'!M97)+M220 -> 0 | N97: =SUM('1:11'!N97)+N220 -> 0 | O97: =SUM('1:11'!O97)+O220 -> 0 | P97: =SUM('1:11'!P97)+P220 -> 0 | Q97: =SUM('1:11'!Q97)+Q220 -> 0 | R97: =SUM('1:11'!R97)+R220 -> 0 | S97: =SUM('1:11'!S97)+S220 -> 0 | T97: =SUM('1:11'!T97)+T220 -> 0 | U97: =SUM($H97:OFFSET($H97,0,$I$2)) -> 0 | V97: 0 | W97: 470286510 | Y97: 470286510 | Z97: ='1'!Z97+'2'!Z97+'3'!Z97+'4'!Z97+'5'!Z97+'6'!Z97+'7'!Z97+'8'!Z97+'9'!Z97+'10'!Z97+'11'!Z97 -> 470286510 | AA97: ='1'!AA97+'2'!AA97+'3'!AA97+'4'!AA97+'5'!AA97+'6'!AA97+'7'!AA97+'8'!AA97+'9'!AA97+'10'!AA97+'11'!AA97 -> 470286510 | AB97: ='1'!AB97+'2'!AB97+'3'!AB97+'4'!AB97+'5'!AB97+'6'!AB97+'7'!AB97+'8'!AB97+'9'!AB97+'10'!AB97+'11'!AB97 -> 0 | AC97: ='1'!AC97+'2'!AC97+'3'!AC97+'4'!AC97+'5'!AC97+'6'!AC97+'7'!AC97+'8'!AC97+'9'!AC97+'10'!AC97+'11'!AC97 -> 0 | AD97: ='1'!AD97+'2'!AD97+'3'!AD97+'4'!AD97+'5'!AD97+'6'!AD97+'7'!AD97+'8'!AD97+'9'!AD97+'10'!AD97+'11'!AD97 -> 0 | AE97: ='1'!AE97+'2'!AE97+'3'!AE97+'4'!AE97+'5'!AE97+'6'!AE97+'7'!AE97+'8'!AE97+'9'!AE97+'10'!AE97+'11'!AE97 -> 0 | AF97: ='1'!AF97+'2'!AF97+'3'!AF97+'4'!AF97+'5'!AF97+'6'!AF97+'7'!AF97+'8'!AF97+'9'!AF97+'10'!AF97+'11'!AF97 -> 0 | AG97: 0 | AI97: 0 | AJ97: ='1'!AJ97+'2'!AJ97+'3'!AJ97+'4'!AJ97+'5'!AJ97+'6'!AJ97+'7'!AJ97+'8'!AJ97+'9'!AJ97+'10'!AJ97+'11'!AJ97 -> 0 | AK97: ='1'!AK97+'2'!AK97+'3'!AK97+'4'!AK97+'5'!AK97+'6'!AK97+'7'!AK97+'8'!AK97+'9'!AK97+'10'!AK97+'11'!AK97 -> 0 | AL97: ='1'!AL97+'2'!AL97+'3'!AL97+'4'!AL97+'5'!AL97+'6'!AL97+'7'!AL97+'8'!AL97+'9'!AL97+'10'!AL97+'11'!AL97 -> 0 | AM97: ='1'!AM97+'2'!AM97+'3'!AM97+'4'!AM97+'5'!AM97+'6'!AM97+'7'!AM97+'8'!AM97+'9'!AM97+'10'!AM97+'11'!AM97 -> 0 | AN97: ='1'!AN97+'2'!AN97+'3'!AN97+'4'!AN97+'5'!AN97+'6'!AN97+'7'!AN97+'8'!AN97+'9'!AN97+'10'!AN97+'11'!AN97 -> 0 | AO97: ='1'!AO97+'2'!AO97+'3'!AO97+'4'!AO97+'5'!AO97+'6'!AO97+'7'!AO97+'8'!AO97+'9'!AO97+'10'!AO97+'11'!AO97 -> 0 | AP97: ='1'!AP97+'2'!AP97+'3'!AP97+'4'!AP97+'5'!AP97+'6'!AP97+'7'!AP97+'8'!AP97+'9'!AP97+'10'!AP97+'11'!AP97 -> 0 | AQ97: ='1'!AQ97+'2'!AQ97+'3'!AQ97+'4'!AQ97+'5'!AQ97+'6'!AQ97+'7'!AQ97+'8'!AQ97+'9'!AQ97+'10'!AQ97+'11'!AQ97 -> 0 | AR97: ='1'!AR97+'2'!AR97+'3'!AR97+'4'!AR97+'5'!AR97+'6'!AR97+'7'!AR97+'8'!AR97+'9'!AR97+'10'!AR97+'11'!AR97 -> 0 | AS97: ='1'!AS97+'2'!AS97+'3'!AS97+'4'!AS97+'5'!AS97+'6'!AS97+'7'!AS97+'8'!AS97+'9'!AS97+'10'!AS97+'11'!AS97 -> 0 | AT97: ='1'!AT97+'2'!AT97+'3'!AT97+'4'!AT97+'5'!AT97+'6'!AT97+'7'!AT97+'8'!AT97+'9'!AT97+'10'!AT97+'11'!AT97 -> 0 | AU97: ='1'!AU97+'2'!AU97+'3'!AU97+'4'!AU97+'5'!AU97+'6'!AU97+'7'!AU97+'8'!AU97+'9'!AU97+'10'!AU97+'11'!AU97 -> 0 | AV97: 0 | AW97: ='1'!AW97+'2'!AW97+'3'!AW97+'4'!AW97+'5'!AW97+'6'!AW97+'7'!AW97+'8'!AW97+'9'!AW97+'10'!AW97+'11'!AW97 -> 0 | AX97: ='1'!AX97+'2'!AX97+'3'!AX97+'4'!AX97+'5'!AX97+'6'!AX97+'7'!AX97+'8'!AX97+'9'!AX97+'10'!AX97+'11'!AX97 -> 0 | AY97: ='1'!AY97+'2'!AY97+'3'!AY97+'4'!AY97+'5'!AY97+'6'!AY97+'7'!AY97+'8'!AY97+'9'!AY97+'10'!AY97+'11'!AY97 -> 0 | AZ97: 0
C98: 1 | H98: ='1'!H98 -> Provincial agencies and funds | I98: =SUM('1:11'!I98)+I221 -> 0 | J98: =SUM('1:11'!J98)+J221 -> 0 | K98: =SUM('1:11'!K98)+K221 -> 0 | L98: =SUM('1:11'!L98)+L221 -> 0 | M98: =SUM('1:11'!M98)+M221 -> 0 | N98: =SUM('1:11'!N98)+N221 -> 0 | O98: =SUM('1:11'!O98)+O221 -> 0 | P98: =SUM('1:11'!P98)+P221 -> 0 | Q98: =SUM('1:11'!Q98)+Q221 -> 0 | R98: =SUM('1:11'!R98)+R221 -> 0 | S98: =SUM('1:11'!S98)+S221 -> 0 | T98: =SUM('1:11'!T98)+T221 -> 0 | U98: =SUM($H98:OFFSET($H98,0,$I$2)) -> 0 | V98: 0 | W98: 0 | Y98: 0 | Z98: ='1'!Z98+'2'!Z98+'3'!Z98+'4'!Z98+'5'!Z98+'6'!Z98+'7'!Z98+'8'!Z98+'9'!Z98+'10'!Z98+'11'!Z98 -> 0 | AA98: ='1'!AA98+'2'!AA98+'3'!AA98+'4'!AA98+'5'!AA98+'6'!AA98+'7'!AA98+'8'!AA98+'9'!AA98+'10'!AA98+'11'!AA98 -> 0 | AB98: ='1'!AB98+'2'!AB98+'3'!AB98+'4'!AB98+'5'!AB98+'6'!AB98+'7'!AB98+'8'!AB98+'9'!AB98+'10'!AB98+'11'!AB98 -> 0 | AC98: ='1'!AC98+'2'!AC98+'3'!AC98+'4'!AC98+'5'!AC98+'6'!AC98+'7'!AC98+'8'!AC98+'9'!AC98+'10'!AC98+'11'!AC98 -> 0 | AD98: ='1'!AD98+'2'!AD98+'3'!AD98+'4'!AD98+'5'!AD98+'6'!AD98+'7'!AD98+'8'!AD98+'9'!AD98+'10'!AD98+'11'!AD98 -> 0 | AE98: ='1'!AE98+'2'!AE98+'3'!AE98+'4'!AE98+'5'!AE98+'6'!AE98+'7'!AE98+'8'!AE98+'9'!AE98+'10'!AE98+'11'!AE98 -> 0 | AF98: ='1'!AF98+'2'!AF98+'3'!AF98+'4'!AF98+'5'!AF98+'6'!AF98+'7'!AF98+'8'!AF98+'9'!AF98+'10'!AF98+'11'!AF98 -> 0 | AG98: 0 | AI98: 0 | AJ98: ='1'!AJ98+'2'!AJ98+'3'!AJ98+'4'!AJ98+'5'!AJ98+'6'!AJ98+'7'!AJ98+'8'!AJ98+'9'!AJ98+'10'!AJ98+'11'!AJ98 -> 0 | AK98: ='1'!AK98+'2'!AK98+'3'!AK98+'4'!AK98+'5'!AK98+'6'!AK98+'7'!AK98+'8'!AK98+'9'!AK98+'10'!AK98+'11'!AK98 -> 0 | AL98: ='1'!AL98+'2'!AL98+'3'!AL98+'4'!AL98+'5'!AL98+'6'!AL98+'7'!AL98+'8'!AL98+'9'!AL98+'10'!AL98+'11'!AL98 -> 0 | AM98: ='1'!AM98+'2'!AM98+'3'!AM98+'4'!AM98+'5'!AM98+'6'!AM98+'7'!AM98+'8'!AM98+'9'!AM98+'10'!AM98+'11'!AM98 -> 0 | AN98: ='1'!AN98+'2'!AN98+'3'!AN98+'4'!AN98+'5'!AN98+'6'!AN98+'7'!AN98+'8'!AN98+'9'!AN98+'10'!AN98+'11'!AN98 -> 0 | AO98: ='1'!AO98+'2'!AO98+'3'!AO98+'4'!AO98+'5'!AO98+'6'!AO98+'7'!AO98+'8'!AO98+'9'!AO98+'10'!AO98+'11'!AO98 -> 0 | AP98: ='1'!AP98+'2'!AP98+'3'!AP98+'4'!AP98+'5'!AP98+'6'!AP98+'7'!AP98+'8'!AP98+'9'!AP98+'10'!AP98+'11'!AP98 -> 0 | AQ98: ='1'!AQ98+'2'!AQ98+'3'!AQ98+'4'!AQ98+'5'!AQ98+'6'!AQ98+'7'!AQ98+'8'!AQ98+'9'!AQ98+'10'!AQ98+'11'!AQ98 -> 0 | AR98: ='1'!AR98+'2'!AR98+'3'!AR98+'4'!AR98+'5'!AR98+'6'!AR98+'7'!AR98+'8'!AR98+'9'!AR98+'10'!AR98+'11'!AR98 -> 0 | AS98: ='1'!AS98+'2'!AS98+'3'!AS98+'4'!AS98+'5'!AS98+'6'!AS98+'7'!AS98+'8'!AS98+'9'!AS98+'10'!AS98+'11'!AS98 -> 0 | AT98: ='1'!AT98+'2'!AT98+'3'!AT98+'4'!AT98+'5'!AT98+'6'!AT98+'7'!AT98+'8'!AT98+'9'!AT98+'10'!AT98+'11'!AT98 -> 0 | AU98: ='1'!AU98+'2'!AU98+'3'!AU98+'4'!AU98+'5'!AU98+'6'!AU98+'7'!AU98+'8'!AU98+'9'!AU98+'10'!AU98+'11'!AU98 -> 0 | AV98: 0 | AW98: ='1'!AW98+'2'!AW98+'3'!AW98+'4'!AW98+'5'!AW98+'6'!AW98+'7'!AW98+'8'!AW98+'9'!AW98+'10'!AW98+'11'!AW98 -> 0 | AX98: ='1'!AX98+'2'!AX98+'3'!AX98+'4'!AX98+'5'!AX98+'6'!AX98+'7'!AX98+'8'!AX98+'9'!AX98+'10'!AX98+'11'!AX98 -> 0 | AY98: ='1'!AY98+'2'!AY98+'3'!AY98+'4'!AY98+'5'!AY98+'6'!AY98+'7'!AY98+'8'!AY98+'9'!AY98+'10'!AY98+'11'!AY98 -> 0 | AZ98: 0
C99: 1 | H99: ='1'!H99 -> Municipalities | I99: =SUM('1:11'!I99)+I222 -> 0 | J99: =SUM('1:11'!J99)+J222 -> 0 | K99: =SUM('1:11'!K99)+K222 -> 0 | L99: =SUM('1:11'!L99)+L222 -> 0 | M99: =SUM('1:11'!M99)+M222 -> 0 | N99: =SUM('1:11'!N99)+N222 -> 0 | O99: =SUM('1:11'!O99)+O222 -> 0 | P99: =SUM('1:11'!P99)+P222 -> 0 | Q99: =SUM('1:11'!Q99)+Q222 -> 0 | R99: =SUM('1:11'!R99)+R222 -> 0 | S99: =SUM('1:11'!S99)+S222 -> 0 | T99: =SUM('1:11'!T99)+T222 -> 0 | U99: =SUM($H99:OFFSET($H99,0,$I$2)) -> 0 | V99: 0 | W99: 14010088 | Y99: 14010088 | Z99: ='1'!Z99+'2'!Z99+'3'!Z99+'4'!Z99+'5'!Z99+'6'!Z99+'7'!Z99+'8'!Z99+'9'!Z99+'10'!Z99+'11'!Z99 -> 14010088 | AA99: ='1'!AA99+'2'!AA99+'3'!AA99+'4'!AA99+'5'!AA99+'6'!AA99+'7'!AA99+'8'!AA99+'9'!AA99+'10'!AA99+'11'!AA99 -> 14010088 | AB99: ='1'!AB99+'2'!AB99+'3'!AB99+'4'!AB99+'5'!AB99+'6'!AB99+'7'!AB99+'8'!AB99+'9'!AB99+'10'!AB99+'11'!AB99 -> 0 | AC99: ='1'!AC99+'2'!AC99+'3'!AC99+'4'!AC99+'5'!AC99+'6'!AC99+'7'!AC99+'8'!AC99+'9'!AC99+'10'!AC99+'11'!AC99 -> 0 | AD99: ='1'!AD99+'2'!AD99+'3'!AD99+'4'!AD99+'5'!AD99+'6'!AD99+'7'!AD99+'8'!AD99+'9'!AD99+'10'!AD99+'11'!AD99 -> 0 | AE99: ='1'!AE99+'2'!AE99+'3'!AE99+'4'!AE99+'5'!AE99+'6'!AE99+'7'!AE99+'8'!AE99+'9'!AE99+'10'!AE99+'11'!AE99 -> 0 | AF99: ='1'!AF99+'2'!AF99+'3'!AF99+'4'!AF99+'5'!AF99+'6'!AF99+'7'!AF99+'8'!AF99+'9'!AF99+'10'!AF99+'11'!AF99 -> 0 | AG99: 0 | AI99: 0 | AJ99: ='1'!AJ99+'2'!AJ99+'3'!AJ99+'4'!AJ99+'5'!AJ99+'6'!AJ99+'7'!AJ99+'8'!AJ99+'9'!AJ99+'10'!AJ99+'11'!AJ99 -> 0 | AK99: ='1'!AK99+'2'!AK99+'3'!AK99+'4'!AK99+'5'!AK99+'6'!AK99+'7'!AK99+'8'!AK99+'9'!AK99+'10'!AK99+'11'!AK99 -> 0 | AL99: ='1'!AL99+'2'!AL99+'3'!AL99+'4'!AL99+'5'!AL99+'6'!AL99+'7'!AL99+'8'!AL99+'9'!AL99+'10'!AL99+'11'!AL99 -> 0 | AM99: ='1'!AM99+'2'!AM99+'3'!AM99+'4'!AM99+'5'!AM99+'6'!AM99+'7'!AM99+'8'!AM99+'9'!AM99+'10'!AM99+'11'!AM99 -> 0 | AN99: ='1'!AN99+'2'!AN99+'3'!AN99+'4'!AN99+'5'!AN99+'6'!AN99+'7'!AN99+'8'!AN99+'9'!AN99+'10'!AN99+'11'!AN99 -> 0 | AO99: ='1'!AO99+'2'!AO99+'3'!AO99+'4'!AO99+'5'!AO99+'6'!AO99+'7'!AO99+'8'!AO99+'9'!AO99+'10'!AO99+'11'!AO99 -> 0 | AP99: ='1'!AP99+'2'!AP99+'3'!AP99+'4'!AP99+'5'!AP99+'6'!AP99+'7'!AP99+'8'!AP99+'9'!AP99+'10'!AP99+'11'!AP99 -> 0 | AQ99: ='1'!AQ99+'2'!AQ99+'3'!AQ99+'4'!AQ99+'5'!AQ99+'6'!AQ99+'7'!AQ99+'8'!AQ99+'9'!AQ99+'10'!AQ99+'11'!AQ99 -> 0 | AR99: ='1'!AR99+'2'!AR99+'3'!AR99+'4'!AR99+'5'!AR99+'6'!AR99+'7'!AR99+'8'!AR99+'9'!AR99+'10'!AR99+'11'!AR99 -> 0 | AS99: ='1'!AS99+'2'!AS99+'3'!AS99+'4'!AS99+'5'!AS99+'6'!AS99+'7'!AS99+'8'!AS99+'9'!AS99+'10'!AS99+'11'!AS99 -> 0 | AT99: ='1'!AT99+'2'!AT99+'3'!AT99+'4'!AT99+'5'!AT99+'6'!AT99+'7'!AT99+'8'!AT99+'9'!AT99+'10'!AT99+'11'!AT99 -> 0 | AU99: ='1'!AU99+'2'!AU99+'3'!AU99+'4'!AU99+'5'!AU99+'6'!AU99+'7'!AU99+'8'!AU99+'9'!AU99+'10'!AU99+'11'!AU99 -> 0 | AV99: 0 | AW99: ='1'!AW99+'2'!AW99+'3'!AW99+'4'!AW99+'5'!AW99+'6'!AW99+'7'!AW99+'8'!AW99+'9'!AW99+'10'!AW99+'11'!AW99 -> 0 | AX99: ='1'!AX99+'2'!AX99+'3'!AX99+'4'!AX99+'5'!AX99+'6'!AX99+'7'!AX99+'8'!AX99+'9'!AX99+'10'!AX99+'11'!AX99 -> 0 | AY99: ='1'!AY99+'2'!AY99+'3'!AY99+'4'!AY99+'5'!AY99+'6'!AY99+'7'!AY99+'8'!AY99+'9'!AY99+'10'!AY99+'11'!AY99 -> 0 | AZ99: 0
C100: 1 | H100: ='1'!H100 -> Municipal bank accounts | I100: =SUM('1:11'!I100)+I223 -> 0 | J100: =SUM('1:11'!J100)+J223 -> 0 | K100: =SUM('1:11'!K100)+K223 -> 0 | L100: =SUM('1:11'!L100)+L223 -> 0 | M100: =SUM('1:11'!M100)+M223 -> 0 | N100: =SUM('1:11'!N100)+N223 -> 0 | O100: =SUM('1:11'!O100)+O223 -> 0 | P100: =SUM('1:11'!P100)+P223 -> 0 | Q100: =SUM('1:11'!Q100)+Q223 -> 0 | R100: =SUM('1:11'!R100)+R223 -> 0 | S100: =SUM('1:11'!S100)+S223 -> 0 | T100: =SUM('1:11'!T100)+T223 -> 0 | U100: =SUM($H100:OFFSET($H100,0,$I$2)) -> 0 | V100: 0 | W100: 14010088 | Y100: 14010088 | Z100: ='1'!Z100+'2'!Z100+'3'!Z100+'4'!Z100+'5'!Z100+'6'!Z100+'7'!Z100+'8'!Z100+'9'!Z100+'10'!Z100+'11'!Z100 -> 14010088 | AA100: ='1'!AA100+'2'!AA100+'3'!AA100+'4'!AA100+'5'!AA100+'6'!AA100+'7'!AA100+'8'!AA100+'9'!AA100+'10'!AA100+'11'!AA100 -> 14010088 | AB100: ='1'!AB100+'2'!AB100+'3'!AB100+'4'!AB100+'5'!AB100+'6'!AB100+'7'!AB100+'8'!AB100+'9'!AB100+'10'!AB100+'11'!AB100 -> 0 | AC100: ='1'!AC100+'2'!AC100+'3'!AC100+'4'!AC100+'5'!AC100+'6'!AC100+'7'!AC100+'8'!AC100+'9'!AC100+'10'!AC100+'11'!AC100 -> 0 | AD100: ='1'!AD100+'2'!AD100+'3'!AD100+'4'!AD100+'5'!AD100+'6'!AD100+'7'!AD100+'8'!AD100+'9'!AD100+'10'!AD100+'11'!AD100 -> 0 | AE100: ='1'!AE100+'2'!AE100+'3'!AE100+'4'!AE100+'5'!AE100+'6'!AE100+'7'!AE100+'8'!AE100+'9'!AE100+'10'!AE100+'11'!AE100 -> 0 | AF100: ='1'!AF100+'2'!AF100+'3'!AF100+'4'!AF100+'5'!AF100+'6'!AF100+'7'!AF100+'8'!AF100+'9'!AF100+'10'!AF100+'11'!AF100 -> 0 | AG100: 0 | AI100: 0 | AJ100: ='1'!AJ100+'2'!AJ100+'3'!AJ100+'4'!AJ100+'5'!AJ100+'6'!AJ100+'7'!AJ100+'8'!AJ100+'9'!AJ100+'10'!AJ100+'11'!AJ100 -> 0 | AK100: ='1'!AK100+'2'!AK100+'3'!AK100+'4'!AK100+'5'!AK100+'6'!AK100+'7'!AK100+'8'!AK100+'9'!AK100+'10'!AK100+'11'!AK100 -> 0 | AL100: ='1'!AL100+'2'!AL100+'3'!AL100+'4'!AL100+'5'!AL100+'6'!AL100+'7'!AL100+'8'!AL100+'9'!AL100+'10'!AL100+'11'!AL100 -> 0 | AM100: ='1'!AM100+'2'!AM100+'3'!AM100+'4'!AM100+'5'!AM100+'6'!AM100+'7'!AM100+'8'!AM100+'9'!AM100+'10'!AM100+'11'!AM100 -> 0 | AN100: ='1'!AN100+'2'!AN100+'3'!AN100+'4'!AN100+'5'!AN100+'6'!AN100+'7'!AN100+'8'!AN100+'9'!AN100+'10'!AN100+'11'!AN100 -> 0 | AO100: ='1'!AO100+'2'!AO100+'3'!AO100+'4'!AO100+'5'!AO100+'6'!AO100+'7'!AO100+'8'!AO100+'9'!AO100+'10'!AO100+'11'!AO100 -> 0 | AP100: ='1'!AP100+'2'!AP100+'3'!AP100+'4'!AP100+'5'!AP100+'6'!AP100+'7'!AP100+'8'!AP100+'9'!AP100+'10'!AP100+'11'!AP100 -> 0 | AQ100: ='1'!AQ100+'2'!AQ100+'3'!AQ100+'4'!AQ100+'5'!AQ100+'6'!AQ100+'7'!AQ100+'8'!AQ100+'9'!AQ100+'10'!AQ100+'11'!AQ100 -> 0 | AR100: ='1'!AR100+'2'!AR100+'3'!AR100+'4'!AR100+'5'!AR100+'6'!AR100+'7'!AR100+'8'!AR100+'9'!AR100+'10'!AR100+'11'!AR100 -> 0 | AS100: ='1'!AS100+'2'!AS100+'3'!AS100+'4'!AS100+'5'!AS100+'6'!AS100+'7'!AS100+'8'!AS100+'9'!AS100+'10'!AS100+'11'!AS100 -> 0 | AT100: ='1'!AT100+'2'!AT100+'3'!AT100+'4'!AT100+'5'!AT100+'6'!AT100+'7'!AT100+'8'!AT100+'9'!AT100+'10'!AT100+'11'!AT100 -> 0 | AU100: ='1'!AU100+'2'!AU100+'3'!AU100+'4'!AU100+'5'!AU100+'6'!AU100+'7'!AU100+'8'!AU100+'9'!AU100+'10'!AU100+'11'!AU100 -> 0 | AV100: 0 | AW100: ='1'!AW100+'2'!AW100+'3'!AW100+'4'!AW100+'5'!AW100+'6'!AW100+'7'!AW100+'8'!AW100+'9'!AW100+'10'!AW100+'11'!AW100 -> 0 | AX100: ='1'!AX100+'2'!AX100+'3'!AX100+'4'!AX100+'5'!AX100+'6'!AX100+'7'!AX100+'8'!AX100+'9'!AX100+'10'!AX100+'11'!AX100 -> 0 | AY100: ='1'!AY100+'2'!AY100+'3'!AY100+'4'!AY100+'5'!AY100+'6'!AY100+'7'!AY100+'8'!AY100+'9'!AY100+'10'!AY100+'11'!AY100 -> 0 | AZ100: 0
C101: 1 | H101: ='1'!H101 -> Municipal agencies and funds | I101: =SUM('1:11'!I101)+I224 -> 0 | J101: =SUM('1:11'!J101)+J224 -> 0 | K101: =SUM('1:11'!K101)+K224 -> 0 | L101: =SUM('1:11'!L101)+L224 -> 0 | M101: =SUM('1:11'!M101)+M224 -> 0 | N101: =SUM('1:11'!N101)+N224 -> 0 | O101: =SUM('1:11'!O101)+O224 -> 0 | P101: =SUM('1:11'!P101)+P224 -> 0 | Q101: =SUM('1:11'!Q101)+Q224 -> 0 | R101: =SUM('1:11'!R101)+R224 -> 0 | S101: =SUM('1:11'!S101)+S224 -> 0 | T101: =SUM('1:11'!T101)+T224 -> 0 | U101: =SUM($H101:OFFSET($H101,0,$I$2)) -> 0 | V101: 0 | W101: 0 | Y101: 0 | Z101: ='1'!Z101+'2'!Z101+'3'!Z101+'4'!Z101+'5'!Z101+'6'!Z101+'7'!Z101+'8'!Z101+'9'!Z101+'10'!Z101+'11'!Z101 -> 0 | AA101: ='1'!AA101+'2'!AA101+'3'!AA101+'4'!AA101+'5'!AA101+'6'!AA101+'7'!AA101+'8'!AA101+'9'!AA101+'10'!AA101+'11'!AA101 -> 0 | AB101: ='1'!AB101+'2'!AB101+'3'!AB101+'4'!AB101+'5'!AB101+'6'!AB101+'7'!AB101+'8'!AB101+'9'!AB101+'10'!AB101+'11'!AB101 -> 0 | AC101: ='1'!AC101+'2'!AC101+'3'!AC101+'4'!AC101+'5'!AC101+'6'!AC101+'7'!AC101+'8'!AC101+'9'!AC101+'10'!AC101+'11'!AC101 -> 0 | AD101: ='1'!AD101+'2'!AD101+'3'!AD101+'4'!AD101+'5'!AD101+'6'!AD101+'7'!AD101+'8'!AD101+'9'!AD101+'10'!AD101+'11'!AD101 -> 0 | AE101: ='1'!AE101+'2'!AE101+'3'!AE101+'4'!AE101+'5'!AE101+'6'!AE101+'7'!AE101+'8'!AE101+'9'!AE101+'10'!AE101+'11'!AE101 -> 0 | AF101: ='1'!AF101+'2'!AF101+'3'!AF101+'4'!AF101+'5'!AF101+'6'!AF101+'7'!AF101+'8'!AF101+'9'!AF101+'10'!AF101+'11'!AF101 -> 0 | AG101: 0 | AI101: 0 | AJ101: ='1'!AJ101+'2'!AJ101+'3'!AJ101+'4'!AJ101+'5'!AJ101+'6'!AJ101+'7'!AJ101+'8'!AJ101+'9'!AJ101+'10'!AJ101+'11'!AJ101 -> 0 | AK101: ='1'!AK101+'2'!AK101+'3'!AK101+'4'!AK101+'5'!AK101+'6'!AK101+'7'!AK101+'8'!AK101+'9'!AK101+'10'!AK101+'11'!AK101 -> 0 | AL101: ='1'!AL101+'2'!AL101+'3'!AL101+'4'!AL101+'5'!AL101+'6'!AL101+'7'!AL101+'8'!AL101+'9'!AL101+'10'!AL101+'11'!AL101 -> 0 | AM101: ='1'!AM101+'2'!AM101+'3'!AM101+'4'!AM101+'5'!AM101+'6'!AM101+'7'!AM101+'8'!AM101+'9'!AM101+'10'!AM101+'11'!AM101 -> 0 | AN101: ='1'!AN101+'2'!AN101+'3'!AN101+'4'!AN101+'5'!AN101+'6'!AN101+'7'!AN101+'8'!AN101+'9'!AN101+'10'!AN101+'11'!AN101 -> 0 | AO101: ='1'!AO101+'2'!AO101+'3'!AO101+'4'!AO101+'5'!AO101+'6'!AO101+'7'!AO101+'8'!AO101+'9'!AO101+'10'!AO101+'11'!AO101 -> 0 | AP101: ='1'!AP101+'2'!AP101+'3'!AP101+'4'!AP101+'5'!AP101+'6'!AP101+'7'!AP101+'8'!AP101+'9'!AP101+'10'!AP101+'11'!AP101 -> 0 | AQ101: ='1'!AQ101+'2'!AQ101+'3'!AQ101+'4'!AQ101+'5'!AQ101+'6'!AQ101+'7'!AQ101+'8'!AQ101+'9'!AQ101+'10'!AQ101+'11'!AQ101 -> 0 | AR101: ='1'!AR101+'2'!AR101+'3'!AR101+'4'!AR101+'5'!AR101+'6'!AR101+'7'!AR101+'8'!AR101+'9'!AR101+'10'!AR101+'11'!AR101 -> 0 | AS101: ='1'!AS101+'2'!AS101+'3'!AS101+'4'!AS101+'5'!AS101+'6'!AS101+'7'!AS101+'8'!AS101+'9'!AS101+'10'!AS101+'11'!AS101 -> 0 | AT101: ='1'!AT101+'2'!AT101+'3'!AT101+'4'!AT101+'5'!AT101+'6'!AT101+'7'!AT101+'8'!AT101+'9'!AT101+'10'!AT101+'11'!AT101 -> 0 | AU101: ='1'!AU101+'2'!AU101+'3'!AU101+'4'!AU101+'5'!AU101+'6'!AU101+'7'!AU101+'8'!AU101+'9'!AU101+'10'!AU101+'11'!AU101 -> 0 | AV101: 0 | AW101: ='1'!AW101+'2'!AW101+'3'!AW101+'4'!AW101+'5'!AW101+'6'!AW101+'7'!AW101+'8'!AW101+'9'!AW101+'10'!AW101+'11'!AW101 -> 0 | AX101: ='1'!AX101+'2'!AX101+'3'!AX101+'4'!AX101+'5'!AX101+'6'!AX101+'7'!AX101+'8'!AX101+'9'!AX101+'10'!AX101+'11'!AX101 -> 0 | AY101: ='1'!AY101+'2'!AY101+'3'!AY101+'4'!AY101+'5'!AY101+'6'!AY101+'7'!AY101+'8'!AY101+'9'!AY101+'10'!AY101+'11'!AY101 -> 0 | AZ101: 0
C102: 1 | H102: ='1'!H102 -> Departmental agencies and accounts | I102: =SUM('1:11'!I102)+I225 -> 0 | J102: =SUM('1:11'!J102)+J225 -> 0 | K102: =SUM('1:11'!K102)+K225 -> 0 | L102: =SUM('1:11'!L102)+L225 -> 0 | M102: =SUM('1:11'!M102)+M225 -> 0 | N102: =SUM('1:11'!N102)+N225 -> 0 | O102: =SUM('1:11'!O102)+O225 -> 0 | P102: =SUM('1:11'!P102)+P225 -> 0 | Q102: =SUM('1:11'!Q102)+Q225 -> 0 | R102: =SUM('1:11'!R102)+R225 -> 0 | S102: =SUM('1:11'!S102)+S225 -> 0 | T102: =SUM('1:11'!T102)+T225 -> 0 | U102: =SUM($H102:OFFSET($H102,0,$I$2)) -> 0 | V102: 0 | W102: 14624100 | Y102: 14624100 | Z102: ='1'!Z102+'2'!Z102+'3'!Z102+'4'!Z102+'5'!Z102+'6'!Z102+'7'!Z102+'8'!Z102+'9'!Z102+'10'!Z102+'11'!Z102 -> 14794619 | AA102: ='1'!AA102+'2'!AA102+'3'!AA102+'4'!AA102+'5'!AA102+'6'!AA102+'7'!AA102+'8'!AA102+'9'!AA102+'10'!AA102+'11'!AA102 -> 14796780 | AB102: ='1'!AB102+'2'!AB102+'3'!AB102+'4'!AB102+'5'!AB102+'6'!AB102+'7'!AB102+'8'!AB102+'9'!AB102+'10'!AB102+'11'!AB102 -> -172680 | AC102: ='1'!AC102+'2'!AC102+'3'!AC102+'4'!AC102+'5'!AC102+'6'!AC102+'7'!AC102+'8'!AC102+'9'!AC102+'10'!AC102+'11'!AC102 -> -172680 | AD102: ='1'!AD102+'2'!AD102+'3'!AD102+'4'!AD102+'5'!AD102+'6'!AD102+'7'!AD102+'8'!AD102+'9'!AD102+'10'!AD102+'11'!AD102 -> -85763 | AE102: ='1'!AE102+'2'!AE102+'3'!AE102+'4'!AE102+'5'!AE102+'6'!AE102+'7'!AE102+'8'!AE102+'9'!AE102+'10'!AE102+'11'!AE102 -> 0 | AF102: ='1'!AF102+'2'!AF102+'3'!AF102+'4'!AF102+'5'!AF102+'6'!AF102+'7'!AF102+'8'!AF102+'9'!AF102+'10'!AF102+'11'!AF102 -> 0 | AG102: -85763 | AI102: 0 | AJ102: ='1'!AJ102+'2'!AJ102+'3'!AJ102+'4'!AJ102+'5'!AJ102+'6'!AJ102+'7'!AJ102+'8'!AJ102+'9'!AJ102+'10'!AJ102+'11'!AJ102 -> 0 | AK102: ='1'!AK102+'2'!AK102+'3'!AK102+'4'!AK102+'5'!AK102+'6'!AK102+'7'!AK102+'8'!AK102+'9'!AK102+'10'!AK102+'11'!AK102 -> 0 | AL102: ='1'!AL102+'2'!AL102+'3'!AL102+'4'!AL102+'5'!AL102+'6'!AL102+'7'!AL102+'8'!AL102+'9'!AL102+'10'!AL102+'11'!AL102 -> 0 | AM102: ='1'!AM102+'2'!AM102+'3'!AM102+'4'!AM102+'5'!AM102+'6'!AM102+'7'!AM102+'8'!AM102+'9'!AM102+'10'!AM102+'11'!AM102 -> 0 | AN102: ='1'!AN102+'2'!AN102+'3'!AN102+'4'!AN102+'5'!AN102+'6'!AN102+'7'!AN102+'8'!AN102+'9'!AN102+'10'!AN102+'11'!AN102 -> 0 | AO102: ='1'!AO102+'2'!AO102+'3'!AO102+'4'!AO102+'5'!AO102+'6'!AO102+'7'!AO102+'8'!AO102+'9'!AO102+'10'!AO102+'11'!AO102 -> 0 | AP102: ='1'!AP102+'2'!AP102+'3'!AP102+'4'!AP102+'5'!AP102+'6'!AP102+'7'!AP102+'8'!AP102+'9'!AP102+'10'!AP102+'11'!AP102 -> 0 | AQ102: ='1'!AQ102+'2'!AQ102+'3'!AQ102+'4'!AQ102+'5'!AQ102+'6'!AQ102+'7'!AQ102+'8'!AQ102+'9'!AQ102+'10'!AQ102+'11'!AQ102 -> 0 | AR102: ='1'!AR102+'2'!AR102+'3'!AR102+'4'!AR102+'5'!AR102+'6'!AR102+'7'!AR102+'8'!AR102+'9'!AR102+'10'!AR102+'11'!AR102 -> 0 | AS102: ='1'!AS102+'2'!AS102+'3'!AS102+'4'!AS102+'5'!AS102+'6'!AS102+'7'!AS102+'8'!AS102+'9'!AS102+'10'!AS102+'11'!AS102 -> 0 | AT102: ='1'!AT102+'2'!AT102+'3'!AT102+'4'!AT102+'5'!AT102+'6'!AT102+'7'!AT102+'8'!AT102+'9'!AT102+'10'!AT102+'11'!AT102 -> 0 | AU102: ='1'!AU102+'2'!AU102+'3'!AU102+'4'!AU102+'5'!AU102+'6'!AU102+'7'!AU102+'8'!AU102+'9'!AU102+'10'!AU102+'11'!AU102 -> 0 | AV102: 0 | AW102: ='1'!AW102+'2'!AW102+'3'!AW102+'4'!AW102+'5'!AW102+'6'!AW102+'7'!AW102+'8'!AW102+'9'!AW102+'10'!AW102+'11'!AW102 -> 0 | AX102: ='1'!AX102+'2'!AX102+'3'!AX102+'4'!AX102+'5'!AX102+'6'!AX102+'7'!AX102+'8'!AX102+'9'!AX102+'10'!AX102+'11'!AX102 -> 0 | AY102: ='1'!AY102+'2'!AY102+'3'!AY102+'4'!AY102+'5'!AY102+'6'!AY102+'7'!AY102+'8'!AY102+'9'!AY102+'10'!AY102+'11'!AY102 -> 0 | AZ102: 0
C103: 1 | H103: ='1'!H103 -> Social security funds | I103: =SUM('1:11'!I103)+I226 -> 0 | J103: =SUM('1:11'!J103)+J226 -> 0 | K103: =SUM('1:11'!K103)+K226 -> 0 | L103: =SUM('1:11'!L103)+L226 -> 0 | M103: =SUM('1:11'!M103)+M226 -> 0 | N103: =SUM('1:11'!N103)+N226 -> 0 | O103: =SUM('1:11'!O103)+O226 -> 0 | P103: =SUM('1:11'!P103)+P226 -> 0 | Q103: =SUM('1:11'!Q103)+Q226 -> 0 | R103: =SUM('1:11'!R103)+R226 -> 0 | S103: =SUM('1:11'!S103)+S226 -> 0 | T103: =SUM('1:11'!T103)+T226 -> 0 | U103: =SUM($H103:OFFSET($H103,0,$I$2)) -> 0 | V103: 0 | W103: 0 | Y103: 0 | Z103: ='1'!Z103+'2'!Z103+'3'!Z103+'4'!Z103+'5'!Z103+'6'!Z103+'7'!Z103+'8'!Z103+'9'!Z103+'10'!Z103+'11'!Z103 -> 0 | AA103: ='1'!AA103+'2'!AA103+'3'!AA103+'4'!AA103+'5'!AA103+'6'!AA103+'7'!AA103+'8'!AA103+'9'!AA103+'10'!AA103+'11'!AA103 -> 0 | AB103: ='1'!AB103+'2'!AB103+'3'!AB103+'4'!AB103+'5'!AB103+'6'!AB103+'7'!AB103+'8'!AB103+'9'!AB103+'10'!AB103+'11'!AB103 -> 0 | AC103: ='1'!AC103+'2'!AC103+'3'!AC103+'4'!AC103+'5'!AC103+'6'!AC103+'7'!AC103+'8'!AC103+'9'!AC103+'10'!AC103+'11'!AC103 -> 0 | AD103: ='1'!AD103+'2'!AD103+'3'!AD103+'4'!AD103+'5'!AD103+'6'!AD103+'7'!AD103+'8'!AD103+'9'!AD103+'10'!AD103+'11'!AD103 -> 0 | AE103: ='1'!AE103+'2'!AE103+'3'!AE103+'4'!AE103+'5'!AE103+'6'!AE103+'7'!AE103+'8'!AE103+'9'!AE103+'10'!AE103+'11'!AE103 -> 0 | AF103: ='1'!AF103+'2'!AF103+'3'!AF103+'4'!AF103+'5'!AF103+'6'!AF103+'7'!AF103+'8'!AF103+'9'!AF103+'10'!AF103+'11'!AF103 -> 0 | AG103: 0 | AI103: 0 | AJ103: ='1'!AJ103+'2'!AJ103+'3'!AJ103+'4'!AJ103+'5'!AJ103+'6'!AJ103+'7'!AJ103+'8'!AJ103+'9'!AJ103+'10'!AJ103+'11'!AJ103 -> 0 | AK103: ='1'!AK103+'2'!AK103+'3'!AK103+'4'!AK103+'5'!AK103+'6'!AK103+'7'!AK103+'8'!AK103+'9'!AK103+'10'!AK103+'11'!AK103 -> 0 | AL103: ='1'!AL103+'2'!AL103+'3'!AL103+'4'!AL103+'5'!AL103+'6'!AL103+'7'!AL103+'8'!AL103+'9'!AL103+'10'!AL103+'11'!AL103 -> 0 | AM103: ='1'!AM103+'2'!AM103+'3'!AM103+'4'!AM103+'5'!AM103+'6'!AM103+'7'!AM103+'8'!AM103+'9'!AM103+'10'!AM103+'11'!AM103 -> 0 | AN103: ='1'!AN103+'2'!AN103+'3'!AN103+'4'!AN103+'5'!AN103+'6'!AN103+'7'!AN103+'8'!AN103+'9'!AN103+'10'!AN103+'11'!AN103 -> 0 | AO103: ='1'!AO103+'2'!AO103+'3'!AO103+'4'!AO103+'5'!AO103+'6'!AO103+'7'!AO103+'8'!AO103+'9'!AO103+'10'!AO103+'11'!AO103 -> 0 | AP103: ='1'!AP103+'2'!AP103+'3'!AP103+'4'!AP103+'5'!AP103+'6'!AP103+'7'!AP103+'8'!AP103+'9'!AP103+'10'!AP103+'11'!AP103 -> 0 | AQ103: ='1'!AQ103+'2'!AQ103+'3'!AQ103+'4'!AQ103+'5'!AQ103+'6'!AQ103+'7'!AQ103+'8'!AQ103+'9'!AQ103+'10'!AQ103+'11'!AQ103 -> 0 | AR103: ='1'!AR103+'2'!AR103+'3'!AR103+'4'!AR103+'5'!AR103+'6'!AR103+'7'!AR103+'8'!AR103+'9'!AR103+'10'!AR103+'11'!AR103 -> 0 | AS103: ='1'!AS103+'2'!AS103+'3'!AS103+'4'!AS103+'5'!AS103+'6'!AS103+'7'!AS103+'8'!AS103+'9'!AS103+'10'!AS103+'11'!AS103 -> 0 | AT103: ='1'!AT103+'2'!AT103+'3'!AT103+'4'!AT103+'5'!AT103+'6'!AT103+'7'!AT103+'8'!AT103+'9'!AT103+'10'!AT103+'11'!AT103 -> 0 | AU103: ='1'!AU103+'2'!AU103+'3'!AU103+'4'!AU103+'5'!AU103+'6'!AU103+'7'!AU103+'8'!AU103+'9'!AU103+'10'!AU103+'11'!AU103 -> 0 | AV103: 0 | AW103: ='1'!AW103+'2'!AW103+'3'!AW103+'4'!AW103+'5'!AW103+'6'!AW103+'7'!AW103+'8'!AW103+'9'!AW103+'10'!AW103+'11'!AW103 -> 0 | AX103: ='1'!AX103+'2'!AX103+'3'!AX103+'4'!AX103+'5'!AX103+'6'!AX103+'7'!AX103+'8'!AX103+'9'!AX103+'10'!AX103+'11'!AX103 -> 0 | AY103: ='1'!AY103+'2'!AY103+'3'!AY103+'4'!AY103+'5'!AY103+'6'!AY103+'7'!AY103+'8'!AY103+'9'!AY103+'10'!AY103+'11'!AY103 -> 0 | AZ103: 0
C104: 1 | H104: ='1'!H104 -> Departmental agencies (non-business entities) | I104: =SUM('1:11'!I104)+I227 -> 0 | J104: =SUM('1:11'!J104)+J227 -> 0 | K104: =SUM('1:11'!K104)+K227 -> 0 | L104: =SUM('1:11'!L104)+L227 -> 0 | M104: =SUM('1:11'!M104)+M227 -> 0 | N104: =SUM('1:11'!N104)+N227 -> 0 | O104: =SUM('1:11'!O104)+O227 -> 0 | P104: =SUM('1:11'!P104)+P227 -> 0 | Q104: =SUM('1:11'!Q104)+Q227 -> 0 | R104: =SUM('1:11'!R104)+R227 -> 0 | S104: =SUM('1:11'!S104)+S227 -> 0 | T104: =SUM('1:11'!T104)+T227 -> 0 | U104: =SUM($H104:OFFSET($H104,0,$I$2)) -> 0 | V104: 0 | W104: 14624100 | Y104: 14624100 | Z104: ='1'!Z104+'2'!Z104+'3'!Z104+'4'!Z104+'5'!Z104+'6'!Z104+'7'!Z104+'8'!Z104+'9'!Z104+'10'!Z104+'11'!Z104 -> 14794619 | AA104: ='1'!AA104+'2'!AA104+'3'!AA104+'4'!AA104+'5'!AA104+'6'!AA104+'7'!AA104+'8'!AA104+'9'!AA104+'10'!AA104+'11'!AA104 -> 14796780 | AB104: ='1'!AB104+'2'!AB104+'3'!AB104+'4'!AB104+'5'!AB104+'6'!AB104+'7'!AB104+'8'!AB104+'9'!AB104+'10'!AB104+'11'!AB104 -> -172680 | AC104: ='1'!AC104+'2'!AC104+'3'!AC104+'4'!AC104+'5'!AC104+'6'!AC104+'7'!AC104+'8'!AC104+'9'!AC104+'10'!AC104+'11'!AC104 -> -172680 | AD104: ='1'!AD104+'2'!AD104+'3'!AD104+'4'!AD104+'5'!AD104+'6'!AD104+'7'!AD104+'8'!AD104+'9'!AD104+'10'!AD104+'11'!AD104 -> -85763 | AE104: ='1'!AE104+'2'!AE104+'3'!AE104+'4'!AE104+'5'!AE104+'6'!AE104+'7'!AE104+'8'!AE104+'9'!AE104+'10'!AE104+'11'!AE104 -> 0 | AF104: ='1'!AF104+'2'!AF104+'3'!AF104+'4'!AF104+'5'!AF104+'6'!AF104+'7'!AF104+'8'!AF104+'9'!AF104+'10'!AF104+'11'!AF104 -> 0 | AG104: -85763 | AI104: 0 | AJ104: ='1'!AJ104+'2'!AJ104+'3'!AJ104+'4'!AJ104+'5'!AJ104+'6'!AJ104+'7'!AJ104+'8'!AJ104+'9'!AJ104+'10'!AJ104+'11'!AJ104 -> 0 | AK104: ='1'!AK104+'2'!AK104+'3'!AK104+'4'!AK104+'5'!AK104+'6'!AK104+'7'!AK104+'8'!AK104+'9'!AK104+'10'!AK104+'11'!AK104 -> 0 | AL104: ='1'!AL104+'2'!AL104+'3'!AL104+'4'!AL104+'5'!AL104+'6'!AL104+'7'!AL104+'8'!AL104+'9'!AL104+'10'!AL104+'11'!AL104 -> 0 | AM104: ='1'!AM104+'2'!AM104+'3'!AM104+'4'!AM104+'5'!AM104+'6'!AM104+'7'!AM104+'8'!AM104+'9'!AM104+'10'!AM104+'11'!AM104 -> 0 | AN104: ='1'!AN104+'2'!AN104+'3'!AN104+'4'!AN104+'5'!AN104+'6'!AN104+'7'!AN104+'8'!AN104+'9'!AN104+'10'!AN104+'11'!AN104 -> 0 | AO104: ='1'!AO104+'2'!AO104+'3'!AO104+'4'!AO104+'5'!AO104+'6'!AO104+'7'!AO104+'8'!AO104+'9'!AO104+'10'!AO104+'11'!AO104 -> 0 | AP104: ='1'!AP104+'2'!AP104+'3'!AP104+'4'!AP104+'5'!AP104+'6'!AP104+'7'!AP104+'8'!AP104+'9'!AP104+'10'!AP104+'11'!AP104 -> 0 | AQ104: ='1'!AQ104+'2'!AQ104+'3'!AQ104+'4'!AQ104+'5'!AQ104+'6'!AQ104+'7'!AQ104+'8'!AQ104+'9'!AQ104+'10'!AQ104+'11'!AQ104 -> 0 | AR104: ='1'!AR104+'2'!AR104+'3'!AR104+'4'!AR104+'5'!AR104+'6'!AR104+'7'!AR104+'8'!AR104+'9'!AR104+'10'!AR104+'11'!AR104 -> 0 | AS104: ='1'!AS104+'2'!AS104+'3'!AS104+'4'!AS104+'5'!AS104+'6'!AS104+'7'!AS104+'8'!AS104+'9'!AS104+'10'!AS104+'11'!AS104 -> 0 | AT104: ='1'!AT104+'2'!AT104+'3'!AT104+'4'!AT104+'5'!AT104+'6'!AT104+'7'!AT104+'8'!AT104+'9'!AT104+'10'!AT104+'11'!AT104 -> 0 | AU104: ='1'!AU104+'2'!AU104+'3'!AU104+'4'!AU104+'5'!AU104+'6'!AU104+'7'!AU104+'8'!AU104+'9'!AU104+'10'!AU104+'11'!AU104 -> 0 | AV104: 0 | AW104: ='1'!AW104+'2'!AW104+'3'!AW104+'4'!AW104+'5'!AW104+'6'!AW104+'7'!AW104+'8'!AW104+'9'!AW104+'10'!AW104+'11'!AW104 -> 0 | AX104: ='1'!AX104+'2'!AX104+'3'!AX104+'4'!AX104+'5'!AX104+'6'!AX104+'7'!AX104+'8'!AX104+'9'!AX104+'10'!AX104+'11'!AX104 -> 0 | AY104: ='1'!AY104+'2'!AY104+'3'!AY104+'4'!AY104+'5'!AY104+'6'!AY104+'7'!AY104+'8'!AY104+'9'!AY104+'10'!AY104+'11'!AY104 -> 0 | AZ104: 0
C105: 1 | H105: ='1'!H105 -> Higher education institutions | I105: =SUM('1:11'!I105)+I228 -> 0 | J105: =SUM('1:11'!J105)+J228 -> 0 | K105: =SUM('1:11'!K105)+K228 -> 0 | L105: =SUM('1:11'!L105)+L228 -> 0 | M105: =SUM('1:11'!M105)+M228 -> 0 | N105: =SUM('1:11'!N105)+N228 -> 0 | O105: =SUM('1:11'!O105)+O228 -> 0 | P105: =SUM('1:11'!P105)+P228 -> 0 | Q105: =SUM('1:11'!Q105)+Q228 -> 0 | R105: =SUM('1:11'!R105)+R228 -> 0 | S105: =SUM('1:11'!S105)+S228 -> 0 | T105: =SUM('1:11'!T105)+T228 -> 0 | U105: =SUM($H105:OFFSET($H105,0,$I$2)) -> 0 | V105: 0 | W105: 0 | Y105: 0 | Z105: ='1'!Z105+'2'!Z105+'3'!Z105+'4'!Z105+'5'!Z105+'6'!Z105+'7'!Z105+'8'!Z105+'9'!Z105+'10'!Z105+'11'!Z105 -> 0 | AA105: ='1'!AA105+'2'!AA105+'3'!AA105+'4'!AA105+'5'!AA105+'6'!AA105+'7'!AA105+'8'!AA105+'9'!AA105+'10'!AA105+'11'!AA105 -> 0 | AB105: ='1'!AB105+'2'!AB105+'3'!AB105+'4'!AB105+'5'!AB105+'6'!AB105+'7'!AB105+'8'!AB105+'9'!AB105+'10'!AB105+'11'!AB105 -> 0 | AC105: ='1'!AC105+'2'!AC105+'3'!AC105+'4'!AC105+'5'!AC105+'6'!AC105+'7'!AC105+'8'!AC105+'9'!AC105+'10'!AC105+'11'!AC105 -> 0 | AD105: ='1'!AD105+'2'!AD105+'3'!AD105+'4'!AD105+'5'!AD105+'6'!AD105+'7'!AD105+'8'!AD105+'9'!AD105+'10'!AD105+'11'!AD105 -> 0 | AE105: ='1'!AE105+'2'!AE105+'3'!AE105+'4'!AE105+'5'!AE105+'6'!AE105+'7'!AE105+'8'!AE105+'9'!AE105+'10'!AE105+'11'!AE105 -> 0 | AF105: ='1'!AF105+'2'!AF105+'3'!AF105+'4'!AF105+'5'!AF105+'6'!AF105+'7'!AF105+'8'!AF105+'9'!AF105+'10'!AF105+'11'!AF105 -> 0 | AG105: 0 | AI105: 0 | AJ105: ='1'!AJ105+'2'!AJ105+'3'!AJ105+'4'!AJ105+'5'!AJ105+'6'!AJ105+'7'!AJ105+'8'!AJ105+'9'!AJ105+'10'!AJ105+'11'!AJ105 -> 0 | AK105: ='1'!AK105+'2'!AK105+'3'!AK105+'4'!AK105+'5'!AK105+'6'!AK105+'7'!AK105+'8'!AK105+'9'!AK105+'10'!AK105+'11'!AK105 -> 0 | AL105: ='1'!AL105+'2'!AL105+'3'!AL105+'4'!AL105+'5'!AL105+'6'!AL105+'7'!AL105+'8'!AL105+'9'!AL105+'10'!AL105+'11'!AL105 -> 0 | AM105: ='1'!AM105+'2'!AM105+'3'!AM105+'4'!AM105+'5'!AM105+'6'!AM105+'7'!AM105+'8'!AM105+'9'!AM105+'10'!AM105+'11'!AM105 -> 0 | AN105: ='1'!AN105+'2'!AN105+'3'!AN105+'4'!AN105+'5'!AN105+'6'!AN105+'7'!AN105+'8'!AN105+'9'!AN105+'10'!AN105+'11'!AN105 -> 0 | AO105: ='1'!AO105+'2'!AO105+'3'!AO105+'4'!AO105+'5'!AO105+'6'!AO105+'7'!AO105+'8'!AO105+'9'!AO105+'10'!AO105+'11'!AO105 -> 0 | AP105: ='1'!AP105+'2'!AP105+'3'!AP105+'4'!AP105+'5'!AP105+'6'!AP105+'7'!AP105+'8'!AP105+'9'!AP105+'10'!AP105+'11'!AP105 -> 0 | AQ105: ='1'!AQ105+'2'!AQ105+'3'!AQ105+'4'!AQ105+'5'!AQ105+'6'!AQ105+'7'!AQ105+'8'!AQ105+'9'!AQ105+'10'!AQ105+'11'!AQ105 -> 0 | AR105: ='1'!AR105+'2'!AR105+'3'!AR105+'4'!AR105+'5'!AR105+'6'!AR105+'7'!AR105+'8'!AR105+'9'!AR105+'10'!AR105+'11'!AR105 -> 0 | AS105: ='1'!AS105+'2'!AS105+'3'!AS105+'4'!AS105+'5'!AS105+'6'!AS105+'7'!AS105+'8'!AS105+'9'!AS105+'10'!AS105+'11'!AS105 -> 0 | AT105: ='1'!AT105+'2'!AT105+'3'!AT105+'4'!AT105+'5'!AT105+'6'!AT105+'7'!AT105+'8'!AT105+'9'!AT105+'10'!AT105+'11'!AT105 -> 0 | AU105: ='1'!AU105+'2'!AU105+'3'!AU105+'4'!AU105+'5'!AU105+'6'!AU105+'7'!AU105+'8'!AU105+'9'!AU105+'10'!AU105+'11'!AU105 -> 0 | AV105: 0 | AW105: ='1'!AW105+'2'!AW105+'3'!AW105+'4'!AW105+'5'!AW105+'6'!AW105+'7'!AW105+'8'!AW105+'9'!AW105+'10'!AW105+'11'!AW105 -> 0 | AX105: ='1'!AX105+'2'!AX105+'3'!AX105+'4'!AX105+'5'!AX105+'6'!AX105+'7'!AX105+'8'!AX105+'9'!AX105+'10'!AX105+'11'!AX105 -> 0 | AY105: ='1'!AY105+'2'!AY105+'3'!AY105+'4'!AY105+'5'!AY105+'6'!AY105+'7'!AY105+'8'!AY105+'9'!AY105+'10'!AY105+'11'!AY105 -> 0 | AZ105: 0
C106: 1 | H106: ='1'!H106 -> Foreign governments and international organisations | I106: =SUM('1:11'!I106)+I229 -> 0 | J106: =SUM('1:11'!J106)+J229 -> 0 | K106: =SUM('1:11'!K106)+K229 -> 0 | L106: =SUM('1:11'!L106)+L229 -> 0 | M106: =SUM('1:11'!M106)+M229 -> 0 | N106: =SUM('1:11'!N106)+N229 -> 0 | O106: =SUM('1:11'!O106)+O229 -> 0 | P106: =SUM('1:11'!P106)+P229 -> 0 | Q106: =SUM('1:11'!Q106)+Q229 -> 0 | R106: =SUM('1:11'!R106)+R229 -> 0 | S106: =SUM('1:11'!S106)+S229 -> 0 | T106: =SUM('1:11'!T106)+T229 -> 0 | U106: =SUM($H106:OFFSET($H106,0,$I$2)) -> 0 | V106: 0 | W106: 1137905 | Y106: 1137905 | Z106: ='1'!Z106+'2'!Z106+'3'!Z106+'4'!Z106+'5'!Z106+'6'!Z106+'7'!Z106+'8'!Z106+'9'!Z106+'10'!Z106+'11'!Z106 -> 975501 | AA106: ='1'!AA106+'2'!AA106+'3'!AA106+'4'!AA106+'5'!AA106+'6'!AA106+'7'!AA106+'8'!AA106+'9'!AA106+'10'!AA106+'11'!AA106 -> 975501 | AB106: ='1'!AB106+'2'!AB106+'3'!AB106+'4'!AB106+'5'!AB106+'6'!AB106+'7'!AB106+'8'!AB106+'9'!AB106+'10'!AB106+'11'!AB106 -> 162404 | AC106: ='1'!AC106+'2'!AC106+'3'!AC106+'4'!AC106+'5'!AC106+'6'!AC106+'7'!AC106+'8'!AC106+'9'!AC106+'10'!AC106+'11'!AC106 -> 162404 | AD106: ='1'!AD106+'2'!AD106+'3'!AD106+'4'!AD106+'5'!AD106+'6'!AD106+'7'!AD106+'8'!AD106+'9'!AD106+'10'!AD106+'11'!AD106 -> 175345 | AE106: ='1'!AE106+'2'!AE106+'3'!AE106+'4'!AE106+'5'!AE106+'6'!AE106+'7'!AE106+'8'!AE106+'9'!AE106+'10'!AE106+'11'!AE106 -> 0 | AF106: ='1'!AF106+'2'!AF106+'3'!AF106+'4'!AF106+'5'!AF106+'6'!AF106+'7'!AF106+'8'!AF106+'9'!AF106+'10'!AF106+'11'!AF106 -> 0 | AG106: 175345 | AI106: 0 | AJ106: ='1'!AJ106+'2'!AJ106+'3'!AJ106+'4'!AJ106+'5'!AJ106+'6'!AJ106+'7'!AJ106+'8'!AJ106+'9'!AJ106+'10'!AJ106+'11'!AJ106 -> 0 | AK106: ='1'!AK106+'2'!AK106+'3'!AK106+'4'!AK106+'5'!AK106+'6'!AK106+'7'!AK106+'8'!AK106+'9'!AK106+'10'!AK106+'11'!AK106 -> 0 | AL106: ='1'!AL106+'2'!AL106+'3'!AL106+'4'!AL106+'5'!AL106+'6'!AL106+'7'!AL106+'8'!AL106+'9'!AL106+'10'!AL106+'11'!AL106 -> 0 | AM106: ='1'!AM106+'2'!AM106+'3'!AM106+'4'!AM106+'5'!AM106+'6'!AM106+'7'!AM106+'8'!AM106+'9'!AM106+'10'!AM106+'11'!AM106 -> 0 | AN106: ='1'!AN106+'2'!AN106+'3'!AN106+'4'!AN106+'5'!AN106+'6'!AN106+'7'!AN106+'8'!AN106+'9'!AN106+'10'!AN106+'11'!AN106 -> 0 | AO106: ='1'!AO106+'2'!AO106+'3'!AO106+'4'!AO106+'5'!AO106+'6'!AO106+'7'!AO106+'8'!AO106+'9'!AO106+'10'!AO106+'11'!AO106 -> 0 | AP106: ='1'!AP106+'2'!AP106+'3'!AP106+'4'!AP106+'5'!AP106+'6'!AP106+'7'!AP106+'8'!AP106+'9'!AP106+'10'!AP106+'11'!AP106 -> 0 | AQ106: ='1'!AQ106+'2'!AQ106+'3'!AQ106+'4'!AQ106+'5'!AQ106+'6'!AQ106+'7'!AQ106+'8'!AQ106+'9'!AQ106+'10'!AQ106+'11'!AQ106 -> 0 | AR106: ='1'!AR106+'2'!AR106+'3'!AR106+'4'!AR106+'5'!AR106+'6'!AR106+'7'!AR106+'8'!AR106+'9'!AR106+'10'!AR106+'11'!AR106 -> 0 | AS106: ='1'!AS106+'2'!AS106+'3'!AS106+'4'!AS106+'5'!AS106+'6'!AS106+'7'!AS106+'8'!AS106+'9'!AS106+'10'!AS106+'11'!AS106 -> 0 | AT106: ='1'!AT106+'2'!AT106+'3'!AT106+'4'!AT106+'5'!AT106+'6'!AT106+'7'!AT106+'8'!AT106+'9'!AT106+'10'!AT106+'11'!AT106 -> 0 | AU106: ='1'!AU106+'2'!AU106+'3'!AU106+'4'!AU106+'5'!AU106+'6'!AU106+'7'!AU106+'8'!AU106+'9'!AU106+'10'!AU106+'11'!AU106 -> 0 | AV106: 0 | AW106: ='1'!AW106+'2'!AW106+'3'!AW106+'4'!AW106+'5'!AW106+'6'!AW106+'7'!AW106+'8'!AW106+'9'!AW106+'10'!AW106+'11'!AW106 -> 0 | AX106: ='1'!AX106+'2'!AX106+'3'!AX106+'4'!AX106+'5'!AX106+'6'!AX106+'7'!AX106+'8'!AX106+'9'!AX106+'10'!AX106+'11'!AX106 -> 0 | AY106: ='1'!AY106+'2'!AY106+'3'!AY106+'4'!AY106+'5'!AY106+'6'!AY106+'7'!AY106+'8'!AY106+'9'!AY106+'10'!AY106+'11'!AY106 -> 0 | AZ106: 0
C107: 1 | H107: ='1'!H107 -> Public corporations and private enterprises | I107: =SUM('1:11'!I107)+I230 -> 0 | J107: =SUM('1:11'!J107)+J230 -> 0 | K107: =SUM('1:11'!K107)+K230 -> 0 | L107: =SUM('1:11'!L107)+L230 -> 0 | M107: =SUM('1:11'!M107)+M230 -> 0 | N107: =SUM('1:11'!N107)+N230 -> 0 | O107: =SUM('1:11'!O107)+O230 -> 0 | P107: =SUM('1:11'!P107)+P230 -> 0 | Q107: =SUM('1:11'!Q107)+Q230 -> 0 | R107: =SUM('1:11'!R107)+R230 -> 0 | S107: =SUM('1:11'!S107)+S230 -> 0 | T107: =SUM('1:11'!T107)+T230 -> 0 | U107: =SUM($H107:OFFSET($H107,0,$I$2)) -> 0 | V107: 0 | W107: 13316 | Y107: 13316 | Z107: ='1'!Z107+'2'!Z107+'3'!Z107+'4'!Z107+'5'!Z107+'6'!Z107+'7'!Z107+'8'!Z107+'9'!Z107+'10'!Z107+'11'!Z107 -> 13316 | AA107: ='1'!AA107+'2'!AA107+'3'!AA107+'4'!AA107+'5'!AA107+'6'!AA107+'7'!AA107+'8'!AA107+'9'!AA107+'10'!AA107+'11'!AA107 -> 13316 | AB107: ='1'!AB107+'2'!AB107+'3'!AB107+'4'!AB107+'5'!AB107+'6'!AB107+'7'!AB107+'8'!AB107+'9'!AB107+'10'!AB107+'11'!AB107 -> 0 | AC107: ='1'!AC107+'2'!AC107+'3'!AC107+'4'!AC107+'5'!AC107+'6'!AC107+'7'!AC107+'8'!AC107+'9'!AC107+'10'!AC107+'11'!AC107 -> 0 | AD107: ='1'!AD107+'2'!AD107+'3'!AD107+'4'!AD107+'5'!AD107+'6'!AD107+'7'!AD107+'8'!AD107+'9'!AD107+'10'!AD107+'11'!AD107 -> 0 | AE107: ='1'!AE107+'2'!AE107+'3'!AE107+'4'!AE107+'5'!AE107+'6'!AE107+'7'!AE107+'8'!AE107+'9'!AE107+'10'!AE107+'11'!AE107 -> 0 | AF107: ='1'!AF107+'2'!AF107+'3'!AF107+'4'!AF107+'5'!AF107+'6'!AF107+'7'!AF107+'8'!AF107+'9'!AF107+'10'!AF107+'11'!AF107 -> 0 | AG107: 0 | AI107: 0 | AJ107: ='1'!AJ107+'2'!AJ107+'3'!AJ107+'4'!AJ107+'5'!AJ107+'6'!AJ107+'7'!AJ107+'8'!AJ107+'9'!AJ107+'10'!AJ107+'11'!AJ107 -> 0 | AK107: ='1'!AK107+'2'!AK107+'3'!AK107+'4'!AK107+'5'!AK107+'6'!AK107+'7'!AK107+'8'!AK107+'9'!AK107+'10'!AK107+'11'!AK107 -> 0 | AL107: ='1'!AL107+'2'!AL107+'3'!AL107+'4'!AL107+'5'!AL107+'6'!AL107+'7'!AL107+'8'!AL107+'9'!AL107+'10'!AL107+'11'!AL107 -> 0 | AM107: ='1'!AM107+'2'!AM107+'3'!AM107+'4'!AM107+'5'!AM107+'6'!AM107+'7'!AM107+'8'!AM107+'9'!AM107+'10'!AM107+'11'!AM107 -> 0 | AN107: ='1'!AN107+'2'!AN107+'3'!AN107+'4'!AN107+'5'!AN107+'6'!AN107+'7'!AN107+'8'!AN107+'9'!AN107+'10'!AN107+'11'!AN107 -> 0 | AO107: ='1'!AO107+'2'!AO107+'3'!AO107+'4'!AO107+'5'!AO107+'6'!AO107+'7'!AO107+'8'!AO107+'9'!AO107+'10'!AO107+'11'!AO107 -> 0 | AP107: ='1'!AP107+'2'!AP107+'3'!AP107+'4'!AP107+'5'!AP107+'6'!AP107+'7'!AP107+'8'!AP107+'9'!AP107+'10'!AP107+'11'!AP107 -> 0 | AQ107: ='1'!AQ107+'2'!AQ107+'3'!AQ107+'4'!AQ107+'5'!AQ107+'6'!AQ107+'7'!AQ107+'8'!AQ107+'9'!AQ107+'10'!AQ107+'11'!AQ107 -> 0 | AR107: ='1'!AR107+'2'!AR107+'3'!AR107+'4'!AR107+'5'!AR107+'6'!AR107+'7'!AR107+'8'!AR107+'9'!AR107+'10'!AR107+'11'!AR107 -> 0 | AS107: ='1'!AS107+'2'!AS107+'3'!AS107+'4'!AS107+'5'!AS107+'6'!AS107+'7'!AS107+'8'!AS107+'9'!AS107+'10'!AS107+'11'!AS107 -> 0 | AT107: ='1'!AT107+'2'!AT107+'3'!AT107+'4'!AT107+'5'!AT107+'6'!AT107+'7'!AT107+'8'!AT107+'9'!AT107+'10'!AT107+'11'!AT107 -> 0 | AU107: ='1'!AU107+'2'!AU107+'3'!AU107+'4'!AU107+'5'!AU107+'6'!AU107+'7'!AU107+'8'!AU107+'9'!AU107+'10'!AU107+'11'!AU107 -> 0 | AV107: 0 | AW107: ='1'!AW107+'2'!AW107+'3'!AW107+'4'!AW107+'5'!AW107+'6'!AW107+'7'!AW107+'8'!AW107+'9'!AW107+'10'!AW107+'11'!AW107 -> 0 | AX107: ='1'!AX107+'2'!AX107+'3'!AX107+'4'!AX107+'5'!AX107+'6'!AX107+'7'!AX107+'8'!AX107+'9'!AX107+'10'!AX107+'11'!AX107 -> 0 | AY107: ='1'!AY107+'2'!AY107+'3'!AY107+'4'!AY107+'5'!AY107+'6'!AY107+'7'!AY107+'8'!AY107+'9'!AY107+'10'!AY107+'11'!AY107 -> 0 | AZ107: 0
C108: 1 | H108: ='1'!H108 -> Public corporations | I108: =SUM('1:11'!I108)+I231 -> 0 | J108: =SUM('1:11'!J108)+J231 -> 0 | K108: =SUM('1:11'!K108)+K231 -> 0 | L108: =SUM('1:11'!L108)+L231 -> 0 | M108: =SUM('1:11'!M108)+M231 -> 0 | N108: =SUM('1:11'!N108)+N231 -> 0 | O108: =SUM('1:11'!O108)+O231 -> 0 | P108: =SUM('1:11'!P108)+P231 -> 0 | Q108: =SUM('1:11'!Q108)+Q231 -> 0 | R108: =SUM('1:11'!R108)+R231 -> 0 | S108: =SUM('1:11'!S108)+S231 -> 0 | T108: =SUM('1:11'!T108)+T231 -> 0 | U108: =SUM($H108:OFFSET($H108,0,$I$2)) -> 0 | V108: 0 | W108: 13316 | Y108: 13316 | Z108: ='1'!Z108+'2'!Z108+'3'!Z108+'4'!Z108+'5'!Z108+'6'!Z108+'7'!Z108+'8'!Z108+'9'!Z108+'10'!Z108+'11'!Z108 -> 0 | AA108: ='1'!AA108+'2'!AA108+'3'!AA108+'4'!AA108+'5'!AA108+'6'!AA108+'7'!AA108+'8'!AA108+'9'!AA108+'10'!AA108+'11'!AA108 -> 13316 | AB108: ='1'!AB108+'2'!AB108+'3'!AB108+'4'!AB108+'5'!AB108+'6'!AB108+'7'!AB108+'8'!AB108+'9'!AB108+'10'!AB108+'11'!AB108 -> 0 | AC108: ='1'!AC108+'2'!AC108+'3'!AC108+'4'!AC108+'5'!AC108+'6'!AC108+'7'!AC108+'8'!AC108+'9'!AC108+'10'!AC108+'11'!AC108 -> 0 | AD108: ='1'!AD108+'2'!AD108+'3'!AD108+'4'!AD108+'5'!AD108+'6'!AD108+'7'!AD108+'8'!AD108+'9'!AD108+'10'!AD108+'11'!AD108 -> 0 | AE108: ='1'!AE108+'2'!AE108+'3'!AE108+'4'!AE108+'5'!AE108+'6'!AE108+'7'!AE108+'8'!AE108+'9'!AE108+'10'!AE108+'11'!AE108 -> 0 | AF108: ='1'!AF108+'2'!AF108+'3'!AF108+'4'!AF108+'5'!AF108+'6'!AF108+'7'!AF108+'8'!AF108+'9'!AF108+'10'!AF108+'11'!AF108 -> 0 | AG108: 0 | AI108: 0 | AJ108: ='1'!AJ108+'2'!AJ108+'3'!AJ108+'4'!AJ108+'5'!AJ108+'6'!AJ108+'7'!AJ108+'8'!AJ108+'9'!AJ108+'10'!AJ108+'11'!AJ108 -> 0 | AK108: ='1'!AK108+'2'!AK108+'3'!AK108+'4'!AK108+'5'!AK108+'6'!AK108+'7'!AK108+'8'!AK108+'9'!AK108+'10'!AK108+'11'!AK108 -> 0 | AL108: ='1'!AL108+'2'!AL108+'3'!AL108+'4'!AL108+'5'!AL108+'6'!AL108+'7'!AL108+'8'!AL108+'9'!AL108+'10'!AL108+'11'!AL108 -> 0 | AM108: ='1'!AM108+'2'!AM108+'3'!AM108+'4'!AM108+'5'!AM108+'6'!AM108+'7'!AM108+'8'!AM108+'9'!AM108+'10'!AM108+'11'!AM108 -> 0 | AN108: ='1'!AN108+'2'!AN108+'3'!AN108+'4'!AN108+'5'!AN108+'6'!AN108+'7'!AN108+'8'!AN108+'9'!AN108+'10'!AN108+'11'!AN108 -> 0 | AO108: ='1'!AO108+'2'!AO108+'3'!AO108+'4'!AO108+'5'!AO108+'6'!AO108+'7'!AO108+'8'!AO108+'9'!AO108+'10'!AO108+'11'!AO108 -> 0 | AP108: ='1'!AP108+'2'!AP108+'3'!AP108+'4'!AP108+'5'!AP108+'6'!AP108+'7'!AP108+'8'!AP108+'9'!AP108+'10'!AP108+'11'!AP108 -> 0 | AQ108: ='1'!AQ108+'2'!AQ108+'3'!AQ108+'4'!AQ108+'5'!AQ108+'6'!AQ108+'7'!AQ108+'8'!AQ108+'9'!AQ108+'10'!AQ108+'11'!AQ108 -> 0 | AR108: ='1'!AR108+'2'!AR108+'3'!AR108+'4'!AR108+'5'!AR108+'6'!AR108+'7'!AR108+'8'!AR108+'9'!AR108+'10'!AR108+'11'!AR108 -> 0 | AS108: ='1'!AS108+'2'!AS108+'3'!AS108+'4'!AS108+'5'!AS108+'6'!AS108+'7'!AS108+'8'!AS108+'9'!AS108+'10'!AS108+'11'!AS108 -> 0 | AT108: ='1'!AT108+'2'!AT108+'3'!AT108+'4'!AT108+'5'!AT108+'6'!AT108+'7'!AT108+'8'!AT108+'9'!AT108+'10'!AT108+'11'!AT108 -> 0 | AU108: ='1'!AU108+'2'!AU108+'3'!AU108+'4'!AU108+'5'!AU108+'6'!AU108+'7'!AU108+'8'!AU108+'9'!AU108+'10'!AU108+'11'!AU108 -> 0 | AV108: 0 | AW108: ='1'!AW108+'2'!AW108+'3'!AW108+'4'!AW108+'5'!AW108+'6'!AW108+'7'!AW108+'8'!AW108+'9'!AW108+'10'!AW108+'11'!AW108 -> 0 | AX108: ='1'!AX108+'2'!AX108+'3'!AX108+'4'!AX108+'5'!AX108+'6'!AX108+'7'!AX108+'8'!AX108+'9'!AX108+'10'!AX108+'11'!AX108 -> 0 | AY108: ='1'!AY108+'2'!AY108+'3'!AY108+'4'!AY108+'5'!AY108+'6'!AY108+'7'!AY108+'8'!AY108+'9'!AY108+'10'!AY108+'11'!AY108 -> 0 | AZ108: 0
C109: 1 | H109: ='1'!H109 -> Subsidies on products and production (pc) | I109: =SUM('1:11'!I109)+I232 -> 0 | J109: =SUM('1:11'!J109)+J232 -> 0 | K109: =SUM('1:11'!K109)+K232 -> 0 | L109: =SUM('1:11'!L109)+L232 -> 0 | M109: =SUM('1:11'!M109)+M232 -> 0 | N109: =SUM('1:11'!N109)+N232 -> 0 | O109: =SUM('1:11'!O109)+O232 -> 0 | P109: =SUM('1:11'!P109)+P232 -> 0 | Q109: =SUM('1:11'!Q109)+Q232 -> 0 | R109: =SUM('1:11'!R109)+R232 -> 0 | S109: =SUM('1:11'!S109)+S232 -> 0 | T109: =SUM('1:11'!T109)+T232 -> 0 | U109: =SUM($H109:OFFSET($H109,0,$I$2)) -> 0 | V109: 0 | W109: 0 | Y109: 0 | Z109: ='1'!Z109+'2'!Z109+'3'!Z109+'4'!Z109+'5'!Z109+'6'!Z109+'7'!Z109+'8'!Z109+'9'!Z109+'10'!Z109+'11'!Z109 -> 0 | AA109: ='1'!AA109+'2'!AA109+'3'!AA109+'4'!AA109+'5'!AA109+'6'!AA109+'7'!AA109+'8'!AA109+'9'!AA109+'10'!AA109+'11'!AA109 -> 0 | AB109: ='1'!AB109+'2'!AB109+'3'!AB109+'4'!AB109+'5'!AB109+'6'!AB109+'7'!AB109+'8'!AB109+'9'!AB109+'10'!AB109+'11'!AB109 -> 0 | AC109: ='1'!AC109+'2'!AC109+'3'!AC109+'4'!AC109+'5'!AC109+'6'!AC109+'7'!AC109+'8'!AC109+'9'!AC109+'10'!AC109+'11'!AC109 -> 0 | AD109: ='1'!AD109+'2'!AD109+'3'!AD109+'4'!AD109+'5'!AD109+'6'!AD109+'7'!AD109+'8'!AD109+'9'!AD109+'10'!AD109+'11'!AD109 -> 0 | AE109: ='1'!AE109+'2'!AE109+'3'!AE109+'4'!AE109+'5'!AE109+'6'!AE109+'7'!AE109+'8'!AE109+'9'!AE109+'10'!AE109+'11'!AE109 -> 0 | AF109: ='1'!AF109+'2'!AF109+'3'!AF109+'4'!AF109+'5'!AF109+'6'!AF109+'7'!AF109+'8'!AF109+'9'!AF109+'10'!AF109+'11'!AF109 -> 0 | AG109: 0 | AI109: 0 | AJ109: ='1'!AJ109+'2'!AJ109+'3'!AJ109+'4'!AJ109+'5'!AJ109+'6'!AJ109+'7'!AJ109+'8'!AJ109+'9'!AJ109+'10'!AJ109+'11'!AJ109 -> 0 | AK109: ='1'!AK109+'2'!AK109+'3'!AK109+'4'!AK109+'5'!AK109+'6'!AK109+'7'!AK109+'8'!AK109+'9'!AK109+'10'!AK109+'11'!AK109 -> 0 | AL109: ='1'!AL109+'2'!AL109+'3'!AL109+'4'!AL109+'5'!AL109+'6'!AL109+'7'!AL109+'8'!AL109+'9'!AL109+'10'!AL109+'11'!AL109 -> 0 | AM109: ='1'!AM109+'2'!AM109+'3'!AM109+'4'!AM109+'5'!AM109+'6'!AM109+'7'!AM109+'8'!AM109+'9'!AM109+'10'!AM109+'11'!AM109 -> 0 | AN109: ='1'!AN109+'2'!AN109+'3'!AN109+'4'!AN109+'5'!AN109+'6'!AN109+'7'!AN109+'8'!AN109+'9'!AN109+'10'!AN109+'11'!AN109 -> 0 | AO109: ='1'!AO109+'2'!AO109+'3'!AO109+'4'!AO109+'5'!AO109+'6'!AO109+'7'!AO109+'8'!AO109+'9'!AO109+'10'!AO109+'11'!AO109 -> 0 | AP109: ='1'!AP109+'2'!AP109+'3'!AP109+'4'!AP109+'5'!AP109+'6'!AP109+'7'!AP109+'8'!AP109+'9'!AP109+'10'!AP109+'11'!AP109 -> 0 | AQ109: ='1'!AQ109+'2'!AQ109+'3'!AQ109+'4'!AQ109+'5'!AQ109+'6'!AQ109+'7'!AQ109+'8'!AQ109+'9'!AQ109+'10'!AQ109+'11'!AQ109 -> 0 | AR109: ='1'!AR109+'2'!AR109+'3'!AR109+'4'!AR109+'5'!AR109+'6'!AR109+'7'!AR109+'8'!AR109+'9'!AR109+'10'!AR109+'11'!AR109 -> 0 | AS109: ='1'!AS109+'2'!AS109+'3'!AS109+'4'!AS109+'5'!AS109+'6'!AS109+'7'!AS109+'8'!AS109+'9'!AS109+'10'!AS109+'11'!AS109 -> 0 | AT109: ='1'!AT109+'2'!AT109+'3'!AT109+'4'!AT109+'5'!AT109+'6'!AT109+'7'!AT109+'8'!AT109+'9'!AT109+'10'!AT109+'11'!AT109 -> 0 | AU109: ='1'!AU109+'2'!AU109+'3'!AU109+'4'!AU109+'5'!AU109+'6'!AU109+'7'!AU109+'8'!AU109+'9'!AU109+'10'!AU109+'11'!AU109 -> 0 | AV109: 0 | AW109: ='1'!AW109+'2'!AW109+'3'!AW109+'4'!AW109+'5'!AW109+'6'!AW109+'7'!AW109+'8'!AW109+'9'!AW109+'10'!AW109+'11'!AW109 -> 0 | AX109: ='1'!AX109+'2'!AX109+'3'!AX109+'4'!AX109+'5'!AX109+'6'!AX109+'7'!AX109+'8'!AX109+'9'!AX109+'10'!AX109+'11'!AX109 -> 0 | AY109: ='1'!AY109+'2'!AY109+'3'!AY109+'4'!AY109+'5'!AY109+'6'!AY109+'7'!AY109+'8'!AY109+'9'!AY109+'10'!AY109+'11'!AY109 -> 0 | AZ109: 0
C110: 1 | H110: ='1'!H110 -> Other transfers to public corporations | I110: =SUM('1:11'!I110)+I233 -> 0 | J110: =SUM('1:11'!J110)+J233 -> 0 | K110: =SUM('1:11'!K110)+K233 -> 0 | L110: =SUM('1:11'!L110)+L233 -> 0 | M110: =SUM('1:11'!M110)+M233 -> 0 | N110: =SUM('1:11'!N110)+N233 -> 0 | O110: =SUM('1:11'!O110)+O233 -> 0 | P110: =SUM('1:11'!P110)+P233 -> 0 | Q110: =SUM('1:11'!Q110)+Q233 -> 0 | R110: =SUM('1:11'!R110)+R233 -> 0 | S110: =SUM('1:11'!S110)+S233 -> 0 | T110: =SUM('1:11'!T110)+T233 -> 0 | U110: =SUM($H110:OFFSET($H110,0,$I$2)) -> 0 | V110: 0 | W110: 13316 | Y110: 13316 | Z110: ='1'!Z110+'2'!Z110+'3'!Z110+'4'!Z110+'5'!Z110+'6'!Z110+'7'!Z110+'8'!Z110+'9'!Z110+'10'!Z110+'11'!Z110 -> 0 | AA110: ='1'!AA110+'2'!AA110+'3'!AA110+'4'!AA110+'5'!AA110+'6'!AA110+'7'!AA110+'8'!AA110+'9'!AA110+'10'!AA110+'11'!AA110 -> 13316 | AB110: ='1'!AB110+'2'!AB110+'3'!AB110+'4'!AB110+'5'!AB110+'6'!AB110+'7'!AB110+'8'!AB110+'9'!AB110+'10'!AB110+'11'!AB110 -> 0 | AC110: ='1'!AC110+'2'!AC110+'3'!AC110+'4'!AC110+'5'!AC110+'6'!AC110+'7'!AC110+'8'!AC110+'9'!AC110+'10'!AC110+'11'!AC110 -> 0 | AD110: ='1'!AD110+'2'!AD110+'3'!AD110+'4'!AD110+'5'!AD110+'6'!AD110+'7'!AD110+'8'!AD110+'9'!AD110+'10'!AD110+'11'!AD110 -> 0 | AE110: ='1'!AE110+'2'!AE110+'3'!AE110+'4'!AE110+'5'!AE110+'6'!AE110+'7'!AE110+'8'!AE110+'9'!AE110+'10'!AE110+'11'!AE110 -> 0 | AF110: ='1'!AF110+'2'!AF110+'3'!AF110+'4'!AF110+'5'!AF110+'6'!AF110+'7'!AF110+'8'!AF110+'9'!AF110+'10'!AF110+'11'!AF110 -> 0 | AG110: 0 | AI110: 0 | AJ110: ='1'!AJ110+'2'!AJ110+'3'!AJ110+'4'!AJ110+'5'!AJ110+'6'!AJ110+'7'!AJ110+'8'!AJ110+'9'!AJ110+'10'!AJ110+'11'!AJ110 -> 0 | AK110: ='1'!AK110+'2'!AK110+'3'!AK110+'4'!AK110+'5'!AK110+'6'!AK110+'7'!AK110+'8'!AK110+'9'!AK110+'10'!AK110+'11'!AK110 -> 0 | AL110: ='1'!AL110+'2'!AL110+'3'!AL110+'4'!AL110+'5'!AL110+'6'!AL110+'7'!AL110+'8'!AL110+'9'!AL110+'10'!AL110+'11'!AL110 -> 0 | AM110: ='1'!AM110+'2'!AM110+'3'!AM110+'4'!AM110+'5'!AM110+'6'!AM110+'7'!AM110+'8'!AM110+'9'!AM110+'10'!AM110+'11'!AM110 -> 0 | AN110: ='1'!AN110+'2'!AN110+'3'!AN110+'4'!AN110+'5'!AN110+'6'!AN110+'7'!AN110+'8'!AN110+'9'!AN110+'10'!AN110+'11'!AN110 -> 0 | AO110: ='1'!AO110+'2'!AO110+'3'!AO110+'4'!AO110+'5'!AO110+'6'!AO110+'7'!AO110+'8'!AO110+'9'!AO110+'10'!AO110+'11'!AO110 -> 0 | AP110: ='1'!AP110+'2'!AP110+'3'!AP110+'4'!AP110+'5'!AP110+'6'!AP110+'7'!AP110+'8'!AP110+'9'!AP110+'10'!AP110+'11'!AP110 -> 0 | AQ110: ='1'!AQ110+'2'!AQ110+'3'!AQ110+'4'!AQ110+'5'!AQ110+'6'!AQ110+'7'!AQ110+'8'!AQ110+'9'!AQ110+'10'!AQ110+'11'!AQ110 -> 0 | AR110: ='1'!AR110+'2'!AR110+'3'!AR110+'4'!AR110+'5'!AR110+'6'!AR110+'7'!AR110+'8'!AR110+'9'!AR110+'10'!AR110+'11'!AR110 -> 0 | AS110: ='1'!AS110+'2'!AS110+'3'!AS110+'4'!AS110+'5'!AS110+'6'!AS110+'7'!AS110+'8'!AS110+'9'!AS110+'10'!AS110+'11'!AS110 -> 0 | AT110: ='1'!AT110+'2'!AT110+'3'!AT110+'4'!AT110+'5'!AT110+'6'!AT110+'7'!AT110+'8'!AT110+'9'!AT110+'10'!AT110+'11'!AT110 -> 0 | AU110: ='1'!AU110+'2'!AU110+'3'!AU110+'4'!AU110+'5'!AU110+'6'!AU110+'7'!AU110+'8'!AU110+'9'!AU110+'10'!AU110+'11'!AU110 -> 0 | AV110: 0 | AW110: ='1'!AW110+'2'!AW110+'3'!AW110+'4'!AW110+'5'!AW110+'6'!AW110+'7'!AW110+'8'!AW110+'9'!AW110+'10'!AW110+'11'!AW110 -> 0 | AX110: ='1'!AX110+'2'!AX110+'3'!AX110+'4'!AX110+'5'!AX110+'6'!AX110+'7'!AX110+'8'!AX110+'9'!AX110+'10'!AX110+'11'!AX110 -> 0 | AY110: ='1'!AY110+'2'!AY110+'3'!AY110+'4'!AY110+'5'!AY110+'6'!AY110+'7'!AY110+'8'!AY110+'9'!AY110+'10'!AY110+'11'!AY110 -> 0 | AZ110: 0
C111: 1 | H111: ='1'!H111 -> Private enterprises | I111: =SUM('1:11'!I111)+I234 -> 0 | J111: =SUM('1:11'!J111)+J234 -> 0 | K111: =SUM('1:11'!K111)+K234 -> 0 | L111: =SUM('1:11'!L111)+L234 -> 0 | M111: =SUM('1:11'!M111)+M234 -> 0 | N111: =SUM('1:11'!N111)+N234 -> 0 | O111: =SUM('1:11'!O111)+O234 -> 0 | P111: =SUM('1:11'!P111)+P234 -> 0 | Q111: =SUM('1:11'!Q111)+Q234 -> 0 | R111: =SUM('1:11'!R111)+R234 -> 0 | S111: =SUM('1:11'!S111)+S234 -> 0 | T111: =SUM('1:11'!T111)+T234 -> 0 | U111: =SUM($H111:OFFSET($H111,0,$I$2)) -> 0 | V111: 0 | W111: 0 | Y111: 0 | Z111: ='1'!Z111+'2'!Z111+'3'!Z111+'4'!Z111+'5'!Z111+'6'!Z111+'7'!Z111+'8'!Z111+'9'!Z111+'10'!Z111+'11'!Z111 -> 13316 | AA111: ='1'!AA111+'2'!AA111+'3'!AA111+'4'!AA111+'5'!AA111+'6'!AA111+'7'!AA111+'8'!AA111+'9'!AA111+'10'!AA111+'11'!AA111 -> 0 | AB111: ='1'!AB111+'2'!AB111+'3'!AB111+'4'!AB111+'5'!AB111+'6'!AB111+'7'!AB111+'8'!AB111+'9'!AB111+'10'!AB111+'11'!AB111 -> 0 | AC111: ='1'!AC111+'2'!AC111+'3'!AC111+'4'!AC111+'5'!AC111+'6'!AC111+'7'!AC111+'8'!AC111+'9'!AC111+'10'!AC111+'11'!AC111 -> 0 | AD111: ='1'!AD111+'2'!AD111+'3'!AD111+'4'!AD111+'5'!AD111+'6'!AD111+'7'!AD111+'8'!AD111+'9'!AD111+'10'!AD111+'11'!AD111 -> 0 | AE111: ='1'!AE111+'2'!AE111+'3'!AE111+'4'!AE111+'5'!AE111+'6'!AE111+'7'!AE111+'8'!AE111+'9'!AE111+'10'!AE111+'11'!AE111 -> 0 | AF111: ='1'!AF111+'2'!AF111+'3'!AF111+'4'!AF111+'5'!AF111+'6'!AF111+'7'!AF111+'8'!AF111+'9'!AF111+'10'!AF111+'11'!AF111 -> 0 | AG111: 0 | AI111: 0 | AJ111: ='1'!AJ111+'2'!AJ111+'3'!AJ111+'4'!AJ111+'5'!AJ111+'6'!AJ111+'7'!AJ111+'8'!AJ111+'9'!AJ111+'10'!AJ111+'11'!AJ111 -> 0 | AK111: ='1'!AK111+'2'!AK111+'3'!AK111+'4'!AK111+'5'!AK111+'6'!AK111+'7'!AK111+'8'!AK111+'9'!AK111+'10'!AK111+'11'!AK111 -> 0 | AL111: ='1'!AL111+'2'!AL111+'3'!AL111+'4'!AL111+'5'!AL111+'6'!AL111+'7'!AL111+'8'!AL111+'9'!AL111+'10'!AL111+'11'!AL111 -> 0 | AM111: ='1'!AM111+'2'!AM111+'3'!AM111+'4'!AM111+'5'!AM111+'6'!AM111+'7'!AM111+'8'!AM111+'9'!AM111+'10'!AM111+'11'!AM111 -> 0 | AN111: ='1'!AN111+'2'!AN111+'3'!AN111+'4'!AN111+'5'!AN111+'6'!AN111+'7'!AN111+'8'!AN111+'9'!AN111+'10'!AN111+'11'!AN111 -> 0 | AO111: ='1'!AO111+'2'!AO111+'3'!AO111+'4'!AO111+'5'!AO111+'6'!AO111+'7'!AO111+'8'!AO111+'9'!AO111+'10'!AO111+'11'!AO111 -> 0 | AP111: ='1'!AP111+'2'!AP111+'3'!AP111+'4'!AP111+'5'!AP111+'6'!AP111+'7'!AP111+'8'!AP111+'9'!AP111+'10'!AP111+'11'!AP111 -> 0 | AQ111: ='1'!AQ111+'2'!AQ111+'3'!AQ111+'4'!AQ111+'5'!AQ111+'6'!AQ111+'7'!AQ111+'8'!AQ111+'9'!AQ111+'10'!AQ111+'11'!AQ111 -> 0 | AR111: ='1'!AR111+'2'!AR111+'3'!AR111+'4'!AR111+'5'!AR111+'6'!AR111+'7'!AR111+'8'!AR111+'9'!AR111+'10'!AR111+'11'!AR111 -> 0 | AS111: ='1'!AS111+'2'!AS111+'3'!AS111+'4'!AS111+'5'!AS111+'6'!AS111+'7'!AS111+'8'!AS111+'9'!AS111+'10'!AS111+'11'!AS111 -> 0 | AT111: ='1'!AT111+'2'!AT111+'3'!AT111+'4'!AT111+'5'!AT111+'6'!AT111+'7'!AT111+'8'!AT111+'9'!AT111+'10'!AT111+'11'!AT111 -> 0 | AU111: ='1'!AU111+'2'!AU111+'3'!AU111+'4'!AU111+'5'!AU111+'6'!AU111+'7'!AU111+'8'!AU111+'9'!AU111+'10'!AU111+'11'!AU111 -> 0 | AV111: 0 | AW111: ='1'!AW111+'2'!AW111+'3'!AW111+'4'!AW111+'5'!AW111+'6'!AW111+'7'!AW111+'8'!AW111+'9'!AW111+'10'!AW111+'11'!AW111 -> 0 | AX111: ='1'!AX111+'2'!AX111+'3'!AX111+'4'!AX111+'5'!AX111+'6'!AX111+'7'!AX111+'8'!AX111+'9'!AX111+'10'!AX111+'11'!AX111 -> 0 | AY111: ='1'!AY111+'2'!AY111+'3'!AY111+'4'!AY111+'5'!AY111+'6'!AY111+'7'!AY111+'8'!AY111+'9'!AY111+'10'!AY111+'11'!AY111 -> 0 | AZ111: 0
C112: 1 | H112: ='1'!H112 -> Subsidies on products and production (pe) | I112: =SUM('1:11'!I112)+I235 -> 0 | J112: =SUM('1:11'!J112)+J235 -> 0 | K112: =SUM('1:11'!K112)+K235 -> 0 | L112: =SUM('1:11'!L112)+L235 -> 0 | M112: =SUM('1:11'!M112)+M235 -> 0 | N112: =SUM('1:11'!N112)+N235 -> 0 | O112: =SUM('1:11'!O112)+O235 -> 0 | P112: =SUM('1:11'!P112)+P235 -> 0 | Q112: =SUM('1:11'!Q112)+Q235 -> 0 | R112: =SUM('1:11'!R112)+R235 -> 0 | S112: =SUM('1:11'!S112)+S235 -> 0 | T112: =SUM('1:11'!T112)+T235 -> 0 | U112: =SUM($H112:OFFSET($H112,0,$I$2)) -> 0 | V112: 0 | W112: 0 | Y112: 0 | Z112: ='1'!Z112+'2'!Z112+'3'!Z112+'4'!Z112+'5'!Z112+'6'!Z112+'7'!Z112+'8'!Z112+'9'!Z112+'10'!Z112+'11'!Z112 -> 0 | AA112: ='1'!AA112+'2'!AA112+'3'!AA112+'4'!AA112+'5'!AA112+'6'!AA112+'7'!AA112+'8'!AA112+'9'!AA112+'10'!AA112+'11'!AA112 -> 0 | AB112: ='1'!AB112+'2'!AB112+'3'!AB112+'4'!AB112+'5'!AB112+'6'!AB112+'7'!AB112+'8'!AB112+'9'!AB112+'10'!AB112+'11'!AB112 -> 0 | AC112: ='1'!AC112+'2'!AC112+'3'!AC112+'4'!AC112+'5'!AC112+'6'!AC112+'7'!AC112+'8'!AC112+'9'!AC112+'10'!AC112+'11'!AC112 -> 0 | AD112: ='1'!AD112+'2'!AD112+'3'!AD112+'4'!AD112+'5'!AD112+'6'!AD112+'7'!AD112+'8'!AD112+'9'!AD112+'10'!AD112+'11'!AD112 -> 0 | AE112: ='1'!AE112+'2'!AE112+'3'!AE112+'4'!AE112+'5'!AE112+'6'!AE112+'7'!AE112+'8'!AE112+'9'!AE112+'10'!AE112+'11'!AE112 -> 0 | AF112: ='1'!AF112+'2'!AF112+'3'!AF112+'4'!AF112+'5'!AF112+'6'!AF112+'7'!AF112+'8'!AF112+'9'!AF112+'10'!AF112+'11'!AF112 -> 0 | AG112: 0 | AI112: =AZ112 -> 0 | AJ112: ='1'!AJ112+'2'!AJ112+'3'!AJ112+'4'!AJ112+'5'!AJ112+'6'!AJ112+'7'!AJ112+'8'!AJ112+'9'!AJ112+'10'!AJ112+'11'!AJ112 -> 0 | AK112: ='1'!AK112+'2'!AK112+'3'!AK112+'4'!AK112+'5'!AK112+'6'!AK112+'7'!AK112+'8'!AK112+'9'!AK112+'10'!AK112+'11'!AK112 -> 0 | AL112: ='1'!AL112+'2'!AL112+'3'!AL112+'4'!AL112+'5'!AL112+'6'!AL112+'7'!AL112+'8'!AL112+'9'!AL112+'10'!AL112+'11'!AL112 -> 0 | AM112: ='1'!AM112+'2'!AM112+'3'!AM112+'4'!AM112+'5'!AM112+'6'!AM112+'7'!AM112+'8'!AM112+'9'!AM112+'10'!AM112+'11'!AM112 -> 0 | AN112: ='1'!AN112+'2'!AN112+'3'!AN112+'4'!AN112+'5'!AN112+'6'!AN112+'7'!AN112+'8'!AN112+'9'!AN112+'10'!AN112+'11'!AN112 -> 0 | AO112: ='1'!AO112+'2'!AO112+'3'!AO112+'4'!AO112+'5'!AO112+'6'!AO112+'7'!AO112+'8'!AO112+'9'!AO112+'10'!AO112+'11'!AO112 -> 0 | AP112: ='1'!AP112+'2'!AP112+'3'!AP112+'4'!AP112+'5'!AP112+'6'!AP112+'7'!AP112+'8'!AP112+'9'!AP112+'10'!AP112+'11'!AP112 -> 0 | AQ112: ='1'!AQ112+'2'!AQ112+'3'!AQ112+'4'!AQ112+'5'!AQ112+'6'!AQ112+'7'!AQ112+'8'!AQ112+'9'!AQ112+'10'!AQ112+'11'!AQ112 -> 0 | AR112: ='1'!AR112+'2'!AR112+'3'!AR112+'4'!AR112+'5'!AR112+'6'!AR112+'7'!AR112+'8'!AR112+'9'!AR112+'10'!AR112+'11'!AR112 -> 0 | AS112: ='1'!AS112+'2'!AS112+'3'!AS112+'4'!AS112+'5'!AS112+'6'!AS112+'7'!AS112+'8'!AS112+'9'!AS112+'10'!AS112+'11'!AS112 -> 0 | AT112: ='1'!AT112+'2'!AT112+'3'!AT112+'4'!AT112+'5'!AT112+'6'!AT112+'7'!AT112+'8'!AT112+'9'!AT112+'10'!AT112+'11'!AT112 -> 0 | AU112: ='1'!AU112+'2'!AU112+'3'!AU112+'4'!AU112+'5'!AU112+'6'!AU112+'7'!AU112+'8'!AU112+'9'!AU112+'10'!AU112+'11'!AU112 -> 0 | AV112: 0 | AW112: ='1'!AW112+'2'!AW112+'3'!AW112+'4'!AW112+'5'!AW112+'6'!AW112+'7'!AW112+'8'!AW112+'9'!AW112+'10'!AW112+'11'!AW112 -> 0 | AX112: ='1'!AX112+'2'!AX112+'3'!AX112+'4'!AX112+'5'!AX112+'6'!AX112+'7'!AX112+'8'!AX112+'9'!AX112+'10'!AX112+'11'!AX112 -> 0 | AY112: ='1'!AY112+'2'!AY112+'3'!AY112+'4'!AY112+'5'!AY112+'6'!AY112+'7'!AY112+'8'!AY112+'9'!AY112+'10'!AY112+'11'!AY112 -> 0 | AZ112: =SUM(AW112:AY112) -> 0
C113: 1 | H113: ='1'!H113 -> Other transfers to private enterprises | I113: =SUM('1:11'!I113)+I236 -> 0 | J113: =SUM('1:11'!J113)+J236 -> 0 | K113: =SUM('1:11'!K113)+K236 -> 0 | L113: =SUM('1:11'!L113)+L236 -> 0 | M113: =SUM('1:11'!M113)+M236 -> 0 | N113: =SUM('1:11'!N113)+N236 -> 0 | O113: =SUM('1:11'!O113)+O236 -> 0 | P113: =SUM('1:11'!P113)+P236 -> 0 | Q113: =SUM('1:11'!Q113)+Q236 -> 0 | R113: =SUM('1:11'!R113)+R236 -> 0 | S113: =SUM('1:11'!S113)+S236 -> 0 | T113: =SUM('1:11'!T113)+T236 -> 0 | U113: =SUM($H113:OFFSET($H113,0,$I$2)) -> 0 | V113: =SUM(I113:T113) -> 0 | W113: =Y113-V113 -> 0 | Y113: =AA113+AC113+AI113 -> 0 | Z113: ='1'!Z113+'2'!Z113+'3'!Z113+'4'!Z113+'5'!Z113+'6'!Z113+'7'!Z113+'8'!Z113+'9'!Z113+'10'!Z113+'11'!Z113 -> 13316 | AA113: ='1'!AA113+'2'!AA113+'3'!AA113+'4'!AA113+'5'!AA113+'6'!AA113+'7'!AA113+'8'!AA113+'9'!AA113+'10'!AA113+'11'!AA113 -> 0 | AB113: ='1'!AB113+'2'!AB113+'3'!AB113+'4'!AB113+'5'!AB113+'6'!AB113+'7'!AB113+'8'!AB113+'9'!AB113+'10'!AB113+'11'!AB113 -> 0 | AC113: ='1'!AC113+'2'!AC113+'3'!AC113+'4'!AC113+'5'!AC113+'6'!AC113+'7'!AC113+'8'!AC113+'9'!AC113+'10'!AC113+'11'!AC113 -> 0 | AD113: ='1'!AD113+'2'!AD113+'3'!AD113+'4'!AD113+'5'!AD113+'6'!AD113+'7'!AD113+'8'!AD113+'9'!AD113+'10'!AD113+'11'!AD113 -> 0 | AE113: ='1'!AE113+'2'!AE113+'3'!AE113+'4'!AE113+'5'!AE113+'6'!AE113+'7'!AE113+'8'!AE113+'9'!AE113+'10'!AE113+'11'!AE113 -> 0 | AF113: ='1'!AF113+'2'!AF113+'3'!AF113+'4'!AF113+'5'!AF113+'6'!AF113+'7'!AF113+'8'!AF113+'9'!AF113+'10'!AF113+'11'!AF113 -> 0 | AG113: =SUM(AD113:AF113) -> 0 | AI113: 0 | AJ113: ='1'!AJ113+'2'!AJ113+'3'!AJ113+'4'!AJ113+'5'!AJ113+'6'!AJ113+'7'!AJ113+'8'!AJ113+'9'!AJ113+'10'!AJ113+'11'!AJ113 -> 0 | AK113: ='1'!AK113+'2'!AK113+'3'!AK113+'4'!AK113+'5'!AK113+'6'!AK113+'7'!AK113+'8'!AK113+'9'!AK113+'10'!AK113+'11'!AK113 -> 0 | AL113: ='1'!AL113+'2'!AL113+'3'!AL113+'4'!AL113+'5'!AL113+'6'!AL113+'7'!AL113+'8'!AL113+'9'!AL113+'10'!AL113+'11'!AL113 -> 0 | AM113: ='1'!AM113+'2'!AM113+'3'!AM113+'4'!AM113+'5'!AM113+'6'!AM113+'7'!AM113+'8'!AM113+'9'!AM113+'10'!AM113+'11'!AM113 -> 0 | AN113: ='1'!AN113+'2'!AN113+'3'!AN113+'4'!AN113+'5'!AN113+'6'!AN113+'7'!AN113+'8'!AN113+'9'!AN113+'10'!AN113+'11'!AN113 -> 0 | AO113: ='1'!AO113+'2'!AO113+'3'!AO113+'4'!AO113+'5'!AO113+'6'!AO113+'7'!AO113+'8'!AO113+'9'!AO113+'10'!AO113+'11'!AO113 -> 0 | AP113: ='1'!AP113+'2'!AP113+'3'!AP113+'4'!AP113+'5'!AP113+'6'!AP113+'7'!AP113+'8'!AP113+'9'!AP113+'10'!AP113+'11'!AP113 -> 0 | AQ113: ='1'!AQ113+'2'!AQ113+'3'!AQ113+'4'!AQ113+'5'!AQ113+'6'!AQ113+'7'!AQ113+'8'!AQ113+'9'!AQ113+'10'!AQ113+'11'!AQ113 -> 0 | AR113: ='1'!AR113+'2'!AR113+'3'!AR113+'4'!AR113+'5'!AR113+'6'!AR113+'7'!AR113+'8'!AR113+'9'!AR113+'10'!AR113+'11'!AR113 -> 0 | AS113: ='1'!AS113+'2'!AS113+'3'!AS113+'4'!AS113+'5'!AS113+'6'!AS113+'7'!AS113+'8'!AS113+'9'!AS113+'10'!AS113+'11'!AS113 -> 0 | AT113: ='1'!AT113+'2'!AT113+'3'!AT113+'4'!AT113+'5'!AT113+'6'!AT113+'7'!AT113+'8'!AT113+'9'!AT113+'10'!AT113+'11'!AT113 -> 0 | AU113: ='1'!AU113+'2'!AU113+'3'!AU113+'4'!AU113+'5'!AU113+'6'!AU113+'7'!AU113+'8'!AU113+'9'!AU113+'10'!AU113+'11'!AU113 -> 0 | AV113: =SUM(AJ113:AU113) -> 0 | AW113: ='1'!AW113+'2'!AW113+'3'!AW113+'4'!AW113+'5'!AW113+'6'!AW113+'7'!AW113+'8'!AW113+'9'!AW113+'10'!AW113+'11'!AW113 -> 0 | AX113: ='1'!AX113+'2'!AX113+'3'!AX113+'4'!AX113+'5'!AX113+'6'!AX113+'7'!AX113+'8'!AX113+'9'!AX113+'10'!AX113+'11'!AX113 -> 0 | AY113: ='1'!AY113+'2'!AY113+'3'!AY113+'4'!AY113+'5'!AY113+'6'!AY113+'7'!AY113+'8'!AY113+'9'!AY113+'10'!AY113+'11'!AY113 -> 0 | AZ113: 0
C114: 1 | H114: ='1'!H114 -> Non-profit institutions | I114: =SUM('1:11'!I114)+I237 -> 0 | J114: =SUM('1:11'!J114)+J237 -> 0 | K114: =SUM('1:11'!K114)+K237 -> 0 | L114: =SUM('1:11'!L114)+L237 -> 0 | M114: =SUM('1:11'!M114)+M237 -> 0 | N114: =SUM('1:11'!N114)+N237 -> 0 | O114: =SUM('1:11'!O114)+O237 -> 0 | P114: =SUM('1:11'!P114)+P237 -> 0 | Q114: =SUM('1:11'!Q114)+Q237 -> 0 | R114: =SUM('1:11'!R114)+R237 -> 0 | S114: =SUM('1:11'!S114)+S237 -> 0 | T114: =SUM('1:11'!T114)+T237 -> 0 | U114: =SUM($H114:OFFSET($H114,0,$I$2)) -> 0 | V114: 0 | W114: 0 | Y114: 0 | Z114: ='1'!Z114+'2'!Z114+'3'!Z114+'4'!Z114+'5'!Z114+'6'!Z114+'7'!Z114+'8'!Z114+'9'!Z114+'10'!Z114+'11'!Z114 -> 0 | AA114: ='1'!AA114+'2'!AA114+'3'!AA114+'4'!AA114+'5'!AA114+'6'!AA114+'7'!AA114+'8'!AA114+'9'!AA114+'10'!AA114+'11'!AA114 -> 0 | AB114: ='1'!AB114+'2'!AB114+'3'!AB114+'4'!AB114+'5'!AB114+'6'!AB114+'7'!AB114+'8'!AB114+'9'!AB114+'10'!AB114+'11'!AB114 -> 0 | AC114: ='1'!AC114+'2'!AC114+'3'!AC114+'4'!AC114+'5'!AC114+'6'!AC114+'7'!AC114+'8'!AC114+'9'!AC114+'10'!AC114+'11'!AC114 -> 0 | AD114: ='1'!AD114+'2'!AD114+'3'!AD114+'4'!AD114+'5'!AD114+'6'!AD114+'7'!AD114+'8'!AD114+'9'!AD114+'10'!AD114+'11'!AD114 -> 0 | AE114: ='1'!AE114+'2'!AE114+'3'!AE114+'4'!AE114+'5'!AE114+'6'!AE114+'7'!AE114+'8'!AE114+'9'!AE114+'10'!AE114+'11'!AE114 -> 0 | AF114: ='1'!AF114+'2'!AF114+'3'!AF114+'4'!AF114+'5'!AF114+'6'!AF114+'7'!AF114+'8'!AF114+'9'!AF114+'10'!AF114+'11'!AF114 -> 0 | AG114: 0 | AI114: 0 | AJ114: ='1'!AJ114+'2'!AJ114+'3'!AJ114+'4'!AJ114+'5'!AJ114+'6'!AJ114+'7'!AJ114+'8'!AJ114+'9'!AJ114+'10'!AJ114+'11'!AJ114 -> 0 | AK114: ='1'!AK114+'2'!AK114+'3'!AK114+'4'!AK114+'5'!AK114+'6'!AK114+'7'!AK114+'8'!AK114+'9'!AK114+'10'!AK114+'11'!AK114 -> 0 | AL114: ='1'!AL114+'2'!AL114+'3'!AL114+'4'!AL114+'5'!AL114+'6'!AL114+'7'!AL114+'8'!AL114+'9'!AL114+'10'!AL114+'11'!AL114 -> 0 | AM114: ='1'!AM114+'2'!AM114+'3'!AM114+'4'!AM114+'5'!AM114+'6'!AM114+'7'!AM114+'8'!AM114+'9'!AM114+'10'!AM114+'11'!AM114 -> 0 | AN114: ='1'!AN114+'2'!AN114+'3'!AN114+'4'!AN114+'5'!AN114+'6'!AN114+'7'!AN114+'8'!AN114+'9'!AN114+'10'!AN114+'11'!AN114 -> 0 | AO114: ='1'!AO114+'2'!AO114+'3'!AO114+'4'!AO114+'5'!AO114+'6'!AO114+'7'!AO114+'8'!AO114+'9'!AO114+'10'!AO114+'11'!AO114 -> 0 | AP114: ='1'!AP114+'2'!AP114+'3'!AP114+'4'!AP114+'5'!AP114+'6'!AP114+'7'!AP114+'8'!AP114+'9'!AP114+'10'!AP114+'11'!AP114 -> 0 | AQ114: ='1'!AQ114+'2'!AQ114+'3'!AQ114+'4'!AQ114+'5'!AQ114+'6'!AQ114+'7'!AQ114+'8'!AQ114+'9'!AQ114+'10'!AQ114+'11'!AQ114 -> 0 | AR114: ='1'!AR114+'2'!AR114+'3'!AR114+'4'!AR114+'5'!AR114+'6'!AR114+'7'!AR114+'8'!AR114+'9'!AR114+'10'!AR114+'11'!AR114 -> 0 | AS114: ='1'!AS114+'2'!AS114+'3'!AS114+'4'!AS114+'5'!AS114+'6'!AS114+'7'!AS114+'8'!AS114+'9'!AS114+'10'!AS114+'11'!AS114 -> 0 | AT114: ='1'!AT114+'2'!AT114+'3'!AT114+'4'!AT114+'5'!AT114+'6'!AT114+'7'!AT114+'8'!AT114+'9'!AT114+'10'!AT114+'11'!AT114 -> 0 | AU114: ='1'!AU114+'2'!AU114+'3'!AU114+'4'!AU114+'5'!AU114+'6'!AU114+'7'!AU114+'8'!AU114+'9'!AU114+'10'!AU114+'11'!AU114 -> 0 | AV114: 0 | AW114: ='1'!AW114+'2'!AW114+'3'!AW114+'4'!AW114+'5'!AW114+'6'!AW114+'7'!AW114+'8'!AW114+'9'!AW114+'10'!AW114+'11'!AW114 -> 0 | AX114: ='1'!AX114+'2'!AX114+'3'!AX114+'4'!AX114+'5'!AX114+'6'!AX114+'7'!AX114+'8'!AX114+'9'!AX114+'10'!AX114+'11'!AX114 -> 0 | AY114: ='1'!AY114+'2'!AY114+'3'!AY114+'4'!AY114+'5'!AY114+'6'!AY114+'7'!AY114+'8'!AY114+'9'!AY114+'10'!AY114+'11'!AY114 -> 0 | AZ114: 0
C115: 1 | H115: ='1'!H115 -> Households | I115: =SUM('1:11'!I115)+I238 -> 0 | J115: =SUM('1:11'!J115)+J238 -> 0 | K115: =SUM('1:11'!K115)+K238 -> 0 | L115: =SUM('1:11'!L115)+L238 -> 0 | M115: =SUM('1:11'!M115)+M238 -> 0 | N115: =SUM('1:11'!N115)+N238 -> 0 | O115: =SUM('1:11'!O115)+O238 -> 0 | P115: =SUM('1:11'!P115)+P238 -> 0 | Q115: =SUM('1:11'!Q115)+Q238 -> 0 | R115: =SUM('1:11'!R115)+R238 -> 0 | S115: =SUM('1:11'!S115)+S238 -> 0 | T115: =SUM('1:11'!T115)+T238 -> 0 | U115: =SUM($H115:OFFSET($H115,0,$I$2)) -> 0 | V115: 0 | W115: 5096266 | Y115: 5096266 | Z115: ='1'!Z115+'2'!Z115+'3'!Z115+'4'!Z115+'5'!Z115+'6'!Z115+'7'!Z115+'8'!Z115+'9'!Z115+'10'!Z115+'11'!Z115 -> 5093909 | AA115: ='1'!AA115+'2'!AA115+'3'!AA115+'4'!AA115+'5'!AA115+'6'!AA115+'7'!AA115+'8'!AA115+'9'!AA115+'10'!AA115+'11'!AA115 -> 5095852 | AB115: ='1'!AB115+'2'!AB115+'3'!AB115+'4'!AB115+'5'!AB115+'6'!AB115+'7'!AB115+'8'!AB115+'9'!AB115+'10'!AB115+'11'!AB115 -> 414 | AC115: ='1'!AC115+'2'!AC115+'3'!AC115+'4'!AC115+'5'!AC115+'6'!AC115+'7'!AC115+'8'!AC115+'9'!AC115+'10'!AC115+'11'!AC115 -> 414 | AD115: ='1'!AD115+'2'!AD115+'3'!AD115+'4'!AD115+'5'!AD115+'6'!AD115+'7'!AD115+'8'!AD115+'9'!AD115+'10'!AD115+'11'!AD115 -> -156519 | AE115: ='1'!AE115+'2'!AE115+'3'!AE115+'4'!AE115+'5'!AE115+'6'!AE115+'7'!AE115+'8'!AE115+'9'!AE115+'10'!AE115+'11'!AE115 -> 0 | AF115: ='1'!AF115+'2'!AF115+'3'!AF115+'4'!AF115+'5'!AF115+'6'!AF115+'7'!AF115+'8'!AF115+'9'!AF115+'10'!AF115+'11'!AF115 -> 0 | AG115: -156519 | AI115: 0 | AJ115: ='1'!AJ115+'2'!AJ115+'3'!AJ115+'4'!AJ115+'5'!AJ115+'6'!AJ115+'7'!AJ115+'8'!AJ115+'9'!AJ115+'10'!AJ115+'11'!AJ115 -> 0 | AK115: ='1'!AK115+'2'!AK115+'3'!AK115+'4'!AK115+'5'!AK115+'6'!AK115+'7'!AK115+'8'!AK115+'9'!AK115+'10'!AK115+'11'!AK115 -> 0 | AL115: ='1'!AL115+'2'!AL115+'3'!AL115+'4'!AL115+'5'!AL115+'6'!AL115+'7'!AL115+'8'!AL115+'9'!AL115+'10'!AL115+'11'!AL115 -> 0 | AM115: ='1'!AM115+'2'!AM115+'3'!AM115+'4'!AM115+'5'!AM115+'6'!AM115+'7'!AM115+'8'!AM115+'9'!AM115+'10'!AM115+'11'!AM115 -> 0 | AN115: ='1'!AN115+'2'!AN115+'3'!AN115+'4'!AN115+'5'!AN115+'6'!AN115+'7'!AN115+'8'!AN115+'9'!AN115+'10'!AN115+'11'!AN115 -> 0 | AO115: ='1'!AO115+'2'!AO115+'3'!AO115+'4'!AO115+'5'!AO115+'6'!AO115+'7'!AO115+'8'!AO115+'9'!AO115+'10'!AO115+'11'!AO115 -> 0 | AP115: ='1'!AP115+'2'!AP115+'3'!AP115+'4'!AP115+'5'!AP115+'6'!AP115+'7'!AP115+'8'!AP115+'9'!AP115+'10'!AP115+'11'!AP115 -> 0 | AQ115: ='1'!AQ115+'2'!AQ115+'3'!AQ115+'4'!AQ115+'5'!AQ115+'6'!AQ115+'7'!AQ115+'8'!AQ115+'9'!AQ115+'10'!AQ115+'11'!AQ115 -> 0 | AR115: ='1'!AR115+'2'!AR115+'3'!AR115+'4'!AR115+'5'!AR115+'6'!AR115+'7'!AR115+'8'!AR115+'9'!AR115+'10'!AR115+'11'!AR115 -> 0 | AS115: ='1'!AS115+'2'!AS115+'3'!AS115+'4'!AS115+'5'!AS115+'6'!AS115+'7'!AS115+'8'!AS115+'9'!AS115+'10'!AS115+'11'!AS115 -> 0 | AT115: ='1'!AT115+'2'!AT115+'3'!AT115+'4'!AT115+'5'!AT115+'6'!AT115+'7'!AT115+'8'!AT115+'9'!AT115+'10'!AT115+'11'!AT115 -> 0 | AU115: ='1'!AU115+'2'!AU115+'3'!AU115+'4'!AU115+'5'!AU115+'6'!AU115+'7'!AU115+'8'!AU115+'9'!AU115+'10'!AU115+'11'!AU115 -> 0 | AV115: 0 | AW115: ='1'!AW115+'2'!AW115+'3'!AW115+'4'!AW115+'5'!AW115+'6'!AW115+'7'!AW115+'8'!AW115+'9'!AW115+'10'!AW115+'11'!AW115 -> 0 | AX115: ='1'!AX115+'2'!AX115+'3'!AX115+'4'!AX115+'5'!AX115+'6'!AX115+'7'!AX115+'8'!AX115+'9'!AX115+'10'!AX115+'11'!AX115 -> 0 | AY115: ='1'!AY115+'2'!AY115+'3'!AY115+'4'!AY115+'5'!AY115+'6'!AY115+'7'!AY115+'8'!AY115+'9'!AY115+'10'!AY115+'11'!AY115 -> 0 | AZ115: 0
C116: 1 | H116: ='1'!H116 -> Social benefits | I116: =SUM('1:11'!I116)+I239 -> 0 | J116: =SUM('1:11'!J116)+J239 -> 0 | K116: =SUM('1:11'!K116)+K239 -> 0 | L116: =SUM('1:11'!L116)+L239 -> 0 | M116: =SUM('1:11'!M116)+M239 -> 0 | N116: =SUM('1:11'!N116)+N239 -> 0 | O116: =SUM('1:11'!O116)+O239 -> 0 | P116: =SUM('1:11'!P116)+P239 -> 0 | Q116: =SUM('1:11'!Q116)+Q239 -> 0 | R116: =SUM('1:11'!R116)+R239 -> 0 | S116: =SUM('1:11'!S116)+S239 -> 0 | T116: =SUM('1:11'!T116)+T239 -> 0 | U116: =SUM($H116:OFFSET($H116,0,$I$2)) -> 0 | V116: 0 | W116: 5094323 | Y116: 5094323 | Z116: ='1'!Z116+'2'!Z116+'3'!Z116+'4'!Z116+'5'!Z116+'6'!Z116+'7'!Z116+'8'!Z116+'9'!Z116+'10'!Z116+'11'!Z116 -> 4354945 | AA116: ='1'!AA116+'2'!AA116+'3'!AA116+'4'!AA116+'5'!AA116+'6'!AA116+'7'!AA116+'8'!AA116+'9'!AA116+'10'!AA116+'11'!AA116 -> 5093909 | AB116: ='1'!AB116+'2'!AB116+'3'!AB116+'4'!AB116+'5'!AB116+'6'!AB116+'7'!AB116+'8'!AB116+'9'!AB116+'10'!AB116+'11'!AB116 -> 440 | AC116: ='1'!AC116+'2'!AC116+'3'!AC116+'4'!AC116+'5'!AC116+'6'!AC116+'7'!AC116+'8'!AC116+'9'!AC116+'10'!AC116+'11'!AC116 -> 414 | AD116: ='1'!AD116+'2'!AD116+'3'!AD116+'4'!AD116+'5'!AD116+'6'!AD116+'7'!AD116+'8'!AD116+'9'!AD116+'10'!AD116+'11'!AD116 -> -156519 | AE116: ='1'!AE116+'2'!AE116+'3'!AE116+'4'!AE116+'5'!AE116+'6'!AE116+'7'!AE116+'8'!AE116+'9'!AE116+'10'!AE116+'11'!AE116 -> 0 | AF116: ='1'!AF116+'2'!AF116+'3'!AF116+'4'!AF116+'5'!AF116+'6'!AF116+'7'!AF116+'8'!AF116+'9'!AF116+'10'!AF116+'11'!AF116 -> 0 | AG116: -156519 | AI116: 0 | AJ116: ='1'!AJ116+'2'!AJ116+'3'!AJ116+'4'!AJ116+'5'!AJ116+'6'!AJ116+'7'!AJ116+'8'!AJ116+'9'!AJ116+'10'!AJ116+'11'!AJ116 -> 0 | AK116: ='1'!AK116+'2'!AK116+'3'!AK116+'4'!AK116+'5'!AK116+'6'!AK116+'7'!AK116+'8'!AK116+'9'!AK116+'10'!AK116+'11'!AK116 -> 0 | AL116: ='1'!AL116+'2'!AL116+'3'!AL116+'4'!AL116+'5'!AL116+'6'!AL116+'7'!AL116+'8'!AL116+'9'!AL116+'10'!AL116+'11'!AL116 -> 0 | AM116: ='1'!AM116+'2'!AM116+'3'!AM116+'4'!AM116+'5'!AM116+'6'!AM116+'7'!AM116+'8'!AM116+'9'!AM116+'10'!AM116+'11'!AM116 -> 0 | AN116: ='1'!AN116+'2'!AN116+'3'!AN116+'4'!AN116+'5'!AN116+'6'!AN116+'7'!AN116+'8'!AN116+'9'!AN116+'10'!AN116+'11'!AN116 -> 0 | AO116: ='1'!AO116+'2'!AO116+'3'!AO116+'4'!AO116+'5'!AO116+'6'!AO116+'7'!AO116+'8'!AO116+'9'!AO116+'10'!AO116+'11'!AO116 -> 0 | AP116: ='1'!AP116+'2'!AP116+'3'!AP116+'4'!AP116+'5'!AP116+'6'!AP116+'7'!AP116+'8'!AP116+'9'!AP116+'10'!AP116+'11'!AP116 -> 0 | AQ116: ='1'!AQ116+'2'!AQ116+'3'!AQ116+'4'!AQ116+'5'!AQ116+'6'!AQ116+'7'!AQ116+'8'!AQ116+'9'!AQ116+'10'!AQ116+'11'!AQ116 -> 0 | AR116: ='1'!AR116+'2'!AR116+'3'!AR116+'4'!AR116+'5'!AR116+'6'!AR116+'7'!AR116+'8'!AR116+'9'!AR116+'10'!AR116+'11'!AR116 -> 0 | AS116: ='1'!AS116+'2'!AS116+'3'!AS116+'4'!AS116+'5'!AS116+'6'!AS116+'7'!AS116+'8'!AS116+'9'!AS116+'10'!AS116+'11'!AS116 -> 0 | AT116: ='1'!AT116+'2'!AT116+'3'!AT116+'4'!AT116+'5'!AT116+'6'!AT116+'7'!AT116+'8'!AT116+'9'!AT116+'10'!AT116+'11'!AT116 -> 0 | AU116: ='1'!AU116+'2'!AU116+'3'!AU116+'4'!AU116+'5'!AU116+'6'!AU116+'7'!AU116+'8'!AU116+'9'!AU116+'10'!AU116+'11'!AU116 -> 0 | AV116: 0 | AW116: ='1'!AW116+'2'!AW116+'3'!AW116+'4'!AW116+'5'!AW116+'6'!AW116+'7'!AW116+'8'!AW116+'9'!AW116+'10'!AW116+'11'!AW116 -> 0 | AX116: ='1'!AX116+'2'!AX116+'3'!AX116+'4'!AX116+'5'!AX116+'6'!AX116+'7'!AX116+'8'!AX116+'9'!AX116+'10'!AX116+'11'!AX116 -> 0 | AY116: ='1'!AY116+'2'!AY116+'3'!AY116+'4'!AY116+'5'!AY116+'6'!AY116+'7'!AY116+'8'!AY116+'9'!AY116+'10'!AY116+'11'!AY116 -> 0 | AZ116: 0
C117: 1 | H117: ='1'!H117 -> Other transfers to households | I117: =SUM('1:11'!I117)+I240 -> 0 | J117: =SUM('1:11'!J117)+J240 -> 0 | K117: =SUM('1:11'!K117)+K240 -> 0 | L117: =SUM('1:11'!L117)+L240 -> 0 | M117: =SUM('1:11'!M117)+M240 -> 0 | N117: =SUM('1:11'!N117)+N240 -> 0 | O117: =SUM('1:11'!O117)+O240 -> 0 | P117: =SUM('1:11'!P117)+P240 -> 0 | Q117: =SUM('1:11'!Q117)+Q240 -> 0 | R117: =SUM('1:11'!R117)+R240 -> 0 | S117: =SUM('1:11'!S117)+S240 -> 0 | T117: =SUM('1:11'!T117)+T240 -> 0 | U117: =SUM($H117:OFFSET($H117,0,$I$2)) -> 0 | V117: 0 | W117: 1943 | Y117: 1943 | Z117: ='1'!Z117+'2'!Z117+'3'!Z117+'4'!Z117+'5'!Z117+'6'!Z117+'7'!Z117+'8'!Z117+'9'!Z117+'10'!Z117+'11'!Z117 -> 738964 | AA117: ='1'!AA117+'2'!AA117+'3'!AA117+'4'!AA117+'5'!AA117+'6'!AA117+'7'!AA117+'8'!AA117+'9'!AA117+'10'!AA117+'11'!AA117 -> 1943 | AB117: ='1'!AB117+'2'!AB117+'3'!AB117+'4'!AB117+'5'!AB117+'6'!AB117+'7'!AB117+'8'!AB117+'9'!AB117+'10'!AB117+'11'!AB117 -> -26 | AC117: ='1'!AC117+'2'!AC117+'3'!AC117+'4'!AC117+'5'!AC117+'6'!AC117+'7'!AC117+'8'!AC117+'9'!AC117+'10'!AC117+'11'!AC117 -> 0 | AD117: ='1'!AD117+'2'!AD117+'3'!AD117+'4'!AD117+'5'!AD117+'6'!AD117+'7'!AD117+'8'!AD117+'9'!AD117+'10'!AD117+'11'!AD117 -> 0 | AE117: ='1'!AE117+'2'!AE117+'3'!AE117+'4'!AE117+'5'!AE117+'6'!AE117+'7'!AE117+'8'!AE117+'9'!AE117+'10'!AE117+'11'!AE117 -> 0 | AF117: ='1'!AF117+'2'!AF117+'3'!AF117+'4'!AF117+'5'!AF117+'6'!AF117+'7'!AF117+'8'!AF117+'9'!AF117+'10'!AF117+'11'!AF117 -> 0 | AG117: 0 | AI117: 0 | AJ117: ='1'!AJ117+'2'!AJ117+'3'!AJ117+'4'!AJ117+'5'!AJ117+'6'!AJ117+'7'!AJ117+'8'!AJ117+'9'!AJ117+'10'!AJ117+'11'!AJ117 -> 0 | AK117: ='1'!AK117+'2'!AK117+'3'!AK117+'4'!AK117+'5'!AK117+'6'!AK117+'7'!AK117+'8'!AK117+'9'!AK117+'10'!AK117+'11'!AK117 -> 0 | AL117: ='1'!AL117+'2'!AL117+'3'!AL117+'4'!AL117+'5'!AL117+'6'!AL117+'7'!AL117+'8'!AL117+'9'!AL117+'10'!AL117+'11'!AL117 -> 0 | AM117: ='1'!AM117+'2'!AM117+'3'!AM117+'4'!AM117+'5'!AM117+'6'!AM117+'7'!AM117+'8'!AM117+'9'!AM117+'10'!AM117+'11'!AM117 -> 0 | AN117: ='1'!AN117+'2'!AN117+'3'!AN117+'4'!AN117+'5'!AN117+'6'!AN117+'7'!AN117+'8'!AN117+'9'!AN117+'10'!AN117+'11'!AN117 -> 0 | AO117: ='1'!AO117+'2'!AO117+'3'!AO117+'4'!AO117+'5'!AO117+'6'!AO117+'7'!AO117+'8'!AO117+'9'!AO117+'10'!AO117+'11'!AO117 -> 0 | AP117: ='1'!AP117+'2'!AP117+'3'!AP117+'4'!AP117+'5'!AP117+'6'!AP117+'7'!AP117+'8'!AP117+'9'!AP117+'10'!AP117+'11'!AP117 -> 0 | AQ117: ='1'!AQ117+'2'!AQ117+'3'!AQ117+'4'!AQ117+'5'!AQ117+'6'!AQ117+'7'!AQ117+'8'!AQ117+'9'!AQ117+'10'!AQ117+'11'!AQ117 -> 0 | AR117: ='1'!AR117+'2'!AR117+'3'!AR117+'4'!AR117+'5'!AR117+'6'!AR117+'7'!AR117+'8'!AR117+'9'!AR117+'10'!AR117+'11'!AR117 -> 0 | AS117: ='1'!AS117+'2'!AS117+'3'!AS117+'4'!AS117+'5'!AS117+'6'!AS117+'7'!AS117+'8'!AS117+'9'!AS117+'10'!AS117+'11'!AS117 -> 0 | AT117: ='1'!AT117+'2'!AT117+'3'!AT117+'4'!AT117+'5'!AT117+'6'!AT117+'7'!AT117+'8'!AT117+'9'!AT117+'10'!AT117+'11'!AT117 -> 0 | AU117: ='1'!AU117+'2'!AU117+'3'!AU117+'4'!AU117+'5'!AU117+'6'!AU117+'7'!AU117+'8'!AU117+'9'!AU117+'10'!AU117+'11'!AU117 -> 0 | AV117: 0 | AW117: ='1'!AW117+'2'!AW117+'3'!AW117+'4'!AW117+'5'!AW117+'6'!AW117+'7'!AW117+'8'!AW117+'9'!AW117+'10'!AW117+'11'!AW117 -> 0 | AX117: ='1'!AX117+'2'!AX117+'3'!AX117+'4'!AX117+'5'!AX117+'6'!AX117+'7'!AX117+'8'!AX117+'9'!AX117+'10'!AX117+'11'!AX117 -> 0 | AY117: ='1'!AY117+'2'!AY117+'3'!AY117+'4'!AY117+'5'!AY117+'6'!AY117+'7'!AY117+'8'!AY117+'9'!AY117+'10'!AY117+'11'!AY117 -> 0 | AZ117: 0
C118: 1 | H118: ='1'!H118 -> Payments for capital assets | I118: =SUM('1:11'!I118)+I241 -> 227 | J118: =SUM('1:11'!J118)+J241 -> 821 | K118: =SUM('1:11'!K118)+K241 -> 524 | L118: =SUM('1:11'!L118)+L241 -> 1518 | M118: =SUM('1:11'!M118)+M241 -> 578 | N118: =SUM('1:11'!N118)+N241 -> 246 | O118: =SUM('1:11'!O118)+O241 -> 3742 | P118: =SUM('1:11'!P118)+P241 -> 2671 | Q118: =SUM('1:11'!Q118)+Q241 -> 38 | R118: =SUM('1:11'!R118)+R241 -> 5945 | S118: =SUM('1:11'!S118)+S241 -> 103 | T118: =SUM('1:11'!T118)+T241 -> 1775 | U118: =SUM($H118:OFFSET($H118,0,$I$2)) -> 0 | V118: 18188 | W118: 15393 | Y118: 33581 | Z118: ='1'!Z118+'2'!Z118+'3'!Z118+'4'!Z118+'5'!Z118+'6'!Z118+'7'!Z118+'8'!Z118+'9'!Z118+'10'!Z118+'11'!Z118 -> 10538 | AA118: ='1'!AA118+'2'!AA118+'3'!AA118+'4'!AA118+'5'!AA118+'6'!AA118+'7'!AA118+'8'!AA118+'9'!AA118+'10'!AA118+'11'!AA118 -> 28726 | AB118: ='1'!AB118+'2'!AB118+'3'!AB118+'4'!AB118+'5'!AB118+'6'!AB118+'7'!AB118+'8'!AB118+'9'!AB118+'10'!AB118+'11'!AB118 -> 4855 | AC118: ='1'!AC118+'2'!AC118+'3'!AC118+'4'!AC118+'5'!AC118+'6'!AC118+'7'!AC118+'8'!AC118+'9'!AC118+'10'!AC118+'11'!AC118 -> 4855 | AD118: ='1'!AD118+'2'!AD118+'3'!AD118+'4'!AD118+'5'!AD118+'6'!AD118+'7'!AD118+'8'!AD118+'9'!AD118+'10'!AD118+'11'!AD118 -> 0 | AE118: ='1'!AE118+'2'!AE118+'3'!AE118+'4'!AE118+'5'!AE118+'6'!AE118+'7'!AE118+'8'!AE118+'9'!AE118+'10'!AE118+'11'!AE118 -> 0 | AF118: ='1'!AF118+'2'!AF118+'3'!AF118+'4'!AF118+'5'!AF118+'6'!AF118+'7'!AF118+'8'!AF118+'9'!AF118+'10'!AF118+'11'!AF118 -> 0 | AG118: 0 | AI118: 0 | AJ118: ='1'!AJ118+'2'!AJ118+'3'!AJ118+'4'!AJ118+'5'!AJ118+'6'!AJ118+'7'!AJ118+'8'!AJ118+'9'!AJ118+'10'!AJ118+'11'!AJ118 -> 0 | AK118: ='1'!AK118+'2'!AK118+'3'!AK118+'4'!AK118+'5'!AK118+'6'!AK118+'7'!AK118+'8'!AK118+'9'!AK118+'10'!AK118+'11'!AK118 -> 0 | AL118: ='1'!AL118+'2'!AL118+'3'!AL118+'4'!AL118+'5'!AL118+'6'!AL118+'7'!AL118+'8'!AL118+'9'!AL118+'10'!AL118+'11'!AL118 -> 0 | AM118: ='1'!AM118+'2'!AM118+'3'!AM118+'4'!AM118+'5'!AM118+'6'!AM118+'7'!AM118+'8'!AM118+'9'!AM118+'10'!AM118+'11'!AM118 -> 0 | AN118: ='1'!AN118+'2'!AN118+'3'!AN118+'4'!AN118+'5'!AN118+'6'!AN118+'7'!AN118+'8'!AN118+'9'!AN118+'10'!AN118+'11'!AN118 -> 0 | AO118: ='1'!AO118+'2'!AO118+'3'!AO118+'4'!AO118+'5'!AO118+'6'!AO118+'7'!AO118+'8'!AO118+'9'!AO118+'10'!AO118+'11'!AO118 -> 0 | AP118: ='1'!AP118+'2'!AP118+'3'!AP118+'4'!AP118+'5'!AP118+'6'!AP118+'7'!AP118+'8'!AP118+'9'!AP118+'10'!AP118+'11'!AP118 -> 0 | AQ118: ='1'!AQ118+'2'!AQ118+'3'!AQ118+'4'!AQ118+'5'!AQ118+'6'!AQ118+'7'!AQ118+'8'!AQ118+'9'!AQ118+'10'!AQ118+'11'!AQ118 -> 0 | AR118: ='1'!AR118+'2'!AR118+'3'!AR118+'4'!AR118+'5'!AR118+'6'!AR118+'7'!AR118+'8'!AR118+'9'!AR118+'10'!AR118+'11'!AR118 -> 0 | AS118: ='1'!AS118+'2'!AS118+'3'!AS118+'4'!AS118+'5'!AS118+'6'!AS118+'7'!AS118+'8'!AS118+'9'!AS118+'10'!AS118+'11'!AS118 -> 0 | AT118: ='1'!AT118+'2'!AT118+'3'!AT118+'4'!AT118+'5'!AT118+'6'!AT118+'7'!AT118+'8'!AT118+'9'!AT118+'10'!AT118+'11'!AT118 -> 0 | AU118: ='1'!AU118+'2'!AU118+'3'!AU118+'4'!AU118+'5'!AU118+'6'!AU118+'7'!AU118+'8'!AU118+'9'!AU118+'10'!AU118+'11'!AU118 -> 0 | AV118: 0 | AW118: ='1'!AW118+'2'!AW118+'3'!AW118+'4'!AW118+'5'!AW118+'6'!AW118+'7'!AW118+'8'!AW118+'9'!AW118+'10'!AW118+'11'!AW118 -> 0 | AX118: ='1'!AX118+'2'!AX118+'3'!AX118+'4'!AX118+'5'!AX118+'6'!AX118+'7'!AX118+'8'!AX118+'9'!AX118+'10'!AX118+'11'!AX118 -> 0 | AY118: ='1'!AY118+'2'!AY118+'3'!AY118+'4'!AY118+'5'!AY118+'6'!AY118+'7'!AY118+'8'!AY118+'9'!AY118+'10'!AY118+'11'!AY118 -> 0 | AZ118: 0
C119: 1 | H119: ='1'!H119 -> Buildings and other fixed structures | I119: =SUM('1:11'!I119)+I242 -> 0 | J119: =SUM('1:11'!J119)+J242 -> 0 | K119: =SUM('1:11'!K119)+K242 -> 0 | L119: =SUM('1:11'!L119)+L242 -> 0 | M119: =SUM('1:11'!M119)+M242 -> 0 | N119: =SUM('1:11'!N119)+N242 -> 0 | O119: =SUM('1:11'!O119)+O242 -> 0 | P119: =SUM('1:11'!P119)+P242 -> 0 | Q119: =SUM('1:11'!Q119)+Q242 -> 0 | R119: =SUM('1:11'!R119)+R242 -> 0 | S119: =SUM('1:11'!S119)+S242 -> 0 | T119: =SUM('1:11'!T119)+T242 -> 0 | U119: =SUM($H119:OFFSET($H119,0,$I$2)) -> 0 | V119: 0 | W119: 0 | Y119: 0 | Z119: ='1'!Z119+'2'!Z119+'3'!Z119+'4'!Z119+'5'!Z119+'6'!Z119+'7'!Z119+'8'!Z119+'9'!Z119+'10'!Z119+'11'!Z119 -> 0 | AA119: ='1'!AA119+'2'!AA119+'3'!AA119+'4'!AA119+'5'!AA119+'6'!AA119+'7'!AA119+'8'!AA119+'9'!AA119+'10'!AA119+'11'!AA119 -> 0 | AB119: ='1'!AB119+'2'!AB119+'3'!AB119+'4'!AB119+'5'!AB119+'6'!AB119+'7'!AB119+'8'!AB119+'9'!AB119+'10'!AB119+'11'!AB119 -> 0 | AC119: ='1'!AC119+'2'!AC119+'3'!AC119+'4'!AC119+'5'!AC119+'6'!AC119+'7'!AC119+'8'!AC119+'9'!AC119+'10'!AC119+'11'!AC119 -> 0 | AD119: ='1'!AD119+'2'!AD119+'3'!AD119+'4'!AD119+'5'!AD119+'6'!AD119+'7'!AD119+'8'!AD119+'9'!AD119+'10'!AD119+'11'!AD119 -> 0 | AE119: ='1'!AE119+'2'!AE119+'3'!AE119+'4'!AE119+'5'!AE119+'6'!AE119+'7'!AE119+'8'!AE119+'9'!AE119+'10'!AE119+'11'!AE119 -> 0 | AF119: ='1'!AF119+'2'!AF119+'3'!AF119+'4'!AF119+'5'!AF119+'6'!AF119+'7'!AF119+'8'!AF119+'9'!AF119+'10'!AF119+'11'!AF119 -> 0 | AG119: 0 | AI119: 0 | AJ119: ='1'!AJ119+'2'!AJ119+'3'!AJ119+'4'!AJ119+'5'!AJ119+'6'!AJ119+'7'!AJ119+'8'!AJ119+'9'!AJ119+'10'!AJ119+'11'!AJ119 -> 0 | AK119: ='1'!AK119+'2'!AK119+'3'!AK119+'4'!AK119+'5'!AK119+'6'!AK119+'7'!AK119+'8'!AK119+'9'!AK119+'10'!AK119+'11'!AK119 -> 0 | AL119: ='1'!AL119+'2'!AL119+'3'!AL119+'4'!AL119+'5'!AL119+'6'!AL119+'7'!AL119+'8'!AL119+'9'!AL119+'10'!AL119+'11'!AL119 -> 0 | AM119: ='1'!AM119+'2'!AM119+'3'!AM119+'4'!AM119+'5'!AM119+'6'!AM119+'7'!AM119+'8'!AM119+'9'!AM119+'10'!AM119+'11'!AM119 -> 0 | AN119: ='1'!AN119+'2'!AN119+'3'!AN119+'4'!AN119+'5'!AN119+'6'!AN119+'7'!AN119+'8'!AN119+'9'!AN119+'10'!AN119+'11'!AN119 -> 0 | AO119: ='1'!AO119+'2'!AO119+'3'!AO119+'4'!AO119+'5'!AO119+'6'!AO119+'7'!AO119+'8'!AO119+'9'!AO119+'10'!AO119+'11'!AO119 -> 0 | AP119: ='1'!AP119+'2'!AP119+'3'!AP119+'4'!AP119+'5'!AP119+'6'!AP119+'7'!AP119+'8'!AP119+'9'!AP119+'10'!AP119+'11'!AP119 -> 0 | AQ119: ='1'!AQ119+'2'!AQ119+'3'!AQ119+'4'!AQ119+'5'!AQ119+'6'!AQ119+'7'!AQ119+'8'!AQ119+'9'!AQ119+'10'!AQ119+'11'!AQ119 -> 0 | AR119: ='1'!AR119+'2'!AR119+'3'!AR119+'4'!AR119+'5'!AR119+'6'!AR119+'7'!AR119+'8'!AR119+'9'!AR119+'10'!AR119+'11'!AR119 -> 0 | AS119: ='1'!AS119+'2'!AS119+'3'!AS119+'4'!AS119+'5'!AS119+'6'!AS119+'7'!AS119+'8'!AS119+'9'!AS119+'10'!AS119+'11'!AS119 -> 0 | AT119: ='1'!AT119+'2'!AT119+'3'!AT119+'4'!AT119+'5'!AT119+'6'!AT119+'7'!AT119+'8'!AT119+'9'!AT119+'10'!AT119+'11'!AT119 -> 0 | AU119: ='1'!AU119+'2'!AU119+'3'!AU119+'4'!AU119+'5'!AU119+'6'!AU119+'7'!AU119+'8'!AU119+'9'!AU119+'10'!AU119+'11'!AU119 -> 0 | AV119: 0 | AW119: ='1'!AW119+'2'!AW119+'3'!AW119+'4'!AW119+'5'!AW119+'6'!AW119+'7'!AW119+'8'!AW119+'9'!AW119+'10'!AW119+'11'!AW119 -> 0 | AX119: ='1'!AX119+'2'!AX119+'3'!AX119+'4'!AX119+'5'!AX119+'6'!AX119+'7'!AX119+'8'!AX119+'9'!AX119+'10'!AX119+'11'!AX119 -> 0 | AY119: ='1'!AY119+'2'!AY119+'3'!AY119+'4'!AY119+'5'!AY119+'6'!AY119+'7'!AY119+'8'!AY119+'9'!AY119+'10'!AY119+'11'!AY119 -> 0 | AZ119: 0
C120: 1 | H120: ='1'!H120 -> Buildings | I120: =SUM('1:11'!I120)+I243 -> 0 | J120: =SUM('1:11'!J120)+J243 -> 0 | K120: =SUM('1:11'!K120)+K243 -> 0 | L120: =SUM('1:11'!L120)+L243 -> 0 | M120: =SUM('1:11'!M120)+M243 -> 0 | N120: =SUM('1:11'!N120)+N243 -> 0 | O120: =SUM('1:11'!O120)+O243 -> 0 | P120: =SUM('1:11'!P120)+P243 -> 0 | Q120: =SUM('1:11'!Q120)+Q243 -> 0 | R120: =SUM('1:11'!R120)+R243 -> 0 | S120: =SUM('1:11'!S120)+S243 -> 0 | T120: =SUM('1:11'!T120)+T243 -> 0 | U120: =SUM($H120:OFFSET($H120,0,$I$2)) -> 0 | V120: 0 | W120: 0 | Y120: 0 | Z120: ='1'!Z120+'2'!Z120+'3'!Z120+'4'!Z120+'5'!Z120+'6'!Z120+'7'!Z120+'8'!Z120+'9'!Z120+'10'!Z120+'11'!Z120 -> 0 | AA120: ='1'!AA120+'2'!AA120+'3'!AA120+'4'!AA120+'5'!AA120+'6'!AA120+'7'!AA120+'8'!AA120+'9'!AA120+'10'!AA120+'11'!AA120 -> 0 | AB120: ='1'!AB120+'2'!AB120+'3'!AB120+'4'!AB120+'5'!AB120+'6'!AB120+'7'!AB120+'8'!AB120+'9'!AB120+'10'!AB120+'11'!AB120 -> 0 | AC120: ='1'!AC120+'2'!AC120+'3'!AC120+'4'!AC120+'5'!AC120+'6'!AC120+'7'!AC120+'8'!AC120+'9'!AC120+'10'!AC120+'11'!AC120 -> 0 | AD120: ='1'!AD120+'2'!AD120+'3'!AD120+'4'!AD120+'5'!AD120+'6'!AD120+'7'!AD120+'8'!AD120+'9'!AD120+'10'!AD120+'11'!AD120 -> 0 | AE120: ='1'!AE120+'2'!AE120+'3'!AE120+'4'!AE120+'5'!AE120+'6'!AE120+'7'!AE120+'8'!AE120+'9'!AE120+'10'!AE120+'11'!AE120 -> 0 | AF120: ='1'!AF120+'2'!AF120+'3'!AF120+'4'!AF120+'5'!AF120+'6'!AF120+'7'!AF120+'8'!AF120+'9'!AF120+'10'!AF120+'11'!AF120 -> 0 | AG120: 0 | AI120: 0 | AJ120: ='1'!AJ120+'2'!AJ120+'3'!AJ120+'4'!AJ120+'5'!AJ120+'6'!AJ120+'7'!AJ120+'8'!AJ120+'9'!AJ120+'10'!AJ120+'11'!AJ120 -> 0 | AK120: ='1'!AK120+'2'!AK120+'3'!AK120+'4'!AK120+'5'!AK120+'6'!AK120+'7'!AK120+'8'!AK120+'9'!AK120+'10'!AK120+'11'!AK120 -> 0 | AL120: ='1'!AL120+'2'!AL120+'3'!AL120+'4'!AL120+'5'!AL120+'6'!AL120+'7'!AL120+'8'!AL120+'9'!AL120+'10'!AL120+'11'!AL120 -> 0 | AM120: ='1'!AM120+'2'!AM120+'3'!AM120+'4'!AM120+'5'!AM120+'6'!AM120+'7'!AM120+'8'!AM120+'9'!AM120+'10'!AM120+'11'!AM120 -> 0 | AN120: ='1'!AN120+'2'!AN120+'3'!AN120+'4'!AN120+'5'!AN120+'6'!AN120+'7'!AN120+'8'!AN120+'9'!AN120+'10'!AN120+'11'!AN120 -> 0 | AO120: ='1'!AO120+'2'!AO120+'3'!AO120+'4'!AO120+'5'!AO120+'6'!AO120+'7'!AO120+'8'!AO120+'9'!AO120+'10'!AO120+'11'!AO120 -> 0 | AP120: ='1'!AP120+'2'!AP120+'3'!AP120+'4'!AP120+'5'!AP120+'6'!AP120+'7'!AP120+'8'!AP120+'9'!AP120+'10'!AP120+'11'!AP120 -> 0 | AQ120: ='1'!AQ120+'2'!AQ120+'3'!AQ120+'4'!AQ120+'5'!AQ120+'6'!AQ120+'7'!AQ120+'8'!AQ120+'9'!AQ120+'10'!AQ120+'11'!AQ120 -> 0 | AR120: ='1'!AR120+'2'!AR120+'3'!AR120+'4'!AR120+'5'!AR120+'6'!AR120+'7'!AR120+'8'!AR120+'9'!AR120+'10'!AR120+'11'!AR120 -> 0 | AS120: ='1'!AS120+'2'!AS120+'3'!AS120+'4'!AS120+'5'!AS120+'6'!AS120+'7'!AS120+'8'!AS120+'9'!AS120+'10'!AS120+'11'!AS120 -> 0 | AT120: ='1'!AT120+'2'!AT120+'3'!AT120+'4'!AT120+'5'!AT120+'6'!AT120+'7'!AT120+'8'!AT120+'9'!AT120+'10'!AT120+'11'!AT120 -> 0 | AU120: ='1'!AU120+'2'!AU120+'3'!AU120+'4'!AU120+'5'!AU120+'6'!AU120+'7'!AU120+'8'!AU120+'9'!AU120+'10'!AU120+'11'!AU120 -> 0 | AV120: 0 | AW120: ='1'!AW120+'2'!AW120+'3'!AW120+'4'!AW120+'5'!AW120+'6'!AW120+'7'!AW120+'8'!AW120+'9'!AW120+'10'!AW120+'11'!AW120 -> 0 | AX120: ='1'!AX120+'2'!AX120+'3'!AX120+'4'!AX120+'5'!AX120+'6'!AX120+'7'!AX120+'8'!AX120+'9'!AX120+'10'!AX120+'11'!AX120 -> 0 | AY120: ='1'!AY120+'2'!AY120+'3'!AY120+'4'!AY120+'5'!AY120+'6'!AY120+'7'!AY120+'8'!AY120+'9'!AY120+'10'!AY120+'11'!AY120 -> 0 | AZ120: 0
C121: 1 | H121: ='1'!H121 -> Other fixed structures | I121: =SUM('1:11'!I121)+I244 -> 0 | J121: =SUM('1:11'!J121)+J244 -> 0 | K121: =SUM('1:11'!K121)+K244 -> 0 | L121: =SUM('1:11'!L121)+L244 -> 0 | M121: =SUM('1:11'!M121)+M244 -> 0 | N121: =SUM('1:11'!N121)+N244 -> 0 | O121: =SUM('1:11'!O121)+O244 -> 0 | P121: =SUM('1:11'!P121)+P244 -> 0 | Q121: =SUM('1:11'!Q121)+Q244 -> 0 | R121: =SUM('1:11'!R121)+R244 -> 0 | S121: =SUM('1:11'!S121)+S244 -> 0 | T121: =SUM('1:11'!T121)+T244 -> 0 | U121: =SUM($H121:OFFSET($H121,0,$I$2)) -> 0 | V121: 0 | W121: 0 | Y121: 0 | Z121: ='1'!Z121+'2'!Z121+'3'!Z121+'4'!Z121+'5'!Z121+'6'!Z121+'7'!Z121+'8'!Z121+'9'!Z121+'10'!Z121+'11'!Z121 -> 0 | AA121: ='1'!AA121+'2'!AA121+'3'!AA121+'4'!AA121+'5'!AA121+'6'!AA121+'7'!AA121+'8'!AA121+'9'!AA121+'10'!AA121+'11'!AA121 -> 0 | AB121: ='1'!AB121+'2'!AB121+'3'!AB121+'4'!AB121+'5'!AB121+'6'!AB121+'7'!AB121+'8'!AB121+'9'!AB121+'10'!AB121+'11'!AB121 -> 0 | AC121: ='1'!AC121+'2'!AC121+'3'!AC121+'4'!AC121+'5'!AC121+'6'!AC121+'7'!AC121+'8'!AC121+'9'!AC121+'10'!AC121+'11'!AC121 -> 0 | AD121: ='1'!AD121+'2'!AD121+'3'!AD121+'4'!AD121+'5'!AD121+'6'!AD121+'7'!AD121+'8'!AD121+'9'!AD121+'10'!AD121+'11'!AD121 -> 0 | AE121: ='1'!AE121+'2'!AE121+'3'!AE121+'4'!AE121+'5'!AE121+'6'!AE121+'7'!AE121+'8'!AE121+'9'!AE121+'10'!AE121+'11'!AE121 -> 0 | AF121: ='1'!AF121+'2'!AF121+'3'!AF121+'4'!AF121+'5'!AF121+'6'!AF121+'7'!AF121+'8'!AF121+'9'!AF121+'10'!AF121+'11'!AF121 -> 0 | AG121: 0 | AI121: 0 | AJ121: ='1'!AJ121+'2'!AJ121+'3'!AJ121+'4'!AJ121+'5'!AJ121+'6'!AJ121+'7'!AJ121+'8'!AJ121+'9'!AJ121+'10'!AJ121+'11'!AJ121 -> 0 | AK121: ='1'!AK121+'2'!AK121+'3'!AK121+'4'!AK121+'5'!AK121+'6'!AK121+'7'!AK121+'8'!AK121+'9'!AK121+'10'!AK121+'11'!AK121 -> 0 | AL121: ='1'!AL121+'2'!AL121+'3'!AL121+'4'!AL121+'5'!AL121+'6'!AL121+'7'!AL121+'8'!AL121+'9'!AL121+'10'!AL121+'11'!AL121 -> 0 | AM121: ='1'!AM121+'2'!AM121+'3'!AM121+'4'!AM121+'5'!AM121+'6'!AM121+'7'!AM121+'8'!AM121+'9'!AM121+'10'!AM121+'11'!AM121 -> 0 | AN121: ='1'!AN121+'2'!AN121+'3'!AN121+'4'!AN121+'5'!AN121+'6'!AN121+'7'!AN121+'8'!AN121+'9'!AN121+'10'!AN121+'11'!AN121 -> 0 | AO121: ='1'!AO121+'2'!AO121+'3'!AO121+'4'!AO121+'5'!AO121+'6'!AO121+'7'!AO121+'8'!AO121+'9'!AO121+'10'!AO121+'11'!AO121 -> 0 | AP121: ='1'!AP121+'2'!AP121+'3'!AP121+'4'!AP121+'5'!AP121+'6'!AP121+'7'!AP121+'8'!AP121+'9'!AP121+'10'!AP121+'11'!AP121 -> 0 | AQ121: ='1'!AQ121+'2'!AQ121+'3'!AQ121+'4'!AQ121+'5'!AQ121+'6'!AQ121+'7'!AQ121+'8'!AQ121+'9'!AQ121+'10'!AQ121+'11'!AQ121 -> 0 | AR121: ='1'!AR121+'2'!AR121+'3'!AR121+'4'!AR121+'5'!AR121+'6'!AR121+'7'!AR121+'8'!AR121+'9'!AR121+'10'!AR121+'11'!AR121 -> 0 | AS121: ='1'!AS121+'2'!AS121+'3'!AS121+'4'!AS121+'5'!AS121+'6'!AS121+'7'!AS121+'8'!AS121+'9'!AS121+'10'!AS121+'11'!AS121 -> 0 | AT121: ='1'!AT121+'2'!AT121+'3'!AT121+'4'!AT121+'5'!AT121+'6'!AT121+'7'!AT121+'8'!AT121+'9'!AT121+'10'!AT121+'11'!AT121 -> 0 | AU121: ='1'!AU121+'2'!AU121+'3'!AU121+'4'!AU121+'5'!AU121+'6'!AU121+'7'!AU121+'8'!AU121+'9'!AU121+'10'!AU121+'11'!AU121 -> 0 | AV121: 0 | AW121: ='1'!AW121+'2'!AW121+'3'!AW121+'4'!AW121+'5'!AW121+'6'!AW121+'7'!AW121+'8'!AW121+'9'!AW121+'10'!AW121+'11'!AW121 -> 0 | AX121: ='1'!AX121+'2'!AX121+'3'!AX121+'4'!AX121+'5'!AX121+'6'!AX121+'7'!AX121+'8'!AX121+'9'!AX121+'10'!AX121+'11'!AX121 -> 0 | AY121: ='1'!AY121+'2'!AY121+'3'!AY121+'4'!AY121+'5'!AY121+'6'!AY121+'7'!AY121+'8'!AY121+'9'!AY121+'10'!AY121+'11'!AY121 -> 0 | AZ121: 0
C122: 1 | H122: ='1'!H122 -> Machinery and equipment | I122: =SUM('1:11'!I122)+I245 -> 227 | J122: =SUM('1:11'!J122)+J245 -> 821 | K122: =SUM('1:11'!K122)+K245 -> 524 | L122: =SUM('1:11'!L122)+L245 -> 1518 | M122: =SUM('1:11'!M122)+M245 -> 578 | N122: =SUM('1:11'!N122)+N245 -> 246 | O122: =SUM('1:11'!O122)+O245 -> 3742 | P122: =SUM('1:11'!P122)+P245 -> 71 | Q122: =SUM('1:11'!Q122)+Q245 -> 38 | R122: =SUM('1:11'!R122)+R245 -> 5945 | S122: =SUM('1:11'!S122)+S245 -> 103 | T122: =SUM('1:11'!T122)+T245 -> 1775 | U122: =SUM($H122:OFFSET($H122,0,$I$2)) -> 0 | V122: 15588 | W122: 14695 | Y122: 30283 | Z122: ='1'!Z122+'2'!Z122+'3'!Z122+'4'!Z122+'5'!Z122+'6'!Z122+'7'!Z122+'8'!Z122+'9'!Z122+'10'!Z122+'11'!Z122 -> 9920 | AA122: ='1'!AA122+'2'!AA122+'3'!AA122+'4'!AA122+'5'!AA122+'6'!AA122+'7'!AA122+'8'!AA122+'9'!AA122+'10'!AA122+'11'!AA122 -> 25508 | AB122: ='1'!AB122+'2'!AB122+'3'!AB122+'4'!AB122+'5'!AB122+'6'!AB122+'7'!AB122+'8'!AB122+'9'!AB122+'10'!AB122+'11'!AB122 -> 4785 | AC122: ='1'!AC122+'2'!AC122+'3'!AC122+'4'!AC122+'5'!AC122+'6'!AC122+'7'!AC122+'8'!AC122+'9'!AC122+'10'!AC122+'11'!AC122 -> 4775 | AD122: ='1'!AD122+'2'!AD122+'3'!AD122+'4'!AD122+'5'!AD122+'6'!AD122+'7'!AD122+'8'!AD122+'9'!AD122+'10'!AD122+'11'!AD122 -> 0 | AE122: ='1'!AE122+'2'!AE122+'3'!AE122+'4'!AE122+'5'!AE122+'6'!AE122+'7'!AE122+'8'!AE122+'9'!AE122+'10'!AE122+'11'!AE122 -> -10 | AF122: ='1'!AF122+'2'!AF122+'3'!AF122+'4'!AF122+'5'!AF122+'6'!AF122+'7'!AF122+'8'!AF122+'9'!AF122+'10'!AF122+'11'!AF122 -> 0 | AG122: -10 | AI122: 0 | AJ122: ='1'!AJ122+'2'!AJ122+'3'!AJ122+'4'!AJ122+'5'!AJ122+'6'!AJ122+'7'!AJ122+'8'!AJ122+'9'!AJ122+'10'!AJ122+'11'!AJ122 -> 0 | AK122: ='1'!AK122+'2'!AK122+'3'!AK122+'4'!AK122+'5'!AK122+'6'!AK122+'7'!AK122+'8'!AK122+'9'!AK122+'10'!AK122+'11'!AK122 -> 0 | AL122: ='1'!AL122+'2'!AL122+'3'!AL122+'4'!AL122+'5'!AL122+'6'!AL122+'7'!AL122+'8'!AL122+'9'!AL122+'10'!AL122+'11'!AL122 -> 0 | AM122: ='1'!AM122+'2'!AM122+'3'!AM122+'4'!AM122+'5'!AM122+'6'!AM122+'7'!AM122+'8'!AM122+'9'!AM122+'10'!AM122+'11'!AM122 -> 0 | AN122: ='1'!AN122+'2'!AN122+'3'!AN122+'4'!AN122+'5'!AN122+'6'!AN122+'7'!AN122+'8'!AN122+'9'!AN122+'10'!AN122+'11'!AN122 -> 0 | AO122: ='1'!AO122+'2'!AO122+'3'!AO122+'4'!AO122+'5'!AO122+'6'!AO122+'7'!AO122+'8'!AO122+'9'!AO122+'10'!AO122+'11'!AO122 -> 0 | AP122: ='1'!AP122+'2'!AP122+'3'!AP122+'4'!AP122+'5'!AP122+'6'!AP122+'7'!AP122+'8'!AP122+'9'!AP122+'10'!AP122+'11'!AP122 -> 0 | AQ122: ='1'!AQ122+'2'!AQ122+'3'!AQ122+'4'!AQ122+'5'!AQ122+'6'!AQ122+'7'!AQ122+'8'!AQ122+'9'!AQ122+'10'!AQ122+'11'!AQ122 -> 0 | AR122: ='1'!AR122+'2'!AR122+'3'!AR122+'4'!AR122+'5'!AR122+'6'!AR122+'7'!AR122+'8'!AR122+'9'!AR122+'10'!AR122+'11'!AR122 -> 0 | AS122: ='1'!AS122+'2'!AS122+'3'!AS122+'4'!AS122+'5'!AS122+'6'!AS122+'7'!AS122+'8'!AS122+'9'!AS122+'10'!AS122+'11'!AS122 -> 0 | AT122: ='1'!AT122+'2'!AT122+'3'!AT122+'4'!AT122+'5'!AT122+'6'!AT122+'7'!AT122+'8'!AT122+'9'!AT122+'10'!AT122+'11'!AT122 -> 0 | AU122: ='1'!AU122+'2'!AU122+'3'!AU122+'4'!AU122+'5'!AU122+'6'!AU122+'7'!AU122+'8'!AU122+'9'!AU122+'10'!AU122+'11'!AU122 -> 0 | AV122: 0 | AW122: ='1'!AW122+'2'!AW122+'3'!AW122+'4'!AW122+'5'!AW122+'6'!AW122+'7'!AW122+'8'!AW122+'9'!AW122+'10'!AW122+'11'!AW122 -> 0 | AX122: ='1'!AX122+'2'!AX122+'3'!AX122+'4'!AX122+'5'!AX122+'6'!AX122+'7'!AX122+'8'!AX122+'9'!AX122+'10'!AX122+'11'!AX122 -> 0 | AY122: ='1'!AY122+'2'!AY122+'3'!AY122+'4'!AY122+'5'!AY122+'6'!AY122+'7'!AY122+'8'!AY122+'9'!AY122+'10'!AY122+'11'!AY122 -> 0 | AZ122: 0
C123: 1 | H123: ='1'!H123 -> Transport equipment | I123: =SUM('1:11'!I123)+I246 -> 0 | J123: =SUM('1:11'!J123)+J246 -> 0 | K123: =SUM('1:11'!K123)+K246 -> 0 | L123: =SUM('1:11'!L123)+L246 -> 0 | M123: =SUM('1:11'!M123)+M246 -> 0 | N123: =SUM('1:11'!N123)+N246 -> 0 | O123: =SUM('1:11'!O123)+O246 -> 0 | P123: =SUM('1:11'!P123)+P246 -> 0 | Q123: =SUM('1:11'!Q123)+Q246 -> 0 | R123: =SUM('1:11'!R123)+R246 -> 0 | S123: =SUM('1:11'!S123)+S246 -> 0 | T123: =SUM('1:11'!T123)+T246 -> 1050 | U123: =SUM($H123:OFFSET($H123,0,$I$2)) -> 0 | V123: 1050 | W123: 0 | Y123: 1050 | Z123: ='1'!Z123+'2'!Z123+'3'!Z123+'4'!Z123+'5'!Z123+'6'!Z123+'7'!Z123+'8'!Z123+'9'!Z123+'10'!Z123+'11'!Z123 -> 0 | AA123: ='1'!AA123+'2'!AA123+'3'!AA123+'4'!AA123+'5'!AA123+'6'!AA123+'7'!AA123+'8'!AA123+'9'!AA123+'10'!AA123+'11'!AA123 -> 1050 | AB123: ='1'!AB123+'2'!AB123+'3'!AB123+'4'!AB123+'5'!AB123+'6'!AB123+'7'!AB123+'8'!AB123+'9'!AB123+'10'!AB123+'11'!AB123 -> 0 | AC123: ='1'!AC123+'2'!AC123+'3'!AC123+'4'!AC123+'5'!AC123+'6'!AC123+'7'!AC123+'8'!AC123+'9'!AC123+'10'!AC123+'11'!AC123 -> 0 | AD123: ='1'!AD123+'2'!AD123+'3'!AD123+'4'!AD123+'5'!AD123+'6'!AD123+'7'!AD123+'8'!AD123+'9'!AD123+'10'!AD123+'11'!AD123 -> 0 | AE123: ='1'!AE123+'2'!AE123+'3'!AE123+'4'!AE123+'5'!AE123+'6'!AE123+'7'!AE123+'8'!AE123+'9'!AE123+'10'!AE123+'11'!AE123 -> 0 | AF123: ='1'!AF123+'2'!AF123+'3'!AF123+'4'!AF123+'5'!AF123+'6'!AF123+'7'!AF123+'8'!AF123+'9'!AF123+'10'!AF123+'11'!AF123 -> 0 | AG123: 0 | AI123: 0 | AJ123: ='1'!AJ123+'2'!AJ123+'3'!AJ123+'4'!AJ123+'5'!AJ123+'6'!AJ123+'7'!AJ123+'8'!AJ123+'9'!AJ123+'10'!AJ123+'11'!AJ123 -> 0 | AK123: ='1'!AK123+'2'!AK123+'3'!AK123+'4'!AK123+'5'!AK123+'6'!AK123+'7'!AK123+'8'!AK123+'9'!AK123+'10'!AK123+'11'!AK123 -> 0 | AL123: ='1'!AL123+'2'!AL123+'3'!AL123+'4'!AL123+'5'!AL123+'6'!AL123+'7'!AL123+'8'!AL123+'9'!AL123+'10'!AL123+'11'!AL123 -> 0 | AM123: ='1'!AM123+'2'!AM123+'3'!AM123+'4'!AM123+'5'!AM123+'6'!AM123+'7'!AM123+'8'!AM123+'9'!AM123+'10'!AM123+'11'!AM123 -> 0 | AN123: ='1'!AN123+'2'!AN123+'3'!AN123+'4'!AN123+'5'!AN123+'6'!AN123+'7'!AN123+'8'!AN123+'9'!AN123+'10'!AN123+'11'!AN123 -> 0 | AO123: ='1'!AO123+'2'!AO123+'3'!AO123+'4'!AO123+'5'!AO123+'6'!AO123+'7'!AO123+'8'!AO123+'9'!AO123+'10'!AO123+'11'!AO123 -> 0 | AP123: ='1'!AP123+'2'!AP123+'3'!AP123+'4'!AP123+'5'!AP123+'6'!AP123+'7'!AP123+'8'!AP123+'9'!AP123+'10'!AP123+'11'!AP123 -> 0 | AQ123: ='1'!AQ123+'2'!AQ123+'3'!AQ123+'4'!AQ123+'5'!AQ123+'6'!AQ123+'7'!AQ123+'8'!AQ123+'9'!AQ123+'10'!AQ123+'11'!AQ123 -> 0 | AR123: ='1'!AR123+'2'!AR123+'3'!AR123+'4'!AR123+'5'!AR123+'6'!AR123+'7'!AR123+'8'!AR123+'9'!AR123+'10'!AR123+'11'!AR123 -> 0 | AS123: ='1'!AS123+'2'!AS123+'3'!AS123+'4'!AS123+'5'!AS123+'6'!AS123+'7'!AS123+'8'!AS123+'9'!AS123+'10'!AS123+'11'!AS123 -> 0 | AT123: ='1'!AT123+'2'!AT123+'3'!AT123+'4'!AT123+'5'!AT123+'6'!AT123+'7'!AT123+'8'!AT123+'9'!AT123+'10'!AT123+'11'!AT123 -> 0 | AU123: ='1'!AU123+'2'!AU123+'3'!AU123+'4'!AU123+'5'!AU123+'6'!AU123+'7'!AU123+'8'!AU123+'9'!AU123+'10'!AU123+'11'!AU123 -> 0 | AV123: 0 | AW123: ='1'!AW123+'2'!AW123+'3'!AW123+'4'!AW123+'5'!AW123+'6'!AW123+'7'!AW123+'8'!AW123+'9'!AW123+'10'!AW123+'11'!AW123 -> 0 | AX123: ='1'!AX123+'2'!AX123+'3'!AX123+'4'!AX123+'5'!AX123+'6'!AX123+'7'!AX123+'8'!AX123+'9'!AX123+'10'!AX123+'11'!AX123 -> 0 | AY123: ='1'!AY123+'2'!AY123+'3'!AY123+'4'!AY123+'5'!AY123+'6'!AY123+'7'!AY123+'8'!AY123+'9'!AY123+'10'!AY123+'11'!AY123 -> 0 | AZ123: 0
C124: 1 | H124: ='1'!H124 -> Other machinery and equipment | I124: =SUM('1:11'!I124)+I247 -> 227 | J124: =SUM('1:11'!J124)+J247 -> 821 | K124: =SUM('1:11'!K124)+K247 -> 524 | L124: =SUM('1:11'!L124)+L247 -> 1518 | M124: =SUM('1:11'!M124)+M247 -> 578 | N124: =SUM('1:11'!N124)+N247 -> 246 | O124: =SUM('1:11'!O124)+O247 -> 3742 | P124: =SUM('1:11'!P124)+P247 -> 71 | Q124: =SUM('1:11'!Q124)+Q247 -> 38 | R124: =SUM('1:11'!R124)+R247 -> 5945 | S124: =SUM('1:11'!S124)+S247 -> 103 | T124: =SUM('1:11'!T124)+T247 -> 725 | U124: =SUM($H124:OFFSET($H124,0,$I$2)) -> 0 | V124: 14538 | W124: 14695 | Y124: 29233 | Z124: ='1'!Z124+'2'!Z124+'3'!Z124+'4'!Z124+'5'!Z124+'6'!Z124+'7'!Z124+'8'!Z124+'9'!Z124+'10'!Z124+'11'!Z124 -> 9920 | AA124: ='1'!AA124+'2'!AA124+'3'!AA124+'4'!AA124+'5'!AA124+'6'!AA124+'7'!AA124+'8'!AA124+'9'!AA124+'10'!AA124+'11'!AA124 -> 24458 | AB124: ='1'!AB124+'2'!AB124+'3'!AB124+'4'!AB124+'5'!AB124+'6'!AB124+'7'!AB124+'8'!AB124+'9'!AB124+'10'!AB124+'11'!AB124 -> 4785 | AC124: ='1'!AC124+'2'!AC124+'3'!AC124+'4'!AC124+'5'!AC124+'6'!AC124+'7'!AC124+'8'!AC124+'9'!AC124+'10'!AC124+'11'!AC124 -> 4775 | AD124: ='1'!AD124+'2'!AD124+'3'!AD124+'4'!AD124+'5'!AD124+'6'!AD124+'7'!AD124+'8'!AD124+'9'!AD124+'10'!AD124+'11'!AD124 -> 0 | AE124: ='1'!AE124+'2'!AE124+'3'!AE124+'4'!AE124+'5'!AE124+'6'!AE124+'7'!AE124+'8'!AE124+'9'!AE124+'10'!AE124+'11'!AE124 -> -10 | AF124: ='1'!AF124+'2'!AF124+'3'!AF124+'4'!AF124+'5'!AF124+'6'!AF124+'7'!AF124+'8'!AF124+'9'!AF124+'10'!AF124+'11'!AF124 -> 0 | AG124: -10 | AI124: 0 | AJ124: ='1'!AJ124+'2'!AJ124+'3'!AJ124+'4'!AJ124+'5'!AJ124+'6'!AJ124+'7'!AJ124+'8'!AJ124+'9'!AJ124+'10'!AJ124+'11'!AJ124 -> 0 | AK124: ='1'!AK124+'2'!AK124+'3'!AK124+'4'!AK124+'5'!AK124+'6'!AK124+'7'!AK124+'8'!AK124+'9'!AK124+'10'!AK124+'11'!AK124 -> 0 | AL124: ='1'!AL124+'2'!AL124+'3'!AL124+'4'!AL124+'5'!AL124+'6'!AL124+'7'!AL124+'8'!AL124+'9'!AL124+'10'!AL124+'11'!AL124 -> 0 | AM124: ='1'!AM124+'2'!AM124+'3'!AM124+'4'!AM124+'5'!AM124+'6'!AM124+'7'!AM124+'8'!AM124+'9'!AM124+'10'!AM124+'11'!AM124 -> 0 | AN124: ='1'!AN124+'2'!AN124+'3'!AN124+'4'!AN124+'5'!AN124+'6'!AN124+'7'!AN124+'8'!AN124+'9'!AN124+'10'!AN124+'11'!AN124 -> 0 | AO124: ='1'!AO124+'2'!AO124+'3'!AO124+'4'!AO124+'5'!AO124+'6'!AO124+'7'!AO124+'8'!AO124+'9'!AO124+'10'!AO124+'11'!AO124 -> 0 | AP124: ='1'!AP124+'2'!AP124+'3'!AP124+'4'!AP124+'5'!AP124+'6'!AP124+'7'!AP124+'8'!AP124+'9'!AP124+'10'!AP124+'11'!AP124 -> 0 | AQ124: ='1'!AQ124+'2'!AQ124+'3'!AQ124+'4'!AQ124+'5'!AQ124+'6'!AQ124+'7'!AQ124+'8'!AQ124+'9'!AQ124+'10'!AQ124+'11'!AQ124 -> 0 | AR124: ='1'!AR124+'2'!AR124+'3'!AR124+'4'!AR124+'5'!AR124+'6'!AR124+'7'!AR124+'8'!AR124+'9'!AR124+'10'!AR124+'11'!AR124 -> 0 | AS124: ='1'!AS124+'2'!AS124+'3'!AS124+'4'!AS124+'5'!AS124+'6'!AS124+'7'!AS124+'8'!AS124+'9'!AS124+'10'!AS124+'11'!AS124 -> 0 | AT124: ='1'!AT124+'2'!AT124+'3'!AT124+'4'!AT124+'5'!AT124+'6'!AT124+'7'!AT124+'8'!AT124+'9'!AT124+'10'!AT124+'11'!AT124 -> 0 | AU124: ='1'!AU124+'2'!AU124+'3'!AU124+'4'!AU124+'5'!AU124+'6'!AU124+'7'!AU124+'8'!AU124+'9'!AU124+'10'!AU124+'11'!AU124 -> 0 | AV124: 0 | AW124: ='1'!AW124+'2'!AW124+'3'!AW124+'4'!AW124+'5'!AW124+'6'!AW124+'7'!AW124+'8'!AW124+'9'!AW124+'10'!AW124+'11'!AW124 -> 0 | AX124: ='1'!AX124+'2'!AX124+'3'!AX124+'4'!AX124+'5'!AX124+'6'!AX124+'7'!AX124+'8'!AX124+'9'!AX124+'10'!AX124+'11'!AX124 -> 0 | AY124: ='1'!AY124+'2'!AY124+'3'!AY124+'4'!AY124+'5'!AY124+'6'!AY124+'7'!AY124+'8'!AY124+'9'!AY124+'10'!AY124+'11'!AY124 -> 0 | AZ124: 0
C125: 1 | H125: ='1'!H125 -> Heritage assets | I125: =SUM('1:11'!I125)+I248 -> 0 | J125: =SUM('1:11'!J125)+J248 -> 0 | K125: =SUM('1:11'!K125)+K248 -> 0 | L125: =SUM('1:11'!L125)+L248 -> 0 | M125: =SUM('1:11'!M125)+M248 -> 0 | N125: =SUM('1:11'!N125)+N248 -> 0 | O125: =SUM('1:11'!O125)+O248 -> 0 | P125: =SUM('1:11'!P125)+P248 -> 0 | Q125: =SUM('1:11'!Q125)+Q248 -> 0 | R125: =SUM('1:11'!R125)+R248 -> 0 | S125: =SUM('1:11'!S125)+S248 -> 0 | T125: =SUM('1:11'!T125)+T248 -> 0 | U125: =SUM($H125:OFFSET($H125,0,$I$2)) -> 0 | V125: 0 | W125: 0 | Y125: 0 | Z125: ='1'!Z125+'2'!Z125+'3'!Z125+'4'!Z125+'5'!Z125+'6'!Z125+'7'!Z125+'8'!Z125+'9'!Z125+'10'!Z125+'11'!Z125 -> 0 | AA125: ='1'!AA125+'2'!AA125+'3'!AA125+'4'!AA125+'5'!AA125+'6'!AA125+'7'!AA125+'8'!AA125+'9'!AA125+'10'!AA125+'11'!AA125 -> 0 | AB125: ='1'!AB125+'2'!AB125+'3'!AB125+'4'!AB125+'5'!AB125+'6'!AB125+'7'!AB125+'8'!AB125+'9'!AB125+'10'!AB125+'11'!AB125 -> 0 | AC125: ='1'!AC125+'2'!AC125+'3'!AC125+'4'!AC125+'5'!AC125+'6'!AC125+'7'!AC125+'8'!AC125+'9'!AC125+'10'!AC125+'11'!AC125 -> 0 | AD125: ='1'!AD125+'2'!AD125+'3'!AD125+'4'!AD125+'5'!AD125+'6'!AD125+'7'!AD125+'8'!AD125+'9'!AD125+'10'!AD125+'11'!AD125 -> 0 | AE125: ='1'!AE125+'2'!AE125+'3'!AE125+'4'!AE125+'5'!AE125+'6'!AE125+'7'!AE125+'8'!AE125+'9'!AE125+'10'!AE125+'11'!AE125 -> 0 | AF125: ='1'!AF125+'2'!AF125+'3'!AF125+'4'!AF125+'5'!AF125+'6'!AF125+'7'!AF125+'8'!AF125+'9'!AF125+'10'!AF125+'11'!AF125 -> 0 | AG125: 0 | AI125: 0 | AJ125: ='1'!AJ125+'2'!AJ125+'3'!AJ125+'4'!AJ125+'5'!AJ125+'6'!AJ125+'7'!AJ125+'8'!AJ125+'9'!AJ125+'10'!AJ125+'11'!AJ125 -> 0 | AK125: ='1'!AK125+'2'!AK125+'3'!AK125+'4'!AK125+'5'!AK125+'6'!AK125+'7'!AK125+'8'!AK125+'9'!AK125+'10'!AK125+'11'!AK125 -> 0 | AL125: ='1'!AL125+'2'!AL125+'3'!AL125+'4'!AL125+'5'!AL125+'6'!AL125+'7'!AL125+'8'!AL125+'9'!AL125+'10'!AL125+'11'!AL125 -> 0 | AM125: ='1'!AM125+'2'!AM125+'3'!AM125+'4'!AM125+'5'!AM125+'6'!AM125+'7'!AM125+'8'!AM125+'9'!AM125+'10'!AM125+'11'!AM125 -> 0 | AN125: ='1'!AN125+'2'!AN125+'3'!AN125+'4'!AN125+'5'!AN125+'6'!AN125+'7'!AN125+'8'!AN125+'9'!AN125+'10'!AN125+'11'!AN125 -> 0 | AO125: ='1'!AO125+'2'!AO125+'3'!AO125+'4'!AO125+'5'!AO125+'6'!AO125+'7'!AO125+'8'!AO125+'9'!AO125+'10'!AO125+'11'!AO125 -> 0 | AP125: ='1'!AP125+'2'!AP125+'3'!AP125+'4'!AP125+'5'!AP125+'6'!AP125+'7'!AP125+'8'!AP125+'9'!AP125+'10'!AP125+'11'!AP125 -> 0 | AQ125: ='1'!AQ125+'2'!AQ125+'3'!AQ125+'4'!AQ125+'5'!AQ125+'6'!AQ125+'7'!AQ125+'8'!AQ125+'9'!AQ125+'10'!AQ125+'11'!AQ125 -> 0 | AR125: ='1'!AR125+'2'!AR125+'3'!AR125+'4'!AR125+'5'!AR125+'6'!AR125+'7'!AR125+'8'!AR125+'9'!AR125+'10'!AR125+'11'!AR125 -> 0 | AS125: ='1'!AS125+'2'!AS125+'3'!AS125+'4'!AS125+'5'!AS125+'6'!AS125+'7'!AS125+'8'!AS125+'9'!AS125+'10'!AS125+'11'!AS125 -> 0 | AT125: ='1'!AT125+'2'!AT125+'3'!AT125+'4'!AT125+'5'!AT125+'6'!AT125+'7'!AT125+'8'!AT125+'9'!AT125+'10'!AT125+'11'!AT125 -> 0 | AU125: ='1'!AU125+'2'!AU125+'3'!AU125+'4'!AU125+'5'!AU125+'6'!AU125+'7'!AU125+'8'!AU125+'9'!AU125+'10'!AU125+'11'!AU125 -> 0 | AV125: 0 | AW125: ='1'!AW125+'2'!AW125+'3'!AW125+'4'!AW125+'5'!AW125+'6'!AW125+'7'!AW125+'8'!AW125+'9'!AW125+'10'!AW125+'11'!AW125 -> 0 | AX125: ='1'!AX125+'2'!AX125+'3'!AX125+'4'!AX125+'5'!AX125+'6'!AX125+'7'!AX125+'8'!AX125+'9'!AX125+'10'!AX125+'11'!AX125 -> 0 | AY125: ='1'!AY125+'2'!AY125+'3'!AY125+'4'!AY125+'5'!AY125+'6'!AY125+'7'!AY125+'8'!AY125+'9'!AY125+'10'!AY125+'11'!AY125 -> 0 | AZ125: 0
C126: 1 | H126: ='1'!H126 -> Specialised military assets | I126: =SUM('1:11'!I126)+I249 -> 0 | J126: =SUM('1:11'!J126)+J249 -> 0 | K126: =SUM('1:11'!K126)+K249 -> 0 | L126: =SUM('1:11'!L126)+L249 -> 0 | M126: =SUM('1:11'!M126)+M249 -> 0 | N126: =SUM('1:11'!N126)+N249 -> 0 | O126: =SUM('1:11'!O126)+O249 -> 0 | P126: =SUM('1:11'!P126)+P249 -> 0 | Q126: =SUM('1:11'!Q126)+Q249 -> 0 | R126: =SUM('1:11'!R126)+R249 -> 0 | S126: =SUM('1:11'!S126)+S249 -> 0 | T126: =SUM('1:11'!T126)+T249 -> 0 | U126: =SUM($H126:OFFSET($H126,0,$I$2)) -> 0 | V126: 0 | W126: 0 | Y126: 0 | Z126: ='1'!Z126+'2'!Z126+'3'!Z126+'4'!Z126+'5'!Z126+'6'!Z126+'7'!Z126+'8'!Z126+'9'!Z126+'10'!Z126+'11'!Z126 -> 0 | AA126: ='1'!AA126+'2'!AA126+'3'!AA126+'4'!AA126+'5'!AA126+'6'!AA126+'7'!AA126+'8'!AA126+'9'!AA126+'10'!AA126+'11'!AA126 -> 0 | AB126: ='1'!AB126+'2'!AB126+'3'!AB126+'4'!AB126+'5'!AB126+'6'!AB126+'7'!AB126+'8'!AB126+'9'!AB126+'10'!AB126+'11'!AB126 -> 0 | AC126: ='1'!AC126+'2'!AC126+'3'!AC126+'4'!AC126+'5'!AC126+'6'!AC126+'7'!AC126+'8'!AC126+'9'!AC126+'10'!AC126+'11'!AC126 -> 0 | AD126: ='1'!AD126+'2'!AD126+'3'!AD126+'4'!AD126+'5'!AD126+'6'!AD126+'7'!AD126+'8'!AD126+'9'!AD126+'10'!AD126+'11'!AD126 -> 0 | AE126: ='1'!AE126+'2'!AE126+'3'!AE126+'4'!AE126+'5'!AE126+'6'!AE126+'7'!AE126+'8'!AE126+'9'!AE126+'10'!AE126+'11'!AE126 -> 0 | AF126: ='1'!AF126+'2'!AF126+'3'!AF126+'4'!AF126+'5'!AF126+'6'!AF126+'7'!AF126+'8'!AF126+'9'!AF126+'10'!AF126+'11'!AF126 -> 0 | AG126: 0 | AI126: 0 | AJ126: ='1'!AJ126+'2'!AJ126+'3'!AJ126+'4'!AJ126+'5'!AJ126+'6'!AJ126+'7'!AJ126+'8'!AJ126+'9'!AJ126+'10'!AJ126+'11'!AJ126 -> 0 | AK126: ='1'!AK126+'2'!AK126+'3'!AK126+'4'!AK126+'5'!AK126+'6'!AK126+'7'!AK126+'8'!AK126+'9'!AK126+'10'!AK126+'11'!AK126 -> 0 | AL126: ='1'!AL126+'2'!AL126+'3'!AL126+'4'!AL126+'5'!AL126+'6'!AL126+'7'!AL126+'8'!AL126+'9'!AL126+'10'!AL126+'11'!AL126 -> 0 | AM126: ='1'!AM126+'2'!AM126+'3'!AM126+'4'!AM126+'5'!AM126+'6'!AM126+'7'!AM126+'8'!AM126+'9'!AM126+'10'!AM126+'11'!AM126 -> 0 | AN126: ='1'!AN126+'2'!AN126+'3'!AN126+'4'!AN126+'5'!AN126+'6'!AN126+'7'!AN126+'8'!AN126+'9'!AN126+'10'!AN126+'11'!AN126 -> 0 | AO126: ='1'!AO126+'2'!AO126+'3'!AO126+'4'!AO126+'5'!AO126+'6'!AO126+'7'!AO126+'8'!AO126+'9'!AO126+'10'!AO126+'11'!AO126 -> 0 | AP126: ='1'!AP126+'2'!AP126+'3'!AP126+'4'!AP126+'5'!AP126+'6'!AP126+'7'!AP126+'8'!AP126+'9'!AP126+'10'!AP126+'11'!AP126 -> 0 | AQ126: ='1'!AQ126+'2'!AQ126+'3'!AQ126+'4'!AQ126+'5'!AQ126+'6'!AQ126+'7'!AQ126+'8'!AQ126+'9'!AQ126+'10'!AQ126+'11'!AQ126 -> 0 | AR126: ='1'!AR126+'2'!AR126+'3'!AR126+'4'!AR126+'5'!AR126+'6'!AR126+'7'!AR126+'8'!AR126+'9'!AR126+'10'!AR126+'11'!AR126 -> 0 | AS126: ='1'!AS126+'2'!AS126+'3'!AS126+'4'!AS126+'5'!AS126+'6'!AS126+'7'!AS126+'8'!AS126+'9'!AS126+'10'!AS126+'11'!AS126 -> 0 | AT126: ='1'!AT126+'2'!AT126+'3'!AT126+'4'!AT126+'5'!AT126+'6'!AT126+'7'!AT126+'8'!AT126+'9'!AT126+'10'!AT126+'11'!AT126 -> 0 | AU126: ='1'!AU126+'2'!AU126+'3'!AU126+'4'!AU126+'5'!AU126+'6'!AU126+'7'!AU126+'8'!AU126+'9'!AU126+'10'!AU126+'11'!AU126 -> 0 | AV126: 0 | AW126: ='1'!AW126+'2'!AW126+'3'!AW126+'4'!AW126+'5'!AW126+'6'!AW126+'7'!AW126+'8'!AW126+'9'!AW126+'10'!AW126+'11'!AW126 -> 0 | AX126: ='1'!AX126+'2'!AX126+'3'!AX126+'4'!AX126+'5'!AX126+'6'!AX126+'7'!AX126+'8'!AX126+'9'!AX126+'10'!AX126+'11'!AX126 -> 0 | AY126: ='1'!AY126+'2'!AY126+'3'!AY126+'4'!AY126+'5'!AY126+'6'!AY126+'7'!AY126+'8'!AY126+'9'!AY126+'10'!AY126+'11'!AY126 -> 0 | AZ126: 0
C127: 1 | H127: ='1'!H127 -> Biological assets | I127: =SUM('1:11'!I127)+I250 -> 0 | J127: =SUM('1:11'!J127)+J250 -> 0 | K127: =SUM('1:11'!K127)+K250 -> 0 | L127: =SUM('1:11'!L127)+L250 -> 0 | M127: =SUM('1:11'!M127)+M250 -> 0 | N127: =SUM('1:11'!N127)+N250 -> 0 | O127: =SUM('1:11'!O127)+O250 -> 0 | P127: =SUM('1:11'!P127)+P250 -> 0 | Q127: =SUM('1:11'!Q127)+Q250 -> 0 | R127: =SUM('1:11'!R127)+R250 -> 0 | S127: =SUM('1:11'!S127)+S250 -> 0 | T127: =SUM('1:11'!T127)+T250 -> 0 | U127: =SUM($H127:OFFSET($H127,0,$I$2)) -> 0 | V127: 0 | W127: 0 | Y127: 0 | Z127: ='1'!Z127+'2'!Z127+'3'!Z127+'4'!Z127+'5'!Z127+'6'!Z127+'7'!Z127+'8'!Z127+'9'!Z127+'10'!Z127+'11'!Z127 -> 0 | AA127: ='1'!AA127+'2'!AA127+'3'!AA127+'4'!AA127+'5'!AA127+'6'!AA127+'7'!AA127+'8'!AA127+'9'!AA127+'10'!AA127+'11'!AA127 -> 0 | AB127: ='1'!AB127+'2'!AB127+'3'!AB127+'4'!AB127+'5'!AB127+'6'!AB127+'7'!AB127+'8'!AB127+'9'!AB127+'10'!AB127+'11'!AB127 -> 0 | AC127: ='1'!AC127+'2'!AC127+'3'!AC127+'4'!AC127+'5'!AC127+'6'!AC127+'7'!AC127+'8'!AC127+'9'!AC127+'10'!AC127+'11'!AC127 -> 0 | AD127: ='1'!AD127+'2'!AD127+'3'!AD127+'4'!AD127+'5'!AD127+'6'!AD127+'7'!AD127+'8'!AD127+'9'!AD127+'10'!AD127+'11'!AD127 -> 0 | AE127: ='1'!AE127+'2'!AE127+'3'!AE127+'4'!AE127+'5'!AE127+'6'!AE127+'7'!AE127+'8'!AE127+'9'!AE127+'10'!AE127+'11'!AE127 -> 0 | AF127: ='1'!AF127+'2'!AF127+'3'!AF127+'4'!AF127+'5'!AF127+'6'!AF127+'7'!AF127+'8'!AF127+'9'!AF127+'10'!AF127+'11'!AF127 -> 0 | AG127: 0 | AI127: 0 | AJ127: ='1'!AJ127+'2'!AJ127+'3'!AJ127+'4'!AJ127+'5'!AJ127+'6'!AJ127+'7'!AJ127+'8'!AJ127+'9'!AJ127+'10'!AJ127+'11'!AJ127 -> 0 | AK127: ='1'!AK127+'2'!AK127+'3'!AK127+'4'!AK127+'5'!AK127+'6'!AK127+'7'!AK127+'8'!AK127+'9'!AK127+'10'!AK127+'11'!AK127 -> 0 | AL127: ='1'!AL127+'2'!AL127+'3'!AL127+'4'!AL127+'5'!AL127+'6'!AL127+'7'!AL127+'8'!AL127+'9'!AL127+'10'!AL127+'11'!AL127 -> 0 | AM127: ='1'!AM127+'2'!AM127+'3'!AM127+'4'!AM127+'5'!AM127+'6'!AM127+'7'!AM127+'8'!AM127+'9'!AM127+'10'!AM127+'11'!AM127 -> 0 | AN127: ='1'!AN127+'2'!AN127+'3'!AN127+'4'!AN127+'5'!AN127+'6'!AN127+'7'!AN127+'8'!AN127+'9'!AN127+'10'!AN127+'11'!AN127 -> 0 | AO127: ='1'!AO127+'2'!AO127+'3'!AO127+'4'!AO127+'5'!AO127+'6'!AO127+'7'!AO127+'8'!AO127+'9'!AO127+'10'!AO127+'11'!AO127 -> 0 | AP127: ='1'!AP127+'2'!AP127+'3'!AP127+'4'!AP127+'5'!AP127+'6'!AP127+'7'!AP127+'8'!AP127+'9'!AP127+'10'!AP127+'11'!AP127 -> 0 | AQ127: ='1'!AQ127+'2'!AQ127+'3'!AQ127+'4'!AQ127+'5'!AQ127+'6'!AQ127+'7'!AQ127+'8'!AQ127+'9'!AQ127+'10'!AQ127+'11'!AQ127 -> 0 | AR127: ='1'!AR127+'2'!AR127+'3'!AR127+'4'!AR127+'5'!AR127+'6'!AR127+'7'!AR127+'8'!AR127+'9'!AR127+'10'!AR127+'11'!AR127 -> 0 | AS127: ='1'!AS127+'2'!AS127+'3'!AS127+'4'!AS127+'5'!AS127+'6'!AS127+'7'!AS127+'8'!AS127+'9'!AS127+'10'!AS127+'11'!AS127 -> 0 | AT127: ='1'!AT127+'2'!AT127+'3'!AT127+'4'!AT127+'5'!AT127+'6'!AT127+'7'!AT127+'8'!AT127+'9'!AT127+'10'!AT127+'11'!AT127 -> 0 | AU127: ='1'!AU127+'2'!AU127+'3'!AU127+'4'!AU127+'5'!AU127+'6'!AU127+'7'!AU127+'8'!AU127+'9'!AU127+'10'!AU127+'11'!AU127 -> 0 | AV127: 0 | AW127: ='1'!AW127+'2'!AW127+'3'!AW127+'4'!AW127+'5'!AW127+'6'!AW127+'7'!AW127+'8'!AW127+'9'!AW127+'10'!AW127+'11'!AW127 -> 0 | AX127: ='1'!AX127+'2'!AX127+'3'!AX127+'4'!AX127+'5'!AX127+'6'!AX127+'7'!AX127+'8'!AX127+'9'!AX127+'10'!AX127+'11'!AX127 -> 0 | AY127: ='1'!AY127+'2'!AY127+'3'!AY127+'4'!AY127+'5'!AY127+'6'!AY127+'7'!AY127+'8'!AY127+'9'!AY127+'10'!AY127+'11'!AY127 -> 0 | AZ127: 0
C128: 1 | H128: ='1'!H128 -> Land and sub-soil assets | I128: =SUM('1:11'!I128)+I251 -> 0 | J128: =SUM('1:11'!J128)+J251 -> 0 | K128: =SUM('1:11'!K128)+K251 -> 0 | L128: =SUM('1:11'!L128)+L251 -> 0 | M128: =SUM('1:11'!M128)+M251 -> 0 | N128: =SUM('1:11'!N128)+N251 -> 0 | O128: =SUM('1:11'!O128)+O251 -> 0 | P128: =SUM('1:11'!P128)+P251 -> 0 | Q128: =SUM('1:11'!Q128)+Q251 -> 0 | R128: =SUM('1:11'!R128)+R251 -> 0 | S128: =SUM('1:11'!S128)+S251 -> 0 | T128: =SUM('1:11'!T128)+T251 -> 0 | U128: =SUM($H128:OFFSET($H128,0,$I$2)) -> 0 | V128: 0 | W128: 0 | Y128: 0 | Z128: ='1'!Z128+'2'!Z128+'3'!Z128+'4'!Z128+'5'!Z128+'6'!Z128+'7'!Z128+'8'!Z128+'9'!Z128+'10'!Z128+'11'!Z128 -> 0 | AA128: ='1'!AA128+'2'!AA128+'3'!AA128+'4'!AA128+'5'!AA128+'6'!AA128+'7'!AA128+'8'!AA128+'9'!AA128+'10'!AA128+'11'!AA128 -> 0 | AB128: ='1'!AB128+'2'!AB128+'3'!AB128+'4'!AB128+'5'!AB128+'6'!AB128+'7'!AB128+'8'!AB128+'9'!AB128+'10'!AB128+'11'!AB128 -> 0 | AC128: ='1'!AC128+'2'!AC128+'3'!AC128+'4'!AC128+'5'!AC128+'6'!AC128+'7'!AC128+'8'!AC128+'9'!AC128+'10'!AC128+'11'!AC128 -> 0 | AD128: ='1'!AD128+'2'!AD128+'3'!AD128+'4'!AD128+'5'!AD128+'6'!AD128+'7'!AD128+'8'!AD128+'9'!AD128+'10'!AD128+'11'!AD128 -> 0 | AE128: ='1'!AE128+'2'!AE128+'3'!AE128+'4'!AE128+'5'!AE128+'6'!AE128+'7'!AE128+'8'!AE128+'9'!AE128+'10'!AE128+'11'!AE128 -> 0 | AF128: ='1'!AF128+'2'!AF128+'3'!AF128+'4'!AF128+'5'!AF128+'6'!AF128+'7'!AF128+'8'!AF128+'9'!AF128+'10'!AF128+'11'!AF128 -> 0 | AG128: 0 | AI128: 0 | AJ128: ='1'!AJ128+'2'!AJ128+'3'!AJ128+'4'!AJ128+'5'!AJ128+'6'!AJ128+'7'!AJ128+'8'!AJ128+'9'!AJ128+'10'!AJ128+'11'!AJ128 -> 0 | AK128: ='1'!AK128+'2'!AK128+'3'!AK128+'4'!AK128+'5'!AK128+'6'!AK128+'7'!AK128+'8'!AK128+'9'!AK128+'10'!AK128+'11'!AK128 -> 0 | AL128: ='1'!AL128+'2'!AL128+'3'!AL128+'4'!AL128+'5'!AL128+'6'!AL128+'7'!AL128+'8'!AL128+'9'!AL128+'10'!AL128+'11'!AL128 -> 0 | AM128: ='1'!AM128+'2'!AM128+'3'!AM128+'4'!AM128+'5'!AM128+'6'!AM128+'7'!AM128+'8'!AM128+'9'!AM128+'10'!AM128+'11'!AM128 -> 0 | AN128: ='1'!AN128+'2'!AN128+'3'!AN128+'4'!AN128+'5'!AN128+'6'!AN128+'7'!AN128+'8'!AN128+'9'!AN128+'10'!AN128+'11'!AN128 -> 0 | AO128: ='1'!AO128+'2'!AO128+'3'!AO128+'4'!AO128+'5'!AO128+'6'!AO128+'7'!AO128+'8'!AO128+'9'!AO128+'10'!AO128+'11'!AO128 -> 0 | AP128: ='1'!AP128+'2'!AP128+'3'!AP128+'4'!AP128+'5'!AP128+'6'!AP128+'7'!AP128+'8'!AP128+'9'!AP128+'10'!AP128+'11'!AP128 -> 0 | AQ128: ='1'!AQ128+'2'!AQ128+'3'!AQ128+'4'!AQ128+'5'!AQ128+'6'!AQ128+'7'!AQ128+'8'!AQ128+'9'!AQ128+'10'!AQ128+'11'!AQ128 -> 0 | AR128: ='1'!AR128+'2'!AR128+'3'!AR128+'4'!AR128+'5'!AR128+'6'!AR128+'7'!AR128+'8'!AR128+'9'!AR128+'10'!AR128+'11'!AR128 -> 0 | AS128: ='1'!AS128+'2'!AS128+'3'!AS128+'4'!AS128+'5'!AS128+'6'!AS128+'7'!AS128+'8'!AS128+'9'!AS128+'10'!AS128+'11'!AS128 -> 0 | AT128: ='1'!AT128+'2'!AT128+'3'!AT128+'4'!AT128+'5'!AT128+'6'!AT128+'7'!AT128+'8'!AT128+'9'!AT128+'10'!AT128+'11'!AT128 -> 0 | AU128: ='1'!AU128+'2'!AU128+'3'!AU128+'4'!AU128+'5'!AU128+'6'!AU128+'7'!AU128+'8'!AU128+'9'!AU128+'10'!AU128+'11'!AU128 -> 0 | AV128: 0 | AW128: ='1'!AW128+'2'!AW128+'3'!AW128+'4'!AW128+'5'!AW128+'6'!AW128+'7'!AW128+'8'!AW128+'9'!AW128+'10'!AW128+'11'!AW128 -> 0 | AX128: ='1'!AX128+'2'!AX128+'3'!AX128+'4'!AX128+'5'!AX128+'6'!AX128+'7'!AX128+'8'!AX128+'9'!AX128+'10'!AX128+'11'!AX128 -> 0 | AY128: ='1'!AY128+'2'!AY128+'3'!AY128+'4'!AY128+'5'!AY128+'6'!AY128+'7'!AY128+'8'!AY128+'9'!AY128+'10'!AY128+'11'!AY128 -> 0 | AZ128: 0
C129: 1 | H129: ='1'!H129 -> Software and other intangible assets | I129: =SUM('1:11'!I129)+I252 -> 0 | J129: =SUM('1:11'!J129)+J252 -> 0 | K129: =SUM('1:11'!K129)+K252 -> 0 | L129: =SUM('1:11'!L129)+L252 -> 0 | M129: =SUM('1:11'!M129)+M252 -> 0 | N129: =SUM('1:11'!N129)+N252 -> 0 | O129: =SUM('1:11'!O129)+O252 -> 0 | P129: =SUM('1:11'!P129)+P252 -> 2600 | Q129: =SUM('1:11'!Q129)+Q252 -> 0 | R129: =SUM('1:11'!R129)+R252 -> 0 | S129: =SUM('1:11'!S129)+S252 -> 0 | T129: =SUM('1:11'!T129)+T252 -> 0 | U129: =SUM($H129:OFFSET($H129,0,$I$2)) -> 0 | V129: 2600 | W129: 698 | Y129: 3298 | Z129: ='1'!Z129+'2'!Z129+'3'!Z129+'4'!Z129+'5'!Z129+'6'!Z129+'7'!Z129+'8'!Z129+'9'!Z129+'10'!Z129+'11'!Z129 -> 618 | AA129: ='1'!AA129+'2'!AA129+'3'!AA129+'4'!AA129+'5'!AA129+'6'!AA129+'7'!AA129+'8'!AA129+'9'!AA129+'10'!AA129+'11'!AA129 -> 3218 | AB129: ='1'!AB129+'2'!AB129+'3'!AB129+'4'!AB129+'5'!AB129+'6'!AB129+'7'!AB129+'8'!AB129+'9'!AB129+'10'!AB129+'11'!AB129 -> 70 | AC129: ='1'!AC129+'2'!AC129+'3'!AC129+'4'!AC129+'5'!AC129+'6'!AC129+'7'!AC129+'8'!AC129+'9'!AC129+'10'!AC129+'11'!AC129 -> 80 | AD129: ='1'!AD129+'2'!AD129+'3'!AD129+'4'!AD129+'5'!AD129+'6'!AD129+'7'!AD129+'8'!AD129+'9'!AD129+'10'!AD129+'11'!AD129 -> 0 | AE129: ='1'!AE129+'2'!AE129+'3'!AE129+'4'!AE129+'5'!AE129+'6'!AE129+'7'!AE129+'8'!AE129+'9'!AE129+'10'!AE129+'11'!AE129 -> 10 | AF129: ='1'!AF129+'2'!AF129+'3'!AF129+'4'!AF129+'5'!AF129+'6'!AF129+'7'!AF129+'8'!AF129+'9'!AF129+'10'!AF129+'11'!AF129 -> 0 | AG129: 10 | AI129: 0 | AJ129: ='1'!AJ129+'2'!AJ129+'3'!AJ129+'4'!AJ129+'5'!AJ129+'6'!AJ129+'7'!AJ129+'8'!AJ129+'9'!AJ129+'10'!AJ129+'11'!AJ129 -> 0 | AK129: ='1'!AK129+'2'!AK129+'3'!AK129+'4'!AK129+'5'!AK129+'6'!AK129+'7'!AK129+'8'!AK129+'9'!AK129+'10'!AK129+'11'!AK129 -> 0 | AL129: ='1'!AL129+'2'!AL129+'3'!AL129+'4'!AL129+'5'!AL129+'6'!AL129+'7'!AL129+'8'!AL129+'9'!AL129+'10'!AL129+'11'!AL129 -> 0 | AM129: ='1'!AM129+'2'!AM129+'3'!AM129+'4'!AM129+'5'!AM129+'6'!AM129+'7'!AM129+'8'!AM129+'9'!AM129+'10'!AM129+'11'!AM129 -> 0 | AN129: ='1'!AN129+'2'!AN129+'3'!AN129+'4'!AN129+'5'!AN129+'6'!AN129+'7'!AN129+'8'!AN129+'9'!AN129+'10'!AN129+'11'!AN129 -> 0 | AO129: ='1'!AO129+'2'!AO129+'3'!AO129+'4'!AO129+'5'!AO129+'6'!AO129+'7'!AO129+'8'!AO129+'9'!AO129+'10'!AO129+'11'!AO129 -> 0 | AP129: ='1'!AP129+'2'!AP129+'3'!AP129+'4'!AP129+'5'!AP129+'6'!AP129+'7'!AP129+'8'!AP129+'9'!AP129+'10'!AP129+'11'!AP129 -> 0 | AQ129: ='1'!AQ129+'2'!AQ129+'3'!AQ129+'4'!AQ129+'5'!AQ129+'6'!AQ129+'7'!AQ129+'8'!AQ129+'9'!AQ129+'10'!AQ129+'11'!AQ129 -> 0 | AR129: ='1'!AR129+'2'!AR129+'3'!AR129+'4'!AR129+'5'!AR129+'6'!AR129+'7'!AR129+'8'!AR129+'9'!AR129+'10'!AR129+'11'!AR129 -> 0 | AS129: ='1'!AS129+'2'!AS129+'3'!AS129+'4'!AS129+'5'!AS129+'6'!AS129+'7'!AS129+'8'!AS129+'9'!AS129+'10'!AS129+'11'!AS129 -> 0 | AT129: ='1'!AT129+'2'!AT129+'3'!AT129+'4'!AT129+'5'!AT129+'6'!AT129+'7'!AT129+'8'!AT129+'9'!AT129+'10'!AT129+'11'!AT129 -> 0 | AU129: ='1'!AU129+'2'!AU129+'3'!AU129+'4'!AU129+'5'!AU129+'6'!AU129+'7'!AU129+'8'!AU129+'9'!AU129+'10'!AU129+'11'!AU129 -> 0 | AV129: 0 | AW129: ='1'!AW129+'2'!AW129+'3'!AW129+'4'!AW129+'5'!AW129+'6'!AW129+'7'!AW129+'8'!AW129+'9'!AW129+'10'!AW129+'11'!AW129 -> 0 | AX129: ='1'!AX129+'2'!AX129+'3'!AX129+'4'!AX129+'5'!AX129+'6'!AX129+'7'!AX129+'8'!AX129+'9'!AX129+'10'!AX129+'11'!AX129 -> 0 | AY129: ='1'!AY129+'2'!AY129+'3'!AY129+'4'!AY129+'5'!AY129+'6'!AY129+'7'!AY129+'8'!AY129+'9'!AY129+'10'!AY129+'11'!AY129 -> 0 | AZ129: 0
C130: 1 | H130: ='1'!H130 -> Payments for financial assets | I130: =SUM('1:11'!I130)+I253 -> 0 | J130: =SUM('1:11'!J130)+J253 -> 0 | K130: =SUM('1:11'!K130)+K253 -> 0 | L130: =SUM('1:11'!L130)+L253 -> 0 | M130: =SUM('1:11'!M130)+M253 -> 0 | N130: =SUM('1:11'!N130)+N253 -> 0 | O130: =SUM('1:11'!O130)+O253 -> 0 | P130: =SUM('1:11'!P130)+P253 -> 0 | Q130: =SUM('1:11'!Q130)+Q253 -> 0 | R130: =SUM('1:11'!R130)+R253 -> 0 | S130: =SUM('1:11'!S130)+S253 -> 0 | T130: =SUM('1:11'!T130)+T253 -> 0 | U130: =SUM($H130:OFFSET($H130,0,$I$2)) -> 0 | V130: 0 | W130: 4502941 | Y130: 4502941 | Z130: ='1'!Z130+'2'!Z130+'3'!Z130+'4'!Z130+'5'!Z130+'6'!Z130+'7'!Z130+'8'!Z130+'9'!Z130+'10'!Z130+'11'!Z130 -> 4377269 | AA130: ='1'!AA130+'2'!AA130+'3'!AA130+'4'!AA130+'5'!AA130+'6'!AA130+'7'!AA130+'8'!AA130+'9'!AA130+'10'!AA130+'11'!AA130 -> 4512325 | AB130: ='1'!AB130+'2'!AB130+'3'!AB130+'4'!AB130+'5'!AB130+'6'!AB130+'7'!AB130+'8'!AB130+'9'!AB130+'10'!AB130+'11'!AB130 -> -24262 | AC130: ='1'!AC130+'2'!AC130+'3'!AC130+'4'!AC130+'5'!AC130+'6'!AC130+'7'!AC130+'8'!AC130+'9'!AC130+'10'!AC130+'11'!AC130 -> -9384 | AD130: ='1'!AD130+'2'!AD130+'3'!AD130+'4'!AD130+'5'!AD130+'6'!AD130+'7'!AD130+'8'!AD130+'9'!AD130+'10'!AD130+'11'!AD130 -> 160000 | AE130: ='1'!AE130+'2'!AE130+'3'!AE130+'4'!AE130+'5'!AE130+'6'!AE130+'7'!AE130+'8'!AE130+'9'!AE130+'10'!AE130+'11'!AE130 -> 0 | AF130: ='1'!AF130+'2'!AF130+'3'!AF130+'4'!AF130+'5'!AF130+'6'!AF130+'7'!AF130+'8'!AF130+'9'!AF130+'10'!AF130+'11'!AF130 -> 0 | AG130: 160000 | AI130: 0 | AJ130: ='1'!AJ130+'2'!AJ130+'3'!AJ130+'4'!AJ130+'5'!AJ130+'6'!AJ130+'7'!AJ130+'8'!AJ130+'9'!AJ130+'10'!AJ130+'11'!AJ130 -> 0 | AK130: ='1'!AK130+'2'!AK130+'3'!AK130+'4'!AK130+'5'!AK130+'6'!AK130+'7'!AK130+'8'!AK130+'9'!AK130+'10'!AK130+'11'!AK130 -> 0 | AL130: ='1'!AL130+'2'!AL130+'3'!AL130+'4'!AL130+'5'!AL130+'6'!AL130+'7'!AL130+'8'!AL130+'9'!AL130+'10'!AL130+'11'!AL130 -> 0 | AM130: ='1'!AM130+'2'!AM130+'3'!AM130+'4'!AM130+'5'!AM130+'6'!AM130+'7'!AM130+'8'!AM130+'9'!AM130+'10'!AM130+'11'!AM130 -> 0 | AN130: ='1'!AN130+'2'!AN130+'3'!AN130+'4'!AN130+'5'!AN130+'6'!AN130+'7'!AN130+'8'!AN130+'9'!AN130+'10'!AN130+'11'!AN130 -> 0 | AO130: ='1'!AO130+'2'!AO130+'3'!AO130+'4'!AO130+'5'!AO130+'6'!AO130+'7'!AO130+'8'!AO130+'9'!AO130+'10'!AO130+'11'!AO130 -> 0 | AP130: ='1'!AP130+'2'!AP130+'3'!AP130+'4'!AP130+'5'!AP130+'6'!AP130+'7'!AP130+'8'!AP130+'9'!AP130+'10'!AP130+'11'!AP130 -> 0 | AQ130: ='1'!AQ130+'2'!AQ130+'3'!AQ130+'4'!AQ130+'5'!AQ130+'6'!AQ130+'7'!AQ130+'8'!AQ130+'9'!AQ130+'10'!AQ130+'11'!AQ130 -> 0 | AR130: ='1'!AR130+'2'!AR130+'3'!AR130+'4'!AR130+'5'!AR130+'6'!AR130+'7'!AR130+'8'!AR130+'9'!AR130+'10'!AR130+'11'!AR130 -> 0 | AS130: ='1'!AS130+'2'!AS130+'3'!AS130+'4'!AS130+'5'!AS130+'6'!AS130+'7'!AS130+'8'!AS130+'9'!AS130+'10'!AS130+'11'!AS130 -> 0 | AT130: ='1'!AT130+'2'!AT130+'3'!AT130+'4'!AT130+'5'!AT130+'6'!AT130+'7'!AT130+'8'!AT130+'9'!AT130+'10'!AT130+'11'!AT130 -> 0 | AU130: ='1'!AU130+'2'!AU130+'3'!AU130+'4'!AU130+'5'!AU130+'6'!AU130+'7'!AU130+'8'!AU130+'9'!AU130+'10'!AU130+'11'!AU130 -> 0 | AV130: 0 | AW130: ='1'!AW130+'2'!AW130+'3'!AW130+'4'!AW130+'5'!AW130+'6'!AW130+'7'!AW130+'8'!AW130+'9'!AW130+'10'!AW130+'11'!AW130 -> 0 | AX130: ='1'!AX130+'2'!AX130+'3'!AX130+'4'!AX130+'5'!AX130+'6'!AX130+'7'!AX130+'8'!AX130+'9'!AX130+'10'!AX130+'11'!AX130 -> 0 | AY130: ='1'!AY130+'2'!AY130+'3'!AY130+'4'!AY130+'5'!AY130+'6'!AY130+'7'!AY130+'8'!AY130+'9'!AY130+'10'!AY130+'11'!AY130 -> 0 | AZ130: 0
C133: 1
C134: 1 | H134: Total | I134: =I48+I94+I118+I130+I131+I132 -> 30647 | J134: =J48+J94+J118+J130+J131+J132 -> 36152 | K134: 39091 | L134: 35944 | M134: 34634 | N134: 38250 | O134: 49766 | P134: 44305 | Q134: 47667 | R134: 60394 | S134: 55022 | T134: 79744 | U134: =U48+U94+U118+U130+U131+U132 -> 0 | V134: =V48+V94+V118+V130+V131+V132 -> 551616 | W134: =W48+W94+W118+W130+W131+W132 -> 693244550 | Y134: =Y48+Y94+Y118+Y130+Y131+Y132 -> 693796166 | Z134: 511628721 | AA134: 692443487 | AB134: 362757 | AC134: 1352679 | AD134: =AD48+AD94+AD118+AD130+AD131+AD132 -> 0 | AE134: 0 | AF134: 0 | AG134: =SUM(AD134:AF134) -> 0 | AI134: =AI48+AI94+AI118+AI130+AI131+AI132 -> 0 | AJ134: 0 | AK134: 0 | AL134: 0 | AM134: 0 | AN134: 0 | AO134: 0 | AP134: 0 | AQ134: 0 | AR134: 0 | AS134: 0 | AT134: =AT48+AT94+AT118+AT130+AT131+AT132 -> 0 | AU134: =AU48+AU94+AU118+AU130+AU131+AU132 -> 0 | AV134: 0 | AW134: 0 | AX134: 0 | AY134: 0 | AZ134: 0
C135: 1
C136: 1
C137: 1 | H137: Consistency check | I137: =I44-I134 -> 23 | J137: =J44-J134 -> 23 | K137: 558 | L137: 44 | M137: 23 | N137: 558 | O137: 23 | P137: 23 | Q137: 558 | R137: 23 | S137: 23 | T137: 2225 | U137: 0 | V137: 4104 | W137: -4104 | Y137: 0 | Z137: =Z44-Z134 -> 0 | AA137: =AA44-AA134 -> 0 | AB137: =AB44-AB134 -> 0 | AC137: 0 | AD137: 0 | AE137: 0 | AF137: 0 | AG137: 0 | AH137: 0 | AI137: 0 | AJ137: 0 | AK137: 0 | AL137: 0 | AM137: 0 | AN137: 0 | AO137: 0 | AP137: 0 | AQ137: 0 | AR137: 0 | AS137: =AS44-AS134 -> 0 | AT137: 0 | AU137: 0 | AV137: 0 | AW137: 0 | AX137: 0 | AY137: 0 | AZ137: 0
C138: 1
C139: 1
C140: 1
C141: 1
C142: 1 | H142: =IFERROR(IF(Welcome!$BR$4>9,"IYM REPORT FOR THE MONTH OF "&UPPER(Welcome!$B$7) &" "& 2020,"IYM REPORT FOR THE MONTH OF "&UPPER(Welcome!$B$7) &" "& 2019),"IYM PROJECTIONS") -> IYM PROJECTIONS
C143: 1
C144: 1 | H144: I …………….……………………………………… certify:
C145: 1 | H145: 1) Compliance with matters specified in Section 40(4) of the Public Finance Management Act (1999)
C146: 1 | H146: 2) Compliance with Treasury Regulation 17.1.3, and
C147: 1 | H147: 3) The information completed in this template is true and accurate.
C148: 1
C149: 1
C150: 1 | H150: ……………….…………………………..
C151: 1 | H151: ACCOUNTING OFFICER / DELEGATEE
C152: 1 | H152: ……......./…....….../…….....…...
C153: 1
C154: 1
C155: 1
C156: 1
C157: 0
C158: 0
C159: 0
C160: 0
C161: 0
C162: 0
C163: 0
C164: 0
C165: 0
C166: 0
C167: 0
C168: 0
C169: 0
C170: 0 | H170: IYM_econLowestLevel
C171: 0 | H171: Current payments
C172: 0 | H172: Compensation of employees
C173: 0 | H173: Salaries and wages
C174: 0 | H174: Social contributions
C175: 0 | H175: Goods and Services
C176: 0 | H176: Administrative fees
C177: 0 | H177: Advertising
C178: 0 | H178: Minor Assets
C179: 0 | H179: Audit costs: External
C180: 0 | H180: Bursaries: Employees
C181: 0 | H181: Catering: Departmental activities
C182: 0 | H182: Communication (G&S)
C183: 0 | H183: Computer services
C184: 0 | H184: Consultants: Business and advisory services
C185: 0 | H185: Infrastructure and planning services
C186: 0 | H186: Laboratory services
C187: 0 | H187: Legal services (G&S)
C188: 0 | H188: Science and technological services
C189: 0 | H189: Contractors
C190: 0 | H190: Agency and support/outsourced services
C191: 0 | H191: Entertainment
C192: 0 | H192: Fleet services (including government motor transport)
C193: 0 | H193: Housing
C194: 0 | H194: Inventory: Clothing material and accessories
C195: 0 | H195: Inventory: Farming supplies
C196: 0 | H196: Inventory: Food and food supplies
C197: 0 | H197: Inventory: Fuel, oil and gas
C198: 0 | H198: Inventory: Learner and teacher support material
C199: 0 | H199: Inventory: Materials and supplies
C200: 0 | H200: Inventory: Medical supplies
C201: 0 | H201: Inventory: Medicine
C202: 0 | H202: Medsas inventory interface
C203: 0 | H203: Inventory: Other supplies
C204: 0 | H204: Consumable supplies
C205: 0 | H205: Consumables: Stationery, printing and office supplies
C206: 0 | H206: Operating leases
... 48 more rows

Sheet 1 (hidden)
H2: MonthSelect (number of current month in financial year) | I2: =IFERROR(MATCH($J$2,$I$13:$T$13,0),0) -> 0 | J2: =Welcome!B7 -> Projection
B3: Dept | C3: =Summary!C3 -> 7 | H3: Month number: | I3: 1 | J3: 2 | K3: 3 | L3: 4 | M3: 5 | N3: 6 | O3: 7 | P3: 8 | Q3: 9 | R3: 10 | S3: 11 | T3: 12
B4: ProgNo | C4: 1
B5: Month | C5: =Summary!$C$5 -> 0 | E5: =IF($AC$24="",R5,V5) -> 0
G6: ="Vote "&C3 -> Vote 7
G7: =Welcome!E7 -> National Treasury
A8: Note, G8 must be changed | G8: ="Programme "&C4&":" -> Programme 1:
A9: for each programme sheet | G9: =OFFSET(Summary!H22,'1'!C4,0) -> Administration
AJ10: Adjustments
G11: PROJECTED AND ACTUAL EXPENDITURE (R'000) | Z11: Main Appropriation | AB11: Adjustments Appropriation | AD11: VIREMENTS, SHIFTS and ROLLOVERS | AJ11: Adjusted Estimates of National Expenditure (AENE) | AW11: Post AENE
I12: =IF($I$2>=I$3,"Actual","Projection") -> Projection | J12: =IF($I$2>=J$3,"Actual","Projection") -> Projection | K12: Projection | L12: Projection | M12: Projection | N12: Projection | O12: Projection | P12: Projection | Q12: Projection | R12: Projection | S12: Projection | T12: Projection | U12: Cumulative | V12: =IF(Summary!$C$5 = 12, "Actual","Projected") -> Projected | W12: =IF(Summary!$C$5 = 12, "Actual","Projected") -> Projected | Y12: Total Available | Z12: BAS | AA12: ENE | AB12: BAS | AC12: AENE | AD12: BAS | AG12: Total | AI12: Total | AJ12: Adjustments | AK12: Unforseeable | AL12: Expenditure | AM12: Money to be | AN12: Shifting of funds to follow | AP12: Utilisation of savings | AS12: Roll-overs | AT12: Declared | AU12: Self financing | AV12: Sub total | AW12: Utilisation of savings | AY12: Shifting of | AZ12: Sub total
I13: April | J13: May | K13: June | L13: July | M13: August | N13: September | O13: October | P13: November | Q13: December | R13: January | S13: February | T13: March | U13: expenditure | V13: outcome | W13: (Over)/Under | Y13: funds | AD13: Virement | AE13: Fund Shift | AF13: Rollover | AG13: adjustments | AI13: adjustments | AJ13: due to | AK13: and | AL13: in terms of | AM13: appropriated | AN13: the transfer of functions | AP13: Approval | AQ13: Treasury | AR13: Approval | AT13: unspent | AW13: Approval | AX13: Treasury | AY13: funds to
H14: =IF(COUNTIF($I$137:$AZ$137,">=.5")+COUNTIF($I$137:$AZ$137,"<=-.5")>0,"INCONSISTENCIES","") -> INCONSISTENCIES | U14: to end of | V14: =Welcome!$I$2 -> 2019/20 | W14: Expenditure | AE14: Shifting of | AG14: BAS | AI14: IYM | AJ14: significant | AK14: unavoidable | AL14: Section 16 | AM14: for | AN14: Within | AO14: Between | AP14: by | AQ14: approval | AR14: through | AT14: funds | AW14: by | AX14: approval | AY14: follow the
U15: =IFERROR(INDEX(I13:T13,1,I2),"year") -> year | AE15: funds to | AJ15: economic | AK15: expenditure | AM15: expenditure | AN15: votes | AO15: votes | AP15: Accounting | AR15: legislature | AW15: Accounting | AY15: transfer of
AE16: follow the | AJ16: and | AM16: already | AP16: officer | AW16: officer | AY16: functions
C17: Filter for hiding rows | AE17: transfer of | AJ17: financial | AM17: announced | AP17: or delegate | AW17: or delegate | AY17: within votes
AE18: functions | AJ18: events
AJ20: 23 | AK20: 24 | AL20: 25 | AM20: 26 | AN20: 27 | AO20: 28 | AP20: 29 | AQ20: 30 | AR20: 31 | AS20: 32 | AT20: 33 | AU20: 34 | AV20: 35 | AW20: 36 | AX20: 37 | AY20: 38 | AZ20: 39
C21: 1 | G21: Expenditure
C22: 1
C23: 1 | G23: Subprogramme
